{"text_format":"1","workbook":"xlsx","n_sheets":36,"sheets":["1. Information Sheet","2. Related Links","3. Rate Class Selection","4. Current Tariff Schedule","4. Hidden","5. 2014 Continuity Schedule","6. Billing Det. for Def-Var","6. hidden","7. Allocating Def-Var Balances","8. Calculation of Def-Var RR","9. STS - Billing Det & Rates","10. STS - Rebased Rev","9. STS - Billing Det & Rate HID","11. STS - Tax Change","12. STS - Tax Change Rate Rider","13. RTSR Rate Sheet","14. RTSR RRR Data","14. RTSR RRR Data Copy","15. RTSR - UTRs & Sub-Tx","16. RTSR - Historical Wholesale","17. RTSR - Current Wholesale","18. RTSR - Forecast Wholesale","19. RTSR Ntwrk to Curren WS","20. RTSR Adj Conn to Current WS","21. RTSR Adj Ntwk to Forcast WS","22. RTSR Adj Conn. to Forcst WS","23. RTSR Final 2015 RTS Rates","24. Rev2Cost_GDPIPI","24. hidden","25. Other Charges & LF","26. Proposed Rates","26. Hidden","27. Final Tariff Schedule","14. Bill Impacts","28. Bill Impacts","lists"],"not_rendered":{"charts":0,"images":3,"macros":1,"external_links":5,"defined_names":639,"comments":0,"pivot_tables":0},"unopened":[],"bounds":{"document_bytes":16777216,"sheet_cells":100000,"rows_first":2000,"rows_last":500,"rows_between":2000,"halvings":0,"cell_chars":16384,"cell_head_chars":4096},"cells_cut":0,"cells_raw":0,"read":"whole","date_system":"1900"}

{"sheet":"1. Information Sheet","index":0,"n_rows":44,"n_cols":27,"rows_kept":44,"cut":false,"hidden":false,"merged":[[43,0,43,6],[21,5,21,9],[19,5,19,9],[13,5,13,11],[15,5,15,9],[17,5,17,9],[36,2,36,11],[38,2,38,13],[40,2,40,12],[23,5,23,9],[27,5,27,7],[29,5,29,7],[29,0,29,4],[25,5,25,9],[31,0,31,4],[31,5,31,7]]}
[null,null,null,null,null,null,null,null,null,null,null,null,null,null,null,null,null,null,null,null,"a",null,null,null,null,null,{"$f":"IF(OR(F16=\"\", F16=\"(if applicable)\"), F14, F14 & \" - \" & F16)","v":"Oakville Hydro Electricity Distribution Inc. - Town of Oakville"}]
[]
[]
[]
[]
[]
[]
[]
[]
[]
[]
[null,null,null,null,null,null,null,null,null,null,null,null,"Version",1.1000000000000001]
[]
[null,null,null,null,"Utility Name   ","Oakville Hydro Electricity Distribution Inc."]
[]
[null,null,null,null,"Service Territory","Town of Oakville"]
[]
[null,null,null,null,"Assigned EB Number","EB-2014-0102"]
[]
[null,null,null,null,"Name of Contact and Title","Maryanne Wilson, Manager, Regulatory Affairs"]
[]
[null,null,null,null,"Phone Number   ","905-825-4422"]
[]
[null,null,null,null,"Email Address   ","mwilson@oakvillehydro.com"]
[]
[null,null,null,null,"We are applying for rates effective   ","2015-01-01"]
[]
[null,null,null,null,"Rate-Setting Method","Price Cap IR"]
[]
["Please indicate in which Rate Year the Group 1 accounts were last cleared1",null,null,null,null,2014]
[]
["Please indicate the last Cost of Service \nRe-Basing Year",null,null,null,null,2014]
[]
[]
[null,"Notes"]
[]
[null,null,"Pale green cells represent input cells."]
[]
[null,null,"Pale blue cells represent drop-down lists.  The applicant should select the appropriate item from the drop-down list."]
[]
[null,null,"White cells contain fixed values, automatically generated values or formulae. "]
[]
[]
["Note:  \n1.  Rate year of application"]

{"sheet":"2. Related Links","index":1,"n_rows":15,"n_cols":2,"rows_kept":15,"cut":false,"hidden":false,"merged":[[14,1,14,13],[12,1,12,7]]}
[]
[]
[]
[]
[]
[]
[]
[]
[]
[]
[]
[]
["●","Ontario Energy Board's 2015 Electricity Distribution Rates Webpage"]
[]
["●","An updated version of Chapter 3 of the Filing Requirements for Electricity Distribution Rate Applications for 2015 rates."]

{"sheet":"3. Rate Class Selection","index":2,"n_rows":33,"n_cols":17,"rows_kept":33,"cut":false,"hidden":false,"merged":[[11,0,11,13],[18,1,18,9],[17,1,17,9],[19,1,19,9],[20,1,20,9],[26,1,26,9],[21,1,21,9],[22,1,22,9],[23,1,23,9],[24,1,24,9],[25,1,25,9]]}
[]
[]
[]
[]
[]
[]
[]
[]
[]
[]
[]
["Select the appropriate rate classes as they appear on your most recent Board-Approved Tariff of Rates and Charges, including the MicroFit Class."]
[]
["How many classes are on your most recent Board-Approved Tariff of Rates and Charges?",null,null,null,null,null,null,null,null,9]
[]
["Select Your Rate Classes from the Blue Cells below.  Please ensure that a rate class is assigned to each shaded cell."]
[]
[null,"Rate Class Classification",null,null,null,null,null,null,null,null,null,null,null,null,null,null,"# of duplicates"]
[1,"RESIDENTIAL",null,null,null,null,null,null,null,null,null,null,null,null,null,{"$f":"COUNTIF($B$19:$J$40, B19)","v":1},{"$f":"COUNTIF(P19:P40, 2)/2","v":0}]
[2,"GENERAL SERVICE LESS THAN 50 KW",null,null,null,null,null,null,null,null,null,null,null,null,null,{"$f":"COUNTIF($B$19:$J$40, B20)","v":1}]
[3,"GENERAL SERVICE 50 TO 1,000 KW",null,null,null,null,null,null,null,null,null,null,null,null,null,1]
[4,"GENERAL SERVICE GREATER THAN 1,000 KW",null,null,null,null,null,null,null,null,null,null,null,null,null,1]
[5,"UNMETERED SCATTERED LOAD",null,null,null,null,null,null,null,null,null,null,null,null,null,1]
[6,"SENTINEL LIGHTING",null,null,null,null,null,null,null,null,null,null,null,null,null,1]
[7,"STREET LIGHTING",null,null,null,null,null,null,null,null,null,null,null,null,null,1]
[8,"EMBEDDED DISTRIBUTOR",null,null,null,null,null,null,null,null,null,null,null,null,null,1]
[9,"microFIT",null,null,null,null,null,null,null,null,null,null,null,null,null,1]
[null,null,null,null,null,null,null,null,null,null,null,null,null,null,null,0]
[null,null,null,null,null,null,null,null,null,null,null,null,null,null,null,0]
[null,null,null,null,null,null,null,null,null,null,null,null,null,null,null,0]
[null,null,null,null,null,null,null,null,null,null,null,null,null,null,null,0]
[null,null,null,null,null,null,null,null,null,null,null,null,null,null,null,0]
[null,null,null,null,null,null,null,null,null,null,null,null,null,null,null,0]

{"sheet":"4. Current Tariff Schedule","index":3,"n_rows":582,"n_cols":28,"rows_kept":582,"cut":false,"hidden":false,"merged":[[11,1,17,8],[72,1,72,6],[48,1,48,6],[57,1,57,6],[20,1,20,8],[21,1,21,8],[23,1,23,8],[49,1,49,6],[53,1,53,6],[54,1,54,6],[55,1,55,6],[56,1,56,6],[58,1,58,6],[59,1,59,6],[52,1,52,6],[25,1,30,8],[33,1,35,8],[36,1,39,8],[40,1,42,8],[43,1,46,8],[50,1,50,6],[51,1,51,6],[62,1,62,6],[66,1,66,6],[119,1,119,6],[120,1,120,6],[121,1,121,6],[88,1,93,8],[96,1,98,8],[99,1,102,8],[103,1,105,8],[106,1,109,8],[60,1,60,6],[61,1,61,6],[83,1,83,6],[77,1,77,6],[80,1,80,6],[81,1,81,6],[82,1,82,6],[76,1,76,6],[75,1,75,6],[74,1,74,6],[67,1,67,6],[68,1,68,6],[73,1,73,6],[63,1,63,6],[71,1,71,6],[70,1,70,6],[86,1,86,8],[111,1,111,6],[112,1,112,6],[113,1,113,6],[114,1,114,6],[115,1,115,6],[69,1,69,6],[64,1,64,6],[65,1,65,6],[116,1,116,6],[117,1,117,6],[118,1,118,6],[122,1,122,6],[123,1,123,6],[124,1,124,6],[125,1,125,6],[126,1,126,6],[206,1,206,6],[132,1,132,6],[133,1,133,6],[134,1,134,6],[135,1,135,6],[136,1,136,6],[127,1,127,6],[128,1,128,6],[129,1,129,6],[130,1,130,6],[131,1,131,6],[137,1,137,6],[138,1,138,6],[139,1,139,6],[140,1,140,6],[166,1,168,8],[207,1,207,6],[208,1,208,6],[209,1,209,6],[149,1,149,8],[175,1,175,6],[176,1,176,6],[177,1,177,6],[178,1,178,6],[179,1,179,6],[180,1,180,6],[181,1,181,6],[182,1,182,6],[183,1,183,6],[184,1,184,6],[185,1,185,6],[151,1,156,8],[159,1,161,8],[162,1,165,8],[186,1,186,6],[187,1,187,6],[188,1,188,6],[189,1,189,6],[190,1,190,6],[174,1,174,6],[169,1,172,8],[143,1,143,6],[144,1,144,6],[145,1,145,6],[146,1,146,6],[201,1,201,6],[202,1,202,6],[203,1,203,6],[196,1,196,6],[197,1,197,6],[198,1,198,6],[199,1,199,6],[200,1,200,6],[191,1,191,6],[192,1,192,6],[193,1,193,6],[194,1,194,6],[195,1,195,6],[214,1,219,8],[222,1,224,8],[225,1,228,8],[229,1,231,8],[232,1,235,8],[269,1,269,6],[270,1,270,6],[271,1,271,6],[272,1,272,6],[252,1,252,6],[253,1,253,6],[254,1,254,6],[237,1,237,6],[238,1,238,6],[239,1,239,6],[240,1,240,6],[241,1,241,6],[242,1,242,6],[243,1,243,6],[244,1,244,6],[245,1,245,6],[212,1,212,8],[277,1,282,8],[285,1,287,8],[288,1,291,8],[292,1,294,8],[295,1,298,8],[259,1,259,6],[260,1,260,6],[261,1,261,6],[262,1,262,6],[263,1,263,6],[264,1,264,6],[265,1,265,6],[266,1,266,6],[255,1,255,6],[256,1,256,6],[257,1,257,6],[258,1,258,6],[246,1,246,6],[247,1,247,6],[248,1,248,6],[249,1,249,6],[250,1,250,6],[251,1,251,6],[373,1,373,6],[374,1,374,6],[375,1,375,6],[376,1,376,6],[377,1,377,6],[378,1,378,6],[335,1,335,6],[275,1,275,8],[340,1,345,8],[348,1,350,8],[351,1,354,8],[355,1,357,8],[358,1,361,8],[300,1,300,6],[301,1,301,6],[302,1,302,6],[303,1,303,6],[304,1,304,6],[305,1,305,6],[306,1,306,6],[307,1,307,6],[308,1,308,6],[309,1,309,6],[310,1,310,6],[364,1,364,6],[365,1,365,6],[366,1,366,6],[367,1,367,6],[368,1,368,6],[369,1,369,6],[370,1,370,6],[371,1,371,6],[372,1,372,6],[514,1,514,6],[430,1,430,6],[431,1,431,6],[432,1,432,6],[433,1,433,6],[434,1,434,6],[435,1,435,6],[436,1,436,6],[437,1,437,6],[438,1,438,6],[439,1,439,6],[440,1,440,6],[441,1,441,6],[442,1,442,6],[443,1,443,6],[444,1,444,6],[505,1,505,6],[506,1,506,6],[507,1,507,6],[508,1,508,6],[509,1,509,6],[510,1,510,6],[511,1,511,6],[512,1,512,6],[513,1,513,6],[496,1,496,6],[497,1,497,6],[498,1,498,6],[499,1,499,6],[500,1,500,6],[501,1,501,6],[502,1,502,6],[503,1,503,6],[504,1,504,6],[322,1,322,6],[323,1,323,6],[311,1,311,6],[315,1,315,6],[316,1,316,6],[317,1,317,6],[318,1,318,6],[319,1,319,6],[320,1,320,6],[321,1,321,6],[312,1,312,6],[313,1,313,6],[314,1,314,6],[324,1,324,6],[325,1,325,6],[326,1,326,6],[327,1,327,6],[328,1,328,6],[329,1,329,6],[363,1,363,6],[332,1,332,6],[333,1,333,6],[334,1,334,6],[338,1,338,8],[379,1,379,6],[380,1,380,6],[381,1,381,6],[382,1,382,6],[383,1,383,6],[384,1,384,6],[385,1,385,6],[386,1,386,6],[387,1,387,6],[388,1,388,6],[389,1,389,6],[390,1,390,6],[391,1,391,6],[392,1,392,6],[426,1,426,6],[427,1,427,6],[428,1,428,6],[429,1,429,6],[401,1,401,8],[395,1,395,6],[396,1,396,6],[397,1,397,6],[398,1,398,6],[403,1,408,8],[411,1,413,8],[414,1,417,8],[418,1,420,8],[421,1,424,8],[445,1,445,6],[446,1,446,6],[447,1,447,6],[448,1,448,6],[449,1,449,6],[450,1,450,6],[451,1,451,6],[452,1,452,6],[453,1,453,6],[454,1,454,6],[455,1,455,6],[489,1,489,6],[490,1,490,6],[491,1,491,6],[492,1,492,6],[493,1,493,6],[494,1,494,6],[495,1,495,6],[459,1,459,6],[460,1,460,6],[461,1,461,6],[466,1,471,8],[474,1,476,8],[477,1,480,8],[481,1,483,8],[484,1,487,8],[458,1,458,6],[464,1,464,8],[515,1,515,6],[516,1,516,6],[517,1,517,6],[518,1,518,6],[552,1,552,6],[547,1,550,8],[527,1,527,8],[529,1,534,8],[537,1,539,8],[540,1,543,8],[544,1,546,8],[521,1,521,6],[522,1,522,6],[523,1,523,6],[524,1,524,6],[553,1,553,6],[554,1,554,6],[555,1,555,6],[556,1,556,6],[557,1,557,6],[558,1,558,6],[559,1,559,6],[560,1,560,6],[561,1,561,6],[562,1,562,6],[563,1,563,6],[564,1,564,6],[565,1,565,6],[566,1,566,6],[567,1,567,6],[568,1,568,6],[569,1,569,6],[570,1,570,6],[580,1,580,6],[581,1,581,6],[571,1,571,6],[572,1,572,6],[573,1,573,6],[574,1,574,6],[575,1,575,6],[576,1,576,6],[577,1,577,6],[578,1,578,6],[579,1,579,6]]}
[null,null,null,null,null,null,null,null,null,null,null,null,null,null,null,null,null,null,null,null,null,null,null,null,null,3,"January","≥"]
[null,null,null,null,null,null,null,null,null,null,null,null,null,null,null,null,null,null,null,null,null,null,null,null,null,null,"February"]
[null,null,null,null,null,null,null,null,null,null,null,null,null,null,null,null,null,null,null,null,null,null,null,null,null,null,"March"]
[null,null,null,null,null,null,null,null,null,null,null,null,null,null,null,null,null,null,null,null,null,null,null,null,null,null,"April"]
[null,null,null,null,null,null,null,null,null,null,null,null,null,null,null,null,null,null,null,null,null,null,null,null,null,null,"May"]
[null,null,null,null,null,null,null,null,null,null,null,null,null,null,null,null,null,null,null,null,null,null,null,null,null,null,"June"]
[null,null,null,null,null,null,null,null,null,null,null,null,null,null,null,null,null,null,null,null,null,null,null,null,null,null,"July"]
[null,null,null,null,null,null,null,null,null,null,null,null,null,null,null,null,null,null,null,null,null,null,null,null,null,null,"August"]
[null,null,null,null,null,null,null,null,null,null,null,null,null,null,null,null,null,null,null,null,null,null,null,null,null,null,"September"]
[null,null,null,null,null,null,null,null,null,null,null,null,null,null,null,null,null,null,null,null,null,null,null,null,null,null,"October"]
[null,null,null,null,null,null,null,null,null,null,null,null,null,null,null,null,null,null,null,null,null,null,null,null,null,null,"November"]
[null,"For each class, Applicants are required to copy and paste the class descriptions (located directly under the class name) and the description of the applicability of those rates (description is found under the class name and directly under the word \"APPLICATION\").  By using the drop-down lists located under the column labeled \"Rate Description\", please select the descriptions of the rates and charges that BEST MATCHES the descriptions on your most recent Board-Approved Tariff of Rates and Charges.  If the description is not found in the drop-down list, please enter the description in the green cells under the correct class exactly as it appears on the tariff.   Please do not enter more than one \"Service Charge\" for each class for which a base monthly fixed charge applies.",null,null,null,null,null,null,null,null,null,null,null,null,null,null,null,null,null,null,null,null,null,null,null,null,"December"]
[]
[]
[]
[]
[]
[]
[]
[]
[null,{"$f":"IF(ISBLANK('1. Information Sheet'!F14), \"Please Choose Distributor Name on Sheet 1\", '1. Information Sheet'!F14)","v":"Oakville Hydro Electricity Distribution Inc."}]
[null,"TARIFF OF RATES AND CHARGES"]
[]
["RESIDENTIAL","RESIDENTIAL Service Classification"]
["RESIDENTIAL"]
["RESIDENTIAL","This class refers to the supply of electrical energy to detached and semi-detached residential buildings as well as farms as defined in the local zoning by-laws. Where the residential dwelling comprises the entire electrical load of a farm, it is defined as a residential service. Where electricity is provided to a combined residential and business (including agricultural usage) and the service does not provide for separate metering, the classification shall be at the discretion of Oakville Hydro and shall be based on such considerations as the estimated predominant consumption. Further servicing details are available in the distributor’s Conditions of Service. "]
["RESIDENTIAL"]
["RESIDENTIAL"]
["RESIDENTIAL"]
["RESIDENTIAL"]
["RESIDENTIAL"]
["RESIDENTIAL","APPLICATION"]
["RESIDENTIAL"]
["RESIDENTIAL","The application of these rates and charges shall be in accordance with the Licence of the Distributor and any Code or Order of the Board, and amendments thereto as approved by the Board, which may be applicable to the administration of this schedule. "]
["RESIDENTIAL"]
["RESIDENTIAL"]
["RESIDENTIAL","No rates and charges for the distribution of electricity and charges to meet the costs of any work or service done or furnished for the purpose of the distribution of electricity shall be made except as permitted by this schedule, unless required by the Distributor’s Licence or a Code or Order of the Board, and amendments thereto as approved by the Board, or as specified herein. "]
["RESIDENTIAL"]
["RESIDENTIAL"]
["RESIDENTIAL"]
["RESIDENTIAL","Unless specifically noted, this schedule does not contain any charges for the electricity commodity, be it under the Regulated Price Plan, a contract with a retailer or the wholesale market price, as applicable. In addition, the charges in the MONTHLY RATES AND CHARGES – Regulatory Component of this schedule do not apply to a customer that is an embedded wholesale market participant"]
["RESIDENTIAL"]
["RESIDENTIAL"]
["RESIDENTIAL","It should be noted that this schedule does not list any charges or assessments that are required by law to be charged by a distributor and that are not subject to Board approval, such as the Debt Retirement Charge, charges for Ministry of Energy Conservation and Renewable Energy Program, the Provincial Benefit and any applicable taxes. "]
["RESIDENTIAL"]
["RESIDENTIAL"]
["RESIDENTIAL"]
["RESIDENTIAL","MONTHLY RATES AND CHARGES - Delivery Component      (If applicable, Effective Date MUST be included in rate description)"]
["RESIDENTIAL","Service Charge",null,null,null,null,null,"$",14.42,null,"1_C_MSC"]
["RESIDENTIAL","Rate Rider for Smart Metering Entity Charge - effective until October 31, 2018",null,null,null,null,null,"$",0.79,null,"1_C_SMEC","2018-10-31"]
["RESIDENTIAL","Distribution Volumetric Rate",null,null,null,null,null,"$/kWh",1.5699999999999999E-2,null,"1_C_VC_1"]
["RESIDENTIAL","Low Voltage Service Rate",null,null,null,null,null,"$/kWh",4.0000000000000002E-4,null,"1_C_LVrate"]
["RESIDENTIAL","Retail Transmission Rate - Network Service Rate",null,null,null,null,null,"$/kWh",7.9000000000000008E-3,null,"1_C_RTSR_Network"]
["RESIDENTIAL","Retail Transmission Rate - Line and Transformation Connection Service Rate",null,null,null,null,null,"$/kWh",5.3E-3,null,"1_C_RTSR_Connection"]
["RESIDENTIAL"]
["RESIDENTIAL"]
["RESIDENTIAL"]
["RESIDENTIAL"]
["RESIDENTIAL"]
["RESIDENTIAL"]
["RESIDENTIAL"]
["RESIDENTIAL"]
["RESIDENTIAL"]
["RESIDENTIAL"]
["RESIDENTIAL"]
["RESIDENTIAL"]
["RESIDENTIAL"]
["RESIDENTIAL"]
["RESIDENTIAL"]
["RESIDENTIAL"]
["RESIDENTIAL"]
["RESIDENTIAL"]
["RESIDENTIAL","Rate Rider for Recovery of Stranded Meter Assets - effective until April 30, 2019",null,null,null,null,null,"$",0.77,null,"1_C_MSC_Rate_Rider_2","2019-04-30"]
["RESIDENTIAL","Rate Rider for Disposition of Deferral/Variance Accounts (2014) - effective until April 30, 2015",null,null,null,null,null,"$/kWh",-5.0000000000000001E-4,null,"1_C_VC_DEFVAR_kWh_1","2015-04-30"]
["RESIDENTIAL","Rate Rider for Disposition of Global Adjustment Sub-Account (2014) - effective until April 30, 2015\n      Applicable only for Non-RPP Customers",null,null,null,null,null,"$/kWh",-1.6000000000000001E-3,null,"1_C_VC_GA_Rate_Rider_kWh_1","2015-04-30"]
["RESIDENTIAL","Rate Rider for Disposition of Account 1576 - effective until April 30, 2015\n",null,null,null,null,null,"$/kWh",-5.9999999999999995E-4,null,"1_C_VC_Rate_Rider_kWh_2","2015-04-30"]
["RESIDENTIAL","Rate Rider for Disposition of CGAAP CWIP DIfferential - effective until April 30, 2015\n",null,null,null,null,null,"$/kWh",2.9999999999999997E-4,null,"1_C_VC_Rate_Rider_kWh_3","2015-04-30"]
["RESIDENTIAL","Rate Rider for Disposition of Incremental Capital Expenditures - effective until April 30, 2015\n",null,null,null,null,null,"$/kWh",2.0000000000000001E-4,null,"1_C_VC_Rate_Rider_kWh_4","2015-04-30"]
["RESIDENTIAL","MONTHLY RATES AND CHARGES - Regulatory Component"]
["RESIDENTIAL"]
["RESIDENTIAL","Wholesale Market Service Rate",null,null,null,null,null,"$/kWh",4.4000000000000003E-3,null,"1_C_WMSR"]
["RESIDENTIAL","Rural or Remote Electricity Rate Protection Charge (RRRP)",null,null,null,null,null,"$/kWh",1.2999999999999999E-3,null,"1_C_RRPC"]
["RESIDENTIAL","Standard Supply Service - Administrative Charge (if applicable)",null,null,null,null,null,"$",0.25,null,"1_C_SSS"]
["RESIDENTIAL"]
[]
[]
["GENERAL SERVICE LESS THAN 50 KW","GENERAL SERVICE LESS THAN 50 KW Service Classification"]
["GENERAL SERVICE LESS THAN 50 KW"]
["GENERAL SERVICE LESS THAN 50 KW","This class refers to customers who do not qualify as residential customers and whose monthly average peak demand in the preceding twelve months is less than 50kW. For new customers without prior billing history, the peak demand will be based on 90% of the proposed capacity or installed transformation. Note: Apartment buildings or multi-unit complexes and subdivisions that are not individually metered are treated as General Service. Further servicing details are available in the distributor’s Conditions of Service. "]
["GENERAL SERVICE LESS THAN 50 KW"]
["GENERAL SERVICE LESS THAN 50 KW"]
["GENERAL SERVICE LESS THAN 50 KW"]
["GENERAL SERVICE LESS THAN 50 KW"]
["GENERAL SERVICE LESS THAN 50 KW"]
["GENERAL SERVICE LESS THAN 50 KW","APPLICATION"]
["GENERAL SERVICE LESS THAN 50 KW"]
["GENERAL SERVICE LESS THAN 50 KW","The application of these rates and charges shall be in accordance with the Licence of the Distributor and any Code or Order of the Board, and amendments thereto as approved by the Board, which may be applicable to the administration of this schedule"]
["GENERAL SERVICE LESS THAN 50 KW"]
["GENERAL SERVICE LESS THAN 50 KW"]
["GENERAL SERVICE LESS THAN 50 KW","No rates and charges for the distribution of electricity and charges to meet the costs of any work or service done or furnished for the purpose of the distribution of electricity shall be made except as permitted by this schedule, unless required by the Distributor’s Licence or a Code or Order of the Board, and amendments thereto as approved by the Board, or as specified herein. "]
["GENERAL SERVICE LESS THAN 50 KW"]
["GENERAL SERVICE LESS THAN 50 KW"]
["GENERAL SERVICE LESS THAN 50 KW"]
["GENERAL SERVICE LESS THAN 50 KW","Unless specifically noted, this schedule does not contain any charges for the electricity commodity, be it under the Regulated Price Plan, a contract with a retailer or the wholesale market price, as applicable. In addition, the charges in the MONTHLY RATES AND CHARGES – Regulatory Component of this schedule do not apply to a customer that is an embedded wholesale market participant"]
["GENERAL SERVICE LESS THAN 50 KW"]
["GENERAL SERVICE LESS THAN 50 KW"]
["GENERAL SERVICE LESS THAN 50 KW","It should be noted that this schedule does not list any charges, assessments or credits that are required by law to be invoiced by a distributor and that are not subject to Board approval, such as the Debt Retirement Charge, the Global Adjustment, the Ontario Clean Energy Benefit and the HST. "]
["GENERAL SERVICE LESS THAN 50 KW"]
["GENERAL SERVICE LESS THAN 50 KW"]
["GENERAL SERVICE LESS THAN 50 KW"]
["GENERAL SERVICE LESS THAN 50 KW","MONTHLY RATES AND CHARGES - Delivery Component      (If applicable, Effective Date MUST be included in rate description)"]
["GENERAL SERVICE LESS THAN 50 KW","Service Charge",null,null,null,null,null,"$",34.71,null,"2_C_MSC"]
["GENERAL SERVICE LESS THAN 50 KW","Rate Rider for Smart Metering Entity Charge - effective until October 31, 2018",null,null,null,null,null,"$",0.79,null,"2_C_SMEC","2018-10-31"]
["GENERAL SERVICE LESS THAN 50 KW","Distribution Volumetric Rate",null,null,null,null,null,"$/kWh",1.5299999999999999E-2,null,"2_C_VC_1"]
["GENERAL SERVICE LESS THAN 50 KW","Low Voltage Service Rate",null,null,null,null,null,"$/kWh",2.9999999999999997E-4,null,"2_C_LVrate"]
["GENERAL SERVICE LESS THAN 50 KW","Retail Transmission Rate - Network Service Rate",null,null,null,null,null,"$/kWh",7.3000000000000001E-3,null,"2_C_RTSR_Network"]
["GENERAL SERVICE LESS THAN 50 KW","Retail Transmission Rate - Line and Transformation Connection Service Rate",null,null,null,null,null,"$/kWh",4.7999999999999996E-3,null,"2_C_RTSR_Connection"]
["GENERAL SERVICE LESS THAN 50 KW"]
["GENERAL SERVICE LESS THAN 50 KW"]
["GENERAL SERVICE LESS THAN 50 KW"]
["GENERAL SERVICE LESS THAN 50 KW"]
["GENERAL SERVICE LESS THAN 50 KW"]
["GENERAL SERVICE LESS THAN 50 KW"]
["GENERAL SERVICE LESS THAN 50 KW"]
["GENERAL SERVICE LESS THAN 50 KW"]
["GENERAL SERVICE LESS THAN 50 KW"]
["GENERAL SERVICE LESS THAN 50 KW"]
["GENERAL SERVICE LESS THAN 50 KW"]
["GENERAL SERVICE LESS THAN 50 KW"]
["GENERAL SERVICE LESS THAN 50 KW"]
["GENERAL SERVICE LESS THAN 50 KW"]
["GENERAL SERVICE LESS THAN 50 KW"]
["GENERAL SERVICE LESS THAN 50 KW"]
["GENERAL SERVICE LESS THAN 50 KW"]
["GENERAL SERVICE LESS THAN 50 KW"]
["GENERAL SERVICE LESS THAN 50 KW","Rate Rider for Recovery of Stranded Meter Assets - effective until April 30, 2019",null,null,null,null,null,"$",2.27,null,"2_C_MSC_Rate_Rider_2","2019-04-30"]
["GENERAL SERVICE LESS THAN 50 KW","Rate Rider for Disposition of Deferral/Variance Accounts (2014) - effective until April 30, 2015",null,null,null,null,null,"$/kWh",-6.9999999999999999E-4,null,"2_C_VC_DEFVAR_kWh_1","2015-04-30"]
["GENERAL SERVICE LESS THAN 50 KW","Rate Rider for Disposition of Global Adjustment Sub-Account (2014) - effective until April 30, 2015\n      Applicable only for Non-RPP Customers",null,null,null,null,null,"$/kWh",-1.6000000000000001E-3,null,"2_C_VC_GA_Rate_Rider_kWh_1","2015-04-30"]
["GENERAL SERVICE LESS THAN 50 KW","Rate Rider for Disposition of Account 1576 - effective until April 30, 2015\n",null,null,null,null,null,"$/kWh",-5.9999999999999995E-4,null,"2_C_VC_Rate_Rider_kWh_2","2015-04-30"]
["GENERAL SERVICE LESS THAN 50 KW","Rate Rider for Disposition of CGAAP CWIP DIfferential - effective until April 30, 2015\n",null,null,null,null,null,"$/kWh",2.9999999999999997E-4,null,"2_C_VC_Rate_Rider_kWh_3","2015-04-30"]
["GENERAL SERVICE LESS THAN 50 KW","Rate Rider for Disposition of Incremental Capital Expenditures - effective until April 30, 2015\n",null,null,null,null,null,"$/kWh",2.0000000000000001E-4,null,"2_C_VC_Rate_Rider_kWh_4","2015-04-30"]
["GENERAL SERVICE LESS THAN 50 KW","MONTHLY RATES AND CHARGES - Regulatory Component"]
["GENERAL SERVICE LESS THAN 50 KW"]
["GENERAL SERVICE LESS THAN 50 KW","Wholesale Market Service Rate",null,null,null,null,null,{"$f":"H81","v":"$/kWh"},4.4000000000000003E-3,null,"2_C_WMSR"]
["GENERAL SERVICE LESS THAN 50 KW","Rural or Remote Electricity Rate Protection Charge (RRRP)",null,null,null,null,null,"$/kWh",1.2999999999999999E-3,null,"2_C_RRPC"]
["GENERAL SERVICE LESS THAN 50 KW","Standard Supply Service - Administrative Charge (if applicable)",null,null,null,null,null,"$",0.25,null,"2_C_SSS"]
["GENERAL SERVICE LESS THAN 50 KW"]
[]
[]
["GENERAL SERVICE 50 TO 1,000 KW","GENERAL SERVICE 50 TO 1,000 KW Service Classification"]
["GENERAL SERVICE 50 TO 1,000 KW"]
["GENERAL SERVICE 50 TO 1,000 KW","This class refers to customers who do not qualify as residential customers whose monthly average peak demand in the preceding twelve months is in the range of 50 to 999 kW. There are two sub categories within this class, those being non-interval and interval metered accounts. For new customers without prior billing history, the peak demand will be based on 90% of the proposed capacity or installed transformation. Further servicing details are available in the distributor’s Conditions of Service. "]
["GENERAL SERVICE 50 TO 1,000 KW"]
["GENERAL SERVICE 50 TO 1,000 KW"]
["GENERAL SERVICE 50 TO 1,000 KW"]
["GENERAL SERVICE 50 TO 1,000 KW"]
["GENERAL SERVICE 50 TO 1,000 KW"]
["GENERAL SERVICE 50 TO 1,000 KW","APPLICATION"]
["GENERAL SERVICE 50 TO 1,000 KW"]
["GENERAL SERVICE 50 TO 1,000 KW","The application of these rates and charges shall be in accordance with the Licence of the Distributor and any Code or Order of the Board, and amendments thereto as approved by the Board, which may be applicable to the administration of this schedule. "]
["GENERAL SERVICE 50 TO 1,000 KW"]
["GENERAL SERVICE 50 TO 1,000 KW"]
["GENERAL SERVICE 50 TO 1,000 KW","No rates and charges for the distribution of electricity and charges to meet the costs of any work or service done or furnished for the purpose of the distribution of electricity shall be made except as permitted by this schedule, unless required by the Distributor’s Licence or a Code or Order of the Board, and amendments thereto as approved by the Board, or as specified herein. "]
["GENERAL SERVICE 50 TO 1,000 KW"]
["GENERAL SERVICE 50 TO 1,000 KW"]
["GENERAL SERVICE 50 TO 1,000 KW"]
["GENERAL SERVICE 50 TO 1,000 KW","Unless specifically noted, this schedule does not contain any charges for the electricity commodity, be it under the Regulated Price Plan, a contract with a retailer or the wholesale market price, as applicable. In addition, the charges in the MONTHLY RATES AND CHARGES – Regulatory Component of this schedule do not apply to a customer that is an embedded wholesale market participant. "]
["GENERAL SERVICE 50 TO 1,000 KW"]
["GENERAL SERVICE 50 TO 1,000 KW"]
["GENERAL SERVICE 50 TO 1,000 KW","It should be noted that this schedule does not list any charges, assessments or credits that are required by law to be invoiced by a distributor and that are not subject to Board approval, such as the Debt Retirement Charge, the Global Adjustment, the Ontario Clean Energy Benefit and the HST"]
["GENERAL SERVICE 50 TO 1,000 KW"]
["GENERAL SERVICE 50 TO 1,000 KW"]
["GENERAL SERVICE 50 TO 1,000 KW"]
["GENERAL SERVICE 50 TO 1,000 KW","MONTHLY RATES AND CHARGES - Delivery Component      (If applicable, Effective Date MUST be included in rate description)"]
["GENERAL SERVICE 50 TO 1,000 KW","Service Charge",null,null,null,null,null,"$",118.45,null,"3_C_MSC"]
["GENERAL SERVICE 50 TO 1,000 KW","Distribution Volumetric Rate",null,null,null,null,null,"$/kW",4.6319999999999997,null,"3_C_VC_1"]
["GENERAL SERVICE 50 TO 1,000 KW","Low Voltage Service Rate",null,null,null,null,null,"$/kW",0.1313,null,"3_C_LVrate"]
["GENERAL SERVICE 50 TO 1,000 KW","Retail Transmission Rate - Network Service Rate",null,null,null,null,null,"$/kW",2.7441,null,"3_C_RTSR_Network"]
["GENERAL SERVICE 50 TO 1,000 KW","Retail Transmission Rate - Network Service Rate - Interval Metered",null,null,null,null,null,"$/kW",2.8328000000000002,null,"3_C_RTSR_Network_Interval"]
["GENERAL SERVICE 50 TO 1,000 KW","Retail Transmission Rate - Line and Transformation Connection Service Rate",null,null,null,null,null,"$/kW",1.8182,null,"3_C_RTSR_Connection"]
["GENERAL SERVICE 50 TO 1,000 KW","Retail Transmission Rate - Line and Transformation Connection Service Rate - Interval Metered",null,null,null,null,null,"$/kW",1.8771,null,"3_C_RTSR_Connection_Interval"]
["GENERAL SERVICE 50 TO 1,000 KW"]
["GENERAL SERVICE 50 TO 1,000 KW"]
["GENERAL SERVICE 50 TO 1,000 KW"]
["GENERAL SERVICE 50 TO 1,000 KW"]
["GENERAL SERVICE 50 TO 1,000 KW"]
["GENERAL SERVICE 50 TO 1,000 KW"]
["GENERAL SERVICE 50 TO 1,000 KW"]
["GENERAL SERVICE 50 TO 1,000 KW"]
["GENERAL SERVICE 50 TO 1,000 KW"]
["GENERAL SERVICE 50 TO 1,000 KW"]
["GENERAL SERVICE 50 TO 1,000 KW"]
["GENERAL SERVICE 50 TO 1,000 KW"]
["GENERAL SERVICE 50 TO 1,000 KW"]
["GENERAL SERVICE 50 TO 1,000 KW"]
["GENERAL SERVICE 50 TO 1,000 KW"]
["GENERAL SERVICE 50 TO 1,000 KW"]
["GENERAL SERVICE 50 TO 1,000 KW"]
["GENERAL SERVICE 50 TO 1,000 KW","Rate Rider for Disposition of Deferral/Variance Accounts (2014) - effective until April 30, 2015",null,null,null,null,null,"$/kW",-0.52270000000000005,null,"3_C_VC_DEFVAR_kW_1","2015-04-30"]
["GENERAL SERVICE 50 TO 1,000 KW","Rate Rider for Disposition of Global Adjustment Sub-Account (2014) - effective until April 30, 2015\n      Applicable only for Non-RPP Customers",null,null,null,null,null,"$/kW",-0.58330000000000004,null,"3_C_VC_GA_Rate_Rider_kW_1","2015-04-30"]
["GENERAL SERVICE 50 TO 1,000 KW","Rate Rider for Disposition of Account 1576 - effective until April 30, 2015\n",null,null,null,null,null,"$/kW",-0.21049999999999999,null,"3_C_VC_Rate_Rider_kW_2","2015-04-30"]
["GENERAL SERVICE 50 TO 1,000 KW","Rate Rider for Disposition of CGAAP CWIP DIfferential - effective until April 30, 2015\n",null,null,null,null,null,"$/kW",0.1138,null,"3_C_VC_Rate_Rider_kW_3","2015-04-30"]
["GENERAL SERVICE 50 TO 1,000 KW","Rate Rider for Disposition of Incremental Capital Expenditures - effective until April 30, 2015\n",null,null,null,null,null,"$/kW",6.8199999999999997E-2,null,"3_C_VC_Rate_Rider_kW_4","2015-04-30"]
["GENERAL SERVICE 50 TO 1,000 KW"]
["GENERAL SERVICE 50 TO 1,000 KW","MONTHLY RATES AND CHARGES - Regulatory Component"]
["GENERAL SERVICE 50 TO 1,000 KW"]
["GENERAL SERVICE 50 TO 1,000 KW","Wholesale Market Service Rate",null,null,null,null,null,{"$f":"H81","v":"$/kWh"},4.4000000000000003E-3,null,"3_C_WMSR"]
["GENERAL SERVICE 50 TO 1,000 KW","Rural or Remote Electricity Rate Protection Charge (RRRP)",null,null,null,null,null,"$/kWh",1.2999999999999999E-3,null,"3_C_RRPC"]
["GENERAL SERVICE 50 TO 1,000 KW","Standard Supply Service - Administrative Charge (if applicable)",null,null,null,null,null,"$",0.25,null,"3_C_SSS"]
["GENERAL SERVICE 50 TO 1,000 KW"]
[]
[]
["GENERAL SERVICE GREATER THAN 1,000 KW","GENERAL SERVICE GREATER THAN 1,000 KW Service Classification"]
["GENERAL SERVICE GREATER THAN 1,000 KW"]
["GENERAL SERVICE GREATER THAN 1,000 KW","This class refers to customers who do not qualify as residential customers whose monthly average peak demand in the preceding twelve months is equal to or greater than 1,000 kW. These accounts will all be interval metered accounts. For new customers without prior billing history, the peak demand will be based on 90% of the proposed capacity or installed transformation. Further servicing details are available in the distributor’s Conditions of Service. "]
["GENERAL SERVICE GREATER THAN 1,000 KW"]
["GENERAL SERVICE GREATER THAN 1,000 KW"]
["GENERAL SERVICE GREATER THAN 1,000 KW"]
["GENERAL SERVICE GREATER THAN 1,000 KW"]
["GENERAL SERVICE GREATER THAN 1,000 KW"]
["GENERAL SERVICE GREATER THAN 1,000 KW","APPLICATION"]
["GENERAL SERVICE GREATER THAN 1,000 KW"]
["GENERAL SERVICE GREATER THAN 1,000 KW","The application of these rates and charges shall be in accordance with the Licence of the Distributor and any Code or Order of the Board, and amendments thereto as approved by the Board, which may be applicable to the administration of this schedule. "]
["GENERAL SERVICE GREATER THAN 1,000 KW"]
["GENERAL SERVICE GREATER THAN 1,000 KW"]
["GENERAL SERVICE GREATER THAN 1,000 KW","No rates and charges for the distribution of electricity and charges to meet the costs of any work or service done or service done or furnished for the purpose of the distribution of electricity shall be made except as permitted by this schedule, unless required by the Distributor’s Licence or a Code or Order of the Board, and amendments thereto as approved by the Board, or as specified herein."]
["GENERAL SERVICE GREATER THAN 1,000 KW"]
["GENERAL SERVICE GREATER THAN 1,000 KW"]
["GENERAL SERVICE GREATER THAN 1,000 KW"]
["GENERAL SERVICE GREATER THAN 1,000 KW","Unless specifically noted, this schedule does not contain any charges for the electricity commodity, be it under the Regulated Price Plan, a contract with a retailer or the wholesale market price, as applicable. In addition, the charges in the MONTHLY RATES AND CHARGES – Regulatory Component of this schedule do not apply to a customer that is an embedded wholesale market participant. "]
["GENERAL SERVICE GREATER THAN 1,000 KW"]
["GENERAL SERVICE GREATER THAN 1,000 KW"]
["GENERAL SERVICE GREATER THAN 1,000 KW","It should be noted that this schedule does not list any charges, assessments or credits that are required by law to be invoiced by a distributor and that are not subject to Board approval, such as the Debt Retirement Charge, the Global Adjustment, the Ontario Clean Energy Benefit and the HST. "]
["GENERAL SERVICE GREATER THAN 1,000 KW"]
["GENERAL SERVICE GREATER THAN 1,000 KW"]
["GENERAL SERVICE GREATER THAN 1,000 KW"]
["GENERAL SERVICE GREATER THAN 1,000 KW","MONTHLY RATES AND CHARGES - Delivery Component      (If applicable, Effective Date MUST be included in rate description)"]
["GENERAL SERVICE GREATER THAN 1,000 KW","Service Charge",null,null,null,null,null,"$",3399.83,null,"4_C_MSC"]
["GENERAL SERVICE GREATER THAN 1,000 KW","Distribution Volumetric Rate",null,null,null,null,null,"$/kW",2.6884000000000001,null,"4_C_VC_1"]
["GENERAL SERVICE GREATER THAN 1,000 KW","Low Voltage Service Rate",null,null,null,null,null,"$/kW",0.1313,null,"4_C_LVrate"]
["GENERAL SERVICE GREATER THAN 1,000 KW","Retail Transmission Rate - Network Service Rate - Interval Metered",null,null,null,null,null,"$/kW",2.8328000000000002,null,"4_C_RTSR_Network_Interval"]
["GENERAL SERVICE GREATER THAN 1,000 KW","Retail Transmission Rate - Line and Transformation Connection Service Rate - Interval Metered",null,null,null,null,null,"$/kW",1.8771,null,"4_C_RTSR_Connection_Interval"]
["GENERAL SERVICE GREATER THAN 1,000 KW"]
["GENERAL SERVICE GREATER THAN 1,000 KW"]
["GENERAL SERVICE GREATER THAN 1,000 KW"]
["GENERAL SERVICE GREATER THAN 1,000 KW"]
["GENERAL SERVICE GREATER THAN 1,000 KW"]
["GENERAL SERVICE GREATER THAN 1,000 KW"]
["GENERAL SERVICE GREATER THAN 1,000 KW"]
["GENERAL SERVICE GREATER THAN 1,000 KW"]
["GENERAL SERVICE GREATER THAN 1,000 KW"]
["GENERAL SERVICE GREATER THAN 1,000 KW"]
["GENERAL SERVICE GREATER THAN 1,000 KW"]
["GENERAL SERVICE GREATER THAN 1,000 KW"]
["GENERAL SERVICE GREATER THAN 1,000 KW"]
["GENERAL SERVICE GREATER THAN 1,000 KW"]
["GENERAL SERVICE GREATER THAN 1,000 KW"]
["GENERAL SERVICE GREATER THAN 1,000 KW"]
["GENERAL SERVICE GREATER THAN 1,000 KW"]
["GENERAL SERVICE GREATER THAN 1,000 KW"]
["GENERAL SERVICE GREATER THAN 1,000 KW"]
["GENERAL SERVICE GREATER THAN 1,000 KW","Rate Rider for Disposition of Deferral/Variance Accounts (2014) - effective until April 30, 2015",null,null,null,null,null,"$/kW",-0.73419999999999996,null,"4_C_VC_DEFVAR_kW_1","2015-04-30"]
["GENERAL SERVICE GREATER THAN 1,000 KW","Rate Rider for Disposition of Global Adjustment Sub-Account (2014) - effective until April 30, 2015\n      Applicable only for Non-RPP Customers",null,null,null,null,null,"$/kW",-0.71440000000000003,null,"4_C_VC_GA_Rate_Rider_kW_1","2015-04-30"]
["GENERAL SERVICE GREATER THAN 1,000 KW","Rate Rider for Disposition of Account 1576 - effective until April 30, 2015\n",null,null,null,null,null,"$/kW",-0.25790000000000002,null,"4_C_VC_Rate_Rider_kW_2","2015-04-30"]
["GENERAL SERVICE GREATER THAN 1,000 KW","Rate Rider for Disposition of CGAAP CWIP DIfferential - effective until April 30, 2015\n",null,null,null,null,null,"$/kW",0.13930000000000001,null,"4_C_VC_Rate_Rider_kW_3","2015-04-30"]
["GENERAL SERVICE GREATER THAN 1,000 KW","Rate Rider for Disposition of Incremental Capital Expenditures - effective until April 30, 2015\n",null,null,null,null,null,"$/kW",8.3599999999999994E-2,null,"4_C_VC_Rate_Rider_kW_4","2015-04-30"]
["GENERAL SERVICE GREATER THAN 1,000 KW"]
["GENERAL SERVICE GREATER THAN 1,000 KW","MONTHLY RATES AND CHARGES - Regulatory Component"]
["GENERAL SERVICE GREATER THAN 1,000 KW"]
["GENERAL SERVICE GREATER THAN 1,000 KW","Wholesale Market Service Rate",null,null,null,null,null,{"$f":"H81","v":"$/kWh"},4.4000000000000003E-3,null,"4_C_WMSR"]
["GENERAL SERVICE GREATER THAN 1,000 KW","Rural or Remote Electricity Rate Protection Charge (RRRP)",null,null,null,null,null,"$/kWh",1.2999999999999999E-3,null,"4_C_RRPC"]
["GENERAL SERVICE GREATER THAN 1,000 KW","Standard Supply Service - Administrative Charge (if applicable)",null,null,null,null,null,"$",0.25,null,"4_C_SSS"]
["GENERAL SERVICE GREATER THAN 1,000 KW"]
[]
[]
["UNMETERED SCATTERED LOAD","UNMETERED SCATTERED LOAD Service Classification"]
["UNMETERED SCATTERED LOAD"]
["UNMETERED SCATTERED LOAD","This classification applies to an account taking electricity at 750 volts or less whose average monthly maximum demand is less than, or is forecast to be less than, 50 kW and the consumption is unmetered. Such connections include cable TV power packs, bus shelters, telephone booths, traffic lights, pedestrian X-Walk signals/beacons, railway crossings, etc. The level of the consumption will be agreed to by the distributor and the customer, based on detailed manufacturer information and documentation with regard to electrical consumption of the unmetered load or periodic monitoring of actual consumption. Further servicing details are available in the distributor’s Conditions of Service. "]
["UNMETERED SCATTERED LOAD"]
["UNMETERED SCATTERED LOAD"]
["UNMETERED SCATTERED LOAD"]
["UNMETERED SCATTERED LOAD"]
["UNMETERED SCATTERED LOAD"]
["UNMETERED SCATTERED LOAD","APPLICATION"]
["UNMETERED SCATTERED LOAD"]
["UNMETERED SCATTERED LOAD","The application of these rates and charges shall be in accordance with the Licence of the Distributor and any Code or Order of the Board, and amendments thereto as approved by the Board, which may be applicable to the administration of this schedule. "]
["UNMETERED SCATTERED LOAD"]
["UNMETERED SCATTERED LOAD"]
["UNMETERED SCATTERED LOAD","No rates and charges for the distribution of electricity and charges to meet the costs of any work or service done or furnished for the purpose of the distribution of electricity shall be made except as permitted by this schedule, unless required by the Distributor’s Licence or a Code or Order of the Board, and amendments thereto as approved by the Board, or as specified herein. "]
["UNMETERED SCATTERED LOAD"]
["UNMETERED SCATTERED LOAD"]
["UNMETERED SCATTERED LOAD"]
["UNMETERED SCATTERED LOAD","Unless specifically noted, this schedule does not contain any charges for the electricity commodity, be it under the Regulated Price Plan, a contract with a retailer or the wholesale market price, as applicable. In addition, the charges in the MONTHLY RATES AND CHARGES – Regulatory Component of this schedule do not apply to a customer that is an embedded wholesale market participant. "]
["UNMETERED SCATTERED LOAD"]
["UNMETERED SCATTERED LOAD"]
["UNMETERED SCATTERED LOAD","It should be noted that this schedule does not list any charges, assessments or credits that are required by law to be invoiced by a distributor and that are not subject to Board approval, such as the Debt Retirement Charge, the Global Adjustment, the Ontario Clean Energy Benefit and the HST. "]
["UNMETERED SCATTERED LOAD"]
["UNMETERED SCATTERED LOAD"]
["UNMETERED SCATTERED LOAD"]
["UNMETERED SCATTERED LOAD","MONTHLY RATES AND CHARGES - Delivery Component      (If applicable, Effective Date MUST be included in rate description)"]
["UNMETERED SCATTERED LOAD","Service Charge (per connection)",null,null,null,null,null,"$",9.83,null,"5_C_MSC"]
["UNMETERED SCATTERED LOAD","Distribution Volumetric Rate",null,null,null,null,null,"$/kWh",9.1999999999999998E-3,null,"5_C_VC_1"]
["UNMETERED SCATTERED LOAD","Low Voltage Service Rate",null,null,null,null,null,"$/kWh",2.9999999999999997E-4,null,"5_C_LVrate"]
["UNMETERED SCATTERED LOAD","Retail Transmission Rate - Network Service Rate",null,null,null,null,null,"$/kWh",7.3000000000000001E-3,null,"5_C_RTSR_Network"]
["UNMETERED SCATTERED LOAD","Retail Transmission Rate - Line and Transformation Connection Service Rate",null,null,null,null,null,"$/kWh",4.7999999999999996E-3,null,"5_C_RTSR_Connection"]
["UNMETERED SCATTERED LOAD"]
["UNMETERED SCATTERED LOAD"]
["UNMETERED SCATTERED LOAD"]
["UNMETERED SCATTERED LOAD"]
["UNMETERED SCATTERED LOAD"]
["UNMETERED SCATTERED LOAD"]
["UNMETERED SCATTERED LOAD"]
["UNMETERED SCATTERED LOAD"]
["UNMETERED SCATTERED LOAD"]
["UNMETERED SCATTERED LOAD"]
["UNMETERED SCATTERED LOAD"]
["UNMETERED SCATTERED LOAD"]
["UNMETERED SCATTERED LOAD"]
["UNMETERED SCATTERED LOAD"]
["UNMETERED SCATTERED LOAD"]
["UNMETERED SCATTERED LOAD"]
["UNMETERED SCATTERED LOAD"]
["UNMETERED SCATTERED LOAD"]
["UNMETERED SCATTERED LOAD"]
["UNMETERED SCATTERED LOAD","Rate Rider for Disposition of Deferral/Variance Accounts (2014) - effective until April 30, 2015",null,null,null,null,null,"$/kWh",-6.9999999999999999E-4,null,"5_C_VC_DEFVAR_kWh_1","2015-04-30"]
["UNMETERED SCATTERED LOAD","Rate Rider for Disposition of Global Adjustment Sub-Account (2014) - effective until April 30, 2015\n      Applicable only for Non-RPP Customers",null,null,null,null,null,"$/kWh",-1.6000000000000001E-3,null,"5_C_VC_GA_Rate_Rider_kWh_1","2015-04-30"]
["UNMETERED SCATTERED LOAD","Rate Rider for Disposition of Account 1576 - effective until April 30, 2015\n",null,null,null,null,null,"$/kWh",-5.9999999999999995E-4,null,"5_C_VC_Rate_Rider_kWh_2","2015-04-30"]
["UNMETERED SCATTERED LOAD","Rate Rider for Disposition of CGAAP CWIP DIfferential - effective until April 30, 2015\n",null,null,null,null,null,"$/kWh",2.9999999999999997E-4,null,"5_C_VC_Rate_Rider_kWh_3","2015-04-30"]
["UNMETERED SCATTERED LOAD","Rate Rider for Disposition of Incremental Capital Expenditures - effective until April 30, 2015\n",null,null,null,null,null,"$/kWh",2.0000000000000001E-4,null,"5_C_VC_Rate_Rider_kWh_4","2015-04-30"]
["UNMETERED SCATTERED LOAD"]
["UNMETERED SCATTERED LOAD","MONTHLY RATES AND CHARGES - Regulatory Component"]
["UNMETERED SCATTERED LOAD"]
["UNMETERED SCATTERED LOAD","Wholesale Market Service Rate",null,null,null,null,null,{"$f":"H81","v":"$/kWh"},4.4000000000000003E-3,null,"5_C_WMSR"]
["UNMETERED SCATTERED LOAD","Rural or Remote Electricity Rate Protection Charge (RRRP)",null,null,null,null,null,"$/kWh",1.2999999999999999E-3,null,"5_C_RRPC"]
["UNMETERED SCATTERED LOAD","Standard Supply Service - Administrative Charge (if applicable)",null,null,null,null,null,"$",0.25,null,"5_C_SSS"]
["UNMETERED SCATTERED LOAD"]
[]
[]
["SENTINEL LIGHTING","SENTINEL LIGHTING Service Classification"]
["SENTINEL LIGHTING"]
["SENTINEL LIGHTING","This classification refers to accounts that are an unmetered lighting load supplied to a sentinel light. Further servicing details are available in the distributor’s Conditions of Service. "]
["SENTINEL LIGHTING"]
["SENTINEL LIGHTING"]
["SENTINEL LIGHTING"]
["SENTINEL LIGHTING"]
["SENTINEL LIGHTING"]
["SENTINEL LIGHTING","APPLICATION"]
["SENTINEL LIGHTING"]
["SENTINEL LIGHTING","The application of these rates and charges shall be in accordance with the Licence of the Distributor and any Code or Order of the Board, and amendments thereto as approved by the Board, which may be applicable to the administration of this schedule. "]
["SENTINEL LIGHTING"]
["SENTINEL LIGHTING"]
["SENTINEL LIGHTING","No rates and charges for the distribution of electricity and charges to meet the costs of any work or service done or furnished for the purpose of the distribution of electricity shall be made except as permitted by this schedule, unless required by the Distributor’s Licence or a Code or Order of the Board, and amendments thereto as approved by the Board, or as specified herein. "]
["SENTINEL LIGHTING"]
["SENTINEL LIGHTING"]
["SENTINEL LIGHTING"]
["SENTINEL LIGHTING","Unless specifically noted, this schedule does not contain any charges for the electricity commodity, be it under the Regulated Price Plan, a contract with a retailer or the wholesale market price, as applicable. In addition, the charges in the MONTHLY RATES AND CHARGES – Regulatory Component of this schedule do not apply to a customer that is an embedded wholesale market participant. "]
["SENTINEL LIGHTING"]
["SENTINEL LIGHTING"]
["SENTINEL LIGHTING","It should be noted that this schedule does not list any charges, assessments or credits that are required by law to be invoiced by a distributor and that are not subject to Board approval, such as the Debt Retirement Charge, the Global Adjustment, the Ontario Clean Energy Benefit and the HST. "]
["SENTINEL LIGHTING"]
["SENTINEL LIGHTING"]
["SENTINEL LIGHTING"]
["SENTINEL LIGHTING","MONTHLY RATES AND CHARGES - Delivery Component      (If applicable, Effective Date MUST be included in rate description)"]
["SENTINEL LIGHTING","Service Charge (per connection)",null,null,null,null,null,"$",2.69,null,"6_C_MSC"]
["SENTINEL LIGHTING","Distribution Volumetric Rate",null,null,null,null,null,"$/kW",45.5762,null,"6_C_VC_1"]
["SENTINEL LIGHTING","Low Voltage Service Rate",null,null,null,null,null,"$/kW",2.5499999999999998E-2,null,"6_C_LVrate"]
["SENTINEL LIGHTING","Retail Transmission Rate - Network Service Rate",null,null,null,null,null,"$/kW",0.55010000000000003,null,"6_C_RTSR_Network"]
["SENTINEL LIGHTING","Retail Transmission Rate - Line and Transformation Connection Service Rate",null,null,null,null,null,"$/kW",0.3644,null,"6_C_RTSR_Connection"]
["SENTINEL LIGHTING"]
["SENTINEL LIGHTING"]
["SENTINEL LIGHTING"]
["SENTINEL LIGHTING"]
["SENTINEL LIGHTING"]
["SENTINEL LIGHTING"]
["SENTINEL LIGHTING"]
["SENTINEL LIGHTING"]
["SENTINEL LIGHTING"]
["SENTINEL LIGHTING"]
["SENTINEL LIGHTING"]
["SENTINEL LIGHTING"]
["SENTINEL LIGHTING"]
["SENTINEL LIGHTING"]
["SENTINEL LIGHTING"]
["SENTINEL LIGHTING"]
["SENTINEL LIGHTING"]
["SENTINEL LIGHTING"]
["SENTINEL LIGHTING"]
["SENTINEL LIGHTING","Rate Rider for Disposition of Deferral/Variance Accounts (2014) - effective until April 30, 2015",null,null,null,null,null,"$/kW",-1.0448,null,"6_C_VC_DEFVAR_kW_1","2015-04-30"]
["SENTINEL LIGHTING","Rate Rider for Disposition of Account 1576 - effective until April 30, 2015\n",null,null,null,null,null,"$/kW",-0.20549999999999999,null,"6_C_VC_Rate_Rider_kW_2","2015-04-30"]
["SENTINEL LIGHTING","Rate Rider for Disposition of CGAAP CWIP DIfferential - effective until April 30, 2015\n",null,null,null,null,null,"$/kW",0.111,null,"6_C_VC_Rate_Rider_kW_3","2015-04-30"]
["SENTINEL LIGHTING","Rate Rider for Disposition of Incremental Capital Expenditures - effective until April 30, 2015\n",null,null,null,null,null,"$/kW",6.6600000000000006E-2,null,"6_C_VC_Rate_Rider_kW_4","2015-04-30"]
["SENTINEL LIGHTING"]
["SENTINEL LIGHTING"]
["SENTINEL LIGHTING","MONTHLY RATES AND CHARGES - Regulatory Component"]
["SENTINEL LIGHTING"]
["SENTINEL LIGHTING","Wholesale Market Service Rate",null,null,null,null,null,{"$f":"H81","v":"$/kWh"},4.4000000000000003E-3,null,"6_C_WMSR"]
["SENTINEL LIGHTING","Rural or Remote Electricity Rate Protection Charge (RRRP)",null,null,null,null,null,"$/kWh",1.2999999999999999E-3,null,"6_C_RRPC"]
["SENTINEL LIGHTING","Standard Supply Service - Administrative Charge (if applicable)",null,null,null,null,null,"$",0.25,null,"6_C_SSS"]
["SENTINEL LIGHTING"]
[]
[]
["STREET LIGHTING","STREET LIGHTING Service Classification"]
["STREET LIGHTING"]
["STREET LIGHTING","All services supplied to street lighting equipment owned by or operated for the Municipality, the Region or the Province of Ontario shall be classified as Street Lighting Service. Street Lighting plant, facilities, or equipment owned by the customer are subject to the Electrical Safety Authority (ESA) requirements and Oakville Hydro specifications. Further servicing details are available in the distributor’s Conditions of Service. "]
["STREET LIGHTING"]
["STREET LIGHTING"]
["STREET LIGHTING"]
["STREET LIGHTING"]
["STREET LIGHTING"]
["STREET LIGHTING","APPLICATION"]
["STREET LIGHTING"]
["STREET LIGHTING","The application of these rates and charges shall be in accordance with the Licence of the Distributor and any Code or Order of the Board, and amendments thereto as approved by the Board, which may be applicable to the administration of this schedule. "]
["STREET LIGHTING"]
["STREET LIGHTING"]
["STREET LIGHTING","No rates and charges for the distribution of electricity and charges to meet the costs of any work or service done or furnished for the purpose of the distribution of electricity shall be made except as permitted by this schedule, unless required by the Distributor’s Licence or a Code or Order of the Board, and amendments thereto as approved by the Board, or as specified herein. "]
["STREET LIGHTING"]
["STREET LIGHTING"]
["STREET LIGHTING"]
["STREET LIGHTING","Unless specifically noted, this schedule does not contain any charges for the electricity commodity, be it under the Regulated Price Plan, a contract with a retailer or the wholesale market price, as applicable. In addition, the charges in the MONTHLY RATES AND CHARGES – Regulatory Component of this schedule do not apply to a customer that is an embedded wholesale market participant. "]
["STREET LIGHTING"]
["STREET LIGHTING"]
["STREET LIGHTING","It should be noted that this schedule does not list any charges, assessments or credits that are required by law to be invoiced by a distributor and that are not subject to Board approval, such as the Debt Retirement Charge, the Global Adjustment, the Ontario Clean Energy Benefit and the HST. "]
["STREET LIGHTING"]
["STREET LIGHTING"]
["STREET LIGHTING"]
["STREET LIGHTING","MONTHLY RATES AND CHARGES - Delivery Component      (If applicable, Effective Date MUST be included in rate description)"]
["STREET LIGHTING","Service Charge (per connection)",null,null,null,null,null,"$",3.69,null,"7_C_MSC"]
["STREET LIGHTING","Distribution Volumetric Rate",null,null,null,null,null,"$/kW",22.639199999999999,null,"7_C_VC_1"]
["STREET LIGHTING","Low Voltage Service Rate",null,null,null,null,null,"$/kW",0.1061,null,"7_C_LVrate"]
["STREET LIGHTING","Retail Transmission Rate - Network Service Rate",null,null,null,null,null,"$/kW",2.2892000000000001,null,"7_C_RTSR_Network"]
["STREET LIGHTING","Retail Transmission Rate - Line and Transformation Connection Service Rate",null,null,null,null,null,"$/kW",1.5168999999999999,null,"7_C_RTSR_Connection"]
["STREET LIGHTING"]
["STREET LIGHTING"]
["STREET LIGHTING"]
["STREET LIGHTING"]
["STREET LIGHTING"]
["STREET LIGHTING"]
["STREET LIGHTING"]
["STREET LIGHTING"]
["STREET LIGHTING"]
["STREET LIGHTING"]
["STREET LIGHTING"]
["STREET LIGHTING"]
["STREET LIGHTING"]
["STREET LIGHTING"]
["STREET LIGHTING"]
["STREET LIGHTING"]
["STREET LIGHTING"]
["STREET LIGHTING"]
["STREET LIGHTING"]
["STREET LIGHTING","Rate Rider for Disposition of Deferral/Variance Accounts (2014) - effective until April 30, 2015",null,null,null,null,null,"$/kW",-0.58640000000000003,null,"7_C_VC_DEFVAR_kW_1","2015-04-30"]
["STREET LIGHTING","Rate Rider for Disposition of Global Adjustment Sub-Account (2014) - effective until April 30, 2015\n      Applicable only for Non-RPP Customers",null,null,null,null,null,"$/kW",-0.56789999999999996,null,"7_C_VC_GA_Rate_Rider_kW_1","2015-04-30"]
["STREET LIGHTING","Rate Rider for Disposition of Account 1576 - effective until April 30, 2015\n",null,null,null,null,null,"$/kW",-0.20499999999999999,null,"7_C_VC_Rate_Rider_kW_2","2015-04-30"]
["STREET LIGHTING","Rate Rider for Disposition of CGAAP CWIP DIfferential - effective until April 30, 2015\n",null,null,null,null,null,"$/kW",0.1108,null,"7_C_VC_Rate_Rider_kW_3","2015-04-30"]
["STREET LIGHTING","Rate Rider for Disposition of Incremental Capital Expenditures - effective until April 30, 2015\n",null,null,null,null,null,"$/kWh",6.6400000000000001E-2,null,"7_C_VC_Rate_Rider_kWh_1","2015-04-30"]
["STREET LIGHTING"]
["STREET LIGHTING","MONTHLY RATES AND CHARGES - Regulatory Component"]
["STREET LIGHTING"]
["STREET LIGHTING","Wholesale Market Service Rate",null,null,null,null,null,"$/kWh",4.4000000000000003E-3,null,"7_C_WMSR"]
["STREET LIGHTING","Rural or Remote Electricity Rate Protection Charge (RRRP)",null,null,null,null,null,"$/kWh",1.2999999999999999E-3,null,"7_C_RRPC"]
["STREET LIGHTING","Standard Supply Service - Administrative Charge (if applicable)",null,null,null,null,null,"$",0.25,null,"7_C_SSS"]
["STREET LIGHTING"]
[]
[]
["EMBEDDED DISTRIBUTOR","EMBEDDED DISTRIBUTOR Service Classification"]
["EMBEDDED DISTRIBUTOR"]
["EMBEDDED DISTRIBUTOR","This classification applies to an electricity distributor licenced by the Board, which is provided electricity by means of this distributor's facilities. Further servicing details are available in the distributor's Conditions of Service."]
["EMBEDDED DISTRIBUTOR"]
["EMBEDDED DISTRIBUTOR"]
["EMBEDDED DISTRIBUTOR"]
["EMBEDDED DISTRIBUTOR"]
["EMBEDDED DISTRIBUTOR"]
["EMBEDDED DISTRIBUTOR","APPLICATION"]
["EMBEDDED DISTRIBUTOR"]
["EMBEDDED DISTRIBUTOR","The application of these rates and charges shall be in accordance with the Licence of the Distributor and any Code or Order of the Board, and amendments thereto as approved by the Board, which may be applicable to the administration of this schedule. "]
["EMBEDDED DISTRIBUTOR"]
["EMBEDDED DISTRIBUTOR"]
["EMBEDDED DISTRIBUTOR","No rates and charges for the distribution of electricity and charges to meet the costs of any work or service done or furnished for the purpose of the distribution of electricity shall be made except as permitted by this schedule, unless required by the Distributor’s Licence or a Code or Order of the Board, and amendments thereto as approved by the Board, or as specified herein. "]
["EMBEDDED DISTRIBUTOR"]
["EMBEDDED DISTRIBUTOR"]
["EMBEDDED DISTRIBUTOR"]
["EMBEDDED DISTRIBUTOR","Unless specifically noted, this schedule does not contain any charges for the electricity commodity, be it under the Regulated Price Plan, a contract with a retailer or the wholesale market price, as applicable. In addition, the charges in the MONTHLY RATES AND CHARGES – Regulatory Component of this schedule do not apply to a customer that is an embedded wholesale market participant. "]
["EMBEDDED DISTRIBUTOR"]
["EMBEDDED DISTRIBUTOR"]
["EMBEDDED DISTRIBUTOR","It should be noted that this schedule does not list any charges, assessments or credits that are required by law to be invoiced by a distributor and that are not subject to Board approval, such as the Debt Retirement Charge, the Global Adjustment, the Ontario Clean Energy Benefit and the HST. "]
["EMBEDDED DISTRIBUTOR"]
["EMBEDDED DISTRIBUTOR"]
["EMBEDDED DISTRIBUTOR"]
["EMBEDDED DISTRIBUTOR","MONTHLY RATES AND CHARGES - Delivery Component      (If applicable, Effective Date MUST be included in rate description)"]
["EMBEDDED DISTRIBUTOR","Service Charge",null,null,null,null,null,"$",5072.12,null,"8_C_MSC"]
["EMBEDDED DISTRIBUTOR","Distribution Volumetric Rate",null,null,null,null,null,"$/kW",2.7703000000000002,null,"8_C_VC_1"]
["EMBEDDED DISTRIBUTOR","Low Voltage Service Rate",null,null,null,null,null,"$/kW",0.1313,null,"8_C_LVrate"]
["EMBEDDED DISTRIBUTOR","Retail Transmission Rate - Network Service Rate",null,null,null,null,null,"$/kW",2.8328000000000002,null,"8_C_RTSR_Network"]
["EMBEDDED DISTRIBUTOR","Retail Transmission Rate - Line and Transformation Connection Service Rate",null,null,null,null,null,"$/kW",1.8771,null,"8_C_RTSR_Connection"]
["EMBEDDED DISTRIBUTOR"]
["EMBEDDED DISTRIBUTOR"]
["EMBEDDED DISTRIBUTOR"]
["EMBEDDED DISTRIBUTOR"]
["EMBEDDED DISTRIBUTOR"]
["EMBEDDED DISTRIBUTOR"]
["EMBEDDED DISTRIBUTOR"]
["EMBEDDED DISTRIBUTOR"]
["EMBEDDED DISTRIBUTOR"]
["EMBEDDED DISTRIBUTOR"]
["EMBEDDED DISTRIBUTOR"]
["EMBEDDED DISTRIBUTOR"]
["EMBEDDED DISTRIBUTOR"]
["EMBEDDED DISTRIBUTOR"]
["EMBEDDED DISTRIBUTOR"]
["EMBEDDED DISTRIBUTOR"]
["EMBEDDED DISTRIBUTOR"]
["EMBEDDED DISTRIBUTOR"]
["EMBEDDED DISTRIBUTOR"]
["EMBEDDED DISTRIBUTOR"]
["EMBEDDED DISTRIBUTOR"]
["EMBEDDED DISTRIBUTOR"]
["EMBEDDED DISTRIBUTOR"]
["EMBEDDED DISTRIBUTOR"]
["EMBEDDED DISTRIBUTOR"]
["EMBEDDED DISTRIBUTOR","MONTHLY RATES AND CHARGES - Regulatory Component"]
["EMBEDDED DISTRIBUTOR"]
["EMBEDDED DISTRIBUTOR","Wholesale Market Service Rate",null,null,null,null,null,{"$f":"H81","v":"$/kWh"},4.4000000000000003E-3,null,"8_C_WMSR"]
["EMBEDDED DISTRIBUTOR","Rural or Remote Electricity Rate Protection Charge (RRRP)",null,null,null,null,null,"$/kWh",1.2999999999999999E-3,null,"8_C_RRPC"]
["EMBEDDED DISTRIBUTOR","Standard Supply Service - Administrative Charge (if applicable)",null,null,null,null,null,"$",0.25,null,"8_C_SSS"]
["EMBEDDED DISTRIBUTOR"]
[]
[]
["microFIT","microFIT Service Classification"]
["microFIT"]
["microFIT","This classification applies to an electricity generation facility contracted under the Ontario Power Authority’s microFIT program and connected to the distributor’s distribution system. Further servicing details are available in the distributor’s Conditions of Service. "]
["microFIT"]
["microFIT"]
["microFIT"]
["microFIT"]
["microFIT"]
["microFIT","APPLICATION"]
["microFIT"]
["microFIT","The application of these rates and charges shall be in accordance with the Licence of the Distributor and any Code or Order of the Board, and amendments thereto as approved by the Board, which may be applicable to the administration of this schedule. "]
["microFIT"]
["microFIT"]
["microFIT","No rates and charges for the distribution of electricity and charges to meet the costs of any work or service done or furnished for the purpose of the distribution of electricity shall be made except as permitted by this schedule, unless required by the Distributor’s Licence or a Code or Order of the Board, and amendments thereto as approved by the Board, or as specified herein. "]
["microFIT"]
["microFIT"]
["microFIT"]
["microFIT","Unless specifically noted, this schedule does not contain any charges for the electricity commodity, be it under the Regulated Price Plan, a contract with a retailer or the wholesale market price, as applicable. "]
["microFIT"]
["microFIT"]
["microFIT","It should be noted that this schedule does not list any charges, assessments or credits that are required by law to be invoiced by a distributor and that are not subject to Board approval, such as the Debt Retirement Charge, the Global Adjustment, the Ontario Clean Energy Benefit and the HST. "]
["microFIT"]
["microFIT"]
["microFIT"]
["microFIT","MONTHLY RATES AND CHARGES - Delivery Component      (If applicable, Effective Date MUST be included in rate description)"]
["microFIT","Service Charge",null,null,null,null,null,"$",5.4,null,"9_C_MSC"]
["microFIT"]
["microFIT"]
["microFIT"]
["microFIT"]
["microFIT"]
["microFIT"]
["microFIT"]
["microFIT"]
["microFIT"]
["microFIT"]
["microFIT"]
["microFIT"]
["microFIT"]
["microFIT"]
["microFIT"]
["microFIT"]
["microFIT"]
["microFIT"]
["microFIT"]
["microFIT"]
["microFIT"]
["microFIT"]
["microFIT"]
["microFIT"]
["microFIT"]
["microFIT"]
["microFIT"]
["microFIT"]
["microFIT"]

{"sheet":"4. Hidden","index":4,"n_rows":210,"n_cols":18,"rows_kept":210,"cut":false,"hidden":true,"merged":[[43,1,46,8],[48,1,48,6],[49,1,49,6],[50,1,50,6],[51,1,51,6],[23,1,23,8],[25,1,30,8],[33,1,35,8],[36,1,39,8],[40,1,42,8],[52,1,52,6],[58,1,58,6],[53,1,53,6],[54,1,54,6],[55,1,55,6],[56,1,56,6],[71,1,71,6],[72,1,72,6],[65,1,65,6],[63,1,63,6],[57,1,57,6],[59,1,59,6],[62,1,62,6],[64,1,64,6],[66,1,66,6],[60,1,60,6],[61,1,61,6],[75,1,75,6],[76,1,76,6],[67,1,67,6],[68,1,68,6],[69,1,69,6],[70,1,70,6],[106,1,109,8],[111,1,111,6],[112,1,112,6],[83,1,83,6],[80,1,80,6],[81,1,81,6],[82,1,82,6],[77,1,77,6],[73,1,73,6],[74,1,74,6],[113,1,113,6],[114,1,114,6],[86,1,86,8],[88,1,93,8],[96,1,98,8],[99,1,102,8],[103,1,105,8],[120,1,120,6],[121,1,121,6],[122,1,122,6],[123,1,123,6],[124,1,124,6],[115,1,115,6],[116,1,116,6],[117,1,117,6],[118,1,118,6],[119,1,119,6],[130,1,130,6],[131,1,131,6],[132,1,132,6],[133,1,133,6],[134,1,134,6],[125,1,125,6],[126,1,126,6],[127,1,127,6],[128,1,128,6],[129,1,129,6],[140,1,140,6],[143,1,143,6],[144,1,144,6],[145,1,145,6],[146,1,146,6],[135,1,135,6],[136,1,136,6],[137,1,137,6],[138,1,138,6],[139,1,139,6],[169,1,172,8],[174,1,174,6],[175,1,175,6],[176,1,176,6],[177,1,177,6],[149,1,149,8],[151,1,156,8],[159,1,161,8],[162,1,165,8],[166,1,168,8],[183,1,183,6],[184,1,184,6],[185,1,185,6],[186,1,186,6],[187,1,187,6],[178,1,178,6],[179,1,179,6],[180,1,180,6],[181,1,181,6],[182,1,182,6],[193,1,193,6],[194,1,194,6],[195,1,195,6],[196,1,196,6],[197,1,197,6],[188,1,188,6],[189,1,189,6],[190,1,190,6],[191,1,191,6],[192,1,192,6],[203,1,203,6],[206,1,206,6],[207,1,207,6],[208,1,208,6],[209,1,209,6],[198,1,198,6],[199,1,199,6],[200,1,200,6],[201,1,201,6],[202,1,202,6]]}
[null,null,null,null,null,null,null,null,null,null,null,null,"Current Rate Classes","Changed to Rate Classes","Values in A that are NOT in B","Values in B that are Not in A","Count of A","Count of B"]
[null,null,null,null,null,null,null,null,null,null,null,null,"RESIDENTIAL","RESIDENTIAL",null,null,9,9]
[null,null,null,null,null,null,null,null,null,null,null,null,"GENERAL SERVICE LESS THAN 50 KW","GENERAL SERVICE LESS THAN 50 KW"]
[null,null,null,null,null,null,null,null,null,null,null,null,"GENERAL SERVICE 50 TO 1,000 KW","GENERAL SERVICE 50 TO 1,000 KW"]
[null,null,null,null,null,null,null,null,null,null,null,null,"GENERAL SERVICE GREATER THAN 1,000 KW","GENERAL SERVICE GREATER THAN 1,000 KW"]
[null,null,null,null,null,null,null,null,null,null,null,null,"UNMETERED SCATTERED LOAD","UNMETERED SCATTERED LOAD"]
[null,null,null,null,null,null,null,null,null,null,null,null,"SENTINEL LIGHTING","SENTINEL LIGHTING"]
[null,null,null,null,null,null,null,null,null,null,null,null,"STREET LIGHTING","STREET LIGHTING"]
[null,null,null,null,null,null,null,null,null,null,null,null,"EMBEDDED DISTRIBUTOR","EMBEDDED DISTRIBUTOR"]
[null,null,null,null,null,null,null,null,null,null,null,null,"microFIT","microFIT"]
[]
[]
[]
[]
[]
[]
[]
[]
[]
[]
[]
[]
[]
["RESIDENTIAL","RESIDENTIAL Service Classification"]
["RESIDENTIAL"]
["RESIDENTIAL"]
["RESIDENTIAL"]
["RESIDENTIAL"]
["RESIDENTIAL"]
["RESIDENTIAL"]
["RESIDENTIAL"]
["RESIDENTIAL","APPLICATION"]
["RESIDENTIAL"]
["RESIDENTIAL"]
["RESIDENTIAL"]
["RESIDENTIAL"]
["RESIDENTIAL"]
["RESIDENTIAL"]
["RESIDENTIAL"]
["RESIDENTIAL"]
["RESIDENTIAL"]
["RESIDENTIAL"]
["RESIDENTIAL"]
["RESIDENTIAL"]
["RESIDENTIAL"]
["RESIDENTIAL"]
["RESIDENTIAL"]
["RESIDENTIAL","MONTHLY RATES AND CHARGES - Delivery Component      (If applicable, Effective Date MUST be included in rate description)"]
["RESIDENTIAL"]
["RESIDENTIAL"]
["RESIDENTIAL"]
["RESIDENTIAL"]
["RESIDENTIAL"]
["RESIDENTIAL"]
["RESIDENTIAL"]
["RESIDENTIAL"]
["RESIDENTIAL"]
["RESIDENTIAL"]
["RESIDENTIAL"]
["RESIDENTIAL"]
["RESIDENTIAL"]
["RESIDENTIAL"]
["RESIDENTIAL"]
["RESIDENTIAL"]
["RESIDENTIAL"]
["RESIDENTIAL"]
["RESIDENTIAL"]
["RESIDENTIAL"]
["RESIDENTIAL"]
["RESIDENTIAL"]
["RESIDENTIAL"]
["RESIDENTIAL"]
["RESIDENTIAL"]
["RESIDENTIAL"]
["RESIDENTIAL"]
["RESIDENTIAL"]
["RESIDENTIAL"]
["RESIDENTIAL"]
["RESIDENTIAL","MONTHLY RATES AND CHARGES - Regulatory Component"]
["RESIDENTIAL"]
["RESIDENTIAL","Wholesale Market Service Rate",null,null,null,null,null,"$/kWh",4.4000000000000003E-3]
["RESIDENTIAL","Rural or Remote Electricity Rate Protection Charge (RRRP)",null,null,null,null,null,"$/kWh",1.2999999999999999E-3]
["RESIDENTIAL","Standard Supply Service - Administrative Charge (if applicable)",null,null,null,null,null,"$",0.25]
["RESIDENTIAL"]
[]
[]
["GENERAL SERVICE 50 TO 999 KW","GENERAL SERVICE 50 TO 999 KW Service Classification"]
["GENERAL SERVICE 50 TO 999 KW"]
["GENERAL SERVICE 50 TO 999 KW"]
["GENERAL SERVICE 50 TO 999 KW"]
["GENERAL SERVICE 50 TO 999 KW"]
["GENERAL SERVICE 50 TO 999 KW"]
["GENERAL SERVICE 50 TO 999 KW"]
["GENERAL SERVICE 50 TO 999 KW"]
["GENERAL SERVICE 50 TO 999 KW","APPLICATION"]
["GENERAL SERVICE 50 TO 999 KW"]
["GENERAL SERVICE 50 TO 999 KW"]
["GENERAL SERVICE 50 TO 999 KW"]
["GENERAL SERVICE 50 TO 999 KW"]
["GENERAL SERVICE 50 TO 999 KW"]
["GENERAL SERVICE 50 TO 999 KW"]
["GENERAL SERVICE 50 TO 999 KW"]
["GENERAL SERVICE 50 TO 999 KW"]
["GENERAL SERVICE 50 TO 999 KW"]
["GENERAL SERVICE 50 TO 999 KW"]
["GENERAL SERVICE 50 TO 999 KW"]
["GENERAL SERVICE 50 TO 999 KW"]
["GENERAL SERVICE 50 TO 999 KW"]
["GENERAL SERVICE 50 TO 999 KW"]
["GENERAL SERVICE 50 TO 999 KW"]
["GENERAL SERVICE 50 TO 999 KW","MONTHLY RATES AND CHARGES - Delivery Component      (If applicable, Effective Date MUST be included in rate description)"]
["GENERAL SERVICE 50 TO 999 KW"]
["GENERAL SERVICE 50 TO 999 KW"]
["GENERAL SERVICE 50 TO 999 KW"]
["GENERAL SERVICE 50 TO 999 KW"]
["GENERAL SERVICE 50 TO 999 KW"]
["GENERAL SERVICE 50 TO 999 KW"]
["GENERAL SERVICE 50 TO 999 KW"]
["GENERAL SERVICE 50 TO 999 KW"]
["GENERAL SERVICE 50 TO 999 KW"]
["GENERAL SERVICE 50 TO 999 KW"]
["GENERAL SERVICE 50 TO 999 KW"]
["GENERAL SERVICE 50 TO 999 KW"]
["GENERAL SERVICE 50 TO 999 KW"]
["GENERAL SERVICE 50 TO 999 KW"]
["GENERAL SERVICE 50 TO 999 KW"]
["GENERAL SERVICE 50 TO 999 KW"]
["GENERAL SERVICE 50 TO 999 KW"]
["GENERAL SERVICE 50 TO 999 KW"]
["GENERAL SERVICE 50 TO 999 KW"]
["GENERAL SERVICE 50 TO 999 KW"]
["GENERAL SERVICE 50 TO 999 KW"]
["GENERAL SERVICE 50 TO 999 KW"]
["GENERAL SERVICE 50 TO 999 KW"]
["GENERAL SERVICE 50 TO 999 KW"]
["GENERAL SERVICE 50 TO 999 KW"]
["GENERAL SERVICE 50 TO 999 KW"]
["GENERAL SERVICE 50 TO 999 KW"]
["GENERAL SERVICE 50 TO 999 KW"]
["GENERAL SERVICE 50 TO 999 KW"]
["GENERAL SERVICE 50 TO 999 KW"]
["GENERAL SERVICE 50 TO 999 KW","MONTHLY RATES AND CHARGES - Regulatory Component"]
["GENERAL SERVICE 50 TO 999 KW"]
["GENERAL SERVICE 50 TO 999 KW","Wholesale Market Service Rate",null,null,null,null,null,"$/kWh",4.4000000000000003E-3]
["GENERAL SERVICE 50 TO 999 KW","Rural or Remote Electricity Rate Protection Charge (RRRP)",null,null,null,null,null,"$/kWh",1.2999999999999999E-3]
["GENERAL SERVICE 50 TO 999 KW","Standard Supply Service - Administrative Charge (if applicable)",null,null,null,null,null,"$",0.25]
["GENERAL SERVICE 50 TO 999 KW"]
[]
[]
["STREET LIGHTING","STREET LIGHTING Service Classification"]
["STREET LIGHTING"]
["STREET LIGHTING"]
["STREET LIGHTING"]
["STREET LIGHTING"]
["STREET LIGHTING"]
["STREET LIGHTING"]
["STREET LIGHTING"]
["STREET LIGHTING","APPLICATION"]
["STREET LIGHTING"]
["STREET LIGHTING"]
["STREET LIGHTING"]
["STREET LIGHTING"]
["STREET LIGHTING"]
["STREET LIGHTING"]
["STREET LIGHTING"]
["STREET LIGHTING"]
["STREET LIGHTING"]
["STREET LIGHTING"]
["STREET LIGHTING"]
["STREET LIGHTING"]
["STREET LIGHTING"]
["STREET LIGHTING"]
["STREET LIGHTING"]
["STREET LIGHTING","MONTHLY RATES AND CHARGES - Delivery Component      (If applicable, Effective Date MUST be included in rate description)"]
["STREET LIGHTING"]
["STREET LIGHTING"]
["STREET LIGHTING"]
["STREET LIGHTING"]
["STREET LIGHTING"]
["STREET LIGHTING"]
["STREET LIGHTING"]
["STREET LIGHTING"]
["STREET LIGHTING"]
["STREET LIGHTING"]
["STREET LIGHTING"]
["STREET LIGHTING"]
["STREET LIGHTING"]
["STREET LIGHTING"]
["STREET LIGHTING"]
["STREET LIGHTING"]
["STREET LIGHTING"]
["STREET LIGHTING"]
["STREET LIGHTING"]
["STREET LIGHTING"]
["STREET LIGHTING"]
["STREET LIGHTING"]
["STREET LIGHTING"]
["STREET LIGHTING"]
["STREET LIGHTING"]
["STREET LIGHTING"]
["STREET LIGHTING"]
["STREET LIGHTING"]
["STREET LIGHTING"]
["STREET LIGHTING"]
["STREET LIGHTING","MONTHLY RATES AND CHARGES - Regulatory Component"]
["STREET LIGHTING"]
["STREET LIGHTING","Wholesale Market Service Rate",null,null,null,null,null,"$/kWh",4.4000000000000003E-3]
["STREET LIGHTING","Rural or Remote Electricity Rate Protection Charge (RRRP)",null,null,null,null,null,"$/kWh",1.2999999999999999E-3]
["STREET LIGHTING","Standard Supply Service - Administrative Charge (if applicable)",null,null,null,null,null,"$",0.25]
["STREET LIGHTING"]

{"sheet":"5. 2014 Continuity Schedule","index":5,"n_rows":53,"n_cols":59,"rows_kept":53,"cut":false,"hidden":false,"merged":[[18,50,18,53],[18,54,18,56],[18,14,18,23],[18,4,18,13],[18,24,18,36],[18,37,18,49],[19,34,21,34],[19,54,21,54],[19,55,21,55],[19,56,21,56],[19,57,21,57],[19,44,21,44],[19,47,21,47],[19,48,21,48],[19,49,21,49],[19,29,21,29],[19,30,21,30],[19,31,21,31],[19,32,21,32],[19,33,21,33],[19,58,21,58],[19,35,21,35],[19,36,21,36],[19,50,21,50],[19,51,21,51],[19,52,21,52],[19,53,21,53],[19,37,21,37],[19,38,21,38],[19,39,21,39],[19,40,21,40],[19,41,21,41],[19,42,21,42],[19,43,21,43],[19,45,21,45],[19,46,21,46],[19,25,21,25],[19,26,21,26],[19,27,21,27],[19,28,21,28],[19,7,21,7],[19,13,21,13],[19,24,21,24],[19,12,21,12],[19,8,21,8],[19,9,21,9],[19,10,21,10],[19,11,21,11],[19,14,21,14],[19,15,21,15],[19,19,21,19],[19,20,21,20],[19,23,21,23],[14,2,14,3],[46,2,47,3],[19,16,21,16],[19,17,21,17],[19,18,21,18],[19,4,21,4],[19,5,21,5],[19,6,21,6],[19,21,21,21],[19,22,21,22],[19,2,21,2],[19,3,21,3]]}
[]
[]
[]
[]
[]
[]
[]
[]
[]
[]
[]
[]
[]
[]
[null,null,"Please complete the following continuity schedule for the following Deferral / Variance Accounts.  Enter information into green cells only.  \n\nIf you have received approval to dispose of balances from prior years, the starting point for entries in the 2015 DVA schedule below will be the balance sheet date as per your G/L for which you received approval.  For example, if in the 2014 EDR process (CoS or IRM) you received approval for the December 31, 2012 balances, the starting point for your entries below should be the 2011 year.  This will allow for the correct starting point for the 2012 opening balance columns for both principal and interest.\n\nPlease refer to the footnotes for further instructions.\n"]
[]
[]
[]
[null,null,null,null,2010,null,null,null,null,null,null,null,null,null,2011,null,null,null,null,null,null,null,null,null,2012,null,null,null,null,null,null,null,null,null,null,null,null,2013,null,null,null,null,null,null,null,null,null,null,null,null,2014,null,null,null,"Projected Interest on Dec-31-13 Balances",null,null,"2.1.7 RRR"]
[null,null,"Account Descriptions","Account Number","Opening Principal Amounts as of Jan-1-10","Transactions Debit / (Credit) during 2010 excluding interest and adjustments 2","Board-Approved Disposition during 2010","Adjustments during 2010 - other 1","Closing Principal Balance as of Dec-31-10","Opening Interest Amounts as of Jan-1-10","Interest Jan-1 to Dec-31-10","Board-Approved Disposition during 2010","Adjustments during 2010 - other 2","Closing Interest Amounts as of Dec-31-10","Opening Principal Amounts as of Jan-1-11","Transactions Debit / (Credit) during 2011 excluding interest and adjustments 2","Board-Approved Disposition during 2011","Adjustments during 2011 - other 1","Closing Principal Balance as of Dec-31-11","Opening Interest Amounts as of Jan-1-11","Interest Jan-1 to Dec-31-11","Board-Approved Disposition during 2011","Adjustments during 2011 - other 2","Closing Interest Amounts as of Dec-31-11","Opening Principal Amounts as of Jan-1-12","Transactions Debit / (Credit) during 2012 excluding interest and adjustments 2","Board-Approved Disposition during 2012","Other 1 Adjustments during Q1 2012","Other 1 Adjustments during Q2 2012","Other 1 Adjustments during Q3 2012","Other 1 Adjustments during Q4 2012","Closing Principal Balance as of Dec-31-12","Opening Interest Amounts as of Jan-1-12","Interest Jan-1 to Dec-31-12","Board-Approved Disposition during 2012","Adjustments during 2012 - other 1","Closing Interest Amounts as of Dec-31-12","Opening Principal Amounts as of Jan-1-13","Transactions Debit / (Credit) during 2013 excluding interest and adjustments 2","Board-Approved Disposition during 2013","Other 1 Adjustments during Q1 2013","Other 1 Adjustments during Q2 2013","Other 1 Adjustments during Q3 2013","Other 1 Adjustments during Q4 2013","Closing Principal Balance as of Dec-31-13","Opening Interest Amounts as of Jan-1-13","Interest Jan-1 to Dec-31-13","Board-Approved Disposition during 2013","Adjustments during 2013 - other 1","Closing Interest Amounts as of Dec-31-13","Principal Disposition during 2014 - instructed by Board","Interest Disposition during 2014 - instructed by Board","Closing Principal Balances as of Dec 31-13 Adjusted for Dispositions during 2014","Closing Interest Balances as of Dec 31-13 Adjusted for Dispositions during 2014","Projected Interest from Jan 1, 2014 to December 31, 2014 on Dec 31 -13 balance adjusted for disposition during 2014 3","Projected Interest from January 1, 2015 to April 30, 2015 on Dec 31 -13 balance adjusted for disposition during 2014  3","Total Claim","As of Dec 31-13","Variance\nRRR vs. 2013 Balance\n(Principal + Interest)"]
[]
[null,null,null,null,null,null,null,null,null,null,null,null,null,null,null,null,null,null,null,null,null,null,null,null,null,null,null,null,null,null,null,null,null,null,null,null,null,null,null,null,null,null,null,null,null,null,null,null,null,null,null,null,null,null,null,null,"Claim before Forecasted Transactions"]
[null,null,"Group 1 Accounts"]
[1,null,"LV Variance Account",1550,null,null,null,null,{"$f":"E24+F24-G24+H24","v":0},null,null,null,null,{"$f":"J24+K24-L24+M24","v":0},{"$f":"I24","v":0},null,null,null,{"$f":"O24+P24-Q24+R24","v":0},{"$f":"N24","v":0},null,null,null,{"$f":"T24+U24-V24+W24","v":0},{"$f":"S24","v":0},671663.3600000001,null,null,null,null,null,{"$f":"Y24+Z24-AA24+SUM(AB24:AE24)","v":671663.3600000001},{"$f":"X24","v":0},8130.0500000000011,null,null,{"$f":"AG24+AH24-AI24+AJ24","v":8130.0500000000011},{"$f":"AF24","v":671663.3600000001},258029.02999999991,460427,null,null,null,null,{"$f":"AL24+AM24-AN24+SUM(AO24:AR24)","v":469265.39},{"$f":"AK24","v":8130.0500000000011},15253.58,17289,null,{"$f":"AT24+AU24-AV24+AW24","v":6094.630000000001},214341.5294940001,141.10649800000306,{"$f":"AS24-AY24","v":254923.86050599991},{"$f":"AX24-AZ24","v":5953.5235019999982},{"$f":"+BA24*1.47%","v":3747.3807494381986},null,{"$f":"SUM(BA24:BD24)","v":264624.7647574381},475360.02,{"$f":"BF24-SUM(AS24,AX24)","v":0}]
[null,null,"Smart Metering Entity Charge Variance",1551,null,null,null,null,null,null,null,null,null,null,null,null,null,null,null,null,null,null,null,null,null,null,null,null,null,null,null,null,null,null,null,null,0,{"$f":"AK25","v":0},129523.05,null,null,null,null,null,{"$f":"AL25+AM25-AN25+SUM(AO25:AR25)","v":129523.05},{"$f":"AK25","v":0},563.11,null,null,563.11,null,null,{"$f":"AS25-AY25","v":129523.05},{"$f":"AX25-AZ25","v":563.11},{"$f":"+BA25*1.47%","v":1903.9888349999999},null,{"$f":"SUM(BA25:BD25)","v":131990.148835},130086.16,{"$f":"BF25-SUM(AS25,AX25)","v":0}]
[2,null,"RSVA - Wholesale Market Service Charge",1580,null,null,null,null,{"$f":"E26+F26-G26+SUM(H26:H26)","v":0},null,null,null,null,{"$f":"J26+K26-L26+M26","v":0},{"$f":"I26","v":0},null,null,null,{"$f":"O26+P26-Q26+SUM(R26:R26)","v":0},0,null,null,null,{"$f":"T26+U26-V26+W26","v":0},{"$f":"S26","v":0},-4605724.51,null,null,null,null,null,-4605724.51,{"$f":"X26","v":0},-52493.630000000005,null,null,-52493.630000000005,{"$f":"AF26","v":-4605724.51},-920326.47000000067,-2665112,null,null,null,null,-2860938.9800000004,{"$f":"AK26","v":-52493.630000000005},-461869.12,-462793,null,-51569.75,-1969139.5125739998,-9766.6308580000041,-891799.46742600063,-41803.119141999996,{"$f":"+BA26*1.47%","v":-13109.452171162209},null,{"$f":"SUM(BA26:BD26)","v":-946712.03873916285},-2912508.73,0]
[3,null,"RSVA - Retail Transmission Network Charge",1584,null,null,null,null,0,null,null,null,null,0,0,null,null,null,0,0,null,null,null,0,0,3310622.58,null,null,null,null,null,3310622.58,0,48292.069999999978,null,null,48292.069999999978,3310622.58,342706.83000000007,2988244,null,null,null,null,665085.41000000015,48292.069999999978,-182022.21,-145523,null,11792.859999999986,327117.55085900007,-8697.2730470000242,337967.85914100008,20490.13304700001,4968.1275293727012,null,363426.11971737281,676878.27,0]
[4,null,"RSVA - Retail Transmission Connection Charge",1586,null,null,null,null,0,null,null,null,null,0,0,null,null,null,0,0,null,null,null,0,0,2073926.52,null,null,null,null,null,2073926.52,0,29652.569999999992,null,null,29652.569999999992,2073926.52,43137.649999999907,1815352,null,null,null,null,301712.16999999993,29652.569999999992,97708.12000000001,120439,null,6921.6900000000023,262375.57220600004,-4661.4125980000081,39336.597793999885,11583.10259800001,578.24798757179826,null,51497.948379571695,308633.86,0]
[5,null,"RSVA - Power (excluding Global Adjustment)",1588,null,null,null,null,0,null,null,null,null,0,0,null,null,null,0,0,null,null,null,0,0,-325024.82000000007,null,null,null,null,null,-325024.82000000007,0,-17577.080000000075,null,null,-17577.080000000075,-325024.82000000007,-1100075.5899999999,-1061333,null,null,null,null,-363767.40999999992,-17577.080000000075,-668551.85999999987,-668762,null,-17366.939999999944,747131.91112799989,6832.8303759999271,-1110899.3211279998,-24199.770375999869,-16330.220020581597,null,-1151429.3115245812,-381134.35,0]
[6,null,"RSVA - Global Adjustment",1589,null,null,null,null,0,null,null,null,null,0,0,null,null,null,0,0,null,null,null,0,0,689969.21,null,null,null,null,null,689969.21,0,15477.119999999995,null,null,15477.119999999995,689969.21,1308996.5,1822396,null,null,null,null,176569.70999999996,15477.119999999995,495257.55,530089,null,-19354.330000000016,-1149073.4569040001,-25790.768968000008,1325643.1669040001,6436.4389679999913,19486.954553488802,null,1351566.560425489,157215.38,0]
[7,null,"Recovery of Regulatory Asset Balances",1590,null,null,null,null,0,null,null,null,null,0,0,null,null,null,0,0,null,null,null,0,0,null,null,null,null,null,null,0,0,null,null,null,0,0,null,null,null,null,null,null,0,0,null,null,null,0,null,null,0,0,null,null,0,null,0]
[8,null,"Disposition and Recovery/Refund of Regulatory Balances (2008)4",1595,null,null,null,null,0,null,null,null,null,0,{"$f":"I32","v":0},null,null,null,0,0,null,null,null,0,0,null,null,null,null,null,null,0,0,null,null,null,0,0,null,null,null,null,null,null,0,0,null,null,null,0,null,null,0,0,null,null,0,null,0]
[9,null,"Disposition and Recovery/Refund of Regulatory Balances (2009)4",1595,null,null,null,null,0,null,null,null,null,0,{"$f":"I33","v":0},null,null,null,0,0,null,null,null,0,0,null,null,null,null,null,null,0,0,null,null,null,0,0,null,null,null,null,null,null,0,0,null,null,null,0,null,null,0,0,null,null,0,null,0]
[9,null,"Disposition and Recovery/Refund of Regulatory Balances (2010)4",1595,null,null,null,null,0,null,null,null,null,0,{"$f":"I34","v":0},null,null,null,0,0,null,null,null,0,0,-1863227.02,null,null,null,null,null,-1863227.02,0,844351.44,null,null,844351.44,-1863227.02,1089077.8700000001,null,null,null,null,null,-774149.14999999991,844351.44,-15540.069999999949,null,null,828811.37,null,null,-774149.14999999991,828811.37,null,null,54662.220000000088,54662.219999999972,-1.1641532182693481E-10]
[9,null,"Disposition and Recovery/Refund of Regulatory Balances (2011)4",1595,null,null,null,null,0,null,null,null,null,0,{"$f":"I35","v":0},null,null,null,0,0,null,null,null,0,0,-1534672.2199999993,null,null,null,null,null,-1534672.2199999993,0,-51188.180000000015,null,null,-51188.180000000015,-1534672.2199999993,3958.3499999991618,null,null,null,null,null,-1530713.87,-51188.180000000015,588183.03000000014,null,null,536994.85000000009,-1557231.9016339993,551982.12612199993,26518.031633999199,-14987.276121999836,{"$f":"+BA35*1.47%","v":389.81506501978822},null,{"$f":"SUM(BA35:BD35)","v":11920.570577019151},-993719.02,0]
[9,null,"Disposition and Recovery/Refund of Regulatory Balances (2012)4",1595,null,null,null,null,0,null,null,null,null,0,{"$f":"I36","v":0},null,null,null,0,{"$f":"N36","v":0},null,null,null,0,{"$f":"S36","v":0},null,null,null,null,null,null,{"$f":"Y36+Z36-AA36+SUM(AB36:AE36)","v":0},{"$f":"X36","v":0},null,null,null,{"$f":"AG36+AH36-AI36+AJ36","v":0},{"$f":"AF36","v":0},129773.09,null,null,null,null,null,{"$f":"AL36+AM36-AN36+SUM(AO36:AR36)","v":129773.09},{"$f":"AK36","v":0},-22463.75,null,null,{"$f":"AT36+AU36-AV36+AW36","v":-22463.75},null,null,129773.09,-22463.75,{"$f":"+BA36*1.47%","v":1907.6644229999999},null,{"$f":"SUM(BA36:BD36)","v":109217.00442299999},107309.34,0]
[]
[null,null,"RSVA - Global Adjustment",1589,{"$f":"E30","v":0},{"$f":"F30","v":0},0,0,0,0,0,0,0,0,{"$f":"O30","v":0},{"$f":"P30","v":0},0,0,0,0,0,0,0,0,{"$f":"Y30","v":0},{"$f":"Z30","v":689969.21},0,0,0,0,0,{"$f":"AF30","v":689969.21},0,15477.119999999995,0,{"$f":"AJ30","v":0},15477.119999999995,{"$f":"AL30","v":689969.21},{"$f":"AM30","v":1308996.5},1822396,0,0,0,0,176569.70999999996,15477.119999999995,495257.55,530089,0,-19354.330000000016,-1149073.4569040001,{"$f":"AZ30","v":-25790.768968000008},1325643.1669040001,6436.4389679999913,19486.954553488802,0,1351566.560425489,157215.38,0]
[null,null,"Total Group 1 Balance excluding Account 1589 - Global Adjustment",null,{"$f":"SUM(E24:E29,E31:E36)","v":0},{"$f":"SUM(F24:F29,F31:F36)","v":0},0,0,0,0,0,0,0,0,{"$f":"SUM(O24:O29,O31:O36)","v":0},{"$f":"SUM(P24:P29,P31:P36)","v":0},0,0,0,0,0,0,0,0,{"$f":"SUM(Y24:Y29,Y31:Y36)","v":0},{"$f":"SUM(Z24:Z29,Z31:Z36)","v":-2272436.1099999985},0,0,0,0,0,{"$f":"SUM(AF24:AF29,AF31:AF36)","v":-2272436.1099999985},0,809167.23999999976,0,{"$f":"SUM(AJ24:AJ29,AJ31:AJ36)","v":0},809167.23999999976,{"$f":"SUM(AL24:AL29,AL31:AL36)","v":-2272436.1099999985},{"$f":"SUM(AM24:AM29,AM31:AM36)","v":-24196.190000001428},1537578,0,0,0,0,-3834210.3000000007,809167.23999999976,-648739.16999999958,-1139350,0,1299778.0700000003,-1975404.8505209989,{"$f":"SUM(AZ24:AZ29,AZ31:AZ36)","v":535830.74649299984},-1858805.4494790011,763947.32350700034,-15944.447602341321,0,-1110802.5735743421,-2534432.2300000004,-1.1641532182693481E-10]
[null,null,"Total Group 1 Balance",null,{"$f":"SUM(E24:E36)","v":0},{"$f":"SUM(F24:F36)","v":0},0,0,0,0,0,0,0,0,{"$f":"SUM(O24:O36)","v":0},{"$f":"SUM(P24:P36)","v":0},0,0,0,0,0,0,0,0,{"$f":"SUM(Y24:Y36)","v":0},{"$f":"SUM(Z24:Z36)","v":-1582466.8999999987},0,0,0,0,0,{"$f":"SUM(AF24:AF36)","v":-1582466.8999999987},0,824644.35999999975,0,{"$f":"SUM(AJ24:AJ36)","v":0},824644.35999999975,{"$f":"SUM(AL24:AL36)","v":-1582466.8999999987},{"$f":"SUM(AM24:AM36)","v":1284800.3099999987},3359974,0,0,0,0,-3657640.5900000008,824644.35999999975,-153481.61999999965,-609261,0,1280423.7400000002,-3124478.3074249988,{"$f":"SUM(AZ24:AZ36)","v":510039.97752499982},-533162.28257500113,770383.76247500035,3542.5069511474794,0,240763.98685114691,-2377216.8500000006,-1.1641532182693481E-10]
[]
[null,null,"LRAM Variance Account",1568,null,null,null,null,{"$f":"E42+F42-G42+SUM(H42:H42)","v":0},null,null,null,null,{"$f":"J42+K42-L42+M42","v":0},null,null,null,null,{"$f":"O42+P42-Q42+SUM(R42:R42)","v":0},null,null,null,null,{"$f":"T42+U42-V42+W42","v":0},{"$f":"S42","v":0},82944.87,null,null,null,null,null,{"$f":"Y42+Z42-AA42+SUM(AB42:AE42)","v":82944.87},{"$f":"X42","v":0},1831,null,null,{"$f":"AG42+AH42-AI42+AJ42","v":1831},{"$f":"AF42","v":82944.87},21884.130000000005,null,null,null,null,null,{"$f":"AL42+AM42-AN42+SUM(AO42:AR42)","v":104829},{"$f":"AK42","v":1831},2616.8900000000003,null,null,{"$f":"AT42+AU42-AV42+AW42","v":4447.8900000000003},100798,4031,{"$f":"AS42-AY42","v":4031},{"$f":"AX42-AZ42","v":416.89000000000033},{"$f":"+BA42*1.47%","v":59.255699999999997},null,{"$f":"SUM(BA42:BD42)","v":4507.1457},109276.89,{"$f":"BF42-SUM(AS42,AX42)","v":0}]
[]
[null,null,"Total including Account 1568",null,{"$f":"E42+E40","v":0},{"$f":"F42+F40","v":0},0,0,0,0,0,0,0,0,0,0,0,0,0,0,0,0,0,0,0,-1499522.0299999989,0,0,0,0,0,-1499522.0299999989,0,826475.35999999975,0,0,826475.35999999975,-1499522.0299999989,1306684.4399999985,3359974,0,0,0,0,-3552811.5900000008,826475.35999999975,-150864.72999999963,-609261,0,1284871.6300000001,-3023680.3074249988,514070.97752499982,-529131.28257500113,770800.65247500036,3601.7626511474796,0,245271.1325511469,-2267939.9600000004,-1.1641532182693481E-10]
[]
[]
[null,null,"For all Board-Approved dispositions, please ensure that the disposition amount has the same sign (e.g: debit balances are to have a positive figure and credit balance are to have a negative figure) as per the related Board decision."]
[]
[]
[null,1,"Please provide explanations for the nature of the adjustments.  If the adjustment relates to previously Board Approved disposed balances, please provide amounts for adjustments and include supporting documentations."]
[null,2,"For RSVA accounts only, report the net variance to the account during the year.  For all other accounts, record the transactions during the year."]
[null,3,"If the LDC’s rate year begins on January 1, 2015, the projected interest is recorded from January 1, 2014 to December 31, 2014 on the December 31, 2013 balances adjusted for the disposed balances approved by the Board in the 2014 rate decision.  If the LDC’s rate year begins on May 1, 2015, the projected interest is recorded from January 1, 2014 to April 30, 2015 on the December 31, 2013 balances adjusted for the disposed interest balances approved by the Board in the 2014 rate decision."]
[null,4,"Include Account 1595 as part of Group 1 accounts (lines 31, 32, 33 and 34) for review and disposition if the recovery (or refund) period has been completed. If the recovery (or refund) period has not been completed, do not include the respective balance in Account 1595 for disposition at this time."]

{"sheet":"6. Billing Det. for Def-Var","index":6,"n_rows":42,"n_cols":45,"rows_kept":42,"cut":false,"hidden":false,"merged":[[14,9,15,9],[14,14,15,14],[14,13,15,13],[14,11,15,11],[14,12,15,12],[14,10,15,10],[12,0,12,7],[14,4,15,4],[14,5,15,5],[14,7,15,7],[14,8,15,8],[14,6,15,6],[39,0,39,7],[40,0,40,7],[41,0,41,7],[33,3,33,8],[31,1,31,2],[32,1,32,2],[33,1,33,2],[37,0,38,7]]}
[null,null,null,null,null,null,null,null,null,null,null,null,null,null,null,null,null,null,null,null,null,null,null,null,null,null,null,null,null,null,null,null,null,null,null,null,null,null,null,null,null,null,null,null,"As per Section 3.2.3 of the 2015 Filing Requirements for Electricity Distribution Rate Applications, an applicant may elect to dispose of the Group 1 account balances below the threshold.  If doing so, please select YES from the adjacent drop-down cell and also indicate so in the Manager's Summary.  If not, please select NO."]
[]
[]
[]
[]
[]
[]
[]
[]
[]
[]
[]
["In the green shaded cells, enter the most recent Board Approved volumetric forecast.  If there is a material difference between the latest Board-approved volumetric forecast and the most recent 12-month actual volumetric data, use the most recent 12-month actual data.  Do not enter data for the MicroFit class."]
[]
[null,null,null,null,"Billed kWh for Non-RPP Customers","Estimated kW for Non-RPP Customers",null,"1590 Recovery Share Proportion*","1595 Recovery Share Proportion (2008) 1","1595 Recovery Share Proportion (2009) 1","1595 Recovery Share Proportion (2010) 1","1595 Recovery Share Proportion (2011) 1","1595 Recovery Share Proportion (2012) 1","1568 LRAM Variance Account Class Allocation                           ($ amounts)","Number of Customers for Residential and GS<50 classes3"]
["Rate Class","Unit","Metered kWh","Metered kW"]
["RESIDENTIAL","$/kWh",595449114,null,29621965.11179645,{"$f":"IF(ISERROR(D17/C17*E17), 0, D17/C17*E17)","v":0},null,null,null,null,0.376,0.373,0.37430000000000002,4191,59565]
["GENERAL SERVICE LESS THAN 50 KW","$/kWh",158508292,null,24887399.76869699,0,null,null,null,null,0.124,0.11700000000000001,0.11650000000000001,312.49,4926]
["GENERAL SERVICE 50 TO 1,000 KW","$/kW",606291782,1589641,520256503.46954507,1364064.4537580605,null,null,null,null,0.41,0.4,0.3997]
["GENERAL SERVICE GREATER THAN 1,000 KW","$/kW",147386488,329822,147386488.04934463,329822.0001104236,null,null,null,null,7.8E-2,9.9000000000000005E-2,9.8900000000000002E-2,3.59]
["UNMETERED SCATTERED LOAD","$/kWh",3504020,null,25058.789514263684,0]
["SENTINEL LIGHTING","$/kW",116788,324,null,0,null,null,null,null,3.0000000000000001E-3,3.0000000000000001E-3,2.5999999999999999E-3]
["STREET LIGHTING","$/kW",8943095,24961,8943094.6414803378,24960.998999338673,null,null,null,null,null,null,1E-4]
["EMBEDDED DISTRIBUTOR","$/kW",33729600,72000,30697160.75558982,65526.883639369182,null,null,null,null,8.9999999999999993E-3,8.0000000000000002E-3,7.9000000000000008E-3]
["microFIT"]
[]
[null,"Total",{"$f":"SUM(C17:C25)","v":1553929179},{"$f":"SUM(D17:D25)","v":2016748},761817670.58596766,1784374.3365071919,null,0,0,0,0.99999999999999989,1,1,4507.08,64491]
[null,null,null,null,null,null,null,null,null,null,null,null,"Balance as per Sheet 5",{"$f":"ROUND('5. 2014 Continuity Schedule'!BE42, 0)","v":4507}]
[null,null,null,null,null,null,null,null,null,null,null,null,"Variance",{"$f":"N27-N28","v":7.999999999992724E-2}]
[]
["Threshold Test"]
["Total Claim (including Account 1568)",{"$f":"'5. 2014 Continuity Schedule'!BE44","v":245271.1325511469}]
["Total Claim for Threshold Test (All Group 1 Accounts)",{"$f":"'5. 2014 Continuity Schedule'!BE40","v":240763.98685114691}]
["Threshold Test (Total claim per kWh) 2",{"$f":"IF(ISERROR(B33/C27), 0, B33/C27)","v":1.5493884155395405E-4},null,{"$f":"IF(AND(B34>-0.001,B34<0.001),\"Claim does not meet the threshold test.\",\"\")","v":"Claim does not meet the threshold test."}]
[]
[{"$f":"IF(AND(B34>-0.001, B34<0.001), AS1, \"\")","v":"As per Section 3.2.3 of the 2015 Filing Requirements for Electricity Distribution Rate Applications, an applicant may elect to dispose of the Group 1 account balances below the threshold.  If doing so, please select YES from the adjacent drop-down cell and also indicate so in the Manager's Summary.  If not, please select NO."},null,"NO"]
[]
[]
[]
["1 Residual Account balance to be allocated to rate classes in proportion to the recovery share as established when rate riders were implemented."]
["2 The Threshold Test does not include the amount in 1568."]
["3 The proportion of customers for the Residential and GS<50 Classes will be used to allocate Account 1551."]

{"sheet":"6. hidden","index":7,"n_rows":11,"n_cols":29,"rows_kept":11,"cut":false,"hidden":true,"merged":[[0,10,1,10],[0,12,1,12],[0,4,1,4],[0,5,1,5],[0,6,1,6],[0,7,1,7],[0,8,1,8],[0,9,1,9],[0,11,1,11]]}
[null,null,null,null,"Billed kWh for Non-RPP Customers","Estimated kW for Non-RPP Customers","Distribution Revenue 1","1590 Recovery Share Proportion*","1595 Recovery Share Proportion (2008) 2","1595 Recovery Share Proportion (2009) 2","1595 Recovery Share Proportion (2010) 2","1595 Recovery Share Proportion (2011) 2","1568 LRAM Variance Account Class Allocation",null,null,null,null,null,null,null,null,null,null,null,null,null,null,null,"NO"]
["Rate Class","Unit","Metered kWh","Metered kW"]
["RESIDENTIAL","$/kWh",595449114,0,29621965.11179645,null,0,0,0,0,0.376,0.373,0.37430000000000002,4191,59565]
["GENERAL SERVICE LESS THAN 50 KW","$/kWh",158508292,0,24887399.76869699,null,0,0,0,0,0.124,0.11700000000000001,0.11650000000000001,312.49,4926]
["GENERAL SERVICE 50 TO 1,000 KW","$/kW",606291782,1589641,520256503.46954507,null,0,0,0,0,0.41,0.4,0.3997,0,0]
["GENERAL SERVICE GREATER THAN 1,000 KW","$/kW",147386488,329822,147386488.04934463,null,0,0,0,0,7.8E-2,9.9000000000000005E-2,9.8900000000000002E-2,3.59,0]
["UNMETERED SCATTERED LOAD","$/kWh",3504020,0,25058.789514263684,null,0,0,0,0,0,0,0,0,0]
["SENTINEL LIGHTING","$/kW",116788,324,0,null,0,0,0,0,3.0000000000000001E-3,3.0000000000000001E-3,2.5999999999999999E-3,0,0]
["STREET LIGHTING","$/kW",8943095,24961,8943094.6414803378,null,0,0,0,0,0,0,1E-4,0,0]
["EMBEDDED DISTRIBUTOR","$/kW",33729600,72000,30697160.75558982,null,0,0,0,0,8.9999999999999993E-3,8.0000000000000002E-3,7.9000000000000008E-3,0,0]
["microFIT",0,0,0,0,null,0,0,0,0,0,0,0,0,0]

{"sheet":"7. Allocating Def-Var Balances","index":8,"n_rows":33,"n_cols":19,"rows_kept":33,"cut":false,"hidden":false,"merged":[[15,18,16,18],[12,0,13,8],[15,13,16,13],[15,14,16,14],[15,15,16,15],[15,3,16,3],[15,4,16,4],[15,2,16,2],[15,16,16,16],[15,17,16,17]]}
[]
[]
[]
[]
[]
[]
[]
[]
[]
[]
[]
[]
["No input required.  This workshseet allocates the deferral/variance account balances (Group 1, 1589, and 1568) to the appropriate classes as per the EDDVAR Report dated July 31, 2009"]
[]
["Allocation of Group 1 Accounts (including Account 1568)"]
[null,null,"% of  Total kWh","% of  Total non-RPP kWh","% of Customer Numbers **",null,null,null,null,null,null,null,null,"1595                          (2008)","1595                            (2009)","1595                            (2010)","1595                            (2011)","1595\n(2012)",1568]
["Rate Class",null,null,null,null,1550,1551,1580,1584,1586,1588,1589,1590]
[]
["RESIDENTIAL",null,{"$f":"VLOOKUP(A19, '6. Billing Det. for Def-Var'!A17:D25, 3,0)/'6. Billing Det. for Def-Var'!C27","v":0.38318935125678594},{"$f":"VLOOKUP(A19, '6. Billing Det. for Def-Var'!A17:E25, 5,0)/'6. Billing Det. for Def-Var'!E27","v":3.888327385345644E-2},{"$f":"VLOOKUP(A19, '6. Billing Det. for Def-Var'!A17:O25, 15,0)/'6. Billing Det. for Def-Var'!O27","v":0.92361724891845376},0,0,0,0,0,0,0,0,0,0,0,0,0,{"$f":"'6. Billing Det. for Def-Var'!N17","v":4191}]
["GENERAL SERVICE LESS THAN 50 KW",null,{"$f":"VLOOKUP(A20, '6. Billing Det. for Def-Var'!A17:D25, 3,0)/'6. Billing Det. for Def-Var'!C27","v":0.10200483660523373},{"$f":"VLOOKUP(A20, '6. Billing Det. for Def-Var'!A17:E25, 5,0)/'6. Billing Det. for Def-Var'!E27","v":3.2668446440149303E-2},{"$f":"VLOOKUP(A20, '6. Billing Det. for Def-Var'!A17:O25, 15,0)/'6. Billing Det. for Def-Var'!O27","v":7.6382751081546268E-2},0,0,0,0,0,0,0,0,0,0,0,0,0,{"$f":"'6. Billing Det. for Def-Var'!N18","v":312.49}]
["GENERAL SERVICE 50 TO 1,000 KW",null,{"$f":"VLOOKUP(A21, '6. Billing Det. for Def-Var'!A17:D25, 3,0)/'6. Billing Det. for Def-Var'!C27","v":0.39016693308389183},{"$f":"VLOOKUP(A21, '6. Billing Det. for Def-Var'!A17:E25, 5,0)/'6. Billing Det. for Def-Var'!E27","v":0.68291472298007883},null,0,0,0,0,0,0,0,0,0,0,0,0,0,{"$f":"'6. Billing Det. for Def-Var'!N19","v":0}]
["GENERAL SERVICE GREATER THAN 1,000 KW",null,{"$f":"VLOOKUP(A22, '6. Billing Det. for Def-Var'!A17:D25, 3,0)/'6. Billing Det. for Def-Var'!C27","v":9.4847622396052586E-2},{"$f":"VLOOKUP(A22, '6. Billing Det. for Def-Var'!A17:E25, 5,0)/'6. Billing Det. for Def-Var'!E27","v":0.19346688025230407},null,0,0,0,0,0,0,0,0,0,0,0,0,0,{"$f":"'6. Billing Det. for Def-Var'!N20","v":3.59}]
["UNMETERED SCATTERED LOAD",null,{"$f":"VLOOKUP(A23, '6. Billing Det. for Def-Var'!A17:D25, 3,0)/'6. Billing Det. for Def-Var'!C27","v":2.2549418901155727E-3},{"$f":"VLOOKUP(A23, '6. Billing Det. for Def-Var'!A17:E25, 5,0)/'6. Billing Det. for Def-Var'!E27","v":3.2893421197475245E-5},null,0,0,0,0,0,0,0,0,0,0,0,0,0,{"$f":"'6. Billing Det. for Def-Var'!N21","v":0}]
["SENTINEL LIGHTING",null,{"$f":"VLOOKUP(A24, '6. Billing Det. for Def-Var'!A17:D25, 3,0)/'6. Billing Det. for Def-Var'!C27","v":7.5156578290882327E-5},{"$f":"VLOOKUP(A24, '6. Billing Det. for Def-Var'!A17:E25, 5,0)/'6. Billing Det. for Def-Var'!E27","v":0},null,0,0,0,0,0,0,0,0,0,0,0,0,0,{"$f":"'6. Billing Det. for Def-Var'!N22","v":0}]
["STREET LIGHTING",null,{"$f":"VLOOKUP(A25, '6. Billing Det. for Def-Var'!A17:D25, 3,0)/'6. Billing Det. for Def-Var'!C27","v":5.7551496688897684E-3},{"$f":"VLOOKUP(A25, '6. Billing Det. for Def-Var'!A17:E25, 5,0)/'6. Billing Det. for Def-Var'!E27","v":1.173915358855036E-2},null,0,0,0,0,0,0,0,0,0,0,0,0,0,{"$f":"'6. Billing Det. for Def-Var'!N23","v":0}]
["EMBEDDED DISTRIBUTOR",null,{"$f":"VLOOKUP(A26, '6. Billing Det. for Def-Var'!A17:D25, 3,0)/'6. Billing Det. for Def-Var'!C27","v":2.1706008520739669E-2},{"$f":"VLOOKUP(A26, '6. Billing Det. for Def-Var'!A17:E25, 5,0)/'6. Billing Det. for Def-Var'!E27","v":4.0294629464263369E-2},null,0,0,0,0,0,0,0,0,0,0,0,0,0,{"$f":"'6. Billing Det. for Def-Var'!N24","v":0}]
["microFIT",null,0,0,0,0,0,0,0,0,0,0,0,0,0,0,0,0,{"$f":"'6. Billing Det. for Def-Var'!N25","v":0}]
[]
["Total",null,{"$f":"SUM(C19:C27)","v":1},0.99999999999999978,1,0,0,0,0,0,0,0,0,0,0,0,0,0,4507.08]
[]
[]
["* RSVA - Power (Excluding Global Adjustment)"]
["** Used to allocate Account 1551 as this account records the variances arising from the Smart Metering Entity Charges to Residential and GS<50 customers."]

{"sheet":"8. Calculation of Def-Var RR","index":9,"n_rows":33,"n_cols":11,"rows_kept":33,"cut":false,"hidden":false,"merged":[[32,0,32,10],[16,11,17,11],[16,9,17,9],[16,10,17,10],[11,0,12,6],[16,4,17,4],[16,5,17,5],[16,8,17,8],[16,7,17,7],[16,6,17,6]]}
[]
[]
[]
[]
[]
[]
[]
[]
[]
[]
[]
["Input required at cell C15 only.  This workshseet calculates rate riders related to the Deferral/Variance Account Disposition (if applicable), associated rate riders for the global adjustment account (1589) and Account 1568.  Rate Riders will not be generated for the microFIT class."]
[]
[]
[" Please indicate the Rate Rider Recovery Period (in years)",null,1]
[]
[null,null,null,null," Balance of Accounts Allocated by kWh/kW (RPP) or Distribution Revenue","Deferral/Variance Account Rate Rider","Allocation of Balance in Account 1589","Billed kWh or Estimated kW for Non-RPP Customers","Global Adjustment Rate Rider","Allocation \nof Account 1568","Account 1568 Rate Rider"]
["Rate Class","Unit","Billed kWh","Billed kW        or kVA"]
[]
["RESIDENTIAL","$/kWh",595449114,null,{"$f":"SUM('7. Allocating Def-Var Balances'!F19:K19)+SUM('7. Allocating Def-Var Balances'!M19:R19)","v":0},0,0,29621965.11179645,0,4191,0]
["GENERAL SERVICE LESS THAN 50 KW","$/kWh",158508292,null,{"$f":"SUM('7. Allocating Def-Var Balances'!F20:K20)+SUM('7. Allocating Def-Var Balances'!M20:R20)","v":0},0,0,24887399.76869699,0,312.49,0]
["GENERAL SERVICE 50 TO 1,000 KW","$/kW",606291782,1589641,{"$f":"SUM('7. Allocating Def-Var Balances'!F21:K21)+SUM('7. Allocating Def-Var Balances'!M21:R21)","v":0},0,0,1364064.4537580605,0,null,0]
["GENERAL SERVICE GREATER THAN 1,000 KW","$/kW",147386488,329822,{"$f":"SUM('7. Allocating Def-Var Balances'!F22:K22)+SUM('7. Allocating Def-Var Balances'!M22:R22)","v":0},0,0,329822.0001104236,0,3.59,0]
["UNMETERED SCATTERED LOAD","$/kWh",3504020,null,{"$f":"SUM('7. Allocating Def-Var Balances'!F23:K23)+SUM('7. Allocating Def-Var Balances'!M23:R23)","v":0},0,0,25058.789514263684,0,null,0]
["SENTINEL LIGHTING","$/kW",116788,324,{"$f":"SUM('7. Allocating Def-Var Balances'!F24:K24)+SUM('7. Allocating Def-Var Balances'!M24:R24)","v":0},0,0,0,0,null,0]
["STREET LIGHTING","$/kW",8943095,24961,{"$f":"SUM('7. Allocating Def-Var Balances'!F25:K25)+SUM('7. Allocating Def-Var Balances'!M25:R25)","v":0},0,0,24960.998999338673,0,null,0]
["EMBEDDED DISTRIBUTOR","$/kW",33729600,72000,{"$f":"SUM('7. Allocating Def-Var Balances'!F26:K26)+SUM('7. Allocating Def-Var Balances'!M26:R26)","v":0},0,0,65526.883639369182,0,null,0]
["microFIT"]
["Total",null,{"$f":"SUM(C20:C28)","v":1553929179},{"$f":"SUM(D20:D28)","v":2016748},{"$f":"SUM(E20:E28)","v":0},null,{"$f":"SUM(G20:G28)","v":0},{"$f":"SUM(H20:H28)","v":56318798.006514907},null,{"$f":"SUM(J20:J28)","v":4507.08}]
[]
[]
[]
["One or more rate classes appear to have negligible rate riders in column K.  As per Appendix B of the Filing Requirements, please provide details of the Applicant's proposal in the Manager's Summary."]

{"sheet":"9. STS - Billing Det & Rates","index":10,"n_rows":25,"n_cols":9,"rows_kept":25,"cut":false,"hidden":false,"merged":[]}
[]
[]
[]
[]
[]
[]
[]
[]
[]
[]
["Shared Tax Savings"]
[]
[{"$f":"\"Enter your \" & '1. Information Sheet'!F32 & \" Board-Approved Billing Determinents into columns B, C and D.\"","v":"Enter your 2014 Board-Approved Billing Determinents into columns B, C and D."}]
[{"$f":"\"Enter your \" & '1. Information Sheet'!F32 & \" Board-Approved Base monthly service and volumetric charges into columns G, H and I.\"","v":"Enter your 2014 Board-Approved Base monthly service and volumetric charges into columns G, H and I."}]
[]
["Rate Class","Units","Re-based \nBilled Customers or Connections","Re-based Billed kWh","Re-based Billed kW (if applicable)",null,{"$f":" '1. Information Sheet'!F32 &\" \nBase Monthly \nService Charge\"","v":"2014 \nBase Monthly \nService Charge"},{"$f":" '1. Information Sheet'!F32 &\" \nBase Distribution Volumetric Rate kWh\"","v":"2014 \nBase Distribution Volumetric Rate kWh"},{"$f":" '1. Information Sheet'!F32 &\" \nBase Distribution Volumetric Rate kW\"","v":"2014 \nBase Distribution Volumetric Rate kW"}]
["RESIDENTIAL","$/kWh",59565,595449114,0,null,14.42,1.5699999999999999E-2,0]
["GENERAL SERVICE LESS THAN 50 KW","$/kWh",4926,158508292,0,null,34.71,1.5299999999999999E-2,0]
["GENERAL SERVICE 50 TO 1,000 KW","$/kW",920,606291782,1589641,null,118.45,0,4.6319999999999997]
["GENERAL SERVICE GREATER THAN 1,000 KW","$/kW",16,147386488,329822,null,3399.83,0,2.6884000000000001]
["UNMETERED SCATTERED LOAD","$/kWh",674,3504020,0,null,9.83,9.1999999999999998E-3,0]
["SENTINEL LIGHTING","$/kW",157,116788,324,null,2.69,0,45.5762]
["STREET LIGHTING","$/kW",10404,8943095,24961,null,3.69,0,22.639199999999999]
["EMBEDDED DISTRIBUTOR","$/kW",1,33729600,72000,null,5072.12,0,2.7703000000000002]
["microFIT"]

{"sheet":"10. STS - Rebased Rev","index":11,"n_rows":26,"n_cols":19,"rows_kept":26,"cut":false,"hidden":false,"merged":[]}
[]
[]
[]
[]
[]
[]
[]
[]
[]
[]
[]
["Calculation of Rebased Revenue Requirement.  No input required."]
[]
[]
["Rate Class",null,"Re-based Billed Customers or Connections","Re-based Billed kWh","Re-based Billed kW",null,"Rate ReBal Base Service Charge","Rate ReBal Base Distribution Volumetric Rate kWh","Rate ReBal Base Distribution Volumetric Rate kW",null,"Service Charge Revenue","Distribution Volumetric Rate Revenue \nkWh","Distribution Volumetric Rate Revenue \nkW","Revenue Requirement from Rates",null,"Service Charge % Revenue","Distribution Volumetric Rate % Revenue \nkWh","Distribution Volumetric Rate % Revenue \nkW","Total % Revenue"]
[null,null,"A","B","C",null,"D","E","F",null,"G = A * D *12","H = B * E","I = C * F","J = G + H + I",null,"K = G / J","L = H / J","M = I / J","N = J / R"]
["RESIDENTIAL",null,59565,595449114,0,null,14.42,1.5699999999999999E-2,0,null,{"$f":"G17*C17*12","v":10307127.600000001},{"$f":"H17*D17","v":9348551.0897999983},0,{"$f":"SUM(K17,L17,M17)","v":19655678.689800002},null,{"$f":"IF(ISERROR(K17/N17),0,K17/N17)","v":0.52438421296277704},{"$f":"IF(ISERROR(L17/N17),0,L17/N17)","v":0.4756157870372229},{"$f":"IF(ISERROR(M17/N17),0,M17/N17)","v":0},{"$f":"N17/N26","v":0.54964485540983143}]
["GENERAL SERVICE LESS THAN 50 KW",null,4926,158508292,0,null,34.71,1.5299999999999999E-2,0,null,2051777.52,{"$f":"H18*D18","v":2425176.8676},0,4476954.3876,null,0.45829761537952907,0.54170238462047093,0,{"$f":"N18/N26","v":0.12519206209479664}]
["GENERAL SERVICE 50 TO 1,000 KW",null,920,606291782,1589641,null,118.45,0,4.6319999999999997,null,1307688,0,{"$f":"I19*E19","v":7363217.1119999997},8670905.1119999997,null,0.15081332145939877,0,0.84918667854060126,{"$f":"N19/N26","v":0.24247030396517444}]
["GENERAL SERVICE GREATER THAN 1,000 KW",null,16,147386488,329822,null,3399.83,0,2.6884000000000001,null,652767.36,0,{"$f":"I20*E20","v":886693.46480000007},1539460.8248000001,null,0.42402336550837832,0,0.57597663449162173,{"$f":"N20/N26","v":4.3048970010656273E-2}]
["UNMETERED SCATTERED LOAD",null,674,3504020,0,null,9.83,9.1999999999999998E-3,0,null,79505.040000000008,{"$f":"H21*D21","v":32236.984},0,111742.024,null,0.71150527933877417,0.28849472066122589,0,{"$f":"N21/N26","v":3.1247167596687477E-3}]
["SENTINEL LIGHTING",null,157,116788,324,null,2.69,0,45.5762,null,5067.96,0,{"$f":"I22*E22","v":14766.6888},19834.648799999999,null,0.25551044795912897,0,0.74448955204087108,{"$f":"N22/N26","v":5.5464951599143767E-4}]
["STREET LIGHTING",null,10404,8943095,24961,null,3.69,0,22.639199999999999,null,460689.12,0,{"$f":"I23*E23","v":565097.07120000001},1025786.1912,null,0.44910832681523039,0,0.55089167318476961,{"$f":"N23/N26","v":2.8684743561468069E-2}]
["EMBEDDED DISTRIBUTOR",null,1,33729600,72000,null,5072.12,0,2.7703000000000002,null,60865.440000000002,0,{"$f":"I24*E24","v":199461.6},260327.04000000001,null,0.23380375699735226,0,0.76619624300264777,{"$f":"N24/N26","v":7.2796986824129519E-3}]
["microFIT",null,null,null,null,null,null,null,null,null,0,0,0,0,null,0,0,0,{"$f":"N25/N26","v":0}]
["Total",null,{"$f":"SUM(C17:C25)","v":76663},{"$f":"SUM(D17:D25)","v":1553929179},{"$f":"SUM(E17:E25)","v":2016748},null,null,null,null,null,{"$f":"SUM(K17:K25)","v":14925488.039999999},{"$f":"SUM(L17:L25)","v":11805964.941399997},{"$f":"SUM(M17:M25)","v":9029235.9367999993},{"$f":"SUM(N17:N25)","v":35760688.918200001},null,null,null,null,{"$f":"SUM(S17:S25)","v":1}]

{"sheet":"9. STS - Billing Det & Rate HID","index":12,"n_rows":25,"n_cols":9,"rows_kept":25,"cut":false,"hidden":true,"merged":[]}
[]
[]
[]
[]
[]
[]
[]
[]
[]
[]
["Shared Tax Savings"]
[{"$f":"\"Enter your \" & '1. Information Sheet'!F32 & \" Board-Approved Billing Determinents into columns B, C and D.\"","v":"Enter your 2014 Board-Approved Billing Determinents into columns B, C and D."}]
[]
[]
[]
["Rate Class","Units","Re-based \nBilled Customers or Connections","Re-based Billed kWh","Re-based Billed kW (if applicable)",null,{"$f":" '1. Information Sheet'!F32 &\" \nBase Monthly \nService Charge\"","v":"2014 \nBase Monthly \nService Charge"},{"$f":" '1. Information Sheet'!F32 &\" \nBase Distribution Volumetric Rate kWh\"","v":"2014 \nBase Distribution Volumetric Rate kWh"},{"$f":" '1. Information Sheet'!F32 &\" \nBase Distribution Volumetric Rate kW\"","v":"2014 \nBase Distribution Volumetric Rate kW"}]
["RESIDENTIAL","$/kWh",59565,595449114,0,null,14.42,1.5699999999999999E-2,0]
["GENERAL SERVICE LESS THAN 50 KW","$/kWh",4926,158508292,0,null,34.71,1.5299999999999999E-2,0]
["GENERAL SERVICE 50 TO 1,000 KW","$/kW",920,606291782,1589641,null,118.45,0,4.6319999999999997]
["GENERAL SERVICE GREATER THAN 1,000 KW","$/kW",16,147386488,329822,null,3399.83,0,2.6884000000000001]
["UNMETERED SCATTERED LOAD","$/kWh",674,3504020,0,null,9.83,9.1999999999999998E-3,0]
["SENTINEL LIGHTING","$/kW",157,116788,324,null,2.69,0,45.5762]
["STREET LIGHTING","$/kW",10404,8943095,24961,null,3.69,0,22.639199999999999]
["EMBEDDED DISTRIBUTOR","$/kW",1,33729600,72000,null,5072.12,0,2.7703000000000002]
["microFIT",0,0,0,0,null,0,0,0]

{"sheet":"11. STS - Tax Change","index":13,"n_rows":53,"n_cols":22,"rows_kept":53,"cut":false,"hidden":false,"merged":[[14,0,14,10],[18,0,18,7]]}
[null,null,null,null,null,null,null,null,null,null,null,null,null,null,null,null,null,null,null,"Rate Base","Federal Tax Rate"]
[null,null,null,null,null,null,null,null,null,null,null,null,null,null,null,null,null,null,null,500000,0.11]
[null,null,null,null,null,null,null,null,null,null,null,null,null,null,null,null,null,null,null,10000000,0.11]
[null,null,null,null,null,null,null,null,null,null,null,null,null,null,null,null,null,null,null,{"$f":"T3+100000","v":10100000},0.11]
[null,null,null,null,null,null,null,null,null,null,null,null,null,null,null,null,null,null,null,{"$f":"T4+100000","v":10200000},0.11]
[null,null,null,null,null,null,null,null,null,null,null,null,null,null,null,null,null,null,null,10300000,0.11]
[null,null,null,null,null,null,null,null,null,null,null,null,null,null,null,null,null,null,null,10400000,0.11]
[null,null,null,null,null,null,null,null,null,null,null,null,null,null,null,null,null,null,null,10500000,0.11]
[null,null,null,null,null,null,null,null,null,null,null,null,null,null,null,null,null,null,null,10600000,0.11]
[null,null,null,null,null,null,null,null,null,null,null,null,null,null,null,null,null,null,null,10700000,0.11]
[null,null,null,null,null,null,null,null,null,null,null,null,null,null,null,null,null,null,null,10800000,0.11]
[null,null,null,null,null,null,null,null,null,null,null,null,null,null,null,null,null,null,null,10900000,0.11]
["Summary - Sharing of Tax Change Forecast Amounts",null,null,null,null,null,null,null,null,null,null,null,null,null,null,null,null,null,null,11000000,0.11]
[null,null,null,null,null,null,null,null,null,null,null,null,null,null,null,null,null,null,null,11100000,0.111]
[{"$f":"\"For the \" & '1. Information Sheet'!F32 & \" year, enter any Tax Credits from the Cost of Service Tax Calculation (Positive #)\"","v":"For the 2014 year, enter any Tax Credits from the Cost of Service Tax Calculation (Positive #)"},null,null,null,null,null,null,null,null,null,null,30248,null,null,null,null,null,null,null,11200000,{"$f":"U14+0.13%","v":0.1123},{"$f":"U15-U14","v":1.2999999999999956E-3}]
[null,null,null,null,null,null,null,null,null,null,null,null,null,null,null,null,null,null,null,11300000,{"$f":"U15+0.13%","v":0.11359999999999999},{"$f":"U16-U15","v":1.2999999999999956E-3}]
[null,null,null,null,null,null,null,null,null,null,null,null,null,null,null,null,null,null,null,11400000,0.11489999999999999,1.2999999999999956E-3]
["1. Tax Related Amounts Forecast from Capital Tax Rate Changes ",null,null,null,null,null,null,null,null,null,null,{"$f":"'1. Information Sheet'!F32","v":2014},null,2015,null,null,null,null,null,11500000,0.11619999999999998,1.2999999999999956E-3]
["Taxable Capital (if you are not claiming capital tax, please enter your Board-Approved Rate Base)",null,null,null,null,null,null,null,null,null,null,183042019,null,{"$f":"L19","v":183042019},null,null,null,null,null,11600000,{"$f":"U18+0.12%","v":0.11739999999999999},1.2000000000000066E-3]
[null,null,null,null,null,null,null,null,null,null,null,null,null,null,null,null,null,null,null,11700000,{"$f":"U19+0.12%","v":0.1186},1.2000000000000066E-3]
["Deduction from taxable capital up to $15,000,000",null,null,null,null,null,null,null,null,null,null,null,null,{"$f":"L21","v":0},null,null,null,null,null,11800000,0.1198,1.2000000000000066E-3]
[null,null,null,null,null,null,null,null,null,null,null,null,null,null,null,null,null,null,null,11900000,0.12100000000000001,1.2000000000000066E-3]
["Net Taxable Capital ",null,null,null,null,null,null,null,null,null,null,{"$f":"L19-L21","v":183042019},null,{"$f":"N19-N21","v":183042019},null,null,null,null,null,12000000,{"$f":"U22+0.112%","v":0.12212000000000001},1.119999999999996E-3]
[null,null,null,null,null,null,null,null,null,null,null,null,null,null,null,null,null,null,null,12100000,{"$f":"U23+0.112%","v":0.12324},1.119999999999996E-3]
["Rate",null,null,null,null,null,null,null,null,null,null,0,null,0,null,null,null,null,null,12200000,0.12436,1.119999999999996E-3]
[null,null,null,null,null,null,null,null,null,null,null,null,null,null,null,null,null,null,null,12300000,0.12548000000000001,1.1200000000000099E-3]
["Ontario Capital Tax (Deductible, not grossed-up)",null,null,null,null,null,null,null,null,null,null,{"$f":"IF(L23>0, L23*L25, 0)*181/365","v":0},null,0,null,null,null,null,null,12400000,0.12660000000000002,1.1200000000000099E-3]
[null,null,null,null,null,null,null,null,null,null,null,null,null,null,null,null,null,null,null,12500000,0.12772000000000003,1.1200000000000099E-3]
["2. Tax Related Amounts Forecast from lncome Tax Rate Changes ",null,null,null,null,null,null,null,null,null,null,null,null,null,null,null,null,null,null,12600000,{"$f":"U28+0.102%","v":0.12874000000000002},1.0199999999999931E-3]
["Regulatory Taxable Income",null,null,null,null,null,null,null,null,null,null,195149,null,{"$f":"L30","v":195149},null,null,null,null,null,12700000,{"$f":"U29+0.102%","v":0.12976000000000001},1.0199999999999931E-3]
[null,null,null,null,null,null,null,null,null,null,null,null,null,null,null,null,null,null,null,12800000,0.13078000000000001,1.0199999999999931E-3]
["Corporate Tax Rate",null,null,null,null,null,null,null,null,null,null,0.155,null,{"$f":"IF(N30=0,0,IF(N30<=500000,4.5%+11%,IF(N30>500000,(11.5%*N30-35000)/N30+VLOOKUP(N19,T:U,2,TRUE),\"\")))","v":0.155},null,null,null,null,null,12900000,0.1318,1.0199999999999931E-3]
[null,null,null,null,null,null,null,null,null,null,null,null,null,null,null,null,null,null,null,13000000,0.13281999999999999,1.0199999999999931E-3]
["Tax Impact ",null,null,null,null,null,null,null,null,null,null,0,null,{"$f":"N30*N32-L15","v":9.5000000001164153E-2},null,null,null,null,null,13100000,{"$f":"U33+0.096%","v":0.13377999999999998},9.5999999999998864E-4]
[null,null,null,null,null,null,null,null,null,null,null,null,null,null,null,null,null,null,null,13200000,{"$f":"U34+0.096%","v":0.13473999999999997},9.5999999999998864E-4]
["Grossed-up Tax Amount",null,null,null,null,null,null,null,null,null,null,0,null,{"$f":"N34/(1-N32)","v":0.11242603550433627},null,null,null,null,null,13300000,0.13569999999999996,9.5999999999998864E-4]
[null,null,null,null,null,null,null,null,null,null,null,null,null,null,null,null,null,null,null,13400000,0.13665999999999995,9.5999999999998864E-4]
["Tax Related Amounts Forecast from Capital Tax Rate Changes ",null,null,null,null,null,null,null,null,null,null,{"$f":"L27","v":0},null,{"$f":"N27","v":0},null,null,null,null,null,13500000,0.13761999999999994,9.5999999999998864E-4]
[null,null,null,null,null,null,null,null,null,null,null,null,null,null,null,null,null,null,null,13600000,{"$f":"U38+0.088%","v":0.13849999999999993},8.799999999999919E-4]
["Tax Related Amounts Forecast from lncome Tax Rate Changes ",null,null,null,null,null,null,null,null,null,null,{"$f":"L36","v":0},null,{"$f":"N36","v":0.11242603550433627},null,null,null,null,null,13700000,{"$f":"U39+0.088%","v":0.13937999999999992},8.799999999999919E-4]
[null,null,null,null,null,null,null,null,null,null,null,null,null,null,null,null,null,null,null,13800000,0.14025999999999991,8.799999999999919E-4]
["Total Tax Related Amounts",null,null,null,null,null,null,null,null,null,null,{"$f":"SUM(L40,L38)","v":0},null,{"$f":"SUM(N40,N38)","v":0.11242603550433627},null,null,null,null,null,13900000,0.1411399999999999,8.799999999999919E-4]
[null,null,null,null,null,null,null,null,null,null,null,null,null,null,null,null,null,null,null,14000000,0.1420199999999999,8.799999999999919E-4]
["Incremental Tax Savings",null,null,null,null,null,null,null,null,null,null,null,null,{"$f":"N42-L42","v":0.11242603550433627},null,null,null,null,null,14100000,{"$f":"U43+0.082%","v":0.14283999999999988},8.1999999999998741E-4]
[null,null,null,null,null,null,null,null,null,null,null,null,null,null,null,null,null,null,null,14200000,{"$f":"U44+0.082%","v":0.14365999999999987},8.1999999999998741E-4]
["Sharing of Tax Savings (50%)",null,null,null,null,null,null,null,null,null,null,null,null,{"$f":"0.5*N44","v":5.6213017752168137E-2},null,null,null,null,null,14300000,0.14447999999999986,8.1999999999998741E-4]
[null,null,null,null,null,null,null,null,null,null,null,null,null,null,null,null,null,null,null,14400000,0.14529999999999985,8.1999999999998741E-4]
[null,null,null,null,null,null,null,null,null,null,null,null,null,null,null,null,null,null,null,14500000,0.14611999999999983,8.1999999999998741E-4]
[null,null,null,null,null,null,null,null,null,null,null,null,null,null,null,null,null,null,null,14600000,{"$f":"U48+0.076%","v":0.14687999999999984},7.6000000000001067E-4]
[null,null,null,null,null,null,null,null,null,null,null,null,null,null,null,null,null,null,null,14700000,{"$f":"U49+0.076%","v":0.14763999999999985},7.6000000000001067E-4]
[null,null,null,null,null,null,null,null,null,null,null,null,null,null,null,null,null,null,null,14800000,0.14839999999999987,7.6000000000001067E-4]
[null,null,null,null,null,null,null,null,null,null,null,null,null,null,null,null,null,null,null,14900000,0.14915999999999988,7.6000000000001067E-4]
[null,null,null,null,null,null,null,null,null,null,null,null,null,null,null,null,null,null,null,15000000,0.15,8.4000000000011843E-4]

{"sheet":"12. STS - Tax Change Rate Rider","index":14,"n_rows":28,"n_cols":15,"rows_kept":28,"cut":false,"hidden":false,"merged":[[10,0,11,12],[27,0,27,14]]}
[]
[]
[]
[]
[]
[]
[]
[]
[]
[]
["This worksheet calculates a tax change volumetric rate rider.  If the rate riders are material (round to 4 decimal places), then the outputs in columns M and O will appear on Sheet 27 - Final Tariff Schedule."]
[]
[]
[]
["Rate Class",null,"Total Revenue $ by Rate Class",null,"Total Revenue % by Rate Class",null,"Allocation of Tax Savings by Rate Class",null,"Billed kWh",null,"Billed kW",null,"Distribution Volumetric Rate kWh Rate Rider",null,"Distribution Volumetric Rate kW Rate Rider"]
[]
["RESIDENTIAL",null,19655678.689800002,null,{"$f":"C17/C26","v":0.54964485540983143},null,{"$f":"E17*G26","v":3.2978691324589887E-2},null,595449114,null,0,null,{"$f":"ROUND(G17/I17,4)","v":0}]
["GENERAL SERVICE LESS THAN 50 KW",null,4476954.3876,null,{"$f":"C18/C26","v":0.12519206209479664},null,{"$f":"E18*G26","v":7.511523725687798E-3},null,158508292,null,0,null,{"$f":"ROUND(G18/I18,4)","v":0}]
["GENERAL SERVICE 50 TO 1,000 KW",null,8670905.1119999997,null,{"$f":"C19/C26","v":0.24247030396517444},null,{"$f":"E19*G26","v":1.4548218237910466E-2},null,606291782,null,1589641,null,null,null,{"$f":"ROUND(G19/K19,4)","v":0}]
["GENERAL SERVICE GREATER THAN 1,000 KW",null,1539460.8248000001,null,{"$f":"C20/C26","v":4.3048970010656273E-2},null,{"$f":"E20*G26","v":2.5829382006393761E-3},null,147386488,null,329822,null,null,null,{"$f":"ROUND(G20/K20,4)","v":0}]
["UNMETERED SCATTERED LOAD",null,111742.024,null,{"$f":"C21/C26","v":3.1247167596687477E-3},null,{"$f":"E21*G26","v":1.8748300558012486E-4},null,3504020,null,0,null,{"$f":"ROUND(G21/I21,4)","v":0}]
["SENTINEL LIGHTING",null,19834.648799999999,null,{"$f":"C22/C26","v":5.5464951599143767E-4},null,{"$f":"E22*G26","v":3.3278970959486257E-5},null,116788,null,324,null,null,null,{"$f":"ROUND(G22/K22,4)","v":0}]
["STREET LIGHTING",null,1025786.1912,null,{"$f":"C23/C26","v":2.8684743561468069E-2},null,{"$f":"E23*G26","v":1.721084613688084E-3},null,8943095,null,24961,null,null,null,{"$f":"ROUND(G23/K23,4)","v":0}]
["EMBEDDED DISTRIBUTOR",null,260327.04000000001,null,{"$f":"C24/C26","v":7.2796986824129519E-3},null,{"$f":"E24*G26","v":4.3678192094477711E-4},null,33729600,null,72000,null,null,null,{"$f":"ROUND(G24/K24,4)","v":0}]
["microFIT",null,0,null,{"$f":"C25/C26","v":0},null,{"$f":"E25*G26","v":0}]
["Total",null,{"$f":"SUM(C17:C25)","v":35760688.918200001},null,{"$f":"SUM(E17:E25)","v":1},null,0.06,null,{"$f":"SUM(I17:I25)","v":1553929179},null,{"$f":"SUM(K17:K25)","v":2016748}]
[]
["One or more rate classes appear to have negligible rate riders in columns M and/or O.  As per Appendix B of the Filing Requirements, please provide details of the Applicant's proposal in the Manager's Summary."]

{"sheet":"13. RTSR Rate Sheet","index":15,"n_rows":34,"n_cols":5,"rows_kept":34,"cut":false,"hidden":false,"merged":[[12,2,12,13]]}
[]
[]
[]
[]
[]
[]
[]
[]
[]
[]
[]
[]
["No input required.  This sheet consolidates all Current Retail Transmission Rates entered on Sheet 4."]
[]
["Rate Class","Rate Description","Unit","RTSR-Network","RTSR-Connection"]
[]
["RESIDENTIAL","Retail Transmission Rate - Network Service Rate","$/kWh",7.9000000000000008E-3]
["RESIDENTIAL","Retail Transmission Rate - Line and Transformation Connection Service Rate","$/kWh",null,5.3E-3]
["GENERAL SERVICE LESS THAN 50 KW","Retail Transmission Rate - Network Service Rate","$/kWh",7.3000000000000001E-3]
["GENERAL SERVICE LESS THAN 50 KW","Retail Transmission Rate - Line and Transformation Connection Service Rate","$/kWh",null,4.7999999999999996E-3]
["GENERAL SERVICE 50 TO 1,000 KW","Retail Transmission Rate - Network Service Rate","$/kW",2.7441]
["GENERAL SERVICE 50 TO 1,000 KW","Retail Transmission Rate - Network Service Rate - Interval Metered","$/kW",2.8328000000000002]
["GENERAL SERVICE 50 TO 1,000 KW","Retail Transmission Rate - Line and Transformation Connection Service Rate","$/kW",null,1.8182]
["GENERAL SERVICE 50 TO 1,000 KW","Retail Transmission Rate - Line and Transformation Connection Service Rate - Interval Metered","$/kW",null,1.8771]
["GENERAL SERVICE GREATER THAN 1,000 KW","Retail Transmission Rate - Network Service Rate - Interval Metered","$/kW",2.8328000000000002]
["GENERAL SERVICE GREATER THAN 1,000 KW","Retail Transmission Rate - Line and Transformation Connection Service Rate - Interval Metered","$/kW",null,1.8771]
["UNMETERED SCATTERED LOAD","Retail Transmission Rate - Network Service Rate","$/kWh",7.3000000000000001E-3]
["UNMETERED SCATTERED LOAD","Retail Transmission Rate - Line and Transformation Connection Service Rate","$/kWh",null,4.7999999999999996E-3]
["SENTINEL LIGHTING","Retail Transmission Rate - Network Service Rate","$/kW",0.55010000000000003]
["SENTINEL LIGHTING","Retail Transmission Rate - Line and Transformation Connection Service Rate","$/kW",null,0.3644]
["STREET LIGHTING","Retail Transmission Rate - Network Service Rate","$/kW",2.2892000000000001]
["STREET LIGHTING","Retail Transmission Rate - Line and Transformation Connection Service Rate","$/kW",null,1.5168999999999999]
["EMBEDDED DISTRIBUTOR","Retail Transmission Rate - Network Service Rate","$/kW",2.8328000000000002]
["EMBEDDED DISTRIBUTOR","Retail Transmission Rate - Line and Transformation Connection Service Rate","$/kW",null,1.8771]

{"sheet":"14. RTSR RRR Data","index":16,"n_rows":32,"n_cols":10,"rows_kept":32,"cut":false,"hidden":false,"merged":[[11,0,11,11]]}
[]
[]
[]
[]
[]
[]
[]
[]
[]
[]
[]
["In the green shaded cells, enter the most recent reported RRR billing determinants.  Please ensure that billing determinants are non-loss adjusted."]
[]
["Rate Class","Rate Description","Unit","Non-Loss Adjusted Metered kWh","Non-Loss Adjusted Metered kW","Applicable Loss Factor",null,"Load Factor","Loss Adjusted Billed kWh","Billed kW"]
["RESIDENTIAL","Retail Transmission Rate - Network Service Rate","$/kWh",572236944.88,0,1.0377000000000001,null,{"$f":"IF(C15=\"$/kW\", D15/(E15* 30.4 * 24), \"\" )","v":""},{"$f":"IF(OR(F15=0, OR(ISBLANK(F15), TRIM(F15)=\"\")), F15, F15 * D15)","v":593810277.70197606},{"$f":"IF(OR(F15=0, OR(ISBLANK(F15), TRIM(F15)=\"\")), E15, E15)","v":0}]
["RESIDENTIAL","Retail Transmission Rate - Line and Transformation Connection Service Rate","$/kWh",572236944.88,0,1.0377000000000001,null,{"$f":"IF(C16=\"$/kW\", D16/(E16* 30.4 * 24), \"\" )","v":""},593810277.70197606,0]
["GENERAL SERVICE LESS THAN 50 KW","Retail Transmission Rate - Network Service Rate","$/kWh",172953882.97,0,1.0377000000000001,null,{"$f":"IF(C17=\"$/kW\", D17/(E17* 30.4 * 24), \"\" )","v":""},179474244.35796902,0]
["GENERAL SERVICE LESS THAN 50 KW","Retail Transmission Rate - Line and Transformation Connection Service Rate","$/kWh",172953882.97,0,1.0377000000000001,null,{"$f":"IF(C18=\"$/kW\", D18/(E18* 30.4 * 24), \"\" )","v":""},179474244.35796902,0]
["GENERAL SERVICE 50 TO 1,000 KW","Retail Transmission Rate - Network Service Rate","$/kW",206043284,605497.60000000009,0,null,0,0,605497.60000000009]
["GENERAL SERVICE 50 TO 1,000 KW","Retail Transmission Rate - Network Service Rate - Interval Metered","$/kW",403693690.83000004,1053437.0999999999,0,null,0,0,1053437.0999999999]
["GENERAL SERVICE 50 TO 1,000 KW","Retail Transmission Rate - Line and Transformation Connection Service Rate","$/kW",206043284,605497.60000000009,0,null,0,0,605497.60000000009]
["GENERAL SERVICE 50 TO 1,000 KW","Retail Transmission Rate - Line and Transformation Connection Service Rate - Interval Metered","$/kW",403693690.83000004,1053437.0999999999,0,null,0,0,1053437.0999999999]
["GENERAL SERVICE GREATER THAN 1,000 KW","Retail Transmission Rate - Network Service Rate - Interval Metered","$/kW",155250395,362505,0,null,0,0,362505]
["GENERAL SERVICE GREATER THAN 1,000 KW","Retail Transmission Rate - Line and Transformation Connection Service Rate - Interval Metered","$/kW",155250395,362505,0,null,0,0,362505]
["UNMETERED SCATTERED LOAD","Retail Transmission Rate - Network Service Rate","$/kWh",52920,0,1.0377000000000001,null,{"$f":"IF(C25=\"$/kW\", D25/(E25* 30.4 * 24), \"\" )","v":""},54915.084000000003,0]
["UNMETERED SCATTERED LOAD","Retail Transmission Rate - Line and Transformation Connection Service Rate","$/kWh",52920,0,1.0377000000000001,null,{"$f":"IF(C26=\"$/kW\", D26/(E26* 30.4 * 24), \"\" )","v":""},54915.084000000003,0]
["SENTINEL LIGHTING","Retail Transmission Rate - Network Service Rate","$/kW",110368,306.58,0,null,0,0,306.58]
["SENTINEL LIGHTING","Retail Transmission Rate - Line and Transformation Connection Service Rate","$/kW",110368,306.58,0,null,0,0,306.58]
["STREET LIGHTING","Retail Transmission Rate - Network Service Rate","$/kW",11905955,33116,0,null,0,0,33116]
["STREET LIGHTING","Retail Transmission Rate - Line and Transformation Connection Service Rate","$/kW",11905955,33116,0,null,0,0,33116]
["EMBEDDED DISTRIBUTOR","Retail Transmission Rate - Network Service Rate","$/kW",17153684,62339,0,null,0,0,62339]
["EMBEDDED DISTRIBUTOR","Retail Transmission Rate - Line and Transformation Connection Service Rate","$/kW",17153684,62339,0,null,0,0,62339]

{"sheet":"14. RTSR RRR Data Copy","index":17,"n_rows":32,"n_cols":10,"rows_kept":32,"cut":false,"hidden":true,"merged":[[11,0,11,11]]}
[]
[]
[]
[]
[]
[]
[]
[]
[]
[]
[]
["In the green shaded cells, enter the most recent reported RRR billing determinants.  Please ensure that billing determinants are non-loss adjusted."]
[]
["Rate Class","Rate Description","Unit","Non-Loss Adjusted Metered kWh","Non-Loss Adjusted Metered kW","Applicable Loss Factor",null,"Load Factor","Loss Adjusted Billed kWh","Billed kW"]
["RESIDENTIAL","Retail Transmission Rate - Network Service Rate","$/kWh",572236944.88,0,1.0377000000000001]
["RESIDENTIAL","Retail Transmission Rate - Line and Transformation Connection Service Rate","$/kWh",572236944.88,0,1.0377000000000001]
["GENERAL SERVICE LESS THAN 50 KW","Retail Transmission Rate - Network Service Rate","$/kWh",172953882.97,0,1.0377000000000001]
["GENERAL SERVICE LESS THAN 50 KW","Retail Transmission Rate - Line and Transformation Connection Service Rate","$/kWh",172953882.97,0,1.0377000000000001]
["GENERAL SERVICE 50 TO 1,000 KW","Retail Transmission Rate - Network Service Rate","$/kW",206043284,605497.60000000009,0]
["GENERAL SERVICE 50 TO 1,000 KW","Retail Transmission Rate - Network Service Rate - Interval Metered","$/kW",403693690.83000004,1053437.0999999999,0]
["GENERAL SERVICE 50 TO 1,000 KW","Retail Transmission Rate - Line and Transformation Connection Service Rate","$/kW",206043284,605497.60000000009,0]
["GENERAL SERVICE 50 TO 1,000 KW","Retail Transmission Rate - Line and Transformation Connection Service Rate - Interval Metered","$/kW",403693690.83000004,1053437.0999999999,0]
["GENERAL SERVICE GREATER THAN 1,000 KW","Retail Transmission Rate - Network Service Rate - Interval Metered","$/kW",155250395,362505,0]
["GENERAL SERVICE GREATER THAN 1,000 KW","Retail Transmission Rate - Line and Transformation Connection Service Rate - Interval Metered","$/kW",155250395,362505,0]
["UNMETERED SCATTERED LOAD","Retail Transmission Rate - Network Service Rate","$/kWh",52920,0,1.0377000000000001]
["UNMETERED SCATTERED LOAD","Retail Transmission Rate - Line and Transformation Connection Service Rate","$/kWh",52920,0,1.0377000000000001]
["SENTINEL LIGHTING","Retail Transmission Rate - Network Service Rate","$/kW",110368,306.58,0]
["SENTINEL LIGHTING","Retail Transmission Rate - Line and Transformation Connection Service Rate","$/kW",110368,306.58,0]
["STREET LIGHTING","Retail Transmission Rate - Network Service Rate","$/kW",11905955,33116,0]
["STREET LIGHTING","Retail Transmission Rate - Line and Transformation Connection Service Rate","$/kW",11905955,33116,0]
["EMBEDDED DISTRIBUTOR","Retail Transmission Rate - Network Service Rate","$/kW",17153684,62339,0]
["EMBEDDED DISTRIBUTOR","Retail Transmission Rate - Line and Transformation Connection Service Rate","$/kW",17153684,62339,0]

{"sheet":"15. RTSR - UTRs & Sub-Tx","index":18,"n_rows":95,"n_cols":9,"rows_kept":95,"cut":false,"hidden":false,"merged":[]}
[]
[]
[]
[]
[]
[]
[]
[]
[]
[]
[]
[]
[]
[]
[]
[]
[]
[null,"Uniform Transmission Rates","Unit",null,"Effective January 1, 2013",null,"Effective January 1, 2014",null,"Effective January 1, 2015"]
[]
[null,"Rate Description",null,null,"Rate",null,"Rate",null,"Rate"]
[]
[null,"Network Service Rate","kW",null,3.63,null,3.82,null,3.82]
[]
[null,"Line Connection Service Rate","kW",null,0.75,null,0.82,null,0.82]
[]
[null,"Transformation Connection Service Rate","kW",null,1.85,null,1.98,null,1.98]
[]
[]
[null,"Hydro One Sub-Transmission Rates","Unit",null,"Effective January 1, 2013",null,"Effective January 1, 2014",null,"Effective January 1, 2015"]
[]
[]
[]
[null,"Rate Description",null,null,"Rate",null,"Rate",null,"Rate"]
[]
[null,"Network Service Rate","kW",null,3.18,null,3.23,null,3.23]
[]
[null,"Line Connection Service Rate","kW",null,0.7,null,0.65,null,0.65]
[]
[null,"Transformation Connection Service Rate","kW",null,1.63,null,1.62,null,1.62]
[]
[null,"Both Line and Transformation Connection Service Rate","kW",null,{"$f":"E39+E37","v":2.33},null,{"$f":"G39+G37","v":2.27},null,{"$f":"I39+I37","v":2.27}]
[]
[]
[null,"If needed , add extra host here (I)","Unit",null,"Effective January 1, 2013",null,"Effective January 1, 2014",null,"Effective January 1, 2015"]
[]
[]
[]
[null,"Rate Description",null,null,"Rate",null,"Rate",null,"Rate"]
[]
[null,"Network Service Rate","kW"]
[]
[null,"Line Connection Service Rate","kW"]
[]
[null,"Transformation Connection Service Rate","kW"]
[]
[null,"Both Line and Transformation Connection Service Rate","kW",null,{"$f":"E54+E52","v":0},null,{"$f":"G54+G52","v":0},null,{"$f":"I54+I52","v":0}]
[]
[]
[null,"If needed , add extra host here (II)","Unit",null,"Effective January 1, 2013",null,"Effective January 1, 2014",null,"Effective January 1, 2015"]
[]
[]
[]
[null,"Rate Description",null,null,"Rate",null,"Rate",null,"Rate"]
[]
[null,"Network Service Rate","kW"]
[]
[null,"Line Connection Service Rate","kW"]
[]
[null,"Transformation Connection Service Rate","kW"]
[]
[null,"Both Line and Transformation Connection Service Rate","kW",null,{"$f":"E69+E67","v":0},null,{"$f":"G69+G67","v":0},null,{"$f":"I69+I67","v":0}]
[]
[]
[]
[null,"Hydro One Sub-Transmission Rate Rider 9A","Unit",null,"Effective January 1, 2013",null,"Effective January 1, 2014",null,"Effective January 1, 2015"]
[]
[null,"Rate Description",null,null,"Rate",null,"Rate",null,"Rate"]
[]
[null,"RSVA Transmission network – 4714 – which affects 1584","kW",null,0,null,0.14649999999999999]
[]
[null,"RSVA Transmission connection – 4716 – which affects 1586","kW",null,0,null,6.6699999999999995E-2]
[]
[null,"RSVA LV – 4750 – which affects 1550","kW",null,0,null,4.7500000000000001E-2]
[]
[null,"RARA 1 – 2252 – which affects 1590 ","kW",null,0,null,4.19E-2]
[]
[null,"RARA 1 – 2252 – which affects 1590 (2008)","kW",null,0,null,-2.7E-2]
[]
[null,"RARA 1 – 2252 – which affects 1590 (2009)","kW",null,0,null,-5.9999999999999995E-4]
[]
[null,"Hydro One Sub-Transmission Rate Rider 9A","kW",null,{"$f":"SUM(E79:E89)","v":0},null,{"$f":"SUM(G79:G89)","v":0.27499999999999997},null,{"$f":"SUM(I79:I89)","v":0}]
[]
[]
[null,null,null,null,"Historical 2013",null,"Current 2014",null,"Forecast 2015"]
[null,"Low Voltage Switchgear Credit (if applicable, enter as a negative value)","$"]

{"sheet":"16. RTSR - Historical Wholesale","index":19,"n_rows":112,"n_cols":16,"rows_kept":112,"cut":false,"hidden":false,"merged":[[33,3,33,5],[33,7,33,9],[33,11,33,13],[12,1,12,11],[90,3,90,5],[90,7,90,9],[90,11,90,13],[15,3,15,5],[15,7,15,9],[15,11,15,13],[91,3,91,5],[91,7,91,9],[91,11,91,13],[52,3,52,5],[52,7,52,9],[52,11,52,13],[71,3,71,5],[71,7,71,9],[71,11,71,13]]}
[]
[]
[]
[]
[]
[]
[]
[]
[]
[]
[]
[]
[null,"In the green shaded cells, enter billing detail for wholesale transmission for the same reporting period as the billing determinants on Sheet \"14. RTSR RRR Data\".  For Hydro One Sub-transmission Rates, if you are charged a combined Line and Transformer connection rate, please ensure that both the line connection and transformer connection columns are completed.\n"]
[]
[]
[null,"IESO",null,"Network",null,null,null,"Line Connection",null,null,null,"Transformation Connection",null,null,null,"Total Line"]
[null,"Month",null,"Units Billed","Rate","Amount",null,"Units Billed","Rate","Amount",null,"Units Billed","Rate","Amount",null,"Amount"]
[]
[null,"January",null,193126,{"$f":"IF(D19<>0,F19/D19,0)","v":3.63},701047.38,null,206262,{"$f":"IF(H19<>0,J19/H19,0)","v":0.75},154696.5,null,185632.99999999997,{"$f":"IF(L19<>0,N19/L19,0)","v":1.8500000000000003},343421.05,null,{"$f":"J19+N19","v":498117.55}]
[null,"February",null,181677,3.63,659487.51,null,190291,0.75,142718.25,null,169762,1.85,314059.7,null,456777.95]
[null,"March",null,177788,3.63,645370.43999999994,null,187220,0.75,140415,null,160734,1.85,297357.90000000002,null,437772.9]
[null,"April",null,163660.00000000003,3.6299999999999994,594085.80000000005,null,170743,0.75,128057.25,null,152898,1.8499999999999999,282861.3,null,410918.55]
[null,"May",null,220622,3.63,800857.86,null,228108,0.75,171081,null,203022.99999999997,1.8500000000000003,375592.55,null,546673.55000000005]
[null,"June",null,265507,3.6300000000000003,963790.41,null,267003,0.75,200252.25,null,237799,1.85,439928.15,null,640180.4]
[null,"July",null,305005,3.63,1107168.1499999999,null,340184,0.75,255138,null,309105,1.85,571844.25,null,826982.25]
[null,"August",null,247273,3.63,897600.99,null,258855,0.75,194141.25,null,220107.99999999997,1.85,407199.8,null,601341.05000000005]
[null,"September",null,260081.00000000003,3.63,944094.03,null,267544,0.75,200658,null,239247.99999999997,1.85,442608.8,null,643266.80000000005]
[null,"October",null,175491,3.63,637032.32999999996,null,189954,0.75,142465.5,null,168247,1.85,311256.95,null,453722.45]
[null,"November",null,218000,3.63,791340,null,244099,0.75,183074.25,null,186965.99999999997,1.85,345887.1,null,528961.35]
[null,"December",null,219128,3.63,795434.64,null,247826,0.75,185869.5,null,192087,1.85,355360.95,null,541230.44999999995]
[]
[null,"Total",null,{"$f":"SUM(D19:D30)","v":2627358},{"$f":"IF(D32<>0,F32/D32,0)","v":3.6299999999999994},{"$f":"SUM(F19:F30)","v":9537309.5399999991},null,{"$f":"SUM(H19:H30)","v":2798089},{"$f":"IF(H32<>0,J32/H32,0)","v":0.75},{"$f":"SUM(J19:J30)","v":2098566.75},null,{"$f":"SUM(L19:L30)","v":2425610},{"$f":"IF(L32<>0,N32/L32,0)","v":1.85},{"$f":"SUM(N19:N30)","v":4487378.5},null,{"$f":"SUM(P19:P30)","v":6585945.25}]
[]
[null,"Hydro One",null,"Network",null,null,null,"Line Connection",null,null,null,"Transformation Connection",null,null,null,"Total Line"]
[]
[null,"Month",null,"Units Billed","Rate","Amount",null,"Units Billed","Rate","Amount",null,"Units Billed","Rate","Amount",null,"Amount"]
[]
[null,"January",null,57364,{"$f":"IF(D38<>0,F38/D38,0)","v":3.18},182417.52000000002,null,null,{"$f":"IF(H38<>0,J38/H38,0)","v":0},null,null,57364,{"$f":"IF(L38<>0,N38/L38,0)","v":1.63},93503.319999999992,null,{"$f":"J38+N38","v":93503.319999999992}]
[null,"February",null,52940,3.18,168349.2,null,null,0,null,null,54373,1.63,88627.989999999991,null,88627.989999999991]
[null,"March",null,55131,3.18,175316.58000000002,null,null,0,null,null,57712,1.63,94070.56,null,94070.56]
[null,"April",null,47760.306289308173,3.18,151877.774,null,null,0,null,null,47968.436134969321,1.63,78188.550899999987,null,78188.550899999987]
[null,"May",null,79354.116855345899,3.18,252346.09159999999,null,null,0,null,null,79354.126134969309,1.6300000000000001,129347.22559999998,null,129347.22559999998]
[null,"June",null,76472.61,3.18,243182.89980000001,null,null,0,null,null,76848.44,1.63,125262.95719999999,null,125262.95719999999]
[null,"July",null,87231.536855345897,3.18,277396.28719999996,null,null,0,null,null,87231.54,1.63,142187.41019999998,null,142187.41019999998]
[null,"August",null,75374.473144654097,3.1799999999999997,239690.82460000002,null,null,0,null,null,75374.47,1.63,122860.38609999999,null,122860.38609999999]
[null,"September",null,84773.88,3.18,269580.93840000004,null,null,0,null,null,84773.886134969332,1.63,138181.4344,null,138181.4344]
[null,"October",null,49660.916855345909,3.18,157921.7156,null,null,0,null,null,49660.920000000006,1.63,80947.299599999998,null,80947.299599999998]
[null,"November",null,51615.466855345912,3.18,164137.18460000001,null,null,0,null,null,51615.463865030673,1.63,84133.206099999996,null,84133.206099999996]
[null,"December",null,75302.53,3.19323532711172,240458.69901689011,null,null,0,null,null,75302.53,1.6273530251905215,122543.8,null,122543.8]
[]
[null,"Total",null,{"$f":"SUM(D38:D49)","v":792980.83685534587},{"$f":"IF(D51<>0,F51/D51,0)","v":3.1812568445170029},{"$f":"SUM(F38:F49)","v":2522675.7148168897},null,{"$f":"SUM(H38:H49)","v":0},{"$f":"IF(H51<>0,J51/H51,0)","v":0},{"$f":"SUM(J38:J49)","v":0},null,{"$f":"SUM(L38:L49)","v":797578.81226993864},{"$f":"IF(L51<>0,N51/L51,0)","v":1.6297500887725029},{"$f":"SUM(N38:N49)","v":1299854.1401},null,{"$f":"SUM(P38:P49)","v":1299854.1401}]
[]
[null,"Add Extra Host Here (I)",null,"Network",null,null,null,"Line Connection",null,null,null,"Transformation Connection",null,null,null,"Total Line"]
[null,"(if needed)"]
[null,"Month",null,"Units Billed","Rate","Amount",null,"Units Billed","Rate","Amount",null,"Units Billed","Rate","Amount",null,"Amount"]
[]
[null,"January",null,null,{"$f":"IF(D57<>0,F57/D57,0)","v":0},null,null,null,{"$f":"IF(H57<>0,J57/H57,0)","v":0},null,null,null,{"$f":"IF(L57<>0,N57/L57,0)","v":0},null,null,{"$f":"J57+N57","v":0}]
[null,"February",null,null,0,null,null,null,0,null,null,null,0,null,null,0]
[null,"March",null,null,0,null,null,null,0,null,null,null,0,null,null,0]
[null,"April",null,null,0,null,null,null,0,null,null,null,0,null,null,0]
[null,"May",null,null,0,null,null,null,0,null,null,null,0,null,null,0]
[null,"June",null,null,0,null,null,null,0,null,null,null,0,null,null,0]
[null,"July",null,null,0,null,null,null,0,null,null,null,0,null,null,0]
[null,"August",null,null,0,null,null,null,0,null,null,null,0,null,null,0]
[null,"September",null,null,0,null,null,null,0,null,null,null,0,null,null,0]
[null,"October",null,null,0,null,null,null,0,null,null,null,0,null,null,0]
[null,"November",null,null,0,null,null,null,0,null,null,null,0,null,null,0]
[null,"December",null,null,0,null,null,null,0,null,null,null,0,null,null,0]
[]
[null,"Total",null,{"$f":"SUM(D57:D68)","v":0},{"$f":"IF(D70<>0,F70/D70,0)","v":0},{"$f":"SUM(F57:F68)","v":0},null,{"$f":"SUM(H57:H68)","v":0},{"$f":"IF(H70<>0,J70/H70,0)","v":0},{"$f":"SUM(J57:J68)","v":0},null,{"$f":"SUM(L57:L68)","v":0},{"$f":"IF(L70<>0,N70/L70,0)","v":0},{"$f":"SUM(N57:N68)","v":0},null,{"$f":"SUM(P57:P68)","v":0}]
[]
[null,"Add Extra Host Here (II)",null,"Network",null,null,null,"Line Connection",null,null,null,"Transformation Connection",null,null,null,"Total Line"]
[null,"(if needed)"]
[null,"Month",null,"Units Billed","Rate","Amount",null,"Units Billed","Rate","Amount",null,"Units Billed","Rate","Amount",null,"Amount"]
[]
[null,"January",null,null,{"$f":"IF(D76<>0,F76/D76,0)","v":0},null,null,null,{"$f":"IF(H76<>0,J76/H76,0)","v":0},null,null,null,{"$f":"IF(L76<>0,N76/L76,0)","v":0},null,null,{"$f":"J76+N76","v":0}]
[null,"February",null,null,0,null,null,null,0,null,null,null,0,null,null,0]
[null,"March",null,null,0,null,null,null,0,null,null,null,0,null,null,0]
[null,"April",null,null,0,null,null,null,0,null,null,null,0,null,null,0]
[null,"May",null,null,0,null,null,null,0,null,null,null,0,null,null,0]
[null,"June",null,null,0,null,null,null,0,null,null,null,0,null,null,0]
[null,"July",null,null,0,null,null,null,0,null,null,null,0,null,null,0]
[null,"August",null,null,0,null,null,null,0,null,null,null,0,null,null,0]
[null,"September",null,null,0,null,null,null,0,null,null,null,0,null,null,0]
[null,"October",null,null,0,null,null,null,0,null,null,null,0,null,null,0]
[null,"November",null,null,0,null,null,null,0,null,null,null,0,null,null,0]
[null,"December",null,null,0,null,null,null,0,null,null,null,0,null,null,0]
[]
[null,"Total",null,{"$f":"SUM(D76:D87)","v":0},{"$f":"IF(D89<>0,F89/D89,0)","v":0},{"$f":"SUM(F76:F87)","v":0},null,{"$f":"SUM(H76:H87)","v":0},{"$f":"IF(H89<>0,J89/H89,0)","v":0},{"$f":"SUM(J76:J87)","v":0},null,{"$f":"SUM(L76:L87)","v":0},{"$f":"IF(L89<>0,N89/L89,0)","v":0},{"$f":"SUM(N76:N87)","v":0},null,{"$f":"SUM(P76:P87)","v":0}]
[]
[null,"Total",null,"Network",null,null,null,"Line Connection",null,null,null,"Transformation Connection",null,null,null,"Total Line"]
[]
[null,"Month",null,"Units Billed","Rate","Amount",null,"Units Billed","Rate","Amount",null,"Units Billed","Rate","Amount",null,"Amount"]
[]
[null,"January",null,{"$f":"D19+D38+D57+D76","v":250490},{"$f":"IF(D95<>0,F95/D95,0)","v":3.5269467843027669},{"$f":"F19+F38+F57+F76","v":883464.9},null,{"$f":"H19+H38+H57+H76","v":206262},{"$f":"IF(H95<>0,J95/H95,0)","v":0.75},{"$f":"J19+J38+J57+J76","v":154696.5},null,{"$f":"L19+L38+L57+L76","v":242996.99999999997},{"$f":"IF(L95<>0,N95/L95,0)","v":1.7980648732288878},{"$f":"N19+N38+N57+N76","v":436924.37},null,{"$f":"J95+N95","v":591620.87}]
[null,"February",null,{"$f":"D20+D39+D58+D77","v":234617},3.528460043389865,{"$f":"F20+F39+F58+F77","v":827836.71},null,{"$f":"H20+H39+H58+H77","v":190291},0.75,{"$f":"J20+J39+J58+J77","v":142718.25},null,{"$f":"L20+L39+L58+L77","v":224135},1.7966301113168404,{"$f":"N20+N39+N58+N77","v":402687.69},null,545405.93999999994]
[null,"March",null,232919,3.523486791545559,820687.02,null,187220,0.75,140415,null,218446,1.7918774433956219,391428.46,null,531843.46]
[null,"April",null,211420.30628930821,3.5283440228263654,745963.57400000002,null,170743,0.75,128057.25,null,200866.43613496932,1.7974623229607045,361049.85089999996,null,489107.10089999996]
[null,"May",null,299976.1168553459,3.5109593478332632,1053203.9516,null,228108,0.75,171081,null,282377.12613496929,1.7881752056597218,504939.77559999994,null,676020.77559999994]
[null,"June",null,341979.61,3.5293721453159153,1206973.3097999999,null,267003,0.75,200252.25,null,314647.44,1.7962679346763475,565191.10719999997,null,765443.35719999997]
[null,"July",null,392236.53685534588,3.5299221441744923,1384564.4371999998,null,340184,0.75,255138,null,396336.54,1.8015791836907091,714031.66020000004,null,969169.66020000004]
[null,"August",null,322647.47314465407,3.5248743884943194,1137291.8145999999,null,258855,0.75,194141.25,null,295482.46999999997,1.7938803141181268,530060.18609999993,null,724201.43609999993]
[null,"September",null,344854.88,3.5193788424858599,1213674.9684000001,null,267544,0.75,200658,null,324021.8861349693,1.7924413727968838,580790.23439999996,null,781448.23439999996]
[null,"October",null,225151.91685534592,3.5307451817553774,794954.04559999995,null,189954,0.75,142465.5,null,217907.92,1.7998622977999146,392204.24959999998,null,534669.74959999998]
[null,"November",null,269615.46685534593,3.5438515295290256,955477.18460000004,null,244099,0.75,183074.25,null,238581.46386503064,1.8024045084377107,430020.30609999999,null,613094.55609999993]
[null,"December",null,294430.53000000003,3.5182945838425455,1035893.3390168902,null,247826,0.75,185869.5,null,267389.53000000003,1.7872979170126817,477904.75,null,663774.25]
[]
[null,"Total",null,{"$f":"SUM(D95:D106)","v":3420338.8368553454},{"$f":"IF(D108<>0,F108/D108,0)","v":3.5259621429509664},{"$f":"SUM(F95:F106)","v":12059985.25481689},null,{"$f":"SUM(H95:H106)","v":2798089},{"$f":"IF(H108<>0,J108/H108,0)","v":0.75},{"$f":"SUM(J95:J106)","v":2098566.75},null,{"$f":"SUM(L95:L106)","v":3223188.8122699382},{"$f":"IF(L108<>0,N108/L108,0)","v":1.7954991088543546},{"$f":"SUM(N95:N106)","v":5787232.6400999995},null,{"$f":"SUM(P95:P106)","v":7885799.3900999995}]
[]
[null,null,null,null,null,null,null,null,null,null,null,null,null,"Transformer Allowance Credit (if applicable)",null,{"$f":"'15. RTSR - UTRs & Sub-Tx'!E95","v":0}]
[]
[null,null,null,null,null,null,null,null,null,null,null,null,null,"Total including deduction for Transformer Allowance Credit",null,{"$f":"P108+P110","v":7885799.3900999995}]

{"sheet":"17. RTSR - Current Wholesale","index":20,"n_rows":113,"n_cols":16,"rows_kept":113,"cut":false,"hidden":false,"merged":[[15,3,15,5],[15,7,15,9],[15,11,15,13],[16,3,16,5],[16,7,16,9],[16,11,16,13],[12,1,12,11],[92,3,92,5],[92,7,92,9],[92,11,92,13],[72,3,72,5],[72,7,72,9],[72,11,72,13],[91,3,91,5],[91,7,91,9],[91,11,91,13],[34,3,34,5],[34,7,34,9],[34,11,34,13],[53,3,53,5],[53,7,53,9],[53,11,53,13]]}
[]
[]
[]
[]
[]
[]
[]
[]
[]
[]
[]
[]
[null,"The purpose of this sheet is to calculate the expected billing when current 2014 Uniform Transmission Rates are applied against historical 2013 transmission units."]
[]
[]
[null,"IESO",null,"Network",null,null,null,"Line Connection",null,null,null,"Transformation Connection",null,null,null,"Total Line"]
[]
[null,"Month",null,"Units Billed","Rate","Amount",null,"Units Billed","Rate","Amount",null,"Units Billed","Rate","Amount",null,"Amount"]
[]
[null,"January",null,{"$f":"'16. RTSR - Historical Wholesale'!D19","v":193126},{"$f":"'15. RTSR - UTRs & Sub-Tx'!G22","v":3.82},{"$f":"D20*E20","v":737741.32},null,{"$f":"'16. RTSR - Historical Wholesale'!H19","v":206262},{"$f":"'15. RTSR - UTRs & Sub-Tx'!G24","v":0.82},{"$f":"H20*I20","v":169134.84},null,{"$f":"'16. RTSR - Historical Wholesale'!L19","v":185632.99999999997},{"$f":"'15. RTSR - UTRs & Sub-Tx'!G26","v":1.98},{"$f":"L20*M20","v":367553.33999999997},null,{"$f":"J20+N20","v":536688.17999999993}]
[null,"February",null,{"$f":"'16. RTSR - Historical Wholesale'!D20","v":181677},{"$f":"E20","v":3.82},{"$f":"D21*E21","v":694006.14},null,{"$f":"'16. RTSR - Historical Wholesale'!H20","v":190291},{"$f":"I20","v":0.82},{"$f":"H21*I21","v":156038.62},null,{"$f":"'16. RTSR - Historical Wholesale'!L20","v":169762},{"$f":"M20","v":1.98},{"$f":"L21*M21","v":336128.76},null,492167.38]
[null,"March",null,{"$f":"'16. RTSR - Historical Wholesale'!D21","v":177788},{"$f":"E21","v":3.82},679150.15999999992,null,{"$f":"'16. RTSR - Historical Wholesale'!H21","v":187220},{"$f":"I21","v":0.82},153520.4,null,{"$f":"'16. RTSR - Historical Wholesale'!L21","v":160734},{"$f":"M21","v":1.98},318253.32,null,471773.72]
[null,"April",null,{"$f":"'16. RTSR - Historical Wholesale'!D22","v":163660.00000000003},3.82,625181.20000000007,null,{"$f":"'16. RTSR - Historical Wholesale'!H22","v":170743},0.82,140009.25999999998,null,{"$f":"'16. RTSR - Historical Wholesale'!L22","v":152898},1.98,302738.03999999998,null,442747.29999999993]
[null,"May",null,{"$f":"'16. RTSR - Historical Wholesale'!D23","v":220622},3.82,842776.03999999992,null,{"$f":"'16. RTSR - Historical Wholesale'!H23","v":228108},0.82,187048.56,null,{"$f":"'16. RTSR - Historical Wholesale'!L23","v":203022.99999999997},1.98,401985.53999999992,null,589034.09999999986]
[null,"June",null,{"$f":"'16. RTSR - Historical Wholesale'!D24","v":265507},3.82,1014236.74,null,{"$f":"'16. RTSR - Historical Wholesale'!H24","v":267003},0.82,218942.46,null,{"$f":"'16. RTSR - Historical Wholesale'!L24","v":237799},1.98,470842.02,null,689784.48]
[null,"July",null,{"$f":"'16. RTSR - Historical Wholesale'!D25","v":305005},3.82,1165119.0999999999,null,{"$f":"'16. RTSR - Historical Wholesale'!H25","v":340184},0.82,278950.88,null,{"$f":"'16. RTSR - Historical Wholesale'!L25","v":309105},1.98,612027.9,null,890978.78]
[null,"August",null,{"$f":"'16. RTSR - Historical Wholesale'!D26","v":247273},3.82,944582.86,null,{"$f":"'16. RTSR - Historical Wholesale'!H26","v":258855},0.82,212261.09999999998,null,{"$f":"'16. RTSR - Historical Wholesale'!L26","v":220107.99999999997},1.98,435813.83999999997,null,648074.93999999994]
[null,"September",null,{"$f":"'16. RTSR - Historical Wholesale'!D27","v":260081.00000000003},3.82,993509.42,null,{"$f":"'16. RTSR - Historical Wholesale'!H27","v":267544},0.82,219386.08,null,{"$f":"'16. RTSR - Historical Wholesale'!L27","v":239247.99999999997},1.98,473711.03999999992,null,693097.11999999988]
[null,"October",null,{"$f":"'16. RTSR - Historical Wholesale'!D28","v":175491},3.82,670375.62,null,{"$f":"'16. RTSR - Historical Wholesale'!H28","v":189954},0.82,155762.28,null,{"$f":"'16. RTSR - Historical Wholesale'!L28","v":168247},1.98,333129.06,null,488891.33999999997]
[null,"November",null,{"$f":"'16. RTSR - Historical Wholesale'!D29","v":218000},3.82,832760,null,{"$f":"'16. RTSR - Historical Wholesale'!H29","v":244099},0.82,200161.18,null,{"$f":"'16. RTSR - Historical Wholesale'!L29","v":186965.99999999997},1.98,370192.67999999993,null,570353.85999999987]
[null,"December",null,{"$f":"'16. RTSR - Historical Wholesale'!D30","v":219128},3.82,837068.96,null,{"$f":"'16. RTSR - Historical Wholesale'!H30","v":247826},0.82,203217.31999999998,null,{"$f":"'16. RTSR - Historical Wholesale'!L30","v":192087},1.98,380332.26,null,583549.57999999996]
[]
[null,"Total",null,{"$f":"SUM(D20:D31)","v":2627358},{"$f":"IF(D33<>0,F33/D33,0)","v":3.8200000000000007},{"$f":"SUM(F20:F31)","v":10036507.560000002},null,{"$f":"SUM(H20:H31)","v":2798089},{"$f":"IF(H33<>0,J33/H33,0)","v":0.82},{"$f":"SUM(J20:J31)","v":2294432.98},null,{"$f":"SUM(L20:L31)","v":2425610},{"$f":"IF(L33<>0,N33/L33,0)","v":1.98},{"$f":"SUM(N20:N31)","v":4802707.8},null,{"$f":"SUM(P20:P31)","v":7097140.7799999993}]
[]
[null,"Hydro One",null,"Network",null,null,null,"Line Connection",null,null,null,"Transformation Connection",null,null,null,"Total Line"]
[]
[null,"Month",null,"Units Billed","Rate","Amount",null,"Units Billed","Rate","Amount",null,"Units Billed","Rate","Amount",null,"Amount"]
[]
[null,"January",null,{"$f":"'16. RTSR - Historical Wholesale'!D38","v":57364},{"$f":"'15. RTSR - UTRs & Sub-Tx'!G35+'15. RTSR - UTRs & Sub-Tx'!G79","v":3.3765000000000001},{"$f":"D39*E39","v":193689.546},null,{"$f":"'16. RTSR - Historical Wholesale'!H38","v":0},{"$f":"'15. RTSR - UTRs & Sub-Tx'!G37+'15. RTSR - UTRs & Sub-Tx'!G81","v":0.7167},{"$f":"H39*I39","v":0},null,{"$f":"'16. RTSR - Historical Wholesale'!L38","v":57364},{"$f":"'15. RTSR - UTRs & Sub-Tx'!G39","v":1.62},{"$f":"L39*M39","v":92929.680000000008},null,{"$f":"J39+N39","v":92929.680000000008}]
[null,"February",null,{"$f":"'16. RTSR - Historical Wholesale'!D39","v":52940},{"$f":"E39","v":3.3765000000000001},{"$f":"D40*E40","v":178751.91},null,{"$f":"'16. RTSR - Historical Wholesale'!H39","v":0},{"$f":"I39","v":0.7167},{"$f":"H40*I40","v":0},null,{"$f":"'16. RTSR - Historical Wholesale'!L39","v":54373},{"$f":"M39","v":1.62},{"$f":"L40*M40","v":88084.260000000009},null,88084.260000000009]
[null,"March",null,{"$f":"'16. RTSR - Historical Wholesale'!D40","v":55131},{"$f":"E40","v":3.3765000000000001},186149.82149999999,null,{"$f":"'16. RTSR - Historical Wholesale'!H40","v":0},{"$f":"I40","v":0.7167},0,null,{"$f":"'16. RTSR - Historical Wholesale'!L40","v":57712},{"$f":"M40","v":1.62},93493.440000000002,null,93493.440000000002]
[null,"April",null,{"$f":"'16. RTSR - Historical Wholesale'!D41","v":47760.306289308173},3.3765000000000001,161262.67418584906,null,{"$f":"'16. RTSR - Historical Wholesale'!H41","v":0},0.7167,0,null,{"$f":"'16. RTSR - Historical Wholesale'!L41","v":47968.436134969321},{"$f":"M41","v":1.62},77708.866538650298,null,77708.866538650298]
[null,"May",null,{"$f":"'16. RTSR - Historical Wholesale'!D42","v":79354.116855345899},3.3765000000000001,267939.17556207546,null,{"$f":"'16. RTSR - Historical Wholesale'!H42","v":0},0.7167,0,null,{"$f":"'16. RTSR - Historical Wholesale'!L42","v":79354.126134969309},1.62,128553.68433865029,null,128553.68433865029]
[null,"June",null,{"$f":"'16. RTSR - Historical Wholesale'!D43","v":76472.61},3.3765000000000001,258209.76766499999,null,{"$f":"'16. RTSR - Historical Wholesale'!H43","v":0},0.7167,0,null,{"$f":"'16. RTSR - Historical Wholesale'!L43","v":76848.44},1.62,124494.47280000002,null,124494.47280000002]
[null,"July",null,{"$f":"'16. RTSR - Historical Wholesale'!D44","v":87231.536855345897},3.3765000000000001,294537.28419207543,null,{"$f":"'16. RTSR - Historical Wholesale'!H44","v":0},0.7167,0,null,{"$f":"'16. RTSR - Historical Wholesale'!L44","v":87231.54},1.62,141315.09479999999,null,141315.09479999999]
[null,"August",null,{"$f":"'16. RTSR - Historical Wholesale'!D45","v":75374.473144654097},3.3765000000000001,254501.90857292456,null,{"$f":"'16. RTSR - Historical Wholesale'!H45","v":0},0.7167,0,null,{"$f":"'16. RTSR - Historical Wholesale'!L45","v":75374.47},1.62,122106.64140000001,null,122106.64140000001]
[null,"September",null,{"$f":"'16. RTSR - Historical Wholesale'!D46","v":84773.88},3.3765000000000001,286239.00582000002,null,{"$f":"'16. RTSR - Historical Wholesale'!H46","v":0},0.7167,0,null,{"$f":"'16. RTSR - Historical Wholesale'!L46","v":84773.886134969332},1.62,137333.69553865033,null,137333.69553865033]
[null,"October",null,{"$f":"'16. RTSR - Historical Wholesale'!D47","v":49660.916855345909},3.3765000000000001,167680.08576207547,null,{"$f":"'16. RTSR - Historical Wholesale'!H47","v":0},0.7167,0,null,{"$f":"'16. RTSR - Historical Wholesale'!L47","v":49660.920000000006},1.62,80450.690400000021,null,80450.690400000021]
[null,"November",null,{"$f":"'16. RTSR - Historical Wholesale'!D48","v":51615.466855345912},3.3765000000000001,174279.62383707549,null,{"$f":"'16. RTSR - Historical Wholesale'!H48","v":0},0.7167,0,null,{"$f":"'16. RTSR - Historical Wholesale'!L48","v":51615.463865030673},1.62,83617.051461349693,null,83617.051461349693]
[null,"December",null,{"$f":"'16. RTSR - Historical Wholesale'!D49","v":75302.53},3.3765000000000001,254258.99254499999,null,{"$f":"'16. RTSR - Historical Wholesale'!H49","v":0},0.7167,0,null,{"$f":"'16. RTSR - Historical Wholesale'!L49","v":75302.53},1.62,121990.09860000001,null,121990.09860000001]
[]
[null,"Total",null,{"$f":"SUM(D39:D50)","v":792980.83685534587},{"$f":"IF(D52<>0,F52/D52,0)","v":3.3765000000000005},{"$f":"SUM(F39:F50)","v":2677499.7956420756},null,{"$f":"SUM(H39:H50)","v":0},{"$f":"IF(H52<>0,J52/H52,0)","v":0},{"$f":"SUM(J39:J50)","v":0},null,{"$f":"SUM(L39:L50)","v":797578.81226993864},{"$f":"IF(L52<>0,N52/L52,0)","v":1.6199999999999997},{"$f":"SUM(N39:N50)","v":1292077.6758773003},null,{"$f":"SUM(P39:P50)","v":1292077.6758773003}]
[]
[null,{"$f":"'16. RTSR - Historical Wholesale'!B53","v":"Add Extra Host Here (I)"},null,"Network",null,null,null,"Line Connection",null,null,null,"Transformation Connection",null,null,null,"Total Line"]
[]
[null,"Month",null,"Units Billed","Rate","Amount",null,"Units Billed","Rate","Amount",null,"Units Billed","Rate","Amount",null,"Amount"]
[]
[null,"January",null,{"$f":"'16. RTSR - Historical Wholesale'!D57","v":0},{"$f":"'15. RTSR - UTRs & Sub-Tx'!G50","v":0},{"$f":"D58*E58","v":0},null,{"$f":"'16. RTSR - Historical Wholesale'!H57","v":0},{"$f":"'15. RTSR - UTRs & Sub-Tx'!G52","v":0},{"$f":"H58*I58","v":0},null,{"$f":"'16. RTSR - Historical Wholesale'!L57","v":0},{"$f":"'15. RTSR - UTRs & Sub-Tx'!G54","v":0},{"$f":"L58*M58","v":0},null,{"$f":"J58+N58","v":0}]
[null,"February",null,{"$f":"'16. RTSR - Historical Wholesale'!D58","v":0},{"$f":"E58","v":0},{"$f":"D59*E59","v":0},null,{"$f":"'16. RTSR - Historical Wholesale'!H58","v":0},{"$f":"I58","v":0},{"$f":"H59*I59","v":0},null,{"$f":"'16. RTSR - Historical Wholesale'!L58","v":0},{"$f":"M58","v":0},{"$f":"L59*M59","v":0},null,0]
[null,"March",null,{"$f":"'16. RTSR - Historical Wholesale'!D59","v":0},{"$f":"E59","v":0},0,null,{"$f":"'16. RTSR - Historical Wholesale'!H59","v":0},{"$f":"I59","v":0},0,null,{"$f":"'16. RTSR - Historical Wholesale'!L59","v":0},{"$f":"M59","v":0},0,null,0]
[null,"April",null,{"$f":"'16. RTSR - Historical Wholesale'!D60","v":0},0,0,null,{"$f":"'16. RTSR - Historical Wholesale'!H60","v":0},0,0,null,{"$f":"'16. RTSR - Historical Wholesale'!L60","v":0},{"$f":"M60","v":0},0,null,0]
[null,"May",null,{"$f":"'16. RTSR - Historical Wholesale'!D61","v":0},0,0,null,{"$f":"'16. RTSR - Historical Wholesale'!H61","v":0},0,0,null,{"$f":"'16. RTSR - Historical Wholesale'!L61","v":0},0,0,null,0]
[null,"June",null,{"$f":"'16. RTSR - Historical Wholesale'!D62","v":0},0,0,null,{"$f":"'16. RTSR - Historical Wholesale'!H62","v":0},0,0,null,{"$f":"'16. RTSR - Historical Wholesale'!L62","v":0},0,0,null,0]
[null,"July",null,{"$f":"'16. RTSR - Historical Wholesale'!D63","v":0},0,0,null,{"$f":"'16. RTSR - Historical Wholesale'!H63","v":0},0,0,null,{"$f":"'16. RTSR - Historical Wholesale'!L63","v":0},0,0,null,0]
[null,"August",null,{"$f":"'16. RTSR - Historical Wholesale'!D64","v":0},0,0,null,{"$f":"'16. RTSR - Historical Wholesale'!H64","v":0},0,0,null,{"$f":"'16. RTSR - Historical Wholesale'!L64","v":0},0,0,null,0]
[null,"September",null,{"$f":"'16. RTSR - Historical Wholesale'!D65","v":0},0,0,null,{"$f":"'16. RTSR - Historical Wholesale'!H65","v":0},0,0,null,{"$f":"'16. RTSR - Historical Wholesale'!L65","v":0},0,0,null,0]
[null,"October",null,{"$f":"'16. RTSR - Historical Wholesale'!D66","v":0},0,0,null,{"$f":"'16. RTSR - Historical Wholesale'!H66","v":0},0,0,null,{"$f":"'16. RTSR - Historical Wholesale'!L66","v":0},0,0,null,0]
[null,"November",null,{"$f":"'16. RTSR - Historical Wholesale'!D67","v":0},0,0,null,{"$f":"'16. RTSR - Historical Wholesale'!H67","v":0},0,0,null,{"$f":"'16. RTSR - Historical Wholesale'!L67","v":0},0,0,null,0]
[null,"December",null,{"$f":"'16. RTSR - Historical Wholesale'!D68","v":0},0,0,null,{"$f":"'16. RTSR - Historical Wholesale'!H68","v":0},0,0,null,{"$f":"'16. RTSR - Historical Wholesale'!L68","v":0},0,0,null,0]
[]
[null,"Total",null,{"$f":"SUM(D58:D69)","v":0},{"$f":"IF(D71<>0,F71/D71,0)","v":0},{"$f":"SUM(F58:F69)","v":0},null,{"$f":"SUM(H58:H69)","v":0},{"$f":"IF(H71<>0,J71/H71,0)","v":0},{"$f":"SUM(J58:J69)","v":0},null,{"$f":"SUM(L58:L69)","v":0},{"$f":"IF(L71<>0,N71/L71,0)","v":0},{"$f":"SUM(N58:N69)","v":0},null,{"$f":"SUM(P58:P69)","v":0}]
[]
[null,{"$f":"'16. RTSR - Historical Wholesale'!B72","v":"Add Extra Host Here (II)"},null,"Network",null,null,null,"Line Connection",null,null,null,"Transformation Connection",null,null,null,"Total Line"]
[]
[null,"Month",null,"Units Billed","Rate","Amount",null,"Units Billed","Rate","Amount",null,"Units Billed","Rate","Amount",null,"Amount"]
[]
[null,"January",null,{"$f":"'16. RTSR - Historical Wholesale'!D76","v":0},{"$f":"'15. RTSR - UTRs & Sub-Tx'!G65","v":0},{"$f":"D77*E77","v":0},null,{"$f":"'16. RTSR - Historical Wholesale'!H76","v":0},{"$f":"'15. RTSR - UTRs & Sub-Tx'!G67","v":0},{"$f":"H77*I77","v":0},null,{"$f":"'16. RTSR - Historical Wholesale'!L76","v":0},{"$f":"'15. RTSR - UTRs & Sub-Tx'!G69","v":0},{"$f":"L77*M77","v":0},null,{"$f":"J77+N77","v":0}]
[null,"February",null,{"$f":"'16. RTSR - Historical Wholesale'!D77","v":0},{"$f":"E77","v":0},{"$f":"D78*E78","v":0},null,{"$f":"'16. RTSR - Historical Wholesale'!H77","v":0},{"$f":"I77","v":0},{"$f":"H78*I78","v":0},null,{"$f":"'16. RTSR - Historical Wholesale'!L77","v":0},{"$f":"M77","v":0},{"$f":"L78*M78","v":0},null,0]
[null,"March",null,{"$f":"'16. RTSR - Historical Wholesale'!D78","v":0},{"$f":"E78","v":0},0,null,{"$f":"'16. RTSR - Historical Wholesale'!H78","v":0},{"$f":"I78","v":0},0,null,{"$f":"'16. RTSR - Historical Wholesale'!L78","v":0},{"$f":"M78","v":0},0,null,0]
[null,"April",null,{"$f":"'16. RTSR - Historical Wholesale'!D79","v":0},0,0,null,{"$f":"'16. RTSR - Historical Wholesale'!H79","v":0},0,0,null,{"$f":"'16. RTSR - Historical Wholesale'!L79","v":0},{"$f":"M79","v":0},0,null,0]
[null,"May",null,{"$f":"'16. RTSR - Historical Wholesale'!D80","v":0},0,0,null,{"$f":"'16. RTSR - Historical Wholesale'!H80","v":0},0,0,null,{"$f":"'16. RTSR - Historical Wholesale'!L80","v":0},0,0,null,0]
[null,"June",null,{"$f":"'16. RTSR - Historical Wholesale'!D81","v":0},0,0,null,{"$f":"'16. RTSR - Historical Wholesale'!H81","v":0},0,0,null,{"$f":"'16. RTSR - Historical Wholesale'!L81","v":0},0,0,null,0]
[null,"July",null,{"$f":"'16. RTSR - Historical Wholesale'!D82","v":0},0,0,null,{"$f":"'16. RTSR - Historical Wholesale'!H82","v":0},0,0,null,{"$f":"'16. RTSR - Historical Wholesale'!L82","v":0},0,0,null,0]
[null,"August",null,{"$f":"'16. RTSR - Historical Wholesale'!D83","v":0},0,0,null,{"$f":"'16. RTSR - Historical Wholesale'!H83","v":0},0,0,null,{"$f":"'16. RTSR - Historical Wholesale'!L83","v":0},0,0,null,0]
[null,"September",null,{"$f":"'16. RTSR - Historical Wholesale'!D84","v":0},0,0,null,{"$f":"'16. RTSR - Historical Wholesale'!H84","v":0},0,0,null,{"$f":"'16. RTSR - Historical Wholesale'!L84","v":0},0,0,null,0]
[null,"October",null,{"$f":"'16. RTSR - Historical Wholesale'!D85","v":0},0,0,null,{"$f":"'16. RTSR - Historical Wholesale'!H85","v":0},0,0,null,{"$f":"'16. RTSR - Historical Wholesale'!L85","v":0},0,0,null,0]
[null,"November",null,{"$f":"'16. RTSR - Historical Wholesale'!D86","v":0},0,0,null,{"$f":"'16. RTSR - Historical Wholesale'!H86","v":0},0,0,null,{"$f":"'16. RTSR - Historical Wholesale'!L86","v":0},0,0,null,0]
[null,"December",null,{"$f":"'16. RTSR - Historical Wholesale'!D87","v":0},0,0,null,{"$f":"'16. RTSR - Historical Wholesale'!H87","v":0},0,0,null,{"$f":"'16. RTSR - Historical Wholesale'!L87","v":0},0,0,null,0]
[]
[null,"Total",null,{"$f":"SUM(D77:D88)","v":0},{"$f":"IF(D90<>0,F90/D90,0)","v":0},{"$f":"SUM(F77:F88)","v":0},null,{"$f":"SUM(H77:H88)","v":0},{"$f":"IF(H90<>0,J90/H90,0)","v":0},{"$f":"SUM(J77:J88)","v":0},null,{"$f":"SUM(L77:L88)","v":0},{"$f":"IF(L90<>0,N90/L90,0)","v":0},{"$f":"SUM(N77:N88)","v":0},null,{"$f":"SUM(P77:P88)","v":0}]
[]
[null,"Total",null,"Network",null,null,null,"Line Connection",null,null,null,"Transformation Connection",null,null,null,"Total Line"]
[]
[null,"Month",null,"Units Billed","Rate","Amount",null,"Units Billed","Rate","Amount",null,"Units Billed","Rate","Amount",null,"Amount"]
[]
[null,"January",null,{"$f":"D20+D39+D58+D77","v":250490},{"$f":"IF(D96<>0,F96/D96,0)","v":3.7184353307517264},{"$f":"F20+F39+F58+F77","v":931430.86599999992},null,{"$f":"H20+H39+H58+H77","v":206262},{"$f":"IF(H96<>0,J96/H96,0)","v":0.82},{"$f":"J20+J39+J58+J77","v":169134.84},null,{"$f":"L20+L39+L58+L77","v":242996.99999999997},{"$f":"IF(L96<>0,N96/L96,0)","v":1.8950152471018162},{"$f":"N20+N39+N58+N77","v":460483.01999999996},null,{"$f":"J96+N96","v":629617.86}]
[null,"February",null,{"$f":"D21+D40+D59+D78","v":234617},3.7199267316520119,{"$f":"F21+F40+F59+F78","v":872758.05},null,{"$f":"H21+H40+H59+H78","v":190291},0.82,{"$f":"J21+J40+J59+J78","v":156038.62},null,{"$f":"L21+L40+L59+L78","v":224135},1.8926674548821023,{"$f":"N21+N40+N59+N78","v":424213.02},null,580251.64]
[null,"March",null,232919,3.715025315667678,865299.98149999988,null,187220,0.82,153520.4,null,218446,1.8848903619201085,411746.76,null,565267.16]
[null,"April",null,211420.30628930821,3.7198123869410957,786443.8741858491,null,170743,0.81999999999999984,140009.25999999998,null,200866.43613496932,1.8940292557538803,380446.90653865028,null,520456.16653865029]
[null,"May",null,299976.1168553459,3.7026788239201158,1110715.2155620754,null,228108,0.82,187048.56,null,282377.12613496929,1.8788321547159086,530539.22433865024,null,717587.78433865029]
[null,"June",null,341979.61,3.7208256587724629,1272446.5076649999,null,267003,0.82,218942.46,null,314647.44,1.8920748021976597,595336.49280000001,null,814278.95279999997]
[null,"July",null,392236.53685534588,3.7213677132030831,1459656.3841920753,null,340184,0.82000000000000006,278950.88,null,396336.54,1.9007659369484329,753342.99479999999,null,1032293.8748]
[null,"August",null,322647.47314465407,3.7163928695494022,1199084.7685729247,null,258855,0.82,212261.09999999998,null,295482.46999999997,1.888167786738753,557920.48139999993,null,770181.58139999991]
[null,"September",null,344854.88,3.7109767036499526,1279748.42582,null,267544,0.82,219386.08,null,324021.8861349693,1.88581315548581,611044.7355386503,null,830430.81553865026]
[null,"October",null,225151.91685534592,3.7221788624633558,838055.70576207549,null,189954,0.82,155762.28,null,217907.92,1.8979564873089514,413579.75040000002,null,569342.03040000005]
[null,"November",null,269615.46685534593,3.7350958963247174,1007039.6238370754,null,244099,0.82,200161.18,null,238581.46386503064,1.9021164683526173,453809.73146134964,null,653970.91146134958]
[null,"December",null,294430.53000000003,3.706571979967566,1091327.952545,null,247826,0.82,203217.31999999998,null,267389.53000000003,1.8786164088025437,502322.35860000004,null,705539.67859999998]
[]
[null,"Total",null,{"$f":"SUM(D96:D107)","v":3420338.8368553454},{"$f":"IF(D109<>0,F109/D109,0)","v":3.7171777306517728},{"$f":"SUM(F96:F107)","v":12714007.355642077},null,{"$f":"SUM(H96:H107)","v":2798089},{"$f":"IF(H109<>0,J109/H109,0)","v":0.82},{"$f":"SUM(J96:J107)","v":2294432.98},null,{"$f":"SUM(L96:L107)","v":3223188.8122699382},{"$f":"IF(L109<>0,N109/L109,0)","v":1.890917917273681},{"$f":"SUM(N96:N107)","v":6094785.4758773008},null,{"$f":"SUM(P96:P107)","v":8389218.4558773004}]
[]
[null,null,null,null,null,null,null,null,null,null,null,null,null,"Transformer Allowance Credit (if applicable)",null,{"$f":"'15. RTSR - UTRs & Sub-Tx'!G95","v":0}]
[]
[null,null,null,null,null,null,null,null,null,null,null,null,null,"Total including deduction for Transformer Allowance Credit",null,{"$f":"P109+P111","v":8389218.4558773004}]

{"sheet":"18. RTSR - Forecast Wholesale","index":21,"n_rows":113,"n_cols":16,"rows_kept":113,"cut":false,"hidden":false,"merged":[[12,1,12,12],[15,3,15,5],[15,7,15,9],[15,11,15,13],[16,3,16,5],[16,7,16,9],[16,11,16,13],[34,3,34,5],[34,7,34,9],[34,11,34,13],[53,3,53,5],[53,7,53,9],[53,11,53,13],[92,3,92,5],[92,7,92,9],[92,11,92,13],[72,3,72,5],[72,7,72,9],[72,11,72,13],[91,3,91,5],[91,7,91,9],[91,11,91,13]]}
[]
[]
[]
[]
[]
[]
[]
[]
[]
[]
[]
[]
[null,"The purpose of this sheet is to calculate the expected billing when forecasted 2015 Uniform Transmission Rates are applied against historical 2013 transmission units."]
[]
[]
[null,"IESO",null,"Network",null,null,null,"Line Connection",null,null,null,"Transformation Connection",null,null,null,"Total Line"]
[]
[null,"Month",null,"Units Billed","Rate","Amount",null,"Units Billed","Rate","Amount",null,"Units Billed","Rate","Amount",null,"Amount"]
[]
[null,"January",null,{"$f":"'16. RTSR - Historical Wholesale'!D19","v":193126},{"$f":"'15. RTSR - UTRs & Sub-Tx'!I22","v":3.82},{"$f":"D20*E20","v":737741.32},null,{"$f":"'16. RTSR - Historical Wholesale'!H19","v":206262},{"$f":"'15. RTSR - UTRs & Sub-Tx'!I24","v":0.82},{"$f":"H20*I20","v":169134.84},null,{"$f":"'16. RTSR - Historical Wholesale'!L19","v":185632.99999999997},{"$f":"'15. RTSR - UTRs & Sub-Tx'!I26","v":1.98},{"$f":"L20*M20","v":367553.33999999997},null,{"$f":"J20+N20","v":536688.17999999993}]
[null,"February",null,{"$f":"'16. RTSR - Historical Wholesale'!D20","v":181677},{"$f":"E20","v":3.82},694006.14,null,{"$f":"'16. RTSR - Historical Wholesale'!H20","v":190291},{"$f":"I20","v":0.82},156038.62,null,{"$f":"'16. RTSR - Historical Wholesale'!L20","v":169762},{"$f":"M20","v":1.98},336128.76,null,492167.38]
[null,"March",null,{"$f":"'16. RTSR - Historical Wholesale'!D21","v":177788},3.82,679150.15999999992,null,{"$f":"'16. RTSR - Historical Wholesale'!H21","v":187220},0.82,153520.4,null,{"$f":"'16. RTSR - Historical Wholesale'!L21","v":160734},1.98,318253.32,null,471773.72]
[null,"April",null,{"$f":"'16. RTSR - Historical Wholesale'!D22","v":163660.00000000003},3.82,625181.20000000007,null,{"$f":"'16. RTSR - Historical Wholesale'!H22","v":170743},0.82,140009.25999999998,null,{"$f":"'16. RTSR - Historical Wholesale'!L22","v":152898},1.98,302738.03999999998,null,442747.29999999993]
[null,"May",null,{"$f":"'16. RTSR - Historical Wholesale'!D23","v":220622},3.82,842776.03999999992,null,{"$f":"'16. RTSR - Historical Wholesale'!H23","v":228108},0.82,187048.56,null,{"$f":"'16. RTSR - Historical Wholesale'!L23","v":203022.99999999997},1.98,401985.53999999992,null,589034.09999999986]
[null,"June",null,{"$f":"'16. RTSR - Historical Wholesale'!D24","v":265507},3.82,1014236.74,null,{"$f":"'16. RTSR - Historical Wholesale'!H24","v":267003},0.82,218942.46,null,{"$f":"'16. RTSR - Historical Wholesale'!L24","v":237799},1.98,470842.02,null,689784.48]
[null,"July",null,{"$f":"'16. RTSR - Historical Wholesale'!D25","v":305005},3.82,1165119.0999999999,null,{"$f":"'16. RTSR - Historical Wholesale'!H25","v":340184},0.82,278950.88,null,{"$f":"'16. RTSR - Historical Wholesale'!L25","v":309105},1.98,612027.9,null,890978.78]
[null,"August",null,{"$f":"'16. RTSR - Historical Wholesale'!D26","v":247273},3.82,944582.86,null,{"$f":"'16. RTSR - Historical Wholesale'!H26","v":258855},0.82,212261.09999999998,null,{"$f":"'16. RTSR - Historical Wholesale'!L26","v":220107.99999999997},1.98,435813.83999999997,null,648074.93999999994]
[null,"September",null,{"$f":"'16. RTSR - Historical Wholesale'!D27","v":260081.00000000003},3.82,993509.42,null,{"$f":"'16. RTSR - Historical Wholesale'!H27","v":267544},0.82,219386.08,null,{"$f":"'16. RTSR - Historical Wholesale'!L27","v":239247.99999999997},1.98,473711.03999999992,null,693097.11999999988]
[null,"October",null,{"$f":"'16. RTSR - Historical Wholesale'!D28","v":175491},3.82,670375.62,null,{"$f":"'16. RTSR - Historical Wholesale'!H28","v":189954},0.82,155762.28,null,{"$f":"'16. RTSR - Historical Wholesale'!L28","v":168247},1.98,333129.06,null,488891.33999999997]
[null,"November",null,{"$f":"'16. RTSR - Historical Wholesale'!D29","v":218000},3.82,832760,null,{"$f":"'16. RTSR - Historical Wholesale'!H29","v":244099},0.82,200161.18,null,{"$f":"'16. RTSR - Historical Wholesale'!L29","v":186965.99999999997},1.98,370192.67999999993,null,570353.85999999987]
[null,"December",null,{"$f":"'16. RTSR - Historical Wholesale'!D30","v":219128},3.82,837068.96,null,{"$f":"'16. RTSR - Historical Wholesale'!H30","v":247826},0.82,203217.31999999998,null,{"$f":"'16. RTSR - Historical Wholesale'!L30","v":192087},1.98,380332.26,null,583549.57999999996]
[]
[null,"Total",null,{"$f":"SUM(D20:D31)","v":2627358},{"$f":"IF(D33<>0,F33/D33,0)","v":3.8200000000000007},{"$f":"SUM(F20:F31)","v":10036507.560000002},null,{"$f":"SUM(H20:H31)","v":2798089},{"$f":"IF(H33<>0,J33/H33,0)","v":0.82},{"$f":"SUM(J20:J31)","v":2294432.98},null,{"$f":"SUM(L20:L31)","v":2425610},{"$f":"IF(L33<>0,N33/L33,0)","v":1.98},{"$f":"SUM(N20:N31)","v":4802707.8},null,{"$f":"SUM(P20:P31)","v":7097140.7799999993}]
[]
[null,"Hydro One",null,"Network",null,null,null,"Line Connection",null,null,null,"Transformation Connection",null,null,null,"Total Line"]
[]
[null,"Month",null,"Units Billed","Rate","Amount",null,"Units Billed","Rate","Amount",null,"Units Billed","Rate","Amount",null,"Amount"]
[]
[null,"January",null,{"$f":"'16. RTSR - Historical Wholesale'!D38","v":57364},{"$f":"'15. RTSR - UTRs & Sub-Tx'!I35+'15. RTSR - UTRs & Sub-Tx'!I79","v":3.23},{"$f":"D39*E39","v":185285.72},null,{"$f":"'16. RTSR - Historical Wholesale'!H38","v":0},{"$f":"'15. RTSR - UTRs & Sub-Tx'!I37+'15. RTSR - UTRs & Sub-Tx'!I81","v":0.65},{"$f":"H39*I39","v":0},null,{"$f":"'16. RTSR - Historical Wholesale'!L38","v":57364},{"$f":"'15. RTSR - UTRs & Sub-Tx'!I39","v":1.62},{"$f":"L39*M39","v":92929.680000000008},null,{"$f":"J39+N39","v":92929.680000000008}]
[null,"February",null,{"$f":"'16. RTSR - Historical Wholesale'!D39","v":52940},{"$f":"E39","v":3.23},170996.2,null,{"$f":"'16. RTSR - Historical Wholesale'!H39","v":0},{"$f":"I39","v":0.65},0,null,{"$f":"'16. RTSR - Historical Wholesale'!L39","v":54373},{"$f":"M39","v":1.62},88084.260000000009,null,88084.260000000009]
[null,"March",null,{"$f":"'16. RTSR - Historical Wholesale'!D40","v":55131},3.23,178073.13,null,{"$f":"'16. RTSR - Historical Wholesale'!H40","v":0},0.65,0,null,{"$f":"'16. RTSR - Historical Wholesale'!L40","v":57712},1.62,93493.440000000002,null,93493.440000000002]
[null,"April",null,{"$f":"'16. RTSR - Historical Wholesale'!D41","v":47760.306289308173},3.23,154265.78931446539,null,{"$f":"'16. RTSR - Historical Wholesale'!H41","v":0},0.65,0,null,{"$f":"'16. RTSR - Historical Wholesale'!L41","v":47968.436134969321},1.62,77708.866538650298,null,77708.866538650298]
[null,"May",null,{"$f":"'16. RTSR - Historical Wholesale'!D42","v":79354.116855345899},3.23,256313.79744276725,null,{"$f":"'16. RTSR - Historical Wholesale'!H42","v":0},0.65,0,null,{"$f":"'16. RTSR - Historical Wholesale'!L42","v":79354.126134969309},1.62,128553.68433865029,null,128553.68433865029]
[null,"June",null,{"$f":"'16. RTSR - Historical Wholesale'!D43","v":76472.61},3.23,247006.53030000001,null,{"$f":"'16. RTSR - Historical Wholesale'!H43","v":0},0.65,0,null,{"$f":"'16. RTSR - Historical Wholesale'!L43","v":76848.44},1.62,124494.47280000002,null,124494.47280000002]
[null,"July",null,{"$f":"'16. RTSR - Historical Wholesale'!D44","v":87231.536855345897},3.23,281757.86404276727,null,{"$f":"'16. RTSR - Historical Wholesale'!H44","v":0},0.65,0,null,{"$f":"'16. RTSR - Historical Wholesale'!L44","v":87231.54},1.62,141315.09479999999,null,141315.09479999999]
[null,"August",null,{"$f":"'16. RTSR - Historical Wholesale'!D45","v":75374.473144654097},3.23,243459.54825723273,null,{"$f":"'16. RTSR - Historical Wholesale'!H45","v":0},0.65,0,null,{"$f":"'16. RTSR - Historical Wholesale'!L45","v":75374.47},1.62,122106.64140000001,null,122106.64140000001]
[null,"September",null,{"$f":"'16. RTSR - Historical Wholesale'!D46","v":84773.88},3.23,273819.6324,null,{"$f":"'16. RTSR - Historical Wholesale'!H46","v":0},0.65,0,null,{"$f":"'16. RTSR - Historical Wholesale'!L46","v":84773.886134969332},1.62,137333.69553865033,null,137333.69553865033]
[null,"October",null,{"$f":"'16. RTSR - Historical Wholesale'!D47","v":49660.916855345909},3.23,160404.76144276728,null,{"$f":"'16. RTSR - Historical Wholesale'!H47","v":0},0.65,0,null,{"$f":"'16. RTSR - Historical Wholesale'!L47","v":49660.920000000006},1.62,80450.690400000021,null,80450.690400000021]
[null,"November",null,{"$f":"'16. RTSR - Historical Wholesale'!D48","v":51615.466855345912},3.23,166717.9579427673,null,{"$f":"'16. RTSR - Historical Wholesale'!H48","v":0},0.65,0,null,{"$f":"'16. RTSR - Historical Wholesale'!L48","v":51615.463865030673},1.62,83617.051461349693,null,83617.051461349693]
[null,"December",null,{"$f":"'16. RTSR - Historical Wholesale'!D49","v":75302.53},3.23,243227.17189999999,null,{"$f":"'16. RTSR - Historical Wholesale'!H49","v":0},0.65,0,null,{"$f":"'16. RTSR - Historical Wholesale'!L49","v":75302.53},1.62,121990.09860000001,null,121990.09860000001]
[]
[null,"Total",null,{"$f":"SUM(D39:D50)","v":792980.83685534587},{"$f":"IF(D52<>0,F52/D52,0)","v":3.2299999999999995},{"$f":"SUM(F39:F50)","v":2561328.1030427669},null,{"$f":"SUM(H39:H50)","v":0},{"$f":"IF(H52<>0,J52/H52,0)","v":0},{"$f":"SUM(J39:J50)","v":0},null,{"$f":"SUM(L39:L50)","v":797578.81226993864},{"$f":"IF(L52<>0,N52/L52,0)","v":1.6199999999999997},{"$f":"SUM(N39:N50)","v":1292077.6758773003},null,{"$f":"SUM(P39:P50)","v":1292077.6758773003}]
[]
[null,{"$f":"'16. RTSR - Historical Wholesale'!B53","v":"Add Extra Host Here (I)"},null,"Network",null,null,null,"Line Connection",null,null,null,"Transformation Connection",null,null,null,"Total Line"]
[]
[null,"Month",null,"Units Billed","Rate","Amount",null,"Units Billed","Rate","Amount",null,"Units Billed","Rate","Amount",null,"Amount"]
[]
[null,"January",null,{"$f":"'16. RTSR - Historical Wholesale'!D57","v":0},{"$f":"'15. RTSR - UTRs & Sub-Tx'!I50","v":0},{"$f":"D58*E58","v":0},null,{"$f":"'16. RTSR - Historical Wholesale'!H57","v":0},{"$f":"'15. RTSR - UTRs & Sub-Tx'!I52","v":0},{"$f":"H58*I58","v":0},null,{"$f":"'16. RTSR - Historical Wholesale'!L57","v":0},{"$f":"'15. RTSR - UTRs & Sub-Tx'!I54","v":0},{"$f":"L58*M58","v":0},null,{"$f":"J58+N58","v":0}]
[null,"February",null,{"$f":"'16. RTSR - Historical Wholesale'!D58","v":0},{"$f":"E58","v":0},0,null,{"$f":"'16. RTSR - Historical Wholesale'!H58","v":0},{"$f":"I58","v":0},0,null,{"$f":"'16. RTSR - Historical Wholesale'!L58","v":0},{"$f":"M58","v":0},0,null,0]
[null,"March",null,{"$f":"'16. RTSR - Historical Wholesale'!D59","v":0},0,0,null,{"$f":"'16. RTSR - Historical Wholesale'!H59","v":0},0,0,null,{"$f":"'16. RTSR - Historical Wholesale'!L59","v":0},0,0,null,0]
[null,"April",null,{"$f":"'16. RTSR - Historical Wholesale'!D60","v":0},0,0,null,{"$f":"'16. RTSR - Historical Wholesale'!H60","v":0},0,0,null,{"$f":"'16. RTSR - Historical Wholesale'!L60","v":0},0,0,null,0]
[null,"May",null,{"$f":"'16. RTSR - Historical Wholesale'!D61","v":0},0,0,null,{"$f":"'16. RTSR - Historical Wholesale'!H61","v":0},0,0,null,{"$f":"'16. RTSR - Historical Wholesale'!L61","v":0},0,0,null,0]
[null,"June",null,{"$f":"'16. RTSR - Historical Wholesale'!D62","v":0},0,0,null,{"$f":"'16. RTSR - Historical Wholesale'!H62","v":0},0,0,null,{"$f":"'16. RTSR - Historical Wholesale'!L62","v":0},0,0,null,0]
[null,"July",null,{"$f":"'16. RTSR - Historical Wholesale'!D63","v":0},0,0,null,{"$f":"'16. RTSR - Historical Wholesale'!H63","v":0},0,0,null,{"$f":"'16. RTSR - Historical Wholesale'!L63","v":0},0,0,null,0]
[null,"August",null,{"$f":"'16. RTSR - Historical Wholesale'!D64","v":0},0,0,null,{"$f":"'16. RTSR - Historical Wholesale'!H64","v":0},0,0,null,{"$f":"'16. RTSR - Historical Wholesale'!L64","v":0},0,0,null,0]
[null,"September",null,{"$f":"'16. RTSR - Historical Wholesale'!D65","v":0},0,0,null,{"$f":"'16. RTSR - Historical Wholesale'!H65","v":0},0,0,null,{"$f":"'16. RTSR - Historical Wholesale'!L65","v":0},0,0,null,0]
[null,"October",null,{"$f":"'16. RTSR - Historical Wholesale'!D66","v":0},0,0,null,{"$f":"'16. RTSR - Historical Wholesale'!H66","v":0},0,0,null,{"$f":"'16. RTSR - Historical Wholesale'!L66","v":0},0,0,null,0]
[null,"November",null,{"$f":"'16. RTSR - Historical Wholesale'!D67","v":0},0,0,null,{"$f":"'16. RTSR - Historical Wholesale'!H67","v":0},0,0,null,{"$f":"'16. RTSR - Historical Wholesale'!L67","v":0},0,0,null,0]
[null,"December",null,{"$f":"'16. RTSR - Historical Wholesale'!D68","v":0},0,0,null,{"$f":"'16. RTSR - Historical Wholesale'!H68","v":0},0,0,null,{"$f":"'16. RTSR - Historical Wholesale'!L68","v":0},0,0,null,0]
[]
[null,"Total",null,{"$f":"SUM(D58:D69)","v":0},{"$f":"IF(D71<>0,F71/D71,0)","v":0},{"$f":"SUM(F58:F69)","v":0},null,{"$f":"SUM(H58:H69)","v":0},{"$f":"IF(H71<>0,J71/H71,0)","v":0},{"$f":"SUM(J58:J69)","v":0},null,{"$f":"SUM(L58:L69)","v":0},{"$f":"IF(L71<>0,N71/L71,0)","v":0},{"$f":"SUM(N58:N69)","v":0},null,{"$f":"SUM(P58:P69)","v":0}]
[]
[null,{"$f":"'16. RTSR - Historical Wholesale'!B72","v":"Add Extra Host Here (II)"},null,"Network",null,null,null,"Line Connection",null,null,null,"Transformation Connection",null,null,null,"Total Line"]
[]
[null,"Month",null,"Units Billed","Rate","Amount",null,"Units Billed","Rate","Amount",null,"Units Billed","Rate","Amount",null,"Amount"]
[]
[null,"January",null,{"$f":"'16. RTSR - Historical Wholesale'!D76","v":0},{"$f":"'15. RTSR - UTRs & Sub-Tx'!I65","v":0},{"$f":"D77*E77","v":0},null,{"$f":"'16. RTSR - Historical Wholesale'!H76","v":0},{"$f":"'15. RTSR - UTRs & Sub-Tx'!I67","v":0},{"$f":"H77*I77","v":0},null,{"$f":"'16. RTSR - Historical Wholesale'!L76","v":0},{"$f":"'15. RTSR - UTRs & Sub-Tx'!I69","v":0},{"$f":"L77*M77","v":0},null,{"$f":"J77+N77","v":0}]
[null,"February",null,{"$f":"'16. RTSR - Historical Wholesale'!D77","v":0},{"$f":"E77","v":0},0,null,{"$f":"'16. RTSR - Historical Wholesale'!H77","v":0},{"$f":"I77","v":0},0,null,{"$f":"'16. RTSR - Historical Wholesale'!L77","v":0},{"$f":"M77","v":0},0,null,0]
[null,"March",null,{"$f":"'16. RTSR - Historical Wholesale'!D78","v":0},0,0,null,{"$f":"'16. RTSR - Historical Wholesale'!H78","v":0},0,0,null,{"$f":"'16. RTSR - Historical Wholesale'!L78","v":0},0,0,null,0]
[null,"April",null,{"$f":"'16. RTSR - Historical Wholesale'!D79","v":0},0,0,null,{"$f":"'16. RTSR - Historical Wholesale'!H79","v":0},0,0,null,{"$f":"'16. RTSR - Historical Wholesale'!L79","v":0},0,0,null,0]
[null,"May",null,{"$f":"'16. RTSR - Historical Wholesale'!D80","v":0},0,0,null,{"$f":"'16. RTSR - Historical Wholesale'!H80","v":0},0,0,null,{"$f":"'16. RTSR - Historical Wholesale'!L80","v":0},0,0,null,0]
[null,"June",null,{"$f":"'16. RTSR - Historical Wholesale'!D81","v":0},0,0,null,{"$f":"'16. RTSR - Historical Wholesale'!H81","v":0},0,0,null,{"$f":"'16. RTSR - Historical Wholesale'!L81","v":0},0,0,null,0]
[null,"July",null,{"$f":"'16. RTSR - Historical Wholesale'!D82","v":0},0,0,null,{"$f":"'16. RTSR - Historical Wholesale'!H82","v":0},0,0,null,{"$f":"'16. RTSR - Historical Wholesale'!L82","v":0},0,0,null,0]
[null,"August",null,{"$f":"'16. RTSR - Historical Wholesale'!D83","v":0},0,0,null,{"$f":"'16. RTSR - Historical Wholesale'!H83","v":0},0,0,null,{"$f":"'16. RTSR - Historical Wholesale'!L83","v":0},0,0,null,0]
[null,"September",null,{"$f":"'16. RTSR - Historical Wholesale'!D84","v":0},0,0,null,{"$f":"'16. RTSR - Historical Wholesale'!H84","v":0},0,0,null,{"$f":"'16. RTSR - Historical Wholesale'!L84","v":0},0,0,null,0]
[null,"October",null,{"$f":"'16. RTSR - Historical Wholesale'!D85","v":0},0,0,null,{"$f":"'16. RTSR - Historical Wholesale'!H85","v":0},0,0,null,{"$f":"'16. RTSR - Historical Wholesale'!L85","v":0},0,0,null,0]
[null,"November",null,{"$f":"'16. RTSR - Historical Wholesale'!D86","v":0},0,0,null,{"$f":"'16. RTSR - Historical Wholesale'!H86","v":0},0,0,null,{"$f":"'16. RTSR - Historical Wholesale'!L86","v":0},0,0,null,0]
[null,"December",null,{"$f":"'16. RTSR - Historical Wholesale'!D87","v":0},0,0,null,{"$f":"'16. RTSR - Historical Wholesale'!H87","v":0},0,0,null,{"$f":"'16. RTSR - Historical Wholesale'!L87","v":0},0,0,null,0]
[]
[null,"Total",null,{"$f":"SUM(D77:D88)","v":0},{"$f":"IF(D90<>0,F90/D90,0)","v":0},{"$f":"SUM(F77:F88)","v":0},null,{"$f":"SUM(H77:H88)","v":0},{"$f":"IF(H90<>0,J90/H90,0)","v":0},{"$f":"SUM(J77:J88)","v":0},null,{"$f":"SUM(L77:L88)","v":0},{"$f":"IF(L90<>0,N90/L90,0)","v":0},{"$f":"SUM(N77:N88)","v":0},null,{"$f":"SUM(P77:P88)","v":0}]
[]
[null,"Total",null,"Network",null,null,null,"Line Connection",null,null,null,"Transformation Connection",null,null,null,"Total Line"]
[]
[null,"Month",null,"Units Billed","Rate","Amount",null,"Units Billed","Rate","Amount",null,"Units Billed","Rate","Amount",null,"Amount"]
[]
[null,"January",null,{"$f":"D20+D39","v":250490},{"$f":"IF(D96<>0,F96/D96,0)","v":3.6848857838636269},{"$f":"F20+F39","v":923027.03999999992},null,{"$f":"H20+H39","v":206262},{"$f":"IF(H96<>0,J96/H96,0)","v":0.82},{"$f":"J20+J39","v":169134.84},null,{"$f":"L20+L39","v":242996.99999999997},{"$f":"IF(L96<>0,N96/L96,0)","v":1.8950152471018162},{"$f":"N20+N39","v":460483.01999999996},null,{"$f":"J96+N96","v":629617.86}]
[null,"February",null,234617,3.6868698346667124,865002.34000000008,null,190291,0.82,156038.62,null,224135,1.8926674548821023,424213.02,null,580251.64]
[null,"March",null,232919,3.6803493489152879,857223.28999999992,null,187220,0.82,153520.4,null,218446,1.8848903619201085,411746.76,null,565267.16]
[null,"April",null,211420.30628930821,3.6867177188167903,779446.98931446543,null,170743,0.81999999999999984,140009.25999999998,null,200866.43613496932,1.8940292557538803,380446.90653865028,null,520456.16653865029]
[null,"May",null,299976.1168553459,3.6639244782702778,1099089.8374427671,null,228108,0.82,187048.56,null,282377.12613496929,1.8788321547159086,530539.22433865024,null,717587.78433865029]
[null,"June",null,341979.61,3.6880657016364222,1261243.2703,null,267003,0.82,218942.46,null,314647.44,1.8920748021976597,595336.49280000001,null,814278.95279999997]
[null,"July",null,392236.53685534588,3.6887868112510014,1446876.9640427672,null,340184,0.82000000000000006,278950.88,null,396336.54,1.9007659369484329,753342.99479999999,null,1032293.8748]
[null,"August",null,322647.47314465407,3.6821686426925528,1188042.4082572327,null,258855,0.82,212261.09999999998,null,295482.46999999997,1.888167786738753,557920.48139999993,null,770181.58139999991]
[null,"September",null,344854.88,3.674963371259238,1267329.0523999999,null,267544,0.82,219386.08,null,324021.8861349693,1.88581315548581,611044.7355386503,null,830430.81553865026]
[null,"October",null,225151.91685534592,3.6898659049681619,830780.38144276734,null,189954,0.82,155762.28,null,217907.92,1.8979564873089514,413579.75040000002,null,569342.03040000005]
[null,"November",null,269615.46685534593,3.707049783160278,999477.9579427673,null,244099,0.82,200161.18,null,238581.46386503064,1.9021164683526173,453809.73146134964,null,653970.91146134958]
[null,"December",null,294430.53000000003,3.669103648660347,1080296.1318999999,null,247826,0.82,203217.31999999998,null,267389.53000000003,1.8786164088025437,502322.35860000004,null,705539.67859999998]
[]
[null,"Total",null,{"$f":"SUM(D96:D107)","v":3420338.8368553454},{"$f":"IF(D109<>0,F109/D109,0)","v":3.6832127645649275},{"$f":"SUM(F96:F107)","v":12597835.663042765},null,{"$f":"SUM(H96:H107)","v":2798089},{"$f":"IF(H109<>0,J109/H109,0)","v":0.82},{"$f":"SUM(J96:J107)","v":2294432.98},null,{"$f":"SUM(L96:L107)","v":3223188.8122699382},{"$f":"IF(L109<>0,N109/L109,0)","v":1.890917917273681},{"$f":"SUM(N96:N107)","v":6094785.4758773008},null,{"$f":"SUM(P96:P107)","v":8389218.4558773004}]
[]
[null,null,null,null,null,null,null,null,null,null,null,null,null,"Transformer Allowance Credit (if applicable)",null,{"$f":"'15. RTSR - UTRs & Sub-Tx'!I95","v":0}]
[]
[null,null,null,null,null,null,null,null,null,null,null,null,null,"Total including deduction for Transformer Allowance Credit",null,{"$f":"P109+P111","v":8389218.4558773004}]

{"sheet":"19. RTSR Ntwrk to Curren WS","index":22,"n_rows":27,"n_cols":17,"rows_kept":27,"cut":false,"hidden":false,"merged":[]}
[]
[]
[]
[]
[]
[]
[]
[]
[]
[]
[]
[]
["The purpose of this sheet is to re-align the current RTS Network Rates to recover current wholesale network costs."]
[]
[]
["Rate Class","Rate Description","Unit",null,"Current RTSR-Network",null,"Loss Adjusted Billed kWh",null,"Loss Adjusted Billed kW",null,"Billed Amount",null,"Billed Amount %",null,"Current Wholesale Billing",null,"Proposed RTSR Network"]
[]
[]
["RESIDENTIAL","Retail Transmission Rate - Network Service Rate","$/kWh",null,7.9000000000000008E-3,null,593810277.70197606,null,0,null,{"$f":"IF(E19=\"\", \"\", IF(C19=\"$/kWh\", E19*G19, E19*I19))","v":4691101.1938456111},null,{"$f":"IF(ISERROR(K19/SUM(K19:K100)),\"\",K19/SUM(K19:K100))","v":0.39332231644521981},null,{"$f":"IF(ISERROR('17. RTSR - Current Wholesale'!$F$109*M19), \"\", '17. RTSR - Current Wholesale'!$F$109*M19)","v":5000702.824422705},null,{"$f":"IF(C19=\"\",\"\",IF(C19=\"$/kWh\",IF(G19<>0,O19/G19,),IF(I19<>0,O19/I19,0)))","v":8.4213813943659604E-3}]
["GENERAL SERVICE LESS THAN 50 KW","Retail Transmission Rate - Network Service Rate","$/kWh",null,7.3000000000000001E-3,null,179474244.35796902,null,0,null,1310161.9838131738,null,{"$f":"IF(ISERROR(K20/SUM(K19:K100)),\"\",K20/SUM(K19:K100))","v":0.10984967603511085},null,{"$f":"IF(ISERROR('17. RTSR - Current Wholesale'!$F$109*M20), \"\", '17. RTSR - Current Wholesale'!$F$109*M20)","v":1396629.5891252984},null,7.7817828074520897E-3]
["GENERAL SERVICE 50 TO 1,000 KW","Retail Transmission Rate - Network Service Rate","$/kW",null,2.7441,null,0,null,605497.60000000009,null,1661545.9641600002,null,{"$f":"IF(ISERROR(K21/SUM(K19:K100)),\"\",K21/SUM(K19:K100))","v":0.13931123642376186},null,{"$f":"IF(ISERROR('17. RTSR - Current Wholesale'!$F$109*M21), \"\", '17. RTSR - Current Wholesale'!$F$109*M21)","v":1771204.0846153006},null,2.9252041372505859]
["GENERAL SERVICE 50 TO 1,000 KW","Retail Transmission Rate - Network Service Rate - Interval Metered","$/kW",null,2.8328000000000002,null,0,null,1053437.0999999999,null,2984176.6168799996,null,{"$f":"IF(ISERROR(K22/SUM(K19:K100)),\"\",K22/SUM(K19:K100))","v":0.25020633986168705},null,{"$f":"IF(ISERROR('17. RTSR - Current Wholesale'!$F$109*M22), \"\", '17. RTSR - Current Wholesale'!$F$109*M22)","v":3181125.2454297706},null,3.0197581283493538]
["GENERAL SERVICE GREATER THAN 1,000 KW","Retail Transmission Rate - Network Service Rate - Interval Metered","$/kW",null,2.8328000000000002,null,0,null,362505,null,1026904.1640000001,null,{"$f":"IF(ISERROR(K23/SUM(K19:K100)),\"\",K23/SUM(K19:K100))","v":8.6100109092000721E-2},null,{"$f":"IF(ISERROR('17. RTSR - Current Wholesale'!$F$109*M23), \"\", '17. RTSR - Current Wholesale'!$F$109*M23)","v":1094677.4203172824},null,3.0197581283493538]
["UNMETERED SCATTERED LOAD","Retail Transmission Rate - Network Service Rate","$/kWh",null,7.3000000000000001E-3,null,54915.084000000003,null,0,null,400.88011320000004,null,{"$f":"IF(ISERROR(K24/SUM(K19:K100)),\"\",K24/SUM(K19:K100))","v":3.3611531328188872E-5},null,{"$f":"IF(ISERROR('17. RTSR - Current Wholesale'!$F$109*M24), \"\", '17. RTSR - Current Wholesale'!$F$109*M24)","v":427.33725654098743},null,7.7817828074520914E-3]
["SENTINEL LIGHTING","Retail Transmission Rate - Network Service Rate","$/kW",null,0.55010000000000003,null,0,null,306.58,null,168.64965799999999,null,{"$f":"IF(ISERROR(K25/SUM(K19:K100)),\"\",K25/SUM(K19:K100))","v":1.4140320451683952E-5},null,{"$f":"IF(ISERROR('17. RTSR - Current Wholesale'!$F$109*M25), \"\", '17. RTSR - Current Wholesale'!$F$109*M25)","v":179.78013823384586},null,0.58640530443553351]
["STREET LIGHTING","Retail Transmission Rate - Network Service Rate","$/kW",null,2.2892000000000001,null,0,null,33116,null,75809.147200000007,null,{"$f":"IF(ISERROR(K26/SUM(K19:K100)),\"\",K26/SUM(K19:K100))","v":6.3561684458137433E-3},null,{"$f":"IF(ISERROR('17. RTSR - Current Wholesale'!$F$109*M26), \"\", '17. RTSR - Current Wholesale'!$F$109*M26)","v":80812.372373776001},null,2.4402818086053872]
["EMBEDDED DISTRIBUTOR","Retail Transmission Rate - Network Service Rate","$/kW",null,2.8328000000000002,null,0,null,62339,null,176593.9192,null,{"$f":"IF(ISERROR(K27/SUM(K19:K100)),\"\",K27/SUM(K19:K100))","v":1.4806401844626234E-2},null,{"$f":"IF(ISERROR('17. RTSR - Current Wholesale'!$F$109*M27), \"\", '17. RTSR - Current Wholesale'!$F$109*M27)","v":188248.70196317034},null,3.0197581283493533]

{"sheet":"20. RTSR Adj Conn to Current WS","index":23,"n_rows":27,"n_cols":17,"rows_kept":27,"cut":false,"hidden":false,"merged":[]}
[]
[]
[]
[]
[]
[]
[]
[]
[]
[]
[]
[]
["The purpose of this sheet is to re-align the current RTS Connection Rates to recover current wholesale connection costs."]
[]
[]
["Rate Class","Rate Description","Unit",null,"Current RTSR-Connection",null,"Loss Adjusted Billed kWh",null,"Loss Adjusted Billed kW",null,"Billed Amount",null,"Billed Amount %",null,"Current Wholesale Billing",null,"Proposed RTSR Connection"]
[]
[]
["RESIDENTIAL","Retail Transmission Rate - Line and Transformation Connection Service Rate","$/kWh",null,5.3E-3,null,593810277.70197606,null,0,null,{"$f":"IF(E19=\"\", \"\", IF(C19=\"$/kWh\", E19*G19, E19*I19))","v":3147194.4718204732},null,{"$f":"IF(ISERROR(K19/SUM(K19:K100)),\"\",K19/SUM(K19:K100))","v":0.39661801266274599},null,{"$f":"IF(ISERROR('17. RTSR - Current Wholesale'!$P$113*M19), \"\", '17. RTSR - Current Wholesale'!$P$113*M19)","v":3327315.1517636855},null,{"$f":"IF(C19=\"\",\"\",IF(C19=\"$/kWh\",IF(G19<>0,O19/G19,),IF(I19<>0,O19/I19,0)))","v":5.6033303509671019E-3}]
["GENERAL SERVICE LESS THAN 50 KW","Retail Transmission Rate - Line and Transformation Connection Service Rate","$/kWh",null,4.7999999999999996E-3,null,179474244.35796902,null,0,null,861476.3729182512,null,{"$f":"IF(ISERROR(K20/SUM(K19:K100)),\"\",K20/SUM(K19:K100))","v":0.10856559708720723},null,{"$f":"IF(ISERROR('17. RTSR - Current Wholesale'!$P$113*M20), \"\", '17. RTSR - Current Wholesale'!$P$113*M20)","v":910780.51075733779},null,5.0747142801211486E-3]
["GENERAL SERVICE 50 TO 1,000 KW","Retail Transmission Rate - Line and Transformation Connection Service Rate","$/kW",null,1.8182,null,0,null,605497.60000000009,null,1100915.7363200001,null,{"$f":"IF(ISERROR(K21/SUM(K19:K100)),\"\",K21/SUM(K19:K100))","v":0.13874039731513921},null,{"$f":"IF(ISERROR('17. RTSR - Current Wholesale'!$P$113*M21), \"\", '17. RTSR - Current Wholesale'!$P$113*M21)","v":1163923.5017319154},null,1.9222594800242234]
["GENERAL SERVICE 50 TO 1,000 KW","Retail Transmission Rate - Line and Transformation Connection Service Rate - Interval Metered","$/kW",null,1.8771,null,0,null,1053437.0999999999,null,1977406.7804099997,null,{"$f":"IF(ISERROR(K22/SUM(K19:K100)),\"\",K22/SUM(K19:K100))","v":0.24919818412695496},null,{"$f":"IF(ISERROR('17. RTSR - Current Wholesale'!$P$113*M22), \"\", '17. RTSR - Current Wholesale'!$P$113*M22)","v":2090578.0054489602},null,1.9845304531698764]
["GENERAL SERVICE GREATER THAN 1,000 KW","Retail Transmission Rate - Line and Transformation Connection Service Rate - Interval Metered","$/kW",null,1.8771,null,0,null,362505,null,680458.13549999997,null,{"$f":"IF(ISERROR(K23/SUM(K19:K100)),\"\",K23/SUM(K19:K100))","v":8.5753186153156954E-2},null,{"$f":"IF(ISERROR('17. RTSR - Current Wholesale'!$P$113*M23), \"\", '17. RTSR - Current Wholesale'!$P$113*M23)","v":719402.21192634606},null,1.9845304531698764]
["UNMETERED SCATTERED LOAD","Retail Transmission Rate - Line and Transformation Connection Service Rate","$/kWh",null,4.7999999999999996E-3,null,54915.084000000003,null,0,null,263.59240319999998,null,{"$f":"IF(ISERROR(K24/SUM(K19:K100)),\"\",K24/SUM(K19:K100))","v":3.3218632037602559E-5},null,{"$f":"IF(ISERROR('17. RTSR - Current Wholesale'!$P$113*M24), \"\", '17. RTSR - Current Wholesale'!$P$113*M24)","v":278.67836096885236},null,5.0747142801211478E-3]
["SENTINEL LIGHTING","Retail Transmission Rate - Line and Transformation Connection Service Rate","$/kW",null,0.3644,null,0,null,306.58,null,111.71775199999999,null,{"$f":"IF(ISERROR(K25/SUM(K19:K100)),\"\",K25/SUM(K19:K100))","v":1.4078975155214707E-5},null,{"$f":"IF(ISERROR('17. RTSR - Current Wholesale'!$P$113*M25), \"\", '17. RTSR - Current Wholesale'!$P$113*M25)","v":118.1115982119652},null,0.38525539243253054]
["STREET LIGHTING","Retail Transmission Rate - Line and Transformation Connection Service Rate","$/kW",null,1.5168999999999999,null,0,null,33116,null,50233.660400000001,null,{"$f":"IF(ISERROR(K26/SUM(K19:K100)),\"\",K26/SUM(K19:K100))","v":6.3305825982525408E-3},null,{"$f":"IF(ISERROR('17. RTSR - Current Wholesale'!$P$113*M26), \"\", '17. RTSR - Current Wholesale'!$P$113*M26)","v":53108.640369715889},null,1.6037154357324523]
["EMBEDDED DISTRIBUTOR","Retail Transmission Rate - Line and Transformation Connection Service Rate","$/kW",null,1.8771,null,0,null,62339,null,117016.53690000001,null,{"$f":"IF(ISERROR(K27/SUM(K19:K100)),\"\",K27/SUM(K19:K100))","v":1.4746742449350083E-2},null,{"$f":"IF(ISERROR('17. RTSR - Current Wholesale'!$P$113*M27), \"\", '17. RTSR - Current Wholesale'!$P$113*M27)","v":123713.64392015694},null,1.9845304531698766]

{"sheet":"21. RTSR Adj Ntwk to Forcast WS","index":24,"n_rows":27,"n_cols":17,"rows_kept":27,"cut":false,"hidden":false,"merged":[]}
[]
[]
[]
[]
[]
[]
[]
[]
[]
[]
[]
[]
["The purpose of this sheet is to update the re-align RTS Network Rates to recover forecast wholesale network costs."]
[]
[]
["Rate Class","Rate Description","Unit",null,"Adjusted RTSR-Network",null,"Loss Adjusted Billed kWh",null,"Loss Adjusted Billed kW",null,"Billed Amount",null,"Billed Amount %",null,"Forecast Wholesale Billing",null,"Proposed RTSR Network"]
[]
[]
["RESIDENTIAL","Retail Transmission Rate - Network Service Rate","$/kWh",null,8.4213813943659604E-3,null,593810277.70197606,null,0,null,{"$f":"IF(E19=\"\", \"\", IF(C19=\"$/kWh\", E19*G19, E19*I19))","v":5000702.824422705},null,{"$f":"IF(ISERROR(K19/SUM(K19:K100)),\"\",K19/SUM(K19:K100))","v":0.39332231644521976},null,{"$f":"IF(ISERROR('18. RTSR - Forecast Wholesale'!$F$109*M19), \"\", '18. RTSR - Forecast Wholesale'!$F$109*M19)","v":4955009.9051841814},null,{"$f":"IF(C19=\"\",\"\",IF(C19=\"$/kWh\",IF(G19<>0,O19/G19,),IF(I19<>0,O19/I19,0)))","v":8.3444327106628868E-3}]
["GENERAL SERVICE LESS THAN 50 KW","Retail Transmission Rate - Network Service Rate","$/kWh",null,7.7817828074520897E-3,null,179474244.35796902,null,0,null,1396629.5891252984,null,{"$f":"IF(ISERROR(K20/SUM(K19:K100)),\"\",K20/SUM(K19:K100))","v":0.10984967603511082},null,{"$f":"IF(ISERROR('18. RTSR - Forecast Wholesale'!$F$109*M20), \"\", '18. RTSR - Forecast Wholesale'!$F$109*M20)","v":1383868.1663288134},null,7.710678327574565E-3]
["GENERAL SERVICE 50 TO 1,000 KW","Retail Transmission Rate - Network Service Rate","$/kW",null,2.9252041372505859,null,0,null,605497.60000000009,null,1771204.0846153006,null,{"$f":"IF(ISERROR(K21/SUM(K19:K100)),\"\",K21/SUM(K19:K100))","v":0.13931123642376184},null,{"$f":"IF(ISERROR('18. RTSR - Forecast Wholesale'!$F$109*M21), \"\", '18. RTSR - Forecast Wholesale'!$F$109*M21)","v":1755020.062481849},null,2.8984756710544333]
["GENERAL SERVICE 50 TO 1,000 KW","Retail Transmission Rate - Network Service Rate - Interval Metered","$/kW",null,3.0197581283493538,null,0,null,1053437.0999999999,null,3181125.2454297706,null,{"$f":"IF(ISERROR(K22/SUM(K19:K100)),\"\",K22/SUM(K19:K100))","v":0.250206339861687},null,{"$f":"IF(ISERROR('18. RTSR - Forecast Wholesale'!$F$109*M22), \"\", '18. RTSR - Forecast Wholesale'!$F$109*M22)","v":3152058.3514289591},null,2.9921656940209904]
["GENERAL SERVICE GREATER THAN 1,000 KW","Retail Transmission Rate - Network Service Rate - Interval Metered","$/kW",null,3.0197581283493538,null,0,null,362505,null,1094677.4203172824,null,{"$f":"IF(ISERROR(K23/SUM(K19:K100)),\"\",K23/SUM(K19:K100))","v":8.6100109092000707E-2},null,{"$f":"IF(ISERROR('18. RTSR - Forecast Wholesale'!$F$109*M23), \"\", '18. RTSR - Forecast Wholesale'!$F$109*M23)","v":1084675.0249110791},null,2.9921656940209904]
["UNMETERED SCATTERED LOAD","Retail Transmission Rate - Network Service Rate","$/kWh",null,7.7817828074520914E-3,null,54915.084000000003,null,0,null,427.33725654098743,null,{"$f":"IF(ISERROR(K24/SUM(K19:K100)),\"\",K24/SUM(K19:K100))","v":3.3611531328188865E-5},null,{"$f":"IF(ISERROR('18. RTSR - Forecast Wholesale'!$F$109*M24), \"\", '18. RTSR - Forecast Wholesale'!$F$109*M24)","v":423.43254805573685},null,7.7106783275745659E-3]
["SENTINEL LIGHTING","Retail Transmission Rate - Network Service Rate","$/kW",null,0.58640530443553351,null,0,null,306.58,null,179.78013823384586,null,{"$f":"IF(ISERROR(K25/SUM(K19:K100)),\"\",K25/SUM(K19:K100))","v":1.414032045168395E-5},null,{"$f":"IF(ISERROR('18. RTSR - Forecast Wholesale'!$F$109*M25), \"\", '18. RTSR - Forecast Wholesale'!$F$109*M25)","v":178.13743327307705},null,0.58104714356147513]
["STREET LIGHTING","Retail Transmission Rate - Network Service Rate","$/kW",null,2.4402818086053872,null,0,null,33116,null,80812.372373776001,null,{"$f":"IF(ISERROR(K26/SUM(K19:K100)),\"\",K26/SUM(K19:K100))","v":6.3561684458137424E-3},null,{"$f":"IF(ISERROR('18. RTSR - Forecast Wholesale'!$F$109*M26), \"\", '18. RTSR - Forecast Wholesale'!$F$109*M26)","v":80073.965526979475},null,2.4179842229429722]
["EMBEDDED DISTRIBUTOR","Retail Transmission Rate - Network Service Rate","$/kW",null,3.0197581283493533,null,0,null,62339,null,188248.70196317034,null,{"$f":"IF(ISERROR(K27/SUM(K19:K100)),\"\",K27/SUM(K19:K100))","v":1.4806401844626232E-2},null,{"$f":"IF(ISERROR('18. RTSR - Forecast Wholesale'!$F$109*M27), \"\", '18. RTSR - Forecast Wholesale'!$F$109*M27)","v":186528.61719957454},null,2.9921656940209909]

{"sheet":"22. RTSR Adj Conn. to Forcst WS","index":25,"n_rows":27,"n_cols":17,"rows_kept":27,"cut":false,"hidden":false,"merged":[]}
[]
[]
[]
[]
[]
[]
[]
[]
[]
[]
[]
[]
["The purpose of this sheet is to update the re-aligned RTS Connection Rates to recover forecast wholesale connection costs."]
[]
[]
["Rate Class","Rate Description","Unit",null,"Adjusted RTSR-Connection",null,"Loss Adjusted Billed kWh",null,"Loss Adjusted Billed kW",null,"Billed Amount",null,"Billed Amount %",null,"Forecast Wholesale Billing",null,"Proposed RTSR Connection"]
[]
[]
["RESIDENTIAL","Retail Transmission Rate - Line and Transformation Connection Service Rate","$/kWh",null,5.6033303509671019E-3,null,593810277.70197606,null,0,null,{"$f":"IF(E19=\"\", \"\", IF(C19=\"$/kWh\", E19*G19, E19*I19))","v":3327315.1517636855},null,{"$f":"IF(ISERROR(K19/SUM(K19:K100)),\"\",K19/SUM(K19:K100))","v":0.3966180126627461},null,{"$f":"IF(ISERROR('18. RTSR - Forecast Wholesale'!$P$113*M19), \"\", '18. RTSR - Forecast Wholesale'!$P$113*M19)","v":3327315.1517636864},null,{"$f":"IF(C19=\"\",\"\",IF(C19=\"$/kWh\",IF(G19<>0,O19/G19,),IF(I19<>0,O19/I19,0)))","v":5.6033303509671027E-3}]
["GENERAL SERVICE LESS THAN 50 KW","Retail Transmission Rate - Line and Transformation Connection Service Rate","$/kWh",null,5.0747142801211486E-3,null,179474244.35796902,null,0,null,910780.51075733791,null,{"$f":"IF(ISERROR(K20/SUM(K19:K100)),\"\",K20/SUM(K19:K100))","v":0.10856559708720727},null,{"$f":"IF(ISERROR('18. RTSR - Forecast Wholesale'!$P$113*M20), \"\", '18. RTSR - Forecast Wholesale'!$P$113*M20)","v":910780.51075733814},null,5.0747142801211504E-3]
["GENERAL SERVICE 50 TO 1,000 KW","Retail Transmission Rate - Line and Transformation Connection Service Rate","$/kW",null,1.9222594800242234,null,0,null,605497.60000000009,null,1163923.5017319154,null,{"$f":"IF(ISERROR(K21/SUM(K19:K100)),\"\",K21/SUM(K19:K100))","v":0.13874039731513926},null,{"$f":"IF(ISERROR('18. RTSR - Forecast Wholesale'!$P$113*M21), \"\", '18. RTSR - Forecast Wholesale'!$P$113*M21)","v":1163923.5017319159},null,1.9222594800242241]
["GENERAL SERVICE 50 TO 1,000 KW","Retail Transmission Rate - Line and Transformation Connection Service Rate - Interval Metered","$/kW",null,1.9845304531698764,null,0,null,1053437.0999999999,null,2090578.0054489602,null,{"$f":"IF(ISERROR(K22/SUM(K19:K100)),\"\",K22/SUM(K19:K100))","v":0.24919818412695502},null,{"$f":"IF(ISERROR('18. RTSR - Forecast Wholesale'!$P$113*M22), \"\", '18. RTSR - Forecast Wholesale'!$P$113*M22)","v":2090578.0054489607},null,1.9845304531698769]
["GENERAL SERVICE GREATER THAN 1,000 KW","Retail Transmission Rate - Line and Transformation Connection Service Rate - Interval Metered","$/kW",null,1.9845304531698764,null,0,null,362505,null,719402.21192634606,null,{"$f":"IF(ISERROR(K23/SUM(K19:K100)),\"\",K23/SUM(K19:K100))","v":8.5753186153156968E-2},null,{"$f":"IF(ISERROR('18. RTSR - Forecast Wholesale'!$P$113*M23), \"\", '18. RTSR - Forecast Wholesale'!$P$113*M23)","v":719402.21192634618},null,1.9845304531698769]
["UNMETERED SCATTERED LOAD","Retail Transmission Rate - Line and Transformation Connection Service Rate","$/kWh",null,5.0747142801211478E-3,null,54915.084000000003,null,0,null,278.67836096885236,null,{"$f":"IF(ISERROR(K24/SUM(K19:K100)),\"\",K24/SUM(K19:K100))","v":3.3218632037602566E-5},null,{"$f":"IF(ISERROR('18. RTSR - Forecast Wholesale'!$P$113*M24), \"\", '18. RTSR - Forecast Wholesale'!$P$113*M24)","v":278.67836096885242},null,5.0747142801211486E-3]
["SENTINEL LIGHTING","Retail Transmission Rate - Line and Transformation Connection Service Rate","$/kW",null,0.38525539243253054,null,0,null,306.58,null,118.1115982119652,null,{"$f":"IF(ISERROR(K25/SUM(K19:K100)),\"\",K25/SUM(K19:K100))","v":1.407897515521471E-5},null,{"$f":"IF(ISERROR('18. RTSR - Forecast Wholesale'!$P$113*M25), \"\", '18. RTSR - Forecast Wholesale'!$P$113*M25)","v":118.11159821196523},null,0.3852553924325306]
["STREET LIGHTING","Retail Transmission Rate - Line and Transformation Connection Service Rate","$/kW",null,1.6037154357324523,null,0,null,33116,null,53108.640369715889,null,{"$f":"IF(ISERROR(K26/SUM(K19:K100)),\"\",K26/SUM(K19:K100))","v":6.3305825982525425E-3},null,{"$f":"IF(ISERROR('18. RTSR - Forecast Wholesale'!$P$113*M26), \"\", '18. RTSR - Forecast Wholesale'!$P$113*M26)","v":53108.640369715904},null,1.6037154357324528]
["EMBEDDED DISTRIBUTOR","Retail Transmission Rate - Line and Transformation Connection Service Rate","$/kW",null,1.9845304531698766,null,0,null,62339,null,123713.64392015694,null,{"$f":"IF(ISERROR(K27/SUM(K19:K100)),\"\",K27/SUM(K19:K100))","v":1.4746742449350087E-2},null,{"$f":"IF(ISERROR('18. RTSR - Forecast Wholesale'!$P$113*M27), \"\", '18. RTSR - Forecast Wholesale'!$P$113*M27)","v":123713.64392015697},null,1.9845304531698771]

{"sheet":"23. RTSR Final 2015 RTS Rates","index":26,"n_rows":36,"n_cols":5,"rows_kept":36,"cut":false,"hidden":false,"merged":[[12,0,12,1]]}
[]
[]
[]
[]
[]
[]
[]
[]
[]
[]
[]
[]
["This sheet lists proposed RTSRs for all classes.  No input required."]
[]
[]
["Rate Class","Rate Description","Unit",null,"Proposed Retail Transmission Rate"]
[]
[]
["RESIDENTIAL","Retail Transmission Rate - Network Service Rate","$/kWh",null,8.3444327106628868E-3]
["RESIDENTIAL","Retail Transmission Rate - Line and Transformation Connection Service Rate","$/kWh",null,5.6033303509671027E-3]
["GENERAL SERVICE LESS THAN 50 KW","Retail Transmission Rate - Network Service Rate","$/kWh",null,7.710678327574565E-3]
["GENERAL SERVICE LESS THAN 50 KW","Retail Transmission Rate - Line and Transformation Connection Service Rate","$/kWh",null,5.0747142801211504E-3]
["GENERAL SERVICE 50 TO 1,000 KW","Retail Transmission Rate - Network Service Rate","$/kW",null,2.8984756710544333]
["GENERAL SERVICE 50 TO 1,000 KW","Retail Transmission Rate - Network Service Rate - Interval Metered","$/kW",null,2.9921656940209904]
["GENERAL SERVICE 50 TO 1,000 KW","Retail Transmission Rate - Line and Transformation Connection Service Rate","$/kW",null,1.9222594800242241]
["GENERAL SERVICE 50 TO 1,000 KW","Retail Transmission Rate - Line and Transformation Connection Service Rate - Interval Metered","$/kW",null,1.9845304531698769]
["GENERAL SERVICE GREATER THAN 1,000 KW","Retail Transmission Rate - Network Service Rate - Interval Metered","$/kW",null,2.9921656940209904]
["GENERAL SERVICE GREATER THAN 1,000 KW","Retail Transmission Rate - Line and Transformation Connection Service Rate - Interval Metered","$/kW",null,1.9845304531698769]
["UNMETERED SCATTERED LOAD","Retail Transmission Rate - Network Service Rate","$/kWh",null,7.7106783275745659E-3]
["UNMETERED SCATTERED LOAD","Retail Transmission Rate - Line and Transformation Connection Service Rate","$/kWh",null,5.0747142801211486E-3]
["SENTINEL LIGHTING","Retail Transmission Rate - Network Service Rate","$/kW",null,0.58104714356147513]
["SENTINEL LIGHTING","Retail Transmission Rate - Line and Transformation Connection Service Rate","$/kW",null,0.3852553924325306]
["STREET LIGHTING","Retail Transmission Rate - Network Service Rate","$/kW",null,2.4179842229429722]
["STREET LIGHTING","Retail Transmission Rate - Line and Transformation Connection Service Rate","$/kW",null,1.6037154357324528]
["EMBEDDED DISTRIBUTOR","Retail Transmission Rate - Network Service Rate","$/kW",null,2.9921656940209909]
["EMBEDDED DISTRIBUTOR","Retail Transmission Rate - Line and Transformation Connection Service Rate","$/kW",null,1.9845304531698771]

{"sheet":"24. Rev2Cost_GDPIPI","index":27,"n_rows":30,"n_cols":29,"rows_kept":30,"cut":false,"hidden":false,"merged":[[11,0,12,7],[18,5,19,5],[18,7,19,7],[18,2,19,2],[18,1,19,1],[18,3,19,3],[18,6,19,6],[18,4,19,4]]}
[null,null,null,null,null,null,null,null,null,null,null,null,null,null,null,null,null,null,null,null,null,null,null,null,false,0,null,null,"NO"]
[null,null,null,null,null,null,null,null,null,null,null,null,null,null,null,null,null,null,null,null,null,null,null,null,true]
[]
[]
[]
[]
[]
[]
[]
[]
[]
["If applicable, please enter any adjustments related to the revenue to cost ratio model into columns C and E.  The Price Escalator and Stretch Factor have been set at the 2014 values and will be updated by Board staff at a later date."]
[]
[]
["Price Escalator",1.6E-2,"Choose Stretch Factor Group",null,"IV"]
["Productivity Factor",0,"Associated Stretch Factor Value",null,{"$f":"IF(E15=\"I\", 0%, IF(E15=\"II\", 0.15%, IF(E15=\"III\", 0.3%, IF(E15=\"IV\", 0.45%, 0.6%))))","v":4.5000000000000005E-3}]
["Price Cap Index",{"$f":"B15-B16-E16","v":1.15E-2}]
[]
[null,"Current MFC","MFC Adjustment from R/C Model","Current  Volumetric Charge","DVR Adjustment from R/C Model","Price Cap Index to be Applied to MFC and DVR","Proposed MFC","Proposed Volumetric Charge"]
["Rate Class"]
[]
["RESIDENTIAL",14.42,null,1.5699999999999999E-2,null,{"$f":"$B$17","v":1.15E-2},{"$f":"ROUND(SUM(B22,C22)*(1+F22),2)","v":14.59},{"$f":"ROUND(SUM(D22,E22)*(1+F22),4)","v":1.5900000000000001E-2}]
["GENERAL SERVICE LESS THAN 50 KW",34.71,null,1.5299999999999999E-2,null,1.15E-2,35.11,1.55E-2]
["GENERAL SERVICE 50 TO 1,000 KW",118.45,null,4.6319999999999997,null,1.15E-2,119.81,4.6852999999999998]
["GENERAL SERVICE GREATER THAN 1,000 KW",3399.83,null,2.6884000000000001,null,1.15E-2,3438.93,2.7193000000000001]
["UNMETERED SCATTERED LOAD",9.83,null,9.1999999999999998E-3,null,1.15E-2,9.94,9.2999999999999992E-3]
["SENTINEL LIGHTING",2.69,null,45.5762,null,1.15E-2,2.72,46.100299999999997]
["STREET LIGHTING",3.69,null,22.639199999999999,null,1.15E-2,3.73,22.8996]
["EMBEDDED DISTRIBUTOR",5072.12,null,2.7703000000000002,null,1.15E-2,5130.45,2.8022]
["microFIT",5.4,null,null,null,null,5.4]

{"sheet":"24. hidden","index":28,"n_rows":10,"n_cols":4,"rows_kept":10,"cut":false,"hidden":true,"merged":[]}
["Rate Class","MFC Adjustment from R/C Model","DVR Adjustment from R/C Model"]
["RESIDENTIAL",14.42,null,1.5699999999999999E-2]
["GENERAL SERVICE LESS THAN 50 KW",34.71,null,1.5299999999999999E-2]
["GENERAL SERVICE 50 TO 1,000 KW",118.45,null,4.6319999999999997]
["GENERAL SERVICE GREATER THAN 1,000 KW",3399.83,null,2.6884000000000001]
["UNMETERED SCATTERED LOAD",9.83,null,9.1999999999999998E-3]
["SENTINEL LIGHTING",2.69,null,45.5762]
["STREET LIGHTING",3.69,null,22.639199999999999]
["EMBEDDED DISTRIBUTOR",5072.12,null,2.7703000000000002]
["microFIT",5.4]

{"sheet":"25. Other Charges & LF","index":29,"n_rows":151,"n_cols":8,"rows_kept":151,"cut":false,"hidden":false,"merged":[[140,0,140,3],[134,0,134,1],[135,0,135,3],[136,0,136,3],[137,0,137,3],[138,0,138,1],[130,0,130,1],[131,0,131,1],[132,0,132,3],[133,0,133,1],[139,0,139,1],[144,0,144,3],[10,0,12,1],[25,0,25,3],[26,0,26,3],[27,0,27,3],[115,0,115,3],[116,0,116,3],[117,0,117,3],[119,0,119,3],[121,0,121,3],[123,0,123,3],[125,0,125,3],[126,0,126,3],[127,0,127,1],[128,0,128,1],[129,0,129,1]]}
[]
[]
[]
[]
[]
[]
[]
[]
[]
[]
["Please enter the following charges as found on your most recent Board-Approved Tariff Schedule.  The standard Allowance rates have been included as default entries.  If you have different rates, please make the appropriate corrections in the applicable cells below.  As well, please enter the current Specific Service Charges below.  The standard Retail Service Charges have been entered below.  If you have different rates, please make the appropriate corrections in columns A, C or D as applicable (cells are unlocked)."]
[]
[null,null,"UNIT","RATE"]
[]
["ALLOWANCES"]
[]
["Transformer Allowance for Ownership - per kW of billing demand/month",null,"$/kW",-0.5]
[]
[]
["Primary Metering Allowance for transformer losses – applied to measured demand and energy",null,"%",-1]
[]
["SPECIFIC SERVICE CHARGES"]
[]
["APPLICATION"]
[]
["The application of these rates and charges shall be in accordance with the Licence of the Distributor and any Code or Order of the Board, and amendments thereto as approved by the Board, which may be applicable to the administration of this schedule."]
["No charges to meet the costs of any work or service done or furnished for the purpose of the distribution of electricity shall be made except as permitted by this schedule, unless required by the Distributor’s Licence or a Code or Order of the Board, and amendments thereto as approved by the Board, or as specified herein."]
["It should be noted that this schedule does not list any charges, assessments or credits that are required by law to be invoiced by a distributor and that are not subject to Board approval, such as the Debt Retirement Charge, the Global Adjustment, the Ontario Clean Energy Benefit and the HST."]
[]
["Customer Administration"]
["Statement of Account",null,"$",15]
["Pulling Post Dated Cheques",null,"$",15]
["Duplicate Invoices for previous billing",null,"$",15]
["Easement Letter",null,"$",15]
["Account History",null,"$",15]
["Credit Reference/credit check (plus credit agency costs)",null,"$",15]
["Returned cheque (plus bank charges)",null,"$",15]
["Account set up charge/change of occupancy charge (plus credit agency costs if applicable)",null,"$",30]
["Special meter reads",null,"$",30]
["Meter dispute charge plus Measurement Canada fees (if meter found correct)",null,"$",30]
[]
[]
[]
[]
[]
[]
[]
[]
[]
[]
[]
[]
[]
[]
[]
[]
[]
[]
[]
[]
["Service Call (after first service call in a 12-month period) - during regular hours",null,"$",30]
["Service Call (after first service call in a 12-month period) - after regular hours",null,"$",165]
[]
[]
[]
[]
["Non-Payment of Account"]
["Late Payment – per month",null,"%",1.5]
["Late Payment – per annum",null,"%",19.559999999999999]
["Collection of account charge – no disconnection",null,"$",30]
["Disconnect/Reconnect at meter – during regular hours",null,"$",65]
["Disconnect/Reconnect at meter – after regular hours",null,"$",185]
["Disconnect/Reconnect at pole – during regular hours",null,"$",185]
["Disconnect/Reconnect at pole – after regular hours",null,"$",415]
[]
[]
[]
[]
[]
[]
[]
[]
[]
[]
[]
[]
[]
[]
[]
[]
[]
[]
[]
["Temporary Service – Install & remove – overhead – no transformer",null,"$",500]
["Temporary Service – Install & remove – underground – no transformer",null,"$",300]
["Specific Charge for Access to the Power Poles - $/pole/year",null,"$",22.35]
[]
[]
[]
[]
[]
[]
[]
[]
[]
[]
[]
[]
[]
[]
[]
[]
[]
[]
[]
["RETAIL SERVICE CHARGES (if applicable)"]
[]
["The application of these rates and charges shall be in accordance with the Licence of the Distributor and any Code or Order of the Board, and amendments thereto as approved by the Board, which may be applicable to the  administration of this schedule."]
[]
["No rates and charges for the distribution of electricity and charges to meet the costs of any work or service done or furnished for the purpose of the distribution of electricity shall be made except as permitted by this schedule, unless  required by the Distributor’s Licence or a Code or Order of the Board, and amendments thereto as approved by the  Board, or as specified herein. "]
[]
["Unless specifically noted, this schedule does not contain any charges for the electricity commodity, be it under the Regulated Price Plan, a contract with a retailer or the wholesale market price, as applicable."]
[]
["It should be noted that this schedule does not list any charges, assessments, or credits that are required by law to be invoiced by a distributor and that are not subject to Board approval, such as the Debt Retirement Charge, the Global  Adjustment, the Ontario Clean Energy Benefit and the HST. "]
[]
["Retail Service Charges refer to services provided by a distributor to retailers or customers related to the supply of competitive electricity."]
[]
["One-time charge, per retailer, to establish the service agreement between the distributor and the retailer",null,"$",100]
["Monthly Fixed Charge, per retailer",null,"$",20]
["Monthly Variable Charge, per customer, per retailer",null,"$/cust.",0.5]
["Distributor-consolidated billing monthly charge, per customer, per retailer",null,"$/cust.",0.3]
["Retailer-consolidated billing monthly credit, per customer, per retailer",null,"$/cust.",-0.3]
["Service Transaction Requests (STR) "]
["Request fee, per request, applied to the requesting party",null,"$",0.25]
["Processing fee, per request, applied to the requesting party",null,"$",0.5]
["Request for customer information as outlined in Section 10.6.3 and Chapter 11 of the Retail"]
["Settlement Code directly to retailers and customers, if not delivered electronically through the"]
["Electronic Business Transaction (EBT) system, applied to the requesting party "]
["Up to twice a year",null,"$","no charge"]
["More than twice a year, per request (plus incremental delivery costs)",null,"$",2]
[]
[]
["LOSS FACTORS"]
[]
["If the distributor is not capable of prorating changed loss factors jointly with distribution rates, the revised loss factors will be implemented upon the first subsequent billing for each billing cycle."]
[]
[]
["Total Loss Factor – Secondary Metered Customer < 5,000 kW",null,null,1.0376000000000001,null,null,null,"TLF_Secondary_LT_5000kW"]
["Total Loss Factor – Secondary Metered Customer > 5,000 kW",null,null,1.0145,null,null,null,"TLF_Primary_LT_5000kW"]
["Total Loss Factor – Primary Metered Customer < 5,000 kW",null,null,1.0271999999999999]
["Total Loss Factor – Primary Metered Customer > 5,000 kW",null,null,1.0044999999999999]

{"sheet":"26. Proposed Rates","index":30,"n_rows":134,"n_cols":26,"rows_kept":134,"cut":false,"hidden":false,"merged":[[4,1,4,4],[8,1,8,4],[11,1,14,3]]}
[null,null,null,null,null,null,null,null,null,null,null,null,null,null,null,null,null,null,null,null,null,null,null,null,null,3]
[]
[]
[]
[null,null,null,null,null,null,null,null,null,null,null,{"$f":"ROUND(LEN(B5), -2) / 100","v":0}]
[]
[]
[]
[null,null,null,null,null,null,null,null,null,null,null,{"$f":"ROUND(LEN(B9), -2) / 100","v":0}]
[]
[]
[null,"In the Green Cells below, enter any proposed rate riders that are not already included in this model (e.g:  ICM rate riders).\nIn column B, the rate rider descriptions must begin with \"Rate Rider for\".  \nIn column C, choose the associated unit from the drop-down menu.\nIn column D, enter the rate.  All rate riders with a \"$\" unit will be rounded to 2 decimal places and all others will be rounded to 4 decimal places."]
[]
[]
[]
[]
[]
[]
[]
["RESIDENTIAL","RESIDENTIAL SERVICE CLASSIFICATION","Unit","Rate"]
["RESIDENTIAL","Rate Rider for Ice Storm Cost Recovery - effective until December 31 , 2015","$",0.26]
["RESIDENTIAL"]
["RESIDENTIAL"]
["RESIDENTIAL"]
["RESIDENTIAL"]
["RESIDENTIAL"]
["RESIDENTIAL"]
["RESIDENTIAL"]
["RESIDENTIAL"]
["RESIDENTIAL"]
[]
["GENERAL SERVICE LESS THAN 50 KW","GENERAL SERVICE LESS THAN 50 KW SERVICE CLASSIFICATION","Unit","Rate"]
["GENERAL SERVICE LESS THAN 50 KW","Rate Rider for Ice Storm Cost Recovery - effective until December 31 , 2015","$",0.73]
["GENERAL SERVICE LESS THAN 50 KW"]
["GENERAL SERVICE LESS THAN 50 KW"]
["GENERAL SERVICE LESS THAN 50 KW"]
["GENERAL SERVICE LESS THAN 50 KW"]
["GENERAL SERVICE LESS THAN 50 KW"]
["GENERAL SERVICE LESS THAN 50 KW"]
["GENERAL SERVICE LESS THAN 50 KW"]
["GENERAL SERVICE LESS THAN 50 KW"]
["GENERAL SERVICE LESS THAN 50 KW"]
[]
["GENERAL SERVICE 50 TO 1,000 KW","GENERAL SERVICE 50 TO 1,000 KW SERVICE CLASSIFICATION","Unit","Rate"]
["GENERAL SERVICE 50 TO 1,000 KW","Rate Rider for Ice Storm Cost Recovery - effective until December 31 , 2015","$",7.5]
["GENERAL SERVICE 50 TO 1,000 KW"]
["GENERAL SERVICE 50 TO 1,000 KW"]
["GENERAL SERVICE 50 TO 1,000 KW"]
["GENERAL SERVICE 50 TO 1,000 KW"]
["GENERAL SERVICE 50 TO 1,000 KW"]
["GENERAL SERVICE 50 TO 1,000 KW"]
["GENERAL SERVICE 50 TO 1,000 KW"]
["GENERAL SERVICE 50 TO 1,000 KW"]
["GENERAL SERVICE 50 TO 1,000 KW"]
[]
["GENERAL SERVICE GREATER THAN 1,000 KW","GENERAL SERVICE GREATER THAN 1,000 KW SERVICE CLASSIFICATION","Unit","Rate"]
["GENERAL SERVICE GREATER THAN 1,000 KW","Rate Rider for Ice Storm Cost Recovery - effective until December 31 , 2015","$",76.81]
["GENERAL SERVICE GREATER THAN 1,000 KW"]
["GENERAL SERVICE GREATER THAN 1,000 KW"]
["GENERAL SERVICE GREATER THAN 1,000 KW"]
["GENERAL SERVICE GREATER THAN 1,000 KW"]
["GENERAL SERVICE GREATER THAN 1,000 KW"]
["GENERAL SERVICE GREATER THAN 1,000 KW"]
["GENERAL SERVICE GREATER THAN 1,000 KW"]
["GENERAL SERVICE GREATER THAN 1,000 KW"]
["GENERAL SERVICE GREATER THAN 1,000 KW"]
[]
["UNMETERED SCATTERED LOAD","UNMETERED SCATTERED LOAD SERVICE CLASSIFICATION","Unit","Rate"]
["UNMETERED SCATTERED LOAD","Rate Rider for Ice Storm Cost Recovery - effective until December 31 , 2015","$",0.13]
["UNMETERED SCATTERED LOAD"]
["UNMETERED SCATTERED LOAD"]
["UNMETERED SCATTERED LOAD"]
["UNMETERED SCATTERED LOAD"]
["UNMETERED SCATTERED LOAD"]
["UNMETERED SCATTERED LOAD"]
["UNMETERED SCATTERED LOAD"]
["UNMETERED SCATTERED LOAD"]
["UNMETERED SCATTERED LOAD"]
[]
["SENTINEL LIGHTING","SENTINEL LIGHTING SERVICE CLASSIFICATION","Unit","Rate"]
["SENTINEL LIGHTING","Rate Rider for Ice Storm Cost Recovery - effective until December 31 , 2015","$",0.1]
["SENTINEL LIGHTING"]
["SENTINEL LIGHTING"]
["SENTINEL LIGHTING"]
["SENTINEL LIGHTING"]
["SENTINEL LIGHTING"]
["SENTINEL LIGHTING"]
["SENTINEL LIGHTING"]
["SENTINEL LIGHTING"]
["SENTINEL LIGHTING"]
[]
["STREET LIGHTING","STREET LIGHTING SERVICE CLASSIFICATION","Unit","Rate"]
["STREET LIGHTING","Rate Rider for Ice Storm Cost Recovery - effective until December 31 , 2015","$",0.08]
["STREET LIGHTING","Rate Rider for Ice Storm Cost Recovery - effective until December 31 , 2015"]
["STREET LIGHTING"]
["STREET LIGHTING"]
["STREET LIGHTING"]
["STREET LIGHTING"]
["STREET LIGHTING"]
["STREET LIGHTING"]
["STREET LIGHTING"]
["STREET LIGHTING"]
[]
["EMBEDDED DISTRIBUTOR","EMBEDDED DISTRIBUTOR SERVICE CLASSIFICATION","Unit","Rate"]
["EMBEDDED DISTRIBUTOR"]
["EMBEDDED DISTRIBUTOR"]
["EMBEDDED DISTRIBUTOR"]
["EMBEDDED DISTRIBUTOR"]
["EMBEDDED DISTRIBUTOR"]
["EMBEDDED DISTRIBUTOR"]
["EMBEDDED DISTRIBUTOR"]
["EMBEDDED DISTRIBUTOR"]
["EMBEDDED DISTRIBUTOR"]
["EMBEDDED DISTRIBUTOR"]
[]
["microFIT","microFIT SERVICE CLASSIFICATION","Unit","Rate"]
["microFIT"]
["microFIT"]
["microFIT"]
["microFIT"]
["microFIT"]
["microFIT"]
["microFIT"]
["microFIT"]
["microFIT"]
["microFIT"]
[]
[]
[]
[null,"PROPOSED MONTHLY RATES AND CHARGES - Regulatory Component"]
[]
["Wholesale Market Service Rate","Wholesale Market Service Rate","$/kWh",4.4000000000000003E-3]
["Rural or Remote Electricity Rate Protection Charge (RRRP)","Rural or Remote Electricity Rate Protection Charge (RRRP)","$/kWh",1.2999999999999999E-3]
["Standard Supply Service - Administrative Charge (if applicable)","Standard Supply Service - Administrative Charge (if applicable)","$",0.25]

{"sheet":"26. Hidden","index":31,"n_rows":115,"n_cols":4,"rows_kept":115,"cut":false,"hidden":true,"merged":[]}
["RESIDENTIAL","RESIDENTIAL SERVICE CLASSIFICATION","Unit","Rate"]
["RESIDENTIAL","Rate Rider for Ice Storm Cost Recovery - effective until December 31 , 2015","$",0.26]
["RESIDENTIAL"]
["RESIDENTIAL"]
["RESIDENTIAL"]
["RESIDENTIAL"]
["RESIDENTIAL"]
["RESIDENTIAL"]
["RESIDENTIAL"]
["RESIDENTIAL"]
["RESIDENTIAL"]
[]
["GENERAL SERVICE LESS THAN 50 KW","GENERAL SERVICE LESS THAN 50 KW SERVICE CLASSIFICATION","Unit","Rate"]
["GENERAL SERVICE LESS THAN 50 KW","Rate Rider for Ice Storm Cost Recovery - effective until December 31 , 2015","$",0.73]
["GENERAL SERVICE LESS THAN 50 KW"]
["GENERAL SERVICE LESS THAN 50 KW"]
["GENERAL SERVICE LESS THAN 50 KW"]
["GENERAL SERVICE LESS THAN 50 KW"]
["GENERAL SERVICE LESS THAN 50 KW"]
["GENERAL SERVICE LESS THAN 50 KW"]
["GENERAL SERVICE LESS THAN 50 KW"]
["GENERAL SERVICE LESS THAN 50 KW"]
["GENERAL SERVICE LESS THAN 50 KW"]
[]
["GENERAL SERVICE 50 TO 1,000 KW","GENERAL SERVICE 50 TO 1,000 KW SERVICE CLASSIFICATION","Unit","Rate"]
["GENERAL SERVICE 50 TO 1,000 KW","Rate Rider for Ice Storm Cost Recovery - effective until December 31 , 2015","$",7.5]
["GENERAL SERVICE 50 TO 1,000 KW"]
["GENERAL SERVICE 50 TO 1,000 KW"]
["GENERAL SERVICE 50 TO 1,000 KW"]
["GENERAL SERVICE 50 TO 1,000 KW"]
["GENERAL SERVICE 50 TO 1,000 KW"]
["GENERAL SERVICE 50 TO 1,000 KW"]
["GENERAL SERVICE 50 TO 1,000 KW"]
["GENERAL SERVICE 50 TO 1,000 KW"]
["GENERAL SERVICE 50 TO 1,000 KW"]
[]
["GENERAL SERVICE GREATER THAN 1,000 KW","GENERAL SERVICE GREATER THAN 1,000 KW SERVICE CLASSIFICATION","Unit","Rate"]
["GENERAL SERVICE GREATER THAN 1,000 KW","Rate Rider for Ice Storm Cost Recovery - effective until December 31 , 2015","$",76.81]
["GENERAL SERVICE GREATER THAN 1,000 KW"]
["GENERAL SERVICE GREATER THAN 1,000 KW"]
["GENERAL SERVICE GREATER THAN 1,000 KW"]
["GENERAL SERVICE GREATER THAN 1,000 KW"]
["GENERAL SERVICE GREATER THAN 1,000 KW"]
["GENERAL SERVICE GREATER THAN 1,000 KW"]
["GENERAL SERVICE GREATER THAN 1,000 KW"]
["GENERAL SERVICE GREATER THAN 1,000 KW"]
["GENERAL SERVICE GREATER THAN 1,000 KW"]
[]
["UNMETERED SCATTERED LOAD","UNMETERED SCATTERED LOAD SERVICE CLASSIFICATION","Unit","Rate"]
["UNMETERED SCATTERED LOAD","Rate Rider for Ice Storm Cost Recovery - effective until December 31 , 2015","$",0.13]
["UNMETERED SCATTERED LOAD"]
["UNMETERED SCATTERED LOAD"]
["UNMETERED SCATTERED LOAD"]
["UNMETERED SCATTERED LOAD"]
["UNMETERED SCATTERED LOAD"]
["UNMETERED SCATTERED LOAD"]
["UNMETERED SCATTERED LOAD"]
["UNMETERED SCATTERED LOAD"]
["UNMETERED SCATTERED LOAD"]
[]
["SENTINEL LIGHTING","SENTINEL LIGHTING SERVICE CLASSIFICATION","Unit","Rate"]
["SENTINEL LIGHTING","Rate Rider for Ice Storm Cost Recovery - effective until December 31 , 2015","$",0.1]
["SENTINEL LIGHTING"]
["SENTINEL LIGHTING"]
["SENTINEL LIGHTING"]
["SENTINEL LIGHTING"]
["SENTINEL LIGHTING"]
["SENTINEL LIGHTING"]
["SENTINEL LIGHTING"]
["SENTINEL LIGHTING"]
["SENTINEL LIGHTING"]
[]
["STREET LIGHTING","STREET LIGHTING SERVICE CLASSIFICATION","Unit","Rate"]
["STREET LIGHTING","Rate Rider for Ice Storm Cost Recovery - effective until December 31 , 2015","$",0.08]
["STREET LIGHTING","Rate Rider for Ice Storm Cost Recovery - effective until December 31 , 2015"]
["STREET LIGHTING"]
["STREET LIGHTING"]
["STREET LIGHTING"]
["STREET LIGHTING"]
["STREET LIGHTING"]
["STREET LIGHTING"]
["STREET LIGHTING"]
["STREET LIGHTING"]
[]
["EMBEDDED DISTRIBUTOR","EMBEDDED DISTRIBUTOR SERVICE CLASSIFICATION","Unit","Rate"]
["EMBEDDED DISTRIBUTOR"]
["EMBEDDED DISTRIBUTOR"]
["EMBEDDED DISTRIBUTOR"]
["EMBEDDED DISTRIBUTOR"]
["EMBEDDED DISTRIBUTOR"]
["EMBEDDED DISTRIBUTOR"]
["EMBEDDED DISTRIBUTOR"]
["EMBEDDED DISTRIBUTOR"]
["EMBEDDED DISTRIBUTOR"]
["EMBEDDED DISTRIBUTOR"]
[]
["microFIT","microFIT SERVICE CLASSIFICATION","Unit","Rate"]
["microFIT"]
["microFIT"]
["microFIT"]
["microFIT"]
["microFIT"]
["microFIT"]
["microFIT"]
["microFIT"]
["microFIT"]
["microFIT"]
[]
[]
[]
[null,"PROPOSED MONTHLY RATES AND CHARGES - Regulatory Component"]
[]
["Wholesale Market Service Rate","Wholesale Market Service Rate","$/kWh",4.4000000000000003E-3]
["Rural or Remote Electricity Rate Protection Charge (RRRP)","Rural or Remote Electricity Rate Protection Charge (RRRP)","$/kWh",1.2999999999999999E-3]
["Standard Supply Service - Administrative Charge (if applicable)","Standard Supply Service - Administrative Charge (if applicable)","$",0.25]

{"sheet":"27. Final Tariff Schedule","index":32,"n_rows":373,"n_cols":26,"rows_kept":373,"cut":false,"hidden":false,"merged":[[370,1,370,2],[371,1,371,2],[372,1,372,2],[312,1,312,2],[313,1,313,2],[314,1,314,2],[315,1,315,2],[316,1,316,2],[317,1,317,2],[330,1,330,2],[331,1,331,2],[332,1,332,2],[318,1,318,2],[333,1,333,2],[347,1,347,4],[349,1,349,4],[337,1,337,2],[329,1,329,2],[319,1,319,2],[327,1,327,2],[320,1,320,2],[268,1,268,2],[269,1,269,2],[270,1,270,2],[271,1,271,2],[272,1,272,2],[282,1,282,4],[286,1,286,4],[290,1,290,4],[296,1,296,2],[204,1,204,2],[219,1,219,4],[223,1,223,4],[227,1,227,4],[233,1,233,2],[234,1,234,2],[235,1,235,2],[236,1,236,2],[237,1,237,2],[214,1,214,2],[215,1,215,2],[229,1,229,4],[205,1,205,2],[225,1,225,4],[206,1,206,2],[207,1,207,2],[208,1,208,2],[186,1,186,4],[190,1,190,4],[192,1,192,4],[194,1,194,4],[196,1,196,4],[200,1,200,2],[201,1,201,2],[202,1,202,2],[203,1,203,2],[166,1,166,2],[167,1,167,2],[168,1,168,2],[169,1,169,2],[170,1,170,2],[174,1,174,2],[175,1,175,2],[180,1,180,2],[182,1,182,2],[176,1,176,2],[142,1,142,2],[146,1,146,2],[147,1,147,2],[148,1,148,2],[152,1,152,4],[156,1,156,4],[158,1,158,4],[160,1,160,4],[162,1,162,4],[76,1,76,2],[77,1,77,2],[82,1,82,4],[86,1,86,4],[96,1,96,2],[97,1,97,2],[88,1,88,4],[62,1,62,2],[63,1,63,2],[65,1,65,2],[66,1,66,2],[67,1,67,2],[68,1,68,2],[78,1,78,2],[90,1,90,4],[70,1,70,2],[71,1,71,2],[72,1,72,2],[321,1,321,2],[328,1,328,2],[341,1,341,4],[343,1,343,4],[345,1,345,4],[288,1,288,4],[292,1,292,4],[277,1,277,2],[276,1,276,2],[305,1,305,4],[307,1,307,4],[309,1,309,4],[335,1,335,2],[336,1,336,2],[278,1,278,2],[322,1,322,2],[323,1,323,2],[260,1,260,4],[264,1,264,4],[242,1,242,2],[243,1,243,2],[240,1,240,2],[244,1,244,2],[254,1,254,4],[258,1,258,4],[262,1,262,4],[241,1,241,2],[239,1,239,2],[248,1,248,2],[249,1,249,2],[250,1,250,2],[238,1,238,2],[92,1,92,4],[99,1,99,2],[100,1,100,2],[103,1,103,2],[108,1,108,2],[98,1,98,2],[101,1,101,2],[102,1,102,2],[104,1,104,2],[105,1,105,2],[106,1,106,2],[107,1,107,2],[112,1,112,2],[113,1,113,2],[114,1,114,2],[173,1,173,2],[181,1,181,2],[209,1,209,2],[213,1,213,2],[363,1,363,2],[359,1,359,2],[369,1,369,2],[362,1,362,2],[360,1,360,2],[361,1,361,2],[353,1,353,2],[354,1,354,2],[355,1,355,2],[356,1,356,2],[357,1,357,2],[358,1,358,2],[367,1,367,4],[6,1,6,4],[0,1,0,4],[1,1,1,4],[2,1,2,4],[4,1,4,4],[5,1,5,4],[172,1,172,2],[171,1,171,2],[136,1,136,2],[135,1,135,2],[137,1,137,2],[138,1,138,2],[139,1,139,2],[118,1,118,4],[122,1,122,4],[124,1,124,4],[126,1,126,4],[128,1,128,4],[132,1,132,2],[133,1,133,2],[134,1,134,2],[140,1,140,2],[141,1,141,2],[10,1,10,4],[14,1,14,4],[18,1,18,4],[20,1,20,4],[24,1,24,2],[25,1,25,2],[26,1,26,2],[27,1,27,2],[28,1,28,2],[16,1,16,4],[29,1,29,2],[30,1,30,2],[31,1,31,2],[32,1,32,2],[33,1,33,2],[34,1,34,2],[35,1,35,2],[61,1,61,2],[69,1,69,2],[64,1,64,2],[41,1,41,2],[36,1,36,2],[42,1,42,2],[40,1,40,2],[46,1,46,4],[50,1,50,4],[52,1,52,4],[54,1,54,4],[56,1,56,4],[60,1,60,2]]}
["hidden column",{"$f":"'1. Information Sheet'!F14","v":"Oakville Hydro Electricity Distribution Inc."},null,null,null,"hidden column",null,null,null,null,null,null,null,null,null,null,null,null,null,null,null,null,null,null,null,3]
["for rate classes","TARIFF OF RATES AND CHARGES",null,null,null,"for proposed"]
[null,{"$f":"\"Effective and Implementation Date \" & TEXT('1. Information Sheet'!F26, \"mmmm dd, yyyy\")","v":"Effective and Implementation Date January 01, 2015"},null,null,null,"labeliing"]
[]
[null,"This schedule supersedes and replaces all previously"]
[null,"approved schedules of Rates, Charges and Loss Factors",null,null,null,null,null,null,null,null,null,{"$f":"ROUND(LEN(B6), -2) / 100","v":1}]
[null,{"$f":"IF(LEN('1. Information Sheet'!F18)=0, \"Please enter your assigned EB# on Sheet 1\", '1. Information Sheet'!F18)","v":"EB-2014-0102"}]
[]
[null,"RESIDENTIAL SERVICE CLASSIFICATION"]
[]
[null,"This class refers to the supply of electrical energy to detached and semi-detached residential buildings as well as farms as defined in the local zoning by-laws. Where the residential dwelling comprises the entire electrical load of a farm, it is defined as a residential service. Where electricity is provided to a combined residential and business (including agricultural usage) and the service does not provide for separate metering, the classification shall be at the discretion of Oakville Hydro and shall be based on such considerations as the estimated predominant consumption. Further servicing details are available in the distributor’s Conditions of Service. ",null,null,null,null,null,null,null,null,null,{"$f":"ROUND(LEN(B11), -2) / 100","v":7}]
[]
[null,"APPLICATION"]
[]
[null,"The application of these rates and charges shall be in accordance with the Licence of the Distributor and any Code or Order of the Board, and amendments thereto as approved by the Board, which may be applicable to the administration of this schedule. ",null,null,null,null,null,null,null,null,null,{"$f":"ROUND(LEN(B15), -2) / 100","v":3}]
[]
[null,"No rates and charges for the distribution of electricity and charges to meet the costs of any work or service done or furnished for the purpose of the distribution of electricity shall be made except as permitted by this schedule, unless required by the Distributor’s Licence or a Code or Order of the Board, and amendments thereto as approved by the Board, or as specified herein. ",null,null,null,null,null,null,null,null,null,{"$f":"ROUND(LEN(B17), -2) / 100","v":4}]
[]
[null,"Unless specifically noted, this schedule does not contain any charges for the electricity commodity, be it under the Regulated Price Plan, a contract with a retailer or the wholesale market price, as applicable. In addition, the charges in the MONTHLY RATES AND CHARGES – Regulatory Component of this schedule do not apply to a customer that is an embedded wholesale market participant",null,null,null,null,null,null,null,null,null,{"$f":"ROUND(LEN(B19), -2) / 100","v":4}]
[]
[null,"It should be noted that this schedule does not list any charges or assessments that are required by law to be charged by a distributor and that are not subject to Board approval, such as the Debt Retirement Charge, charges for Ministry of Energy Conservation and Renewable Energy Program, the Provincial Benefit and any applicable taxes. ",null,null,null,null,null,null,null,null,null,{"$f":"ROUND(LEN(B21), -2) / 100","v":3}]
[]
[null,"MONTHLY RATES AND CHARGES - Delivery Component"]
[]
["RESIDENTIAL","Service Charge",null,"$",14.59,null,null,null,null,null,"1_P_MSC"]
["RESIDENTIAL","Rate Rider for Recovery of Stranded Meter Assets - effective until April 30, 2019",null,"$",0.77,null,null,null,null,null,"1_P_MSC_Rate_Rider_1"]
["RESIDENTIAL","Rate Rider for Smart Metering Entity Charge - effective until October 31, 2018",null,"$",0.79,null,null,null,null,null,"1_P_SMEC"]
["RESIDENTIAL","Distribution Volumetric Rate",null,"$/kWh",1.5900000000000001E-2,null,null,null,null,null,"1_P_VC_1"]
["RESIDENTIAL","Low Voltage Service Rate",null,"$/kWh",4.0000000000000002E-4,null,null,null,null,null,"1_P_LVrate"]
["RESIDENTIAL","Rate Rider for Disposition of Deferral/Variance Accounts (2014) - effective until April 30, 2015",null,"$/kWh",-5.0000000000000001E-4,null,null,null,null,null,"1_P_VC_DEFVAR_kWh_1"]
["RESIDENTIAL","Rate Rider for Disposition of Global Adjustment Sub-Account (2014) - effective until April 30, 2015\n      Applicable only for Non-RPP Customers",null,"$/kWh",-1.6000000000000001E-3,null,null,null,null,null,"1_P_VC_GA_Rate_Rider_kWh_1"]
["RESIDENTIAL","Rate Rider for Disposition of Account 1576 - effective until April 30, 2015\n",null,"$/kWh",-5.9999999999999995E-4,null,null,null,null,null,"1_P_VC_Rate_Rider_kWh_2"]
["RESIDENTIAL","Rate Rider for Disposition of CGAAP CWIP DIfferential - effective until April 30, 2015\n",null,"$/kWh",2.9999999999999997E-4,null,null,null,null,null,"1_P_VC_Rate_Rider_kWh_3"]
["RESIDENTIAL","Rate Rider for Disposition of Incremental Capital Expenditures - effective until April 30, 2015\n",null,"$/kWh",2.0000000000000001E-4,null,null,null,null,null,"1_P_VC_Rate_Rider_kWh_4"]
["RESIDENTIAL","Rate Rider for Ice Storm Cost Recovery - effective until December 31 , 2015",null,"$",0.26,null,null,null,null,null,"1_P_MSC_Rate_Rider_3"]
["RESIDENTIAL","Retail Transmission Rate - Network Service Rate",null,"$/kWh",8.3444327106628868E-3,null,null,null,null,null,"1_P_RTSR_Network"]
["RESIDENTIAL","Retail Transmission Rate - Line and Transformation Connection Service Rate",null,"$/kWh",5.6033303509671027E-3,null,null,null,null,null,"1_P_RTSR_Connection"]
["RESIDENTIAL"]
["RESIDENTIAL","MONTHLY RATES AND CHARGES - Regulatory Component"]
["RESIDENTIAL"]
["RESIDENTIAL","Wholesale Market Service Rate",null,"$/kWh",4.4000000000000003E-3,null,null,null,null,null,"1_P_WMSR"]
["RESIDENTIAL","Rural or Remote Electricity Rate Protection Charge (RRRP)",null,"$/kWh",1.2999999999999999E-3,null,null,null,null,null,"1_P_RRPC"]
["RESIDENTIAL","Standard Supply Service - Administrative Charge (if applicable)",null,"$",0.25,null,null,null,null,null,"1_P_SSS"]
[]
[null,"GENERAL SERVICE LESS THAN 50 KW SERVICE CLASSIFICATION"]
[]
[null,"This class refers to customers who do not qualify as residential customers and whose monthly average peak demand in the preceding twelve months is less than 50kW. For new customers without prior billing history, the peak demand will be based on 90% of the proposed capacity or installed transformation. Note: Apartment buildings or multi-unit complexes and subdivisions that are not individually metered are treated as General Service. Further servicing details are available in the distributor’s Conditions of Service. ",null,null,null,null,null,null,null,null,null,{"$f":"ROUND(LEN(B47), -2) / 100","v":5}]
[]
[null,"APPLICATION"]
[]
[null,"The application of these rates and charges shall be in accordance with the Licence of the Distributor and any Code or Order of the Board, and amendments thereto as approved by the Board, which may be applicable to the administration of this schedule",null,null,null,null,null,null,null,null,null,{"$f":"ROUND(LEN(B51), -2) / 100","v":2}]
[]
[null,"No rates and charges for the distribution of electricity and charges to meet the costs of any work or service done or furnished for the purpose of the distribution of electricity shall be made except as permitted by this schedule, unless required by the Distributor’s Licence or a Code or Order of the Board, and amendments thereto as approved by the Board, or as specified herein. ",null,null,null,null,null,null,null,null,null,{"$f":"ROUND(LEN(B53), -2) / 100","v":4}]
[]
[null,"Unless specifically noted, this schedule does not contain any charges for the electricity commodity, be it under the Regulated Price Plan, a contract with a retailer or the wholesale market price, as applicable. In addition, the charges in the MONTHLY RATES AND CHARGES – Regulatory Component of this schedule do not apply to a customer that is an embedded wholesale market participant",null,null,null,null,null,null,null,null,null,{"$f":"ROUND(LEN(B55), -2) / 100","v":4}]
[]
[null,"It should be noted that this schedule does not list any charges, assessments or credits that are required by law to be invoiced by a distributor and that are not subject to Board approval, such as the Debt Retirement Charge, the Global Adjustment, the Ontario Clean Energy Benefit and the HST. ",null,null,null,null,null,null,null,null,null,{"$f":"ROUND(LEN(B57), -2) / 100","v":3}]
[]
[null,"MONTHLY RATES AND CHARGES - Delivery Component"]
[]
["GENERAL SERVICE LESS THAN 50 KW","Service Charge",null,"$",35.11,null,null,null,null,null,"2_P_MSC"]
["GENERAL SERVICE LESS THAN 50 KW","Rate Rider for Recovery of Stranded Meter Assets - effective until April 30, 2019",null,"$",2.27,null,null,null,null,null,"2_P_MSC_Rate_Rider_1"]
["GENERAL SERVICE LESS THAN 50 KW","Rate Rider for Smart Metering Entity Charge - effective until October 31, 2018",null,"$",0.79,null,null,null,null,null,"2_P_SMEC"]
["GENERAL SERVICE LESS THAN 50 KW","Distribution Volumetric Rate",null,"$/kWh",1.55E-2,null,null,null,null,null,"2_P_VC_1"]
["GENERAL SERVICE LESS THAN 50 KW","Low Voltage Service Rate",null,"$/kWh",2.9999999999999997E-4,null,null,null,null,null,"2_P_LVrate"]
["GENERAL SERVICE LESS THAN 50 KW","Rate Rider for Disposition of Deferral/Variance Accounts (2014) - effective until April 30, 2015",null,"$/kWh",-6.9999999999999999E-4,null,null,null,null,null,"2_P_VC_DEFVAR_kWh_1"]
["GENERAL SERVICE LESS THAN 50 KW","Rate Rider for Disposition of Global Adjustment Sub-Account (2014) - effective until April 30, 2015\n      Applicable only for Non-RPP Customers",null,"$/kWh",-1.6000000000000001E-3,null,null,null,null,null,"2_P_VC_GA_Rate_Rider_kWh_1"]
["GENERAL SERVICE LESS THAN 50 KW","Rate Rider for Disposition of Account 1576 - effective until April 30, 2015\n",null,"$/kWh",-5.9999999999999995E-4,null,null,null,null,null,"2_P_VC_Rate_Rider_kWh_2"]
["GENERAL SERVICE LESS THAN 50 KW","Rate Rider for Disposition of CGAAP CWIP DIfferential - effective until April 30, 2015\n",null,"$/kWh",2.9999999999999997E-4,null,null,null,null,null,"2_P_VC_Rate_Rider_kWh_3"]
["GENERAL SERVICE LESS THAN 50 KW","Rate Rider for Disposition of Incremental Capital Expenditures - effective until April 30, 2015\n",null,"$/kWh",2.0000000000000001E-4,null,null,null,null,null,"2_P_VC_Rate_Rider_kWh_4"]
["GENERAL SERVICE LESS THAN 50 KW","Rate Rider for Ice Storm Cost Recovery - effective until December 31 , 2015",null,"$",0.73,null,null,null,null,null,"2_P_MSC_Rate_Rider_3"]
["GENERAL SERVICE LESS THAN 50 KW","Retail Transmission Rate - Network Service Rate",null,"$/kWh",7.710678327574565E-3,null,null,null,null,null,"2_P_RTSR_Network"]
["GENERAL SERVICE LESS THAN 50 KW","Retail Transmission Rate - Line and Transformation Connection Service Rate",null,"$/kWh",5.0747142801211504E-3,null,null,null,null,null,"2_P_RTSR_Connection"]
["GENERAL SERVICE LESS THAN 50 KW"]
["GENERAL SERVICE LESS THAN 50 KW","MONTHLY RATES AND CHARGES - Regulatory Component"]
["GENERAL SERVICE LESS THAN 50 KW"]
["GENERAL SERVICE LESS THAN 50 KW","Wholesale Market Service Rate",null,"$/kWh",4.4000000000000003E-3,null,null,null,null,null,"2_P_WMSR"]
["GENERAL SERVICE LESS THAN 50 KW","Rural or Remote Electricity Rate Protection Charge (RRRP)",null,"$/kWh",1.2999999999999999E-3,null,null,null,null,null,"2_P_RRPC"]
["GENERAL SERVICE LESS THAN 50 KW","Standard Supply Service - Administrative Charge (if applicable)",null,"$",0.25,null,null,null,null,null,"2_P_SSS"]
[]
[null,"GENERAL SERVICE 50 TO 1,000 KW SERVICE CLASSIFICATION"]
[]
[null,"This class refers to customers who do not qualify as residential customers whose monthly average peak demand in the preceding twelve months is in the range of 50 to 999 kW. There are two sub categories within this class, those being non-interval and interval metered accounts. For new customers without prior billing history, the peak demand will be based on 90% of the proposed capacity or installed transformation. Further servicing details are available in the distributor’s Conditions of Service. ",null,null,null,null,null,null,null,null,null,{"$f":"ROUND(LEN(B83), -2) / 100","v":5}]
[]
[null,"APPLICATION"]
[]
[null,"The application of these rates and charges shall be in accordance with the Licence of the Distributor and any Code or Order of the Board, and amendments thereto as approved by the Board, which may be applicable to the administration of this schedule. ",null,null,null,null,null,null,null,null,null,{"$f":"ROUND(LEN(B87), -2) / 100","v":3}]
[]
[null,"No rates and charges for the distribution of electricity and charges to meet the costs of any work or service done or furnished for the purpose of the distribution of electricity shall be made except as permitted by this schedule, unless required by the Distributor’s Licence or a Code or Order of the Board, and amendments thereto as approved by the Board, or as specified herein. ",null,null,null,null,null,null,null,null,null,{"$f":"ROUND(LEN(B89), -2) / 100","v":4}]
[]
[null,"Unless specifically noted, this schedule does not contain any charges for the electricity commodity, be it under the Regulated Price Plan, a contract with a retailer or the wholesale market price, as applicable. In addition, the charges in the MONTHLY RATES AND CHARGES – Regulatory Component of this schedule do not apply to a customer that is an embedded wholesale market participant. ",null,null,null,null,null,null,null,null,null,{"$f":"ROUND(LEN(B91), -2) / 100","v":4}]
[]
[null,"It should be noted that this schedule does not list any charges, assessments or credits that are required by law to be invoiced by a distributor and that are not subject to Board approval, such as the Debt Retirement Charge, the Global Adjustment, the Ontario Clean Energy Benefit and the HST",null,null,null,null,null,null,null,null,null,{"$f":"ROUND(LEN(B93), -2) / 100","v":3}]
[]
[null,"MONTHLY RATES AND CHARGES - Delivery Component"]
[]
["GENERAL SERVICE 50 TO 1,000 KW","Service Charge",null,"$",119.81,null,null,null,null,null,"3_P_MSC"]
["GENERAL SERVICE 50 TO 1,000 KW","Distribution Volumetric Rate",null,"$/kW",4.6852999999999998,null,null,null,null,null,"3_P_VC_1"]
["GENERAL SERVICE 50 TO 1,000 KW","Low Voltage Service Rate",null,"$/kW",0.1313,null,null,null,null,null,"3_P_LVrate"]
["GENERAL SERVICE 50 TO 1,000 KW","Rate Rider for Disposition of Deferral/Variance Accounts (2014) - effective until April 30, 2015",null,"$/kW",-0.52270000000000005,null,null,null,null,null,"3_P_VC_DEFVAR_kW_1"]
["GENERAL SERVICE 50 TO 1,000 KW","Rate Rider for Disposition of Global Adjustment Sub-Account (2014) - effective until April 30, 2015\n      Applicable only for Non-RPP Customers",null,"$/kW",-0.58330000000000004,null,null,null,null,null,"3_P_VC_GA_Rate_Rider_kW_1"]
["GENERAL SERVICE 50 TO 1,000 KW","Rate Rider for Disposition of Account 1576 - effective until April 30, 2015\n",null,"$/kW",-0.21049999999999999,null,null,null,null,null,"3_P_VC_Rate_Rider_kW_2"]
["GENERAL SERVICE 50 TO 1,000 KW","Rate Rider for Disposition of CGAAP CWIP DIfferential - effective until April 30, 2015\n",null,"$/kW",0.1138,null,null,null,null,null,"3_P_VC_Rate_Rider_kW_3"]
["GENERAL SERVICE 50 TO 1,000 KW","Rate Rider for Disposition of Incremental Capital Expenditures - effective until April 30, 2015\n",null,"$/kW",6.8199999999999997E-2,null,null,null,null,null,"3_P_VC_Rate_Rider_kW_4"]
["GENERAL SERVICE 50 TO 1,000 KW","Rate Rider for Ice Storm Cost Recovery - effective until December 31 , 2015",null,"$",7.5,null,null,null,null,null,"3_P_MSC_Rate_Rider_1"]
["GENERAL SERVICE 50 TO 1,000 KW","Retail Transmission Rate - Network Service Rate",null,"$/kW",2.8984756710544333,null,null,null,null,null,"3_P_RTSR_Network"]
["GENERAL SERVICE 50 TO 1,000 KW","Retail Transmission Rate - Network Service Rate - Interval Metered",null,"$/kW",2.9921656940209904,null,null,null,null,null,"3_P_RTSR_Network_Interval"]
["GENERAL SERVICE 50 TO 1,000 KW","Retail Transmission Rate - Line and Transformation Connection Service Rate",null,"$/kW",1.9222594800242241,null,null,null,null,null,"3_P_RTSR_Connection"]
["GENERAL SERVICE 50 TO 1,000 KW","Retail Transmission Rate - Line and Transformation Connection Service Rate - Interval Metered",null,"$/kW",1.9845304531698769,null,null,null,null,null,"3_P_RTSR_Connection_Interval"]
["GENERAL SERVICE 50 TO 1,000 KW"]
["GENERAL SERVICE 50 TO 1,000 KW","MONTHLY RATES AND CHARGES - Regulatory Component"]
["GENERAL SERVICE 50 TO 1,000 KW"]
["GENERAL SERVICE 50 TO 1,000 KW","Wholesale Market Service Rate",null,"$/kWh",4.4000000000000003E-3,null,null,null,null,null,"3_P_WMSR"]
["GENERAL SERVICE 50 TO 1,000 KW","Rural or Remote Electricity Rate Protection Charge (RRRP)",null,"$/kWh",1.2999999999999999E-3,null,null,null,null,null,"3_P_RRPC"]
["GENERAL SERVICE 50 TO 1,000 KW","Standard Supply Service - Administrative Charge (if applicable)",null,"$",0.25,null,null,null,null,null,"3_P_SSS"]
[]
[null,"GENERAL SERVICE GREATER THAN 1,000 KW SERVICE CLASSIFICATION"]
[]
[null,"This class refers to customers who do not qualify as residential customers whose monthly average peak demand in the preceding twelve months is equal to or greater than 1,000 kW. These accounts will all be interval metered accounts. For new customers without prior billing history, the peak demand will be based on 90% of the proposed capacity or installed transformation. Further servicing details are available in the distributor’s Conditions of Service. ",null,null,null,null,null,null,null,null,null,{"$f":"ROUND(LEN(B119), -2) / 100","v":5}]
[]
[null,"APPLICATION"]
[]
[null,"The application of these rates and charges shall be in accordance with the Licence of the Distributor and any Code or Order of the Board, and amendments thereto as approved by the Board, which may be applicable to the administration of this schedule. ",null,null,null,null,null,null,null,null,null,{"$f":"ROUND(LEN(B123), -2) / 100","v":3}]
[]
[null,"No rates and charges for the distribution of electricity and charges to meet the costs of any work or service done or service done or furnished for the purpose of the distribution of electricity shall be made except as permitted by this schedule, unless required by the Distributor’s Licence or a Code or Order of the Board, and amendments thereto as approved by the Board, or as specified herein.",null,null,null,null,null,null,null,null,null,{"$f":"ROUND(LEN(B125), -2) / 100","v":4}]
[]
[null,"Unless specifically noted, this schedule does not contain any charges for the electricity commodity, be it under the Regulated Price Plan, a contract with a retailer or the wholesale market price, as applicable. In addition, the charges in the MONTHLY RATES AND CHARGES – Regulatory Component of this schedule do not apply to a customer that is an embedded wholesale market participant. ",null,null,null,null,null,null,null,null,null,{"$f":"ROUND(LEN(B127), -2) / 100","v":4}]
[]
[null,"It should be noted that this schedule does not list any charges, assessments or credits that are required by law to be invoiced by a distributor and that are not subject to Board approval, such as the Debt Retirement Charge, the Global Adjustment, the Ontario Clean Energy Benefit and the HST. ",null,null,null,null,null,null,null,null,null,{"$f":"ROUND(LEN(B129), -2) / 100","v":3}]
[]
[null,"MONTHLY RATES AND CHARGES - Delivery Component"]
[]
["GENERAL SERVICE GREATER THAN 1,000 KW","Service Charge",null,"$",3438.93,null,null,null,null,null,"4_P_MSC"]
["GENERAL SERVICE GREATER THAN 1,000 KW","Distribution Volumetric Rate",null,"$/kW",2.7193000000000001,null,null,null,null,null,"4_P_VC_1"]
["GENERAL SERVICE GREATER THAN 1,000 KW","Low Voltage Service Rate",null,"$/kW",0.1313,null,null,null,null,null,"4_P_LVrate"]
["GENERAL SERVICE GREATER THAN 1,000 KW","Rate Rider for Disposition of Deferral/Variance Accounts (2014) - effective until April 30, 2015",null,"$/kW",-0.73419999999999996,null,null,null,null,null,"4_P_VC_DEFVAR_kW_1"]
["GENERAL SERVICE GREATER THAN 1,000 KW","Rate Rider for Disposition of Global Adjustment Sub-Account (2014) - effective until April 30, 2015\n      Applicable only for Non-RPP Customers",null,"$/kW",-0.71440000000000003,null,null,null,null,null,"4_P_VC_GA_Rate_Rider_kW_1"]
["GENERAL SERVICE GREATER THAN 1,000 KW","Rate Rider for Disposition of Account 1576 - effective until April 30, 2015\n",null,"$/kW",-0.25790000000000002,null,null,null,null,null,"4_P_VC_Rate_Rider_kW_2"]
["GENERAL SERVICE GREATER THAN 1,000 KW","Rate Rider for Disposition of CGAAP CWIP DIfferential - effective until April 30, 2015\n",null,"$/kW",0.13930000000000001,null,null,null,null,null,"4_P_VC_Rate_Rider_kW_3"]
["GENERAL SERVICE GREATER THAN 1,000 KW","Rate Rider for Disposition of Incremental Capital Expenditures - effective until April 30, 2015\n",null,"$/kW",8.3599999999999994E-2,null,null,null,null,null,"4_P_VC_Rate_Rider_kW_4"]
["GENERAL SERVICE GREATER THAN 1,000 KW","Rate Rider for Ice Storm Cost Recovery - effective until December 31 , 2015",null,"$",76.81,null,null,null,null,null,"4_P_MSC_Rate_Rider_1"]
["GENERAL SERVICE GREATER THAN 1,000 KW","Retail Transmission Rate - Network Service Rate - Interval Metered",null,"$/kW",2.9921656940209904,null,null,null,null,null,"4_P_RTSR_Network_Interval"]
["GENERAL SERVICE GREATER THAN 1,000 KW","Retail Transmission Rate - Line and Transformation Connection Service Rate - Interval Metered",null,"$/kW",1.9845304531698769,null,null,null,null,null,"4_P_RTSR_Connection_Interval"]
["GENERAL SERVICE GREATER THAN 1,000 KW"]
["GENERAL SERVICE GREATER THAN 1,000 KW","MONTHLY RATES AND CHARGES - Regulatory Component"]
["GENERAL SERVICE GREATER THAN 1,000 KW"]
["GENERAL SERVICE GREATER THAN 1,000 KW","Wholesale Market Service Rate",null,"$/kWh",4.4000000000000003E-3,null,null,null,null,null,"4_P_WMSR"]
["GENERAL SERVICE GREATER THAN 1,000 KW","Rural or Remote Electricity Rate Protection Charge (RRRP)",null,"$/kWh",1.2999999999999999E-3,null,null,null,null,null,"4_P_RRPC"]
["GENERAL SERVICE GREATER THAN 1,000 KW","Standard Supply Service - Administrative Charge (if applicable)",null,"$",0.25,null,null,null,null,null,"4_P_SSS"]
[]
[null,"UNMETERED SCATTERED LOAD SERVICE CLASSIFICATION"]
[]
[null,"This classification applies to an account taking electricity at 750 volts or less whose average monthly maximum demand is less than, or is forecast to be less than, 50 kW and the consumption is unmetered. Such connections include cable TV power packs, bus shelters, telephone booths, traffic lights, pedestrian X-Walk signals/beacons, railway crossings, etc. The level of the consumption will be agreed to by the distributor and the customer, based on detailed manufacturer information and documentation with regard to electrical consumption of the unmetered load or periodic monitoring of actual consumption. Further servicing details are available in the distributor’s Conditions of Service. ",null,null,null,null,null,null,null,null,null,{"$f":"ROUND(LEN(B153), -2) / 100","v":7}]
[]
[null,"APPLICATION"]
[]
[null,"The application of these rates and charges shall be in accordance with the Licence of the Distributor and any Code or Order of the Board, and amendments thereto as approved by the Board, which may be applicable to the administration of this schedule. ",null,null,null,null,null,null,null,null,null,{"$f":"ROUND(LEN(B157), -2) / 100","v":3}]
[]
[null,"No rates and charges for the distribution of electricity and charges to meet the costs of any work or service done or furnished for the purpose of the distribution of electricity shall be made except as permitted by this schedule, unless required by the Distributor’s Licence or a Code or Order of the Board, and amendments thereto as approved by the Board, or as specified herein. ",null,null,null,null,null,null,null,null,null,{"$f":"ROUND(LEN(B159), -2) / 100","v":4}]
[]
[null,"Unless specifically noted, this schedule does not contain any charges for the electricity commodity, be it under the Regulated Price Plan, a contract with a retailer or the wholesale market price, as applicable. In addition, the charges in the MONTHLY RATES AND CHARGES – Regulatory Component of this schedule do not apply to a customer that is an embedded wholesale market participant. ",null,null,null,null,null,null,null,null,null,{"$f":"ROUND(LEN(B161), -2) / 100","v":4}]
[]
[null,"It should be noted that this schedule does not list any charges, assessments or credits that are required by law to be invoiced by a distributor and that are not subject to Board approval, such as the Debt Retirement Charge, the Global Adjustment, the Ontario Clean Energy Benefit and the HST. ",null,null,null,null,null,null,null,null,null,{"$f":"ROUND(LEN(B163), -2) / 100","v":3}]
[]
[null,"MONTHLY RATES AND CHARGES - Delivery Component"]
[]
["UNMETERED SCATTERED LOAD","Service Charge (per connection)",null,"$",9.94,null,null,null,null,null,"5_P_MSC"]
["UNMETERED SCATTERED LOAD","Distribution Volumetric Rate",null,"$/kWh",9.2999999999999992E-3,null,null,null,null,null,"5_P_VC_1"]
["UNMETERED SCATTERED LOAD","Low Voltage Service Rate",null,"$/kWh",2.9999999999999997E-4,null,null,null,null,null,"5_P_LVrate"]
["UNMETERED SCATTERED LOAD","Rate Rider for Disposition of Deferral/Variance Accounts (2014) - effective until April 30, 2015",null,"$/kWh",-6.9999999999999999E-4,null,null,null,null,null,"5_P_VC_DEFVAR_kWh_1"]
["UNMETERED SCATTERED LOAD","Rate Rider for Disposition of Global Adjustment Sub-Account (2014) - effective until April 30, 2015\n      Applicable only for Non-RPP Customers",null,"$/kWh",-1.6000000000000001E-3,null,null,null,null,null,"5_P_VC_GA_Rate_Rider_kWh_1"]
["UNMETERED SCATTERED LOAD","Rate Rider for Disposition of Account 1576 - effective until April 30, 2015\n",null,"$/kWh",-5.9999999999999995E-4,null,null,null,null,null,"5_P_VC_Rate_Rider_kWh_2"]
["UNMETERED SCATTERED LOAD","Rate Rider for Disposition of CGAAP CWIP DIfferential - effective until April 30, 2015\n",null,"$/kWh",2.9999999999999997E-4,null,null,null,null,null,"5_P_VC_Rate_Rider_kWh_3"]
["UNMETERED SCATTERED LOAD","Rate Rider for Disposition of Incremental Capital Expenditures - effective until April 30, 2015\n",null,"$/kWh",2.0000000000000001E-4,null,null,null,null,null,"5_P_VC_Rate_Rider_kWh_4"]
["UNMETERED SCATTERED LOAD","Rate Rider for Ice Storm Cost Recovery - effective until December 31 , 2015",null,"$",0.13,null,null,null,null,null,"5_P_MSC_Rate_Rider_1"]
["UNMETERED SCATTERED LOAD","Retail Transmission Rate - Network Service Rate",null,"$/kWh",7.7106783275745659E-3,null,null,null,null,null,"5_P_RTSR_Network"]
["UNMETERED SCATTERED LOAD","Retail Transmission Rate - Line and Transformation Connection Service Rate",null,"$/kWh",5.0747142801211486E-3,null,null,null,null,null,"5_P_RTSR_Connection"]
["UNMETERED SCATTERED LOAD"]
["UNMETERED SCATTERED LOAD","MONTHLY RATES AND CHARGES - Regulatory Component"]
["UNMETERED SCATTERED LOAD"]
["UNMETERED SCATTERED LOAD","Wholesale Market Service Rate",null,"$/kWh",4.4000000000000003E-3,null,null,null,null,null,"5_P_WMSR"]
["UNMETERED SCATTERED LOAD","Rural or Remote Electricity Rate Protection Charge (RRRP)",null,"$/kWh",1.2999999999999999E-3,null,null,null,null,null,"5_P_RRPC"]
["UNMETERED SCATTERED LOAD","Standard Supply Service - Administrative Charge (if applicable)",null,"$",0.25,null,null,null,null,null,"5_P_SSS"]
[]
[null,"SENTINEL LIGHTING SERVICE CLASSIFICATION"]
[]
[null,"This classification refers to accounts that are an unmetered lighting load supplied to a sentinel light. Further servicing details are available in the distributor’s Conditions of Service. ",null,null,null,null,null,null,null,null,null,{"$f":"ROUND(LEN(B187), -2) / 100","v":2}]
[]
[null,"APPLICATION"]
[]
[null,"The application of these rates and charges shall be in accordance with the Licence of the Distributor and any Code or Order of the Board, and amendments thereto as approved by the Board, which may be applicable to the administration of this schedule. ",null,null,null,null,null,null,null,null,null,{"$f":"ROUND(LEN(B191), -2) / 100","v":3}]
[]
[null,"No rates and charges for the distribution of electricity and charges to meet the costs of any work or service done or furnished for the purpose of the distribution of electricity shall be made except as permitted by this schedule, unless required by the Distributor’s Licence or a Code or Order of the Board, and amendments thereto as approved by the Board, or as specified herein. ",null,null,null,null,null,null,null,null,null,{"$f":"ROUND(LEN(B193), -2) / 100","v":4}]
[]
[null,"Unless specifically noted, this schedule does not contain any charges for the electricity commodity, be it under the Regulated Price Plan, a contract with a retailer or the wholesale market price, as applicable. In addition, the charges in the MONTHLY RATES AND CHARGES – Regulatory Component of this schedule do not apply to a customer that is an embedded wholesale market participant. ",null,null,null,null,null,null,null,null,null,{"$f":"ROUND(LEN(B195), -2) / 100","v":4}]
[]
[null,"It should be noted that this schedule does not list any charges, assessments or credits that are required by law to be invoiced by a distributor and that are not subject to Board approval, such as the Debt Retirement Charge, the Global Adjustment, the Ontario Clean Energy Benefit and the HST. ",null,null,null,null,null,null,null,null,null,{"$f":"ROUND(LEN(B197), -2) / 100","v":3}]
[]
[null,"MONTHLY RATES AND CHARGES - Delivery Component"]
[]
["SENTINEL LIGHTING","Service Charge (per connection)",null,"$",2.72,null,null,null,null,null,"6_P_MSC"]
["SENTINEL LIGHTING","Distribution Volumetric Rate",null,"$/kW",46.100299999999997,null,null,null,null,null,"6_P_VC_1"]
["SENTINEL LIGHTING","Low Voltage Service Rate",null,"$/kW",2.5499999999999998E-2,null,null,null,null,null,"6_P_LVrate"]
["SENTINEL LIGHTING","Rate Rider for Disposition of Deferral/Variance Accounts (2014) - effective until April 30, 2015",null,"$/kW",-1.0448,null,null,null,null,null,"6_P_VC_DEFVAR_kW_1"]
["SENTINEL LIGHTING","Rate Rider for Disposition of Account 1576 - effective until April 30, 2015\n",null,"$/kW",-0.20549999999999999,null,null,null,null,null,"6_P_VC_Rate_Rider_kW_2"]
["SENTINEL LIGHTING","Rate Rider for Disposition of CGAAP CWIP DIfferential - effective until April 30, 2015\n",null,"$/kW",0.111,null,null,null,null,null,"6_P_VC_Rate_Rider_kW_3"]
["SENTINEL LIGHTING","Rate Rider for Disposition of Incremental Capital Expenditures - effective until April 30, 2015\n",null,"$/kW",6.6600000000000006E-2,null,null,null,null,null,"6_P_VC_Rate_Rider_kW_4"]
["SENTINEL LIGHTING","Rate Rider for Ice Storm Cost Recovery - effective until December 31 , 2015",null,"$",0.1,null,null,null,null,null,"6_P_MSC_Rate_Rider_1"]
["SENTINEL LIGHTING","Retail Transmission Rate - Network Service Rate",null,"$/kW",0.58104714356147513,null,null,null,null,null,"6_P_RTSR_Network"]
["SENTINEL LIGHTING","Retail Transmission Rate - Line and Transformation Connection Service Rate",null,"$/kW",0.3852553924325306,null,null,null,null,null,"6_P_RTSR_Connection"]
["SENTINEL LIGHTING"]
["SENTINEL LIGHTING","MONTHLY RATES AND CHARGES - Regulatory Component"]
["SENTINEL LIGHTING"]
["SENTINEL LIGHTING","Wholesale Market Service Rate",null,"$/kWh",4.4000000000000003E-3,null,null,null,null,null,"6_P_WMSR"]
["SENTINEL LIGHTING","Rural or Remote Electricity Rate Protection Charge (RRRP)",null,"$/kWh",1.2999999999999999E-3,null,null,null,null,null,"6_P_RRPC"]
["SENTINEL LIGHTING","Standard Supply Service - Administrative Charge (if applicable)",null,"$",0.25,null,null,null,null,null,"6_P_SSS"]
[]
[null,"STREET LIGHTING SERVICE CLASSIFICATION"]
[]
[null,"All services supplied to street lighting equipment owned by or operated for the Municipality, the Region or the Province of Ontario shall be classified as Street Lighting Service. Street Lighting plant, facilities, or equipment owned by the customer are subject to the Electrical Safety Authority (ESA) requirements and Oakville Hydro specifications. Further servicing details are available in the distributor’s Conditions of Service. ",null,null,null,null,null,null,null,null,null,{"$f":"ROUND(LEN(B220), -2) / 100","v":4}]
[]
[null,"APPLICATION"]
[]
[null,"The application of these rates and charges shall be in accordance with the Licence of the Distributor and any Code or Order of the Board, and amendments thereto as approved by the Board, which may be applicable to the administration of this schedule. ",null,null,null,null,null,null,null,null,null,{"$f":"ROUND(LEN(B224), -2) / 100","v":3}]
[]
[null,"No rates and charges for the distribution of electricity and charges to meet the costs of any work or service done or furnished for the purpose of the distribution of electricity shall be made except as permitted by this schedule, unless required by the Distributor’s Licence or a Code or Order of the Board, and amendments thereto as approved by the Board, or as specified herein. ",null,null,null,null,null,null,null,null,null,{"$f":"ROUND(LEN(B226), -2) / 100","v":4}]
[]
[null,"Unless specifically noted, this schedule does not contain any charges for the electricity commodity, be it under the Regulated Price Plan, a contract with a retailer or the wholesale market price, as applicable. In addition, the charges in the MONTHLY RATES AND CHARGES – Regulatory Component of this schedule do not apply to a customer that is an embedded wholesale market participant. ",null,null,null,null,null,null,null,null,null,{"$f":"ROUND(LEN(B228), -2) / 100","v":4}]
[]
[null,"It should be noted that this schedule does not list any charges, assessments or credits that are required by law to be invoiced by a distributor and that are not subject to Board approval, such as the Debt Retirement Charge, the Global Adjustment, the Ontario Clean Energy Benefit and the HST. ",null,null,null,null,null,null,null,null,null,{"$f":"ROUND(LEN(B230), -2) / 100","v":3}]
[]
[null,"MONTHLY RATES AND CHARGES - Delivery Component"]
[]
["STREET LIGHTING","Service Charge (per connection)",null,"$",3.73,null,null,null,null,null,"7_P_MSC"]
["STREET LIGHTING","Distribution Volumetric Rate",null,"$/kW",22.8996,null,null,null,null,null,"7_P_VC_1"]
["STREET LIGHTING","Low Voltage Service Rate",null,"$/kW",0.1061,null,null,null,null,null,"7_P_LVrate"]
["STREET LIGHTING","Rate Rider for Disposition of Deferral/Variance Accounts (2014) - effective until April 30, 2015",null,"$/kW",-0.58640000000000003,null,null,null,null,null,"7_P_VC_DEFVAR_kW_1"]
["STREET LIGHTING","Rate Rider for Disposition of Global Adjustment Sub-Account (2014) - effective until April 30, 2015\n      Applicable only for Non-RPP Customers",null,"$/kW",-0.56789999999999996,null,null,null,null,null,"7_P_VC_GA_Rate_Rider_kW_1"]
["STREET LIGHTING","Rate Rider for Disposition of Account 1576 - effective until April 30, 2015\n",null,"$/kW",-0.20499999999999999,null,null,null,null,null,"7_P_VC_Rate_Rider_kW_2"]
["STREET LIGHTING","Rate Rider for Disposition of CGAAP CWIP DIfferential - effective until April 30, 2015\n",null,"$/kW",0.1108,null,null,null,null,null,"7_P_VC_Rate_Rider_kW_3"]
["STREET LIGHTING","Rate Rider for Disposition of Incremental Capital Expenditures - effective until April 30, 2015\n",null,"$/kWh",6.6400000000000001E-2,null,null,null,null,null,"7_P_VC_Rate_Rider_kWh_1"]
["STREET LIGHTING","Rate Rider for Ice Storm Cost Recovery - effective until December 31 , 2015",null,"$",0.08,null,null,null,null,null,"7_P_MSC_Rate_Rider_1"]
["STREET LIGHTING","Rate Rider for Ice Storm Cost Recovery - effective until December 31 , 2015"]
["STREET LIGHTING","Retail Transmission Rate - Network Service Rate",null,"$/kW",2.4179842229429722,null,null,null,null,null,"7_P_RTSR_Network"]
["STREET LIGHTING","Retail Transmission Rate - Line and Transformation Connection Service Rate",null,"$/kW",1.6037154357324528,null,null,null,null,null,"7_P_RTSR_Connection"]
["STREET LIGHTING"]
["STREET LIGHTING","MONTHLY RATES AND CHARGES - Regulatory Component"]
["STREET LIGHTING"]
["STREET LIGHTING","Wholesale Market Service Rate",null,"$/kWh",4.4000000000000003E-3,null,null,null,null,null,"7_P_WMSR"]
["STREET LIGHTING","Rural or Remote Electricity Rate Protection Charge (RRRP)",null,"$/kWh",1.2999999999999999E-3,null,null,null,null,null,"7_P_RRPC"]
["STREET LIGHTING","Standard Supply Service - Administrative Charge (if applicable)",null,"$",0.25,null,null,null,null,null,"7_P_SSS"]
[]
[null,"EMBEDDED DISTRIBUTOR SERVICE CLASSIFICATION"]
[]
[null,"This classification applies to an electricity distributor licenced by the Board, which is provided electricity by means of this distributor's facilities. Further servicing details are available in the distributor's Conditions of Service.",null,null,null,null,null,null,null,null,null,{"$f":"ROUND(LEN(B255), -2) / 100","v":2}]
[]
[null,"APPLICATION"]
[]
[null,"The application of these rates and charges shall be in accordance with the Licence of the Distributor and any Code or Order of the Board, and amendments thereto as approved by the Board, which may be applicable to the administration of this schedule. ",null,null,null,null,null,null,null,null,null,{"$f":"ROUND(LEN(B259), -2) / 100","v":3}]
[]
[null,"No rates and charges for the distribution of electricity and charges to meet the costs of any work or service done or furnished for the purpose of the distribution of electricity shall be made except as permitted by this schedule, unless required by the Distributor’s Licence or a Code or Order of the Board, and amendments thereto as approved by the Board, or as specified herein. ",null,null,null,null,null,null,null,null,null,{"$f":"ROUND(LEN(B261), -2) / 100","v":4}]
[]
[null,"Unless specifically noted, this schedule does not contain any charges for the electricity commodity, be it under the Regulated Price Plan, a contract with a retailer or the wholesale market price, as applicable. In addition, the charges in the MONTHLY RATES AND CHARGES – Regulatory Component of this schedule do not apply to a customer that is an embedded wholesale market participant. ",null,null,null,null,null,null,null,null,null,{"$f":"ROUND(LEN(B263), -2) / 100","v":4}]
[]
[null,"It should be noted that this schedule does not list any charges, assessments or credits that are required by law to be invoiced by a distributor and that are not subject to Board approval, such as the Debt Retirement Charge, the Global Adjustment, the Ontario Clean Energy Benefit and the HST. ",null,null,null,null,null,null,null,null,null,{"$f":"ROUND(LEN(B265), -2) / 100","v":3}]
[]
[null,"MONTHLY RATES AND CHARGES - Delivery Component"]
[]
["EMBEDDED DISTRIBUTOR","Service Charge",null,"$",5130.45,null,null,null,null,null,"8_P_MSC"]
["EMBEDDED DISTRIBUTOR","Distribution Volumetric Rate",null,"$/kW",2.8022,null,null,null,null,null,"8_P_VC_1"]
["EMBEDDED DISTRIBUTOR","Low Voltage Service Rate",null,"$/kW",0.1313,null,null,null,null,null,"8_P_LVrate"]
["EMBEDDED DISTRIBUTOR","Retail Transmission Rate - Network Service Rate",null,"$/kW",2.9921656940209909,null,null,null,null,null,"8_P_RTSR_Network"]
["EMBEDDED DISTRIBUTOR","Retail Transmission Rate - Line and Transformation Connection Service Rate",null,"$/kW",1.9845304531698771,null,null,null,null,null,"8_P_RTSR_Connection"]
["EMBEDDED DISTRIBUTOR"]
["EMBEDDED DISTRIBUTOR","MONTHLY RATES AND CHARGES - Regulatory Component"]
["EMBEDDED DISTRIBUTOR"]
["EMBEDDED DISTRIBUTOR","Wholesale Market Service Rate",null,"$/kWh",4.4000000000000003E-3,null,null,null,null,null,"8_P_WMSR"]
["EMBEDDED DISTRIBUTOR","Rural or Remote Electricity Rate Protection Charge (RRRP)",null,"$/kWh",1.2999999999999999E-3,null,null,null,null,null,"8_P_RRPC"]
["EMBEDDED DISTRIBUTOR","Standard Supply Service - Administrative Charge (if applicable)",null,"$",0.25,null,null,null,null,null,"8_P_SSS"]
[]
[null,"MICROFIT SERVICE CLASSIFICATION"]
[]
[null,"This classification applies to an electricity generation facility contracted under the Ontario Power Authority’s microFIT program and connected to the distributor’s distribution system. Further servicing details are available in the distributor’s Conditions of Service. ",null,null,null,null,null,null,null,null,null,{"$f":"ROUND(LEN(B283), -2) / 100","v":3}]
[]
[null,"APPLICATION"]
[]
[null,"The application of these rates and charges shall be in accordance with the Licence of the Distributor and any Code or Order of the Board, and amendments thereto as approved by the Board, which may be applicable to the administration of this schedule. ",null,null,null,null,null,null,null,null,null,{"$f":"ROUND(LEN(B287), -2) / 100","v":3}]
[]
[null,"No rates and charges for the distribution of electricity and charges to meet the costs of any work or service done or furnished for the purpose of the distribution of electricity shall be made except as permitted by this schedule, unless required by the Distributor’s Licence or a Code or Order of the Board, and amendments thereto as approved by the Board, or as specified herein. ",null,null,null,null,null,null,null,null,null,{"$f":"ROUND(LEN(B289), -2) / 100","v":4}]
[]
[null,"Unless specifically noted, this schedule does not contain any charges for the electricity commodity, be it under the Regulated Price Plan, a contract with a retailer or the wholesale market price, as applicable. ",null,null,null,null,null,null,null,null,null,{"$f":"ROUND(LEN(B291), -2) / 100","v":2}]
[]
[null,"It should be noted that this schedule does not list any charges, assessments or credits that are required by law to be invoiced by a distributor and that are not subject to Board approval, such as the Debt Retirement Charge, the Global Adjustment, the Ontario Clean Energy Benefit and the HST. ",null,null,null,null,null,null,null,null,null,{"$f":"ROUND(LEN(B293), -2) / 100","v":3}]
[]
[null,"MONTHLY RATES AND CHARGES - Delivery Component"]
[]
["MICROFIT","Service Charge",null,"$",5.4,null,null,null,null,null,"9_P_MSC"]
["MICROFIT"]
[null,"ALLOWANCES"]
["MICROFIT"]
[null,"Transformer Allowance for Ownership - per kW of billing demand/month",null,"$/kW",-0.5]
[null,"Primary Metering Allowance for transformer losses – applied to measured demand and energy",null,"%",-1]
[]
[null,"SPECIFIC SERVICE CHARGES"]
[]
[null,"The application of these rates and charges shall be in accordance with the Licence of the Distributor and any Code or Order of the Board, and amendments thereto as approved by the Board, which may be applicable to the administration of this schedule."]
[]
[null,"No charges to meet the costs of any work or service done or furnished for the purpose of the distribution of electricity shall be made except as permitted by this schedule, unless required by the Distributor’s Licence or a Code or Order of the Board, and amendments thereto as approved by the Board, or as specified herein.  "]
[]
[null,"It should be noted that this schedule does not list any charges, assessments, or credits that are required by law to be invoiced by a distributor and that are not subject to Board approval, such as the Debt Retirement Charge, the Global Adjustment, the Ontario Clean Energy Benefit and the HST."]
[]
[null,"Customer Administration"]
[null,"Statement of Account",null,"$",15]
[null,"Pulling Post Dated Cheques",null,"$",15]
[null,"Duplicate Invoices for previous billing",null,"$",15]
[null,"Easement Letter",null,"$",15]
[null,"Account History",null,"$",15]
[null,"Credit Reference/credit check (plus credit agency costs)",null,"$",15]
[null,"Returned cheque (plus bank charges)",null,"$",15]
[null,"Account set up charge/change of occupancy charge (plus credit agency costs if applicable)",null,"$",30]
[null,"Special meter reads",null,"$",30]
[null,"Meter dispute charge plus Measurement Canada fees (if meter found correct)",null,"$",30]
[null,"Service Call (after first service call in a 12-month period) - during regular hours",null,"$",30]
[null,"Service Call (after first service call in a 12-month period) - after regular hours",null,"$",165]
[]
[]
[null,"Non-Payment of Account"]
[null,"Late Payment – per month",null,"%",1.5]
[null,"Late Payment – per annum",null,"%",19.559999999999999]
[null,"Collection of account charge – no disconnection",null,"$",30]
[null,"Disconnect/Reconnect at meter – during regular hours",null,"$",65]
[null,"Disconnect/Reconnect at meter – after regular hours",null,"$",185]
[null,"Disconnect/Reconnect at pole – during regular hours",null,"$",185]
[null,"Disconnect/Reconnect at pole – after regular hours",null,"$",415]
[]
[null,"Temporary Service – Install & remove – overhead – no transformer",null,"$",500]
[null,"Temporary Service – Install & remove – underground – no transformer",null,"$",300]
[null,"Specific Charge for Access to the Power Poles - $/pole/year",null,"$",22.35]
[]
[null,"RETAIL SERVICE CHARGES (if applicable)"]
[]
[null,"The application of these rates and charges shall be in accordance with the Licence of the Distributor and any Code or Order of the Board, and amendments thereto as approved by the Board, which may be applicable to the  administration of this schedule."]
[]
[null,"No rates and charges for the distribution of electricity and charges to meet the costs of any work or service done or furnished for the purpose of the distribution of electricity shall be made except as permitted by this schedule, unless  required by the Distributor’s Licence or a Code or Order of the Board, and amendments thereto as approved by the  Board, or as specified herein. "]
[]
[null,"Unless specifically noted, this schedule does not contain any charges for the electricity commodity, be it under the Regulated Price Plan, a contract with a retailer or the wholesale market price, as applicable."]
[]
[null,"It should be noted that this schedule does not list any charges, assessments, or credits that are required by law to be invoiced by a distributor and that are not subject to Board approval, such as the Debt Retirement Charge, the Global  Adjustment, the Ontario Clean Energy Benefit and the HST. "]
[]
[null,"Retail Service Charges refer to services provided by a distributor to retailers or customers related to the supply of competitive electricity."]
[]
[null,"One-time charge, per retailer, to establish the service agreement between the distributor and the retailer",null,"$",100]
[null,"Monthly Fixed Charge, per retailer",null,"$",20]
[null,"Monthly Variable Charge, per customer, per retailer",null,"$/cust.",0.5]
[null,"Distributor-consolidated billing monthly charge, per customer, per retailer",null,"$/cust.",0.3]
[null,"Retailer-consolidated billing monthly credit, per customer, per retailer",null,"$/cust.",-0.3]
[null,"Service Transaction Requests (STR) "]
[null,"Request fee, per request, applied to the requesting party",null,"$",0.25]
[null,"Processing fee, per request, applied to the requesting party",null,"$",0.5]
[null,"Request for customer information as outlined in Section 10.6.3 and Chapter 11 of the Retail"]
[null,"Settlement Code directly to retailers and customers, if not delivered electronically through the"]
[null,"Electronic Business Transaction (EBT) system, applied to the requesting party "]
[null,"Up to twice a year",null,"$","no charge"]
[null,"More than twice a year, per request (plus incremental delivery costs)",null,"$",2]
[]
[null,"LOSS FACTORS"]
[]
[null,"If the distributor is not capable of prorating changed loss factors jointly with distribution rates, the revised loss factors will be implemented upon the first subsequent billing for each billing cycle."]
[]
[null,"Total Loss Factor – Secondary Metered Customer < 5,000 kW",null,null,1.0376000000000001,null,null,null,null,null,"TLF_Secondary_LT_5000kW"]
[null,"Total Loss Factor – Secondary Metered Customer > 5,000 kW",null,null,1.0145,null,null,null,null,null,"TLF_Secondary_GT_5000kW"]
[null,"Total Loss Factor – Primary Metered Customer < 5,000 kW",null,null,1.0271999999999999,null,null,null,null,null,"TLF_Primary_LT_5000kW"]
[null,"Total Loss Factor – Primary Metered Customer > 5,000 kW",null,null,1.0044999999999999,null,null,null,null,null,"TLF_Primary_GT_5000kW"]

{"sheet":"14. Bill Impacts","index":33,"n_rows":57,"n_cols":27,"rows_kept":57,"cut":false,"hidden":true,"merged":[[41,6,41,7],[12,0,12,2],[21,6,21,7],[20,1,20,3],[20,4,20,7],[29,6,29,7],[30,6,30,7],[35,6,35,7],[36,6,36,7],[37,6,37,7],[38,6,38,7],[39,6,39,7],[40,6,40,7],[10,0,10,9],[34,6,34,7],[31,6,31,7],[32,6,32,7],[33,6,33,7],[23,6,23,7],[22,6,22,7],[25,6,25,7],[26,6,26,7],[27,6,27,7],[56,0,56,8],[42,6,42,7],[43,6,43,7],[44,6,44,7],[50,6,50,7],[45,6,45,7],[46,6,46,7],[47,6,47,7],[48,6,48,7],[49,6,49,7],[51,6,51,7],[52,6,52,7],[53,6,53,7]]}
[null,null,null,null,null,null,null,null,null,null,null,null,null,null,null,null,null,null,null,null,null,null,null,null,null,{"$f":"MATCH(A13, '3. Rate Class Selection'!B19:B40,0)","v":1},{"$f":"VLOOKUP(A13, lists!AO:AP,2,0)","v":"kWh"}]
[]
[]
[]
[]
[]
[]
[]
[]
[]
["Choose a Rate Class from the drop-down menu below and click UPDATE.\nFor Street Lighting and USL classes, please ensure that the number of customers is manually entered into cells B30 and B31.  \nClick the UPDATE button to refresh the sheet."]
[]
["RESIDENTIAL",null,null,null,null,{"$f":"IF(ISERROR(SEARCH(\"MicroFit\",A13,1))=FALSE,\"Bill impact presentation for this class does not exist.\", \"\")","v":""}]
[]
["Consumption",{"$f":"730*D15*B17","v":3650000},"kWh",10000,{"$f":"IF(AA1 = \"kWh\", \"\", \"kW\")","v":""}]
["RPP Tier One",600,"kWh",null,1]
["Load Factor",0.5]
["Loss Factor",1]
[]
[]
[null,"CURRENT ESTIMATED BILL",null,null,"PROPOSED ESTIMATED BILL"]
[null,"Volume","Current Rate ($)","Current Charge ($)","Volume","Proposed Rate ($)","Proposed Charge ($)",null,"Change ($)","Change (%)","% of Total RPP Bill","% of Total TOU Bill"]
["Energy First Tier (kWh)",3650000,7.4999999999999997E-2,{"$f":"B23*C23","v":273750},{"$f":"B23","v":3650000},{"$f":"C23","v":7.4999999999999997E-2},{"$f":"E23*F23","v":273750},null,{"$f":"G23-D23","v":0},{"$f":"I23/D23","v":0},{"$f":"G23/G48","v":0.86460785769833803}]
["Energy Second Tier (kWh)",0,8.7999999999999995E-2,{"$f":"B24*C24","v":0},{"$f":"B24","v":0},{"$f":"C24","v":8.7999999999999995E-2},{"$f":"E24*F24","v":0},null,{"$f":"G24-D24","v":0},0,{"$f":"G24/G48","v":0}]
[]
["TOU - Off Peak",{"$f":"0.64*$B$15*$B$18","v":2336000},6.5000000000000002E-2,{"$f":"C26*B26","v":151840},{"$f":"B26","v":2336000},{"$f":"C26","v":6.5000000000000002E-2},{"$f":"F26*E26","v":151840},null,{"$f":"G26-D26","v":0},{"$f":"I26/D26","v":0},null,{"$f":"G26/G54","v":0.44972609595619467}]
["TOU - Mid Peak",{"$f":"0.18*$B$15*$B$18","v":657000},0.1,{"$f":"C27*B27","v":65700},{"$f":"B27","v":657000},{"$f":"C27","v":0.1},{"$f":"F27*E27","v":65700},{"$f":"G27*F27","v":6570},{"$f":"G27-D27","v":0},{"$f":"I27/D27","v":0},null,{"$f":"G27/G54","v":0.19459302228873809}]
["TOU - On Peak",{"$f":"0.18*$B$15*$B$18","v":657000},0.11700000000000001,76869,null,{"$f":"C28","v":0.11700000000000001},{"$f":"F28*E28","v":0},{"$f":"G28*F28","v":0},null,{"$f":"I28/D28","v":0},null,{"$f":"G28/G54","v":0}]
[]
["Service Charge",1,null,0,null,null,{"$f":"F30*E30","v":0},0,null,0,0,0]
["Service Charge Rate Rider(s)",1,0,0,null,0,0,0,null,0,0,0]
["Distribution Volumetric Rate",10000,null,0,{"$f":"B32","v":10000},null,0,0,{"$f":"G32-D32","v":0},0,0,0]
["Low Voltage Volumetric Rate",10000,null,0,null,null,0,0,null,0,0,0]
["Distribution Volumetric Rate Rider(s)",10000,0,0,null,1.2024999999999999,0,0,null,0,{"$f":"G34/G48","v":0},{"$f":"G34/G54","v":0}]
["Total:  Distribution",null,null,{"$f":"ROUND(SUM(D30:D34),2)","v":0},null,null,{"$f":"ROUND(SUM(G30:G34),2)","v":0},null,null,0,{"$f":"G35/G48","v":0},{"$f":"G35/G54","v":0}]
["Total:  Retail Transmission"]
["Sub-Total:  Delivery (Distribution and Retail Transmission)",null,null,{"$f":"SUM(D36,D35)","v":0},null,null,{"$f":"SUM(G36,G35)","v":0},null,null,0,{"$f":"G37/G48","v":0},{"$f":"G37/G54","v":0}]
["Wholesale Market Service Rate ",3650000,0,{"$f":"B38*C38","v":0},null,{"$f":"C38","v":0},{"$f":"E38*F38","v":0},null,null,0,0,0]
["Rural Rate Protection Charge",3650000,0,{"$f":"B39*C39","v":0},3650000,0,{"$f":"E39*F39","v":0},null,{"$f":"G39-D39","v":0},0,0,0]
["Standard Supply Service – Administration Charge (if applicable)",1,0,{"$f":"B40*C40","v":0},1,0,{"$f":"E40*F40","v":0},null,{"$f":"G40-D40","v":0},0,0,0]
["Sub-Total:  Regulatory",null,null,{"$f":"SUM(D38:D40)","v":0},null,null,{"$f":"SUM(G38:H40)","v":0},null,{"$f":"G41-D41","v":0},0,0,0]
["Debt Retirement Charge (DRC)",3650000,7.0000000000000001E-3,{"$f":"B42*C42","v":25550},{"$f":"B42","v":3650000},{"$f":"C42","v":7.0000000000000001E-3},{"$f":"E42*F42","v":25550},null,{"$f":"G42-D42","v":0},{"$f":"I42/D42","v":0},{"$f":"G42/G48","v":8.0696733385178215E-2},{"$f":"G42/G54","v":7.5675064223398147E-2}]
[]
["Total Bill on RPP (before taxes)",null,null,299300,null,null,311325,null,{"$f":"G44-D44","v":12025},{"$f":"I44/D44","v":4.0177079852990308E-2},{"$f":"G44/G48","v":0.98328416912487704}]
["HST",null,0.13,{"$f":"C45*D44","v":38909},null,{"$f":"C45","v":0.13},{"$f":"F45*G44","v":40472.25},null,{"$f":"G45-D45","v":1563.25},{"$f":"I45/D45","v":4.0177079852990308E-2},{"$f":"G45/G48","v":0.12782694198623401}]
["Total Bill (including HST)",null,null,{"$f":"D45+D44","v":338209},null,null,{"$f":"G45+G44","v":351797.25},null,{"$f":"G46-D46","v":13588.25},{"$f":"I46/D46","v":4.0177079852990308E-2},{"$f":"G46/G48","v":1.1111111111111109}]
["Ontario Clean Energy Benefit (OCEB)",null,-0.1,{"$f":"-0.1*D46","v":-33820.9},null,{"$f":"C47","v":-0.1},{"$f":"-0.1*G46","v":-35179.724999999999},null,{"$f":"G47-D47","v":-1358.8249999999971},{"$f":"I47/D47","v":4.0177079852990225E-2},{"$f":"G47/G48","v":-0.1111111111111111}]
["Total Bill on RPP (including OCEB)",null,null,{"$f":"D46+D47","v":304388.09999999998},null,null,{"$f":"G46+G47","v":316617.52500000002},null,{"$f":"G48-D48","v":12229.425000000047},{"$f":"I48/D48","v":4.0177079852990467E-2},{"$f":"G48/G48","v":1}]
[]
["Total Bill on TOU (before taxes)",null,null,319959,null,null,331984,null,{"$f":"G50-D50","v":12025},{"$f":"I50/D50","v":3.7582940314227757E-2},null,{"$f":"G50/G54","v":0.98328416912487704}]
["HST",null,0.13,{"$f":"C51*D50","v":41594.67},null,{"$f":"C51","v":0.13},{"$f":"F51*G50","v":43157.919999999998},null,{"$f":"G51-D51","v":1563.25},{"$f":"I51/D51","v":3.7582940314227764E-2},null,{"$f":"G51/G54","v":0.12782694198623401}]
["Total Bill (including HST)",null,null,{"$f":"D51+D50","v":361553.67},null,null,{"$f":"G51+G50","v":375141.92},null,{"$f":"G52-D52","v":13588.25},{"$f":"I52/D52","v":3.7582940314227764E-2},null,{"$f":"G52/G54","v":1.1111111111111112}]
["Ontario Clean Energy Benefit (OCEB)",null,-0.1,{"$f":"-0.1*D52","v":-36155.366999999998},null,{"$f":"C53","v":-0.1},{"$f":"-0.1*G52","v":-37514.192000000003},null,{"$f":"G53-D53","v":-1358.8250000000044},{"$f":"I53/D53","v":3.7582940314227882E-2},null,{"$f":"G53/G54","v":-0.11111111111111112}]
["Total Bill on TOU (including OCEB)",null,null,{"$f":"D52+D53","v":325398.30299999996},null,null,{"$f":"G52+G53","v":337627.728},null,{"$f":"G54-D54","v":12229.425000000047},{"$f":"I54/D54","v":3.758294031422791E-2},null,{"$f":"G54/G54","v":1}]
[]
[]
["Applicants must provide bill impacts for residential at 800 kWh and GS<50kW at 2000 kWh. In addition, their filing should cover the range that is relevant\nto their service territory, class by class. A general guideline of consumption levels follows:\n\nResidential (kWh) - 100, 250, 500, 800, 1000, 1500, 2000\nGS<50kW (kWh) - 1000, 2000, 5000, 10000, 15000\nGS>50kW (kW) 100, 500, 1000\nLarge User - range appropriate for utility\nStreet/Sentinel Lighting Classes and USL - 150 kWh and 1 kW, range appropriate for utility.\n"]

{"sheet":"28. Bill Impacts","index":34,"n_rows":58,"n_cols":27,"rows_kept":58,"cut":false,"hidden":false,"merged":[[52,0,52,2],[13,2,13,10],[22,4,22,9],[25,2,26,2],[25,12,26,12],[25,13,26,13],[51,0,51,2],[2,0,2,9],[9,0,9,13],[10,0,10,13],[24,4,24,6],[24,8,24,10],[24,12,24,13],[38,0,38,2]]}
[null,null,null,null,null,null,null,null,null,null,null,null,null,null,null,null,null,null,1,null,null,null,null,null,null,{"$f":"MATCH(C14, '3. Rate Class Selection'!B19:B40,0)","v":1},{"$f":"VLOOKUP(C14, lists!AO:AP,2,0)","v":"kWh"}]
[]
[]
[]
[]
[]
[]
[]
[]
[]
[]
[]
[]
["Rate Class",null,"RESIDENTIAL"]
[]
["Loss Factor",null,null,null,1.0376000000000001]
[]
["Consumption",null," kWh",null,800]
[]
["If Billed on a kW basis:"]
["Demand",null,"kW"]
[]
[]
[]
[null,null,null,null,"Current Board-Approved",null,null,null,"Proposed",null,null,null,"Impact"]
[null,null,null,null,"Rate","Volume","Charge",null,"Rate","Volume","Charge",null,"$ Change","% Change"]
[null,null,null,null,"($)",null,"($)",null,"($)",null,"($)"]
["Monthly Service Charge",null,null,null,14.42,1,{"$f":"F28*E28","v":14.42},null,14.59,1,{"$f":"J28*I28","v":14.59},null,{"$f":"K28-G28","v":0.16999999999999993},{"$f":"IF((G28)=0,\"\",(M28/G28))","v":1.1789181692094308E-2}]
["Distribution Volumetric Rate",null,null,null,1.5699999999999999E-2,800,{"$f":"F29*E29","v":12.559999999999999},null,1.5900000000000001E-2,{"$f":"F29","v":800},{"$f":"J29*I29","v":12.72},null,0.16000000000000192,1.2738853503184867E-2]
["Fixed Rate Riders",null,null,null,0.77,1,{"$f":"F30*E30","v":0.77},null,1.03,1,{"$f":"J30*I30","v":1.03},null,0.26,0.33766233766233766]
["Volumetric Rate Riders",null,null,null,-9.9999999999999964E-5,800,{"$f":"F31*E31","v":-7.9999999999999974E-2},null,-1E-4,{"$f":"F31","v":800},{"$f":"J31*I31","v":-0.08},null,0,0]
["Sub-Total A (excluding pass through)",null,null,null,null,null,{"$f":"SUM(G28:G31)","v":27.669999999999998},null,null,null,{"$f":"SUM(K28:K31)","v":28.260000000000005},null,0.59000000000000696,2.1322732200939901E-2]
["Line Losses on Cost of Power",null,null,null,{"$f":"E45*0.64+E46*0.18+E47*0.18","v":8.3919999999999995E-2},{"$f":"E18*(E16-1)","v":30.080000000000062},{"$f":"E33*F33","v":2.524313600000005},null,{"$f":"I45*0.64+I46*0.18+I47*0.18","v":8.3919999999999995E-2},{"$f":"F33","v":30.080000000000062},{"$f":"I33*J33","v":2.524313600000005},null,0,0]
["Total Deferral/Variance Account Rate Riders",null,null,null,-5.0000000000000001E-4,800,{"$f":"F34*E34","v":-0.4},null,-5.0000000000000001E-4,{"$f":"F34","v":800},{"$f":"J34*I34","v":-0.4},null,0,0]
["Low Voltage Service Charge",null,null,null,4.0000000000000002E-4,800,{"$f":"F35*E35","v":0.32},null,4.0000000000000002E-4,{"$f":"F35","v":800},{"$f":"J35*I35","v":0.32},null,0,0]
["Smart Meter Entity Charge",null,null,null,0.79,1,{"$f":"F36*E36","v":0.79},null,0.79,{"$f":"F36","v":1},{"$f":"J36*I36","v":0.79},null,0,0]
["Sub-Total B - Distribution (includes Sub-Total A)",null,null,null,null,null,{"$f":"SUM(G32:G36)","v":30.904313600000005},null,null,null,{"$f":"SUM(K32:K36)","v":31.494313600000012},null,{"$f":"K37-G37","v":0.59000000000000696},{"$f":"IF((G37)=0,\"\",(M37/G37))","v":1.9091186027830331E-2}]
["RTSR - Network",null,null,null,7.9000000000000008E-3,830.08,{"$f":"F38*E38","v":6.5576320000000008},null,8.3000000000000001E-3,{"$f":"F38","v":830.08},{"$f":"J38*I38","v":6.8896640000000007},null,0.33203199999999988,5.0632911392405042E-2]
["RTSR - Connection and/or Line and Transformation Connection",null,null,null,5.3E-3,830.08,{"$f":"F39*E39","v":4.3994240000000007},null,5.5999999999999999E-3,{"$f":"F39","v":830.08},{"$f":"J39*I39","v":4.6484480000000001},null,0.24902399999999947,5.660377358490553E-2]
["Sub-Total C - Delivery (including Sub-Total B)",null,null,null,null,null,{"$f":"SUM(G37:G39)","v":41.86136960000001},null,null,null,{"$f":"SUM(K37:K39)","v":43.032425600000018},null,1.1710560000000072,2.7974622215896323E-2]
["Wholesale Market Service Charge (WMSC)",null,null,null,4.4000000000000003E-3,{"$f":"E18*E16","v":830.08},{"$f":"F41*E41","v":3.6523520000000005},null,4.4000000000000003E-3,{"$f":"E18*E16","v":830.08},{"$f":"J41*I41","v":3.6523520000000005},null,0,0]
["Rural and Remote Rate Protection (RRRP)",null,null,null,1.2999999999999999E-3,{"$f":"E18*E16","v":830.08},1.0791040000000001,null,1.2999999999999999E-3,{"$f":"E18*E16","v":830.08},1.0791040000000001,null,0,0]
["Standard Supply Service Charge",null,null,null,0.25,1,0.25,null,0.25,1,0.25,null,0,0]
["Debt Retirement Charge (DRC)",null,null,null,7.0000000000000001E-3,{"$f":"E18","v":800},5.6000000000000005,null,7.0000000000000001E-3,{"$f":"E18","v":800},5.6000000000000005,null,0,0]
["TOU - Off Peak",null,null,null,6.7000000000000004E-2,512,34.304000000000002,null,6.7000000000000004E-2,{"$f":"F45","v":512},34.304000000000002,null,0,0]
["TOU - Mid Peak",null,null,null,0.104,144,14.975999999999999,null,0.104,{"$f":"F46","v":144},14.975999999999999,null,0,0]
["TOU - On Peak",null,null,null,0.124,144,17.856000000000002,null,0.124,{"$f":"F47","v":144},17.856000000000002,null,0,0]
[]
["Total Bill on TOU (before Taxes)",null,null,null,null,null,{"$f":"SUM(G40:G44,G45:G47)","v":119.57882560000002},null,null,null,{"$f":"SUM(K40:K44,K45:K47)","v":120.74988160000001},null,{"$f":"K49-G49","v":1.171055999999993},{"$f":"IF((G49)=0,\"\",(M49/G49))","v":9.7931719443144685E-3}]
["HST",null,null,null,0.13,null,{"$f":"G49*E50","v":15.545247328000002},null,0.13,null,{"$f":"K49*I50","v":15.697484608000002},null,0.15223727999999959,9.7931719443145014E-3]
["Total Bill (including HST)",null,null,null,null,null,{"$f":"G49+G50","v":135.12407292800003},null,null,null,{"$f":"K49+K50","v":136.44736620800001},null,1.323293279999973,9.7931719443143279E-3]
["Ontario Clean Energy Benefit 1",null,null,null,null,null,{"$f":"ROUND(-G51*10%,2)","v":-13.51},null,null,null,{"$f":"ROUND(-K51*10%,2)","v":-13.64},null,-0.13000000000000078,9.6225018504811823E-3]
["Total Bill on TOU (including OCEB)",null,null,null,null,null,{"$f":"G51+G52","v":121.61407292800003},null,null,null,{"$f":"K51+K52","v":122.807366208},null,1.1932932799999776,9.8121315343698001E-3]
[]
[]
[]
[]
["Note:  For distributors who have a majority of customers on Tiered pricing, please provide a separate bill impact for such customers."]

{"sheet":"lists","index":35,"n_rows":214,"n_cols":55,"rows_kept":214,"cut":false,"hidden":true,"merged":[[12,51,12,52],[1,51,1,52],[0,51,0,52],[11,51,11,52],[10,51,10,52],[9,51,9,52],[8,51,8,52],[7,51,7,52],[5,51,5,52],[4,51,4,52],[3,51,3,52],[2,51,2,52],[6,51,6,52],[13,51,13,52],[14,51,14,52],[15,51,15,52],[16,51,16,52],[17,51,17,52]]}
["DISTRIBUTED GENERATION [DGEN]","Embedded Distributor",{"$f":"COUNTA(B1:B17)","v":4},null,null,null,null,null,"A Standby Service Charge will be applied for a month where standby power is not provided. The applicable rate is the approved Distribution Volumetric Rate of the applicable service class and is applied to gross metered demand or contracted amount, whichever is greater. A monthly administration charge of $200, for simple metering arrangements, or $500, for complex metering arrangements, will also be applied.",null,null,"Loss Factors",null,"Units","Units1","Units2",null,null,null,null,null,null,null,null,null,"Account History","Account set up charge/change of occupancy charge (plus credit agency costs if applicable)","Total Loss Factor – Embedded Distributor – Hydro One Networks Inc.",null,null,null,null,null,null,null,null,null,"Algoma Power Inc.","Algoma Power Inc.",null,"DISTRIBUTED GENERATION [DGEN]","kW",null,null,null,"Sub-Total:  Delivery (Distribution and Retail Transmission)"]
["EMBEDDED DISTRIBUTOR","General Service 3,000 to 4,999 kW",null,null,null,null,null,null,"Distribution Volumetric Rate",null,null,"Total Loss Factor – Primary Metered Customer",null,"$","$/kWh","$",null,null,null,null,null,null,null,null,null,"Account set up charge/change of occupancy charge","Administrative Billing Charge","Total Loss Factor – Primary Metered Customer",null,null,null,null,null,null,null,null,null,"Atikokan Hydro Inc.","Atikokan Hydro Inc.",null,"EMBEDDED DISTRIBUTOR","kW",null,null,null,"Wholesale Market Service Rate ",null,null,{"$f":"AU2*AV2","v":0},{"$f":"AU2","v":0},0,{"$f":"AX2*AY2","v":0},null,{"$f":"AZ2-AW2","v":0},{"$f":"BB2/AW2","v":{"$error":"#DIV/0!"}}]
["EMBEDDED DISTRIBUTOR","General Service 1,000 to 4,999 kW",null,null,null,null,null,null,"Distribution Volumetric Rate - $/kW of contracted amount",null,null,"Total Loss Factor – Primary Metered Customer < 5,000 kW",null,"$/kWh","$/kW","%",null,null,null,null,null,null,"MSC",null,null,"Account set up charge/change of occupancy charge (plus credit agency costs if applicable – Residential)","Bell Canada Pole Rentals","Total Loss Factor – Primary Metered Customer < 5,000 kW",null,null,null,null,null,null,null,null,null,"Bluewater Power Distribution Corporation","Bluewater Power Distribution Corporation",null,"EMBEDDED DISTRIBUTOR","kW",null,null,null,"Rural or Remote Electricity Rate Protection Charge (RRRP)",null,null,{"$f":"AU3*AV3","v":0},0,0,{"$f":"AX3*AY3","v":0},null,{"$f":"AZ3-AW3","v":0},{"$f":"BB3/AW3","v":{"$error":"#DIV/0!"}}]
["FARMS - SINGLE PHASE ENERGY-BILLED [F1]","General Service Equal To Or Greater Than 1,500 kW - Interval Metered",null,null,null,null,null,null,"Distribution Wheeling Service Rate",null,null,"Total Loss Factor – Primary Metered Customer > 5,000 kW",null,"$/kW","$/kVA",null,null,null,null,null,null,null,"SM_Rate_Adder",null,null,"Account set up charge/change of occupancy charge (plus credit agency costs if applicable)","Clearance Pole Attachment charge $/pole/year","Total Loss Factor – Primary Metered Customer > 5,000 kW",null,null,null,null,null,null,null,null,null,"Brant County Power Inc.","Brant County Power Inc.",null,"FARMS - SINGLE PHASE ENERGY-BILLED [F1]","kWh",null,null,null,"Standard Supply Service – Administration Charge (if applicable)",null,null,{"$f":"AU4*AV4","v":0},0,0,{"$f":"AX4*AY4","v":0},null,{"$f":"AZ4-AW4","v":0},{"$f":"BB4/AW4","v":{"$error":"#DIV/0!"}}]
["FARMS - THREE PHASE ENERGY-BILLED [F3]",null,null,null,null,null,null,null,"Electricity Rate",null,null,"Total Loss Factor – Secondary Metered Customer",null,"$/kVA",null,null,null,null,null,null,null,null,"MSC_Rate_Rider_",null,null,"Arrears certificate","Collection of account charge – no disconnection","Total Loss Factor – Secondary Metered Customer",null,null,null,null,null,null,null,null,null,"Brantford Power Inc.","Brantford Power Inc.",null,"FARMS - THREE PHASE ENERGY-BILLED [F3]","kWh",null,null,null,"Sub-Total:  Regulatory",null,null,{"$f":"SUM(AW2:AW4)","v":0},null,null,{"$f":"SUM(AZ2:BA4)","v":0},null,{"$f":"AZ5-AW5","v":0},{"$f":"BB5/AW5","v":{"$error":"#DIV/0!"}}]
["GENERAL SERVICE - COMMERCIAL",null,null,null,null,null,null,null,"Electricity Rate - All Additional kWh",null,null,"Total Loss Factor – Secondary Metered Customer < 5,000 kW",null,null,null,null,null,null,null,null,null,null,"VC",null,null,"Arrears certificate (credit reference)","Collection of account charge – no disconnection – after regular hours","Total Loss Factor – Secondary Metered Customer < 5,000 kW",null,null,null,null,null,null,null,null,null,"Burlington Hydro Inc.","Burlington Hydro Inc.",null,"GENERAL SERVICE - COMMERCIAL","kW",null,null,null,"Debt Retirement Charge (DRC)",null,null,{"$f":"AU6*AV6","v":0},{"$f":"AU6","v":0},{"$f":"AV6","v":0},{"$f":"AX6*AY6","v":0},null,{"$f":"AZ6-AW6","v":0},{"$f":"BB6/AW6","v":{"$error":"#DIV/0!"}}]
["GENERAL SERVICE - INSTITUTIONAL",null,null,null,null,null,null,null,"Electricity Rate - First 250 kWh",null,null,null,null,null,null,null,null,null,null,null,null,null,null,null,null,null,null,null,null,null,null,null,null,null,null,null,null,"Cambridge and North Dumfries Hydro Inc.","Cambridge and North Dumfries Hydro Inc.",null,"GENERAL SERVICE - INSTITUTIONAL","kW"]
["GENERAL SERVICE 1,000 TO 2,999 KW",null,null,null,null,null,null,null,"Electricity Rate -All Additional kWh",null,null,"Total Loss Factor – Secondary Metered Customer > 5,000 kW",null,null,null,null,null,null,null,null,null,null,"VC_Rate_Rider_",null,null,"Charge to certify cheque","Collection of account charge – no disconnection - during regular business hours","Total Loss Factor – Secondary Metered Customer > 5,000 kW",null,null,null,null,null,null,null,null,null,"Canadian Niagara Power Inc.","Canadian Niagara Power Inc.",null,"GENERAL SERVICE 1,000 TO 2,999 KW","kW",null,null,null,"Total Bill on RPP (before taxes)",null,null,null,null,null,null,null,{"$f":"AZ8-AW8","v":0}]
["GENERAL SERVICE 1,000 TO 4,999 KW",null,null,null,null,null,null,null,"Electricity Rate First 1,000 kWh",null,null,"Distribution Loss Factor - Secondary Metered Customer < 5,000 kW",null,null,null,null,null,null,null,null,null,null,"VC_GA_Rate_Rider_kW_",null,null,"Collection of Account Charge – No Disconnection","Collection of account charge – no disconnection – during regular hours",null,null,null,null,null,null,null,null,null,null,"Centre Wellington Hydro Ltd.","Centre Wellington Hydro Ltd.",null,"GENERAL SERVICE 1,000 TO 4,999 KW","kW",null,null,null,"HST",null,null,{"$f":"AV9*AW8","v":0},null,{"$f":"AV9","v":0},{"$f":"AY9*AZ8","v":0},null,{"$f":"AZ9-AW9","v":0},{"$f":"BB9/AW9","v":{"$error":"#DIV/0!"}}]
["GENERAL SERVICE 1,000 TO 4,999 KW - INTERVAL METERS",null,null,null,null,null,null,null,"Electricity Rate First 25,000 kWh",null,null,"Distribution Loss Factor - Secondary Metered Customer > 5,000 kW",null,null,null,null,null,null,null,null,null,null,"VC_LV_Rate",null,null,"Credit Card Convenience Charge","Collection/Disconnection/Load Limiter/Reconnection – if in Community",null,null,null,null,null,null,null,null,null,null,"Chapleau Public Utilities Corporation","Chapleau Public Utilities Corporation",null,"GENERAL SERVICE 1,000 TO 4,999 KW - INTERVAL METERS","kW",null,null,null,"Total Bill (including HST)",null,null,{"$f":"AW9+AW8","v":0},null,null,{"$f":"AZ9+AZ8","v":0},null,{"$f":"AZ10-AW10","v":0},{"$f":"BB10/AW10","v":{"$error":"#DIV/0!"}}]
["GENERAL SERVICE 1,000 TO 4,999 KW (CO-GENERATION)",null,null,null,null,null,null,null,"Electricity Rate First 6,000 kWh",null,null,"Distribution Loss Factor - Primary Metered Customer < 5,000 kW",null,null,null,null,null,null,null,null,null,null,"RTSR_Network",null,null,"Credit check (plus credit agency costs)","Credit Card Convenience Charge",null,null,null,null,null,null,null,null,null,null,"Collus PowerStream Corporation","Collus PowerStream Corporation",null,"GENERAL SERVICE 1,000 TO 4,999 KW (CO-GENERATION)","kW",null,null,null,"Ontario Clean Energy Benefit (OCEB)",null,null,{"$f":"-0.1*AW10","v":0},null,{"$f":"AV11","v":0},{"$f":"-0.1*AZ10","v":0},null,{"$f":"AZ11-AW11","v":0},{"$f":"BB11/AW11","v":{"$error":"#DIV/0!"}}]
["GENERAL SERVICE 1,500 TO 4,999 KW",null,null,null,null,null,null,null,"Electricity Rate Next 1,500 kWh",null,null,"Distribution Loss Factor - Primary Metered Customer > 5,000 kW",null,null,null,null,null,null,null,null,null,null,"RTSR_Connection",null,null,"Credit reference Letter","Disconnect/Reconnect at meter – after regular hours",null,null,null,null,null,null,null,null,null,null,"Cooperative Hydro Embrun Inc.","Cooperative Hydro Embrun Inc.",null,"GENERAL SERVICE 1,500 TO 4,999 KW","kW",null,null,null,"Total Bill on RPP (including OCEB)",null,null,{"$f":"AW10+AW11","v":0},null,null,{"$f":"AZ10+AZ11","v":0},null,{"$f":"AZ12-AW12","v":0},{"$f":"BB12/AW12","v":{"$error":"#DIV/0!"}}]
["GENERAL SERVICE 2,500 TO 4,999 KW",null,null,null,null,null,null,null,"General Service 1,500 to 4,999 kW customer",null,null,null,null,null,null,null,null,null,null,null,null,null,null,null,null,null,null,null,null,null,null,null,null,null,null,null,null,"E.L.K. Energy Inc.","E.L.K. Energy Inc.",null,"GENERAL SERVICE 2,500 TO 4,999 KW","kW"]
["GENERAL SERVICE 3,000 TO 4,999 KW",null,null,null,null,null,null,null,"General Service 50 to 1,499 kW customer",null,null,"Total Loss Factor - Embedded Distributor",null,null,null,null,null,null,null,null,null,null,"RTSR_Network_Interval",null,null,"Credit reference/credit check (plus credit agency costs – General Service)","Disconnect/Reconnect at meter – during regular hours",null,null,null,null,null,null,null,null,null,null,"Enersource Hydro Mississauga Inc.","Enersource Hydro Mississauga Inc.",null,"GENERAL SERVICE 3,000 TO 4,999 KW","kW",null,null,null,"Total Bill on TOU (before taxes)",null,null,null,null,null,null,null,{"$f":"AZ14-AW14","v":0}]
["GENERAL SERVICE 3,000 TO 4,999 KW - INTERMEDIATE USE",null,null,null,null,null,null,null,"General Service Large Use customer",null,null,"Total Loss Factor – Embedded Distributor – Hydro One Networks Inc.",null,null,null,null,null,null,null,null,null,null,"RTSR_Connection_Interval",null,null,"Credit Reference/credit check (plus credit agency costs)","Disconnect/Reconnect at pole – after regular hours",null,null,null,null,null,null,null,null,null,null,"Entegrus Powerlines Inc.","Entegrus Powerlines Inc.",null,"GENERAL SERVICE 3,000 TO 4,999 KW - INTERMEDIATE USE","kW",null,null,null,"HST",null,null,{"$f":"AV15*AW14","v":0},null,{"$f":"AV15","v":0},{"$f":"AY15*AZ14","v":0},null,{"$f":"AZ15-AW15","v":0},{"$f":"BB15/AW15","v":{"$error":"#DIV/0!"}}]
["GENERAL SERVICE 3,000 TO 4,999 KW - INTERVAL METERED",null,null,null,null,null,null,null,"Green Energy Act Initiatives Funding Adder - effective until the date of the next \n      cost of service-based rate order",null,null,null,null,null,null,null,null,null,null,null,null,null,"RTSR_Network_Interval_GR1000kW",null,null,"Dispute Test – Commercial self contained -- MC","Disconnect/Reconnect at pole – during regular hours",null,null,null,null,null,null,null,null,null,null,"Entegrus Powerlines Inc. - Dutton Service Area","Entegrus Powerlines Inc. - Dutton Service Area",null,"GENERAL SERVICE 3,000 TO 4,999 KW - INTERVAL METERED","kW",null,null,null,"Total Bill (including HST)",null,null,{"$f":"AW15+AW14","v":0},null,null,{"$f":"AZ15+AZ14","v":0},null,{"$f":"AZ16-AW16","v":0},{"$f":"BB16/AW16","v":{"$error":"#DIV/0!"}}]
["GENERAL SERVICE 3,000 TO 4,999 KW - TIME OF USE",null,null,null,null,null,null,null,"Green Energy Act Plan Funding Adder",null,null,null,null,null,null,null,null,null,null,null,null,null,"RTSR_Connection_Interval_GR1000kW",null,null,"Dispute Test – Commercial TT -- MC","Disconnect/Reconnect Charge – At Meter – After Hours",null,null,null,null,null,null,null,null,null,null,"Entegrus Powerlines Inc. - former Chatham-Kent Hydro Service Area","Entegrus Powerlines Inc. - former Chatham-Kent Hydro Service Area",null,"GENERAL SERVICE 3,000 TO 4,999 KW - TIME OF USE","kW",null,null,null,"Ontario Clean Energy Benefit (OCEB)",null,null,{"$f":"-0.1*AW16","v":0},null,{"$f":"AV17","v":0},{"$f":"-0.1*AZ16","v":0},null,{"$f":"AZ17-AW17","v":0},{"$f":"BB17/AW17","v":{"$error":"#DIV/0!"}}]
["GENERAL SERVICE 50 TO 1,000 KW",null,null,null,null,null,null,null,"Green Energy Act Plan Funding Adder - effective April 1, 2013 until March 31, 2014",null,null,null,null,null,null,null,null,null,null,null,null,null,"RTSR_Line_Connection",null,null,"Dispute Test – Residential","Disconnect/Reconnect Charge – At Meter – During Regular Hours",null,null,null,null,null,null,null,null,null,null,"Entegrus Powerlines Inc. - Newbury Service Area","Entegrus Powerlines Inc. - Newbury Service Area",null,"GENERAL SERVICE 50 TO 1,000 KW","kW",null,null,null,"Total Bill on TOU (including OCEB)",null,null,{"$f":"AW16+AW17","v":0},null,null,{"$f":"AZ16+AZ17","v":0},null,{"$f":"AZ18-AW18","v":0},{"$f":"BB18/AW18","v":{"$error":"#DIV/0!"}}]
["GENERAL SERVICE 50 TO 1,000 KW - INTERVAL METERS",null,null,null,null,null,null,null,"Green Energy Act Plan Funding Adder - effective April 1, 2014 until March 31, 2015",null,null,null,null,null,null,null,null,null,null,null,null,null,"RTSR_Transformer_Connection",null,null,"Duplicate Invoices for previous billing","Disconnect/Reconnect Charge – At Pole – After Hours",null,null,null,null,null,null,null,null,null,null,"Entegrus Powerlines Inc. - Strathroy, Mount Brydges and Parkhill Service Areas","Entegrus Powerlines Inc. - Strathroy, Mount Brydges and Parkhill Service Areas",null,"GENERAL SERVICE 50 TO 1,000 KW - INTERVAL METERS","kW"]
["GENERAL SERVICE 50 TO 1,000 KW - NON INTERVAL METERS",null,null,null,null,null,null,null,"ICM Rate Rider (2014) - in effect until the effective date of the next cost of service rates",null,null,null,null,null,null,null,null,null,null,null,null,null,"WMSR",null,null,"Easement Letter","Disconnect/Reconnect Charge – At Pole – During Regular Hours",null,null,null,null,null,null,null,null,null,null,"ENWIN Utilities Ltd.","ENWIN Utilities Ltd.",null,"GENERAL SERVICE 50 TO 1,000 KW - NON INTERVAL METERS","kW"]
["GENERAL SERVICE 50 TO 1,499 KW",null,null,null,null,null,null,null,"Low Voltage Service Charge",null,null,null,null,null,null,null,null,null,null,null,null,null,"RRRP",null,null,"Income Tax Letter","Disconnect/Reconnect Charges for non payment of account - At Meter After Hours",null,null,null,null,null,null,null,null,null,null,"Erie Thames Powerlines Corporation","Erie Thames Powerlines Corporation",null,"GENERAL SERVICE 50 TO 1,499 KW","kW"]
["GENERAL SERVICE 50 TO 1,499 KW - INTERVAL METERED",null,null,null,null,null,null,null,"Low Voltage Service Rate",null,null,null,null,null,null,null,null,null,null,null,null,null,"SPC",null,null,"Interval Meter Interrogation","Disconnect/Reconnect charges for non payment of account – at meter after regular hours",null,null,null,null,null,null,null,null,null,null,"Espanola Regional Hydro Distribution Corporation","Espanola Regional Hydro Distribution Corporation",null,"GENERAL SERVICE 50 TO 1,499 KW - INTERVAL METERED","kW"]
["GENERAL SERVICE 50 TO 2,499 KW",null,null,null,null,null,null,null,"Low Voltage Volumetric Rate",null,null,null,null,null,null,null,null,null,null,null,null,null,"DRC",null,null,"Interval meter request change","Disconnect/Reconnect Charges for non payment of account - At Meter During Regular Hours",null,null,null,null,null,null,null,null,null,null,"Essex Powerlines Corporation","Essex Powerlines Corporation",null,"GENERAL SERVICE 50 TO 2,499 KW","kW"]
["GENERAL SERVICE 50 TO 2,999 KW",null,null,null,null,null,null,null,"LRAM Rate Rider - Effective Until April 30, 2015",null,null,null,null,null,null,null,null,null,null,null,null,null,"SSS",null,null,"Legal letter","Disconnect/Reconnect charges for non payment of account – at meter during regular hours",null,null,null,null,null,null,null,null,null,null,"Festival Hydro Inc.","Festival Hydro Inc.",null,"GENERAL SERVICE 50 TO 2,999 KW","kW"]
["GENERAL SERVICE 50 TO 2,999 KW - INTERVAL METERED",null,null,null,null,null,null,null,"Minimum Distribution Charge - per KW of maximum billing demand in the previous 11 months",null,null,null,null,null,null,null,null,null,null,null,null,null,"SFLF",null,null,"Legal letter charge","Disconnect/Reconnect charges for non payment of account – at pole after regular hours",null,null,null,null,null,null,null,null,null,null,"Fort Frances Power Corporation","Fort Frances Power Corporation",null,"GENERAL SERVICE 50 TO 2,999 KW - INTERVAL METERED","kW"]
["GENERAL SERVICE 50 TO 2,999 KW - TIME OF USE","January",null,null,null,null,null,null,"Monthly Distribution Wheeling Service Rate - Dedicated LV Line",null,null,null,null,null,null,null,null,null,null,null,null,null,"DLF_Secondary_LT_5000kW",null,null,"Meter dispute charge plus Measurement Canada fees (if meter found correct)","Disconnect/Reconnect charges for non payment of account – at pole during regular hours",null,null,null,null,null,null,null,null,null,null,"Greater Sudbury Hydro Inc.","Greater Sudbury Hydro Inc.",null,"GENERAL SERVICE 50 TO 2,999 KW - TIME OF USE","kW"]
["GENERAL SERVICE 50 TO 4,999 KW","February",null,null,null,null,null,null,"Monthly Distribution Wheeling Service Rate - Hydro One Networks",null,null,null,null,null,null,null,null,null,null,null,null,null,"DLF_Secondary_GT_5000kW",null,null,"Notification charge","Disconnect/Reconnection for >300 volts - after regular hours",null,null,null,null,null,null,null,null,null,null,"Grimsby Power Inc.","Grimsby Power Inc.",null,"GENERAL SERVICE 50 TO 4,999 KW","kW"]
["GENERAL SERVICE 50 TO 4,999 KW - INTERVAL METERED","March",null,null,null,null,null,null,"Monthly Distribution Wheeling Service Rate - Shared LV Line",null,null,null,null,null,null,null,null,null,null,null,null,null,"DLF_Primary_LT_5000kW",null,null,"Pulling Post Dated Cheques","Disconnect/Reconnection for >300 volts - during regular hours",null,null,null,null,null,null,null,null,null,null,"Guelph Hydro Electric Systems Inc.","Guelph Hydro Electric Systems Inc.",null,"GENERAL SERVICE 50 TO 4,999 KW - INTERVAL METERED","kW"]
["GENERAL SERVICE 50 TO 4,999 KW - TIME OF USE","April",null,null,null,null,null,null,"Monthly Distribution Wheeling Service Rate - Waterloo North Hydro",null,null,null,null,null,null,null,null,null,null,null,null,null,"DLF_Primary_GT_5000kW",null,null,"Request for other billing information","Disposal of Concrete Poles",null,null,null,null,null,null,null,null,null,null,"Haldimand County Hydro Inc.","Haldimand County Hydro Inc.",null,"GENERAL SERVICE 50 TO 4,999 KW - TIME OF USE","kW"]
["GENERAL SERVICE 50 TO 4,999 KW (COGENERATION)","May",null,null,null,null,null,null,"Rate Rider for Application of Tax Change - effective until April 30, 2015",null,null,null,null,null,null,null,null,null,null,null,null,null,"TLF_Secondary_LT_5000kW",null,null,"Returned cheque (plus bank charges)","Dispute Test – Commercial TT -- MC",null,null,null,null,null,null,null,null,null,null,"Halton Hills Hydro Inc.","Halton Hills Hydro Inc.",null,"GENERAL SERVICE 50 TO 4,999 KW (COGENERATION)","kW"]
["GENERAL SERVICE 50 TO 4,999 KW (FORMERLY TIME OF USE)","June",null,null,null,null,null,null,"Rate Rider for Application of Tax Change - effective until December 31, 2014",null,null,null,null,null,null,null,null,null,null,null,null,null,"TLF_Secondary_GT_5000kW",null,null,"Returned cheque charge (plus bank charges)","Install/Remove load control device – after regular hours",null,null,null,null,null,null,null,null,null,null,"Hearst Power Distribution Company Limited","Hearst Power Distribution Company Limited",null,"GENERAL SERVICE 50 TO 4,999 KW (FORMERLY TIME OF USE)","kW"]
["GENERAL SERVICE 50 TO 499 KW","July",null,null,null,null,null,null,"Rate Rider for Application of Tax Change (2014) - effective until April 30, 2015",null,null,null,null,null,null,null,null,null,null,null,null,null,"TLF_Primary_LT_5000kW",null,null,"Special Billing Service (aggregation)","Install/Remove load control device – during regular hours",null,null,null,null,null,null,null,null,null,null,"Horizon Utilities Corporation","Horizon Utilities Corporation",null,"GENERAL SERVICE 50 TO 499 KW","kW"]
["GENERAL SERVICE 50 TO 699 KW","August",null,null,null,null,null,null,"Rate Rider for Application of Tax Change (per connection) - effective until April 30, 2015",null,null,null,null,null,null,null,null,null,null,null,null,null,"TLF_Primary_GT_5000kW",null,null,"Special Billing Service (sub-metering charge per meter)","Interval Meter Interrogation",null,null,null,null,null,null,null,null,null,null,"Hydro 2000 Inc.","Hydro 2000 Inc.",null,"GENERAL SERVICE 50 TO 699 KW","kW"]
["GENERAL SERVICE 50 TO 999 KW","September",null,null,null,null,null,null,"Rate Rider for CGAAP Accounting Changes (2013) - effective until April 30, 2017",null,null,null,null,null,null,null,null,null,null,null,null,null,"TLF_EmbeddedDistributor",null,null,"Special meter reads","Interval Meter Load Management Tool Charge $/month",null,null,null,null,null,null,null,null,null,null,"Hydro Hawkesbury Inc.","Hydro Hawkesbury Inc.",null,"GENERAL SERVICE 50 TO 999 KW","kW"]
["GENERAL SERVICE 50 TO 999 KW - INTERVAL METERED","October",null,null,null,null,null,null,"Rate Rider for Deferral/Variance Account (2012) - effective unitl April 30, 2016",null,null,null,null,null,null,null,null,null,null,null,null,null,null,null,null,"Statement of Account","Interval meter request change",null,null,null,null,null,null,null,null,null,null,"Hydro One Brampton Networks Inc.","Hydro One Brampton Networks Inc.",null,"GENERAL SERVICE 50 TO 999 KW - INTERVAL METERED","kW"]
["GENERAL SERVICE 500 TO 4,999 KW","November",null,null,null,null,null,null,"Rate Rider for Deferral/Variance Account Disposition – effective until April 30, 2015",null,null,null,null,null,null,null,null,null,null,null,null,null,null,null,null,"Unprocessed Payment Charge (plus bank charges)","Late Payment – per annum",null,null,null,null,null,null,null,null,null,null,"Hydro One Networks Inc.","Hydro One Networks Inc.",null,"GENERAL SERVICE 500 TO 4,999 KW","kW"]
["GENERAL SERVICE 700 TO 4,999 KW","December",null,null,null,null,null,null,"Rate Rider for Deferral/Variance Account Disposition (2012) - effective until April 30, 2016",null,null,null,null,null,null,null,null,null,null,null,null,null,null,null,null,null,"Late Payment – per month",null,null,null,null,null,null,null,null,null,null,"Hydro Ottawa Limited","Hydro Ottawa Limited",null,"GENERAL SERVICE 700 TO 4,999 KW","kW"]
["GENERAL SERVICE DEMAND BILLED (50 KW AND ABOVE) [GSD]",null,null,null,null,null,null,null,"Rate Rider for Deferral/Variance Account Disposition (2013) - effective until April 30, 2014",null,null,null,null,null,null,null,null,null,null,null,null,null,null,null,null,null,"Layout fees",null,null,null,null,null,null,null,null,null,null,"Innisfil Hydro Distribution Systems Limited","Innisfil Hydro Distribution Systems Limited",null,"GENERAL SERVICE DEMAND BILLED (50 KW AND ABOVE) [GSD]","kW"]
["GENERAL SERVICE ENERGY BILLED (LESS THAN 50 KW) [GSE-METERED]",null,null,null,null,null,null,null,"Rate Rider for Deferral/Variance Account Disposition (2014) - effective until April 28, 2016",null,null,null,null,null,null,null,null,null,null,null,null,null,null,null,null,null,"Meter dispute charge plus Measurement Canada fees (if meter found correct)",null,null,null,null,null,null,null,null,null,null,"Kenora Hydro Electric Corporation Ltd.","Kenora Hydro Electric Corporation Ltd.",null,"GENERAL SERVICE ENERGY BILLED (LESS THAN 50 KW) [GSE-METERED]","kWh"]
["GENERAL SERVICE ENERGY BILLED (LESS THAN TO 50 KW) [GSE-UNMETERED]",null,null,null,null,null,null,null,"Rate Rider for Deferral/Variance Account Disposition (2014) - effective until April 30, 2015",null,null,null,null,null,null,null,null,null,null,null,null,null,null,null,null,null,"Meter Interrogation Charge",null,null,null,null,null,null,null,null,null,null,"Kingston Hydro Corporation","Kingston Hydro Corporation",null,"GENERAL SERVICE ENERGY BILLED (LESS THAN TO 50 KW) [GSE-UNMETERED]","kWh"]
["GENERAL SERVICE EQUAL TO OR GREATER THAN 1,500 KW",null,null,null,null,null,null,null,"Rate Rider for Deferral/Variance Account Disposition (2014) - effective until December 31, 2014",null,null,null,null,null,null,null,null,null,null,null,null,null,null,null,null,null,"Missed Service Appointment",null,null,null,null,null,null,null,null,null,null,"Kitchener-Wilmot Hydro Inc.","Kitchener-Wilmot Hydro Inc.",null,"GENERAL SERVICE EQUAL TO OR GREATER THAN 1,500 KW","kW"]
["GENERAL SERVICE EQUAL TO OR GREATER THAN 1,500 KW - INTERVAL METERED",null,null,null,null,null,null,null,"Rate Rider for Deferral/Variance Account Disposition (2014) - effective until December 31, 2015",null,null,null,null,null,null,null,null,null,null,null,null,null,null,null,null,null,"Norfolk Pole Rentals – Billed",null,null,null,null,null,null,null,null,null,null,"Lakefront Utilities Inc.","Lakefront Utilities Inc.",null,"GENERAL SERVICE EQUAL TO OR GREATER THAN 1,500 KW - INTERVAL METERED","kW"]
["GENERAL SERVICE GREATER THAN 1,000 KW",null,null,null,null,null,null,null,"Rate Rider for Deferral/Variance Account Dispositon (2012) - effective until April 30, 2016",null,null,null,null,null,null,null,null,null,null,null,null,null,null,null,null,null,"Optional Interval/TOU Meter charge $/month",null,null,null,null,null,null,null,null,null,null,"Lakeland Power Distribution Ltd.","Lakeland Power Distribution Ltd.",null,"GENERAL SERVICE GREATER THAN 1,000 KW","kW"]
["GENERAL SERVICE GREATER THAN 50 kW - WMP",null,null,null,null,null,null,null,"Rate Rider for Disposition of Accounting Changes Under CGAAP Account 1576 \n      - effective until April 30, 2016",null,null,null,null,null,null,null,null,null,null,null,null,null,null,null,null,null,"Overtime Locate",null,null,null,null,null,null,null,null,null,null,"London Hydro Inc.","London Hydro Inc.",null,"GENERAL SERVICE GREATER THAN 50 kW - WMP","kW"]
["GENERAL SERVICE INTERMEDIATE 1,000 TO 4,999 KW",null,null,null,null,null,null,null,"Rate Rider for Disposition of Deferral/Variance Accounts (2010) - effective until December 31, 2014",null,null,null,null,null,null,null,null,null,null,null,null,null,null,null,null,null,"Owner Requested Disconnection/Reconnection – after regular hours",null,null,null,null,null,null,null,null,null,null,"Midland Power Utility Corporation","Midland Power Utility Corporation",null,"GENERAL SERVICE INTERMEDIATE 1,000 TO 4,999 KW","kW"]
["GENERAL SERVICE INTERMEDIATE RATE CLASS 1,000 TO 4,999 KW (FORMERLY GENERAL SERVICE > 50 KW CUSTOMERS)",null,null,null,null,null,null,null,"Rate Rider for Disposition of Deferral/Variance Accounts (2011) - effective until April 30, 2015",null,null,null,null,null,null,null,null,null,null,null,null,null,null,null,null,null,"Owner Requested Disconnection/Reconnection – during regular hours",null,null,null,null,null,null,null,null,null,null,"Milton Hydro Distribution Inc.","Milton Hydro Distribution Inc.",null,"GENERAL SERVICE INTERMEDIATE RATE CLASS 1,000 TO 4,999 KW (FORMERLY GENERAL SERVICE > 50 KW CUSTOMERS)","kW"]
["GENERAL SERVICE INTERMEDIATE RATE CLASS 1,000 TO 4,999 KW (FORMERLY LARGE USE CUSTOMERS)",null,null,null,null,null,null,null,"Rate Rider for Disposition of Deferral/Variance Accounts (2011) - effective until April 30, 2016",null,null,null,null,null,null,null,null,null,null,null,null,null,null,null,null,null,"Returned cheque (plus bank charges)",null,null,null,null,null,null,null,null,null,null,"Newmarket - Tay Power Distribution Ltd.","Newmarket - Tay Power Distribution Ltd.",null,"GENERAL SERVICE INTERMEDIATE RATE CLASS 1,000 TO 4,999 KW (FORMERLY LARGE USE CUSTOMERS)","kW"]
["GENERAL SERVICE LESS THAN 50 KW",null,null,null,null,null,null,null,"Rate Rider for Disposition of Deferral/Variance Accounts (2012) - effective until April 30, 2014",null,null,null,null,null,null,null,null,null,null,null,null,null,null,null,null,null,"Rural system expansion / line connection fee",null,null,null,null,null,null,null,null,null,null,"Niagara Peninsula Energy Inc.","Niagara Peninsula Energy Inc.",null,"GENERAL SERVICE LESS THAN 50 KW","kWh"]
["GENERAL SERVICE LESS THAN 50 KW - SINGLE PHASE ENERGY-BILLED [G1]",null,null,null,null,null,null,null,"Rate Rider for Disposition of Deferral/Variance Accounts (2012) - effective until April 30, 2015",null,null,null,null,null,null,null,null,null,null,null,null,null,null,null,null,null,"Same Day Open Trench",null,null,null,null,null,null,null,null,null,null,"Niagara-on-the-Lake Hydro Inc.","Niagara-on-the-Lake Hydro Inc.",null,"GENERAL SERVICE LESS THAN 50 KW - SINGLE PHASE ENERGY-BILLED [G1]","kWh"]
["GENERAL SERVICE LESS THAN 50 KW - THREE PHASE ENERGY-BILLED [G3]",null,null,null,null,null,null,null,"Rate Rider for Disposition of Deferral/Variance Accounts (2012) - effective until April 30, 2016",null,null,null,null,null,null,null,null,null,null,null,null,null,null,null,null,null,"Scheduled Day Open Trench",null,null,null,null,null,null,null,null,null,null,"Norfolk Power Distribution Inc.","Norfolk Power Distribution Inc.",null,"GENERAL SERVICE LESS THAN 50 KW - THREE PHASE ENERGY-BILLED [G3]","kWh"]
["GENERAL SERVICE LESS THAN 50 KW - TRANSMISSION CLASS ENERGY-BILLED [T]",null,null,null,null,null,null,null,"Rate Rider for Disposition of Deferral/Variance Accounts (2012) - effective until August 31, 2014",null,null,null,null,null,null,null,null,null,null,null,null,null,null,null,null,null,"Service call – after regular hours",null,null,null,null,null,null,null,null,null,null,"North Bay Hydro Distribution Limited","North Bay Hydro Distribution Limited",null,"GENERAL SERVICE LESS THAN 50 KW - TRANSMISSION CLASS ENERGY-BILLED [T]","kWh"]
["GENERAL SERVICE LESS THAN 50 KW - URBAN ENERGY-BILLED [UG]",null,null,null,null,null,null,null,"Rate Rider for Disposition of Deferral/Variance Accounts (2012) - effective until December 31, 2015",null,null,null,null,null,null,null,null,null,null,null,null,null,null,null,null,null,"Service call – customer owned equipment",null,null,null,null,null,null,null,null,null,null,"Northern Ontario Wires Inc.","Northern Ontario Wires Inc.",null,"GENERAL SERVICE LESS THAN 50 KW - URBAN ENERGY-BILLED [UG]","kWh"]
["GENERAL SERVICE SINGLE PHASE - G1",null,null,null,null,null,null,null,"Rate Rider for Disposition of Deferral/Variance Accounts (2012) - effective until December 31, 2016 \n      Applicable only in the former service area of Clinton Power",null,null,null,null,null,null,null,null,null,null,null,null,null,null,null,null,null,"Service Call – Customer-owned Equipment – After Regular Hours",null,null,null,null,null,null,null,null,null,null,"Oakville Hydro Electricity Distribution Inc.","Oakville Hydro Electricity Distribution Inc.",null,"GENERAL SERVICE SINGLE PHASE - G1","kW"]
["GENERAL SERVICE THREE PHASE - G3",null,null,null,null,null,null,null,"Rate Rider for Disposition of Deferral/Variance Accounts (2012) – effective until December 31, 2016 \n      Applicable only in the former service area of Clinton Power",null,null,null,null,null,null,null,null,null,null,null,null,null,null,null,null,null,"Service Call – Customer-owned Equipment – During Regular Hours",null,null,null,null,null,null,null,null,null,null,"Orangeville Hydro Limited","Orangeville Hydro Limited",null,"GENERAL SERVICE THREE PHASE - G3","kW"]
["INTERMEDIATE USERS",null,null,null,null,null,null,null,"Rate Rider for Disposition of Deferral/Variance Accounts (2012) - effective until January 31, 2014",null,null,null,null,null,null,null,null,null,null,null,null,null,null,null,null,null,"Service Charge for onsite interrogation of interval meter due to customer phone line failure - required weekly until line repaired $ 6",null,null,null,null,null,null,null,null,null,null,"Orillia Power Distribution Corporation","Orillia Power Distribution Corporation",null,"INTERMEDIATE USERS","kW"]
["INTERMEDIATE WITH SELF GENERATION",null,null,null,null,null,null,null,"Rate Rider for Disposition of Deferral/Variance Accounts (2012) - effective until June 30, 2014",null,null,null,null,null,null,null,null,null,null,null,null,null,null,null,null,null,"Service Layout - Commercial",null,null,null,null,null,null,null,null,null,null,"Oshawa PUC Networks Inc.","Oshawa PUC Networks Inc.",null,"INTERMEDIATE WITH SELF GENERATION","kW"]
["LARGE USE",null,null,null,null,null,null,null,"Rate Rider for Disposition of Deferral/Variance Accounts (2013) - Applicable only to \n      Wholesale Market Participants - effective until April 30, 2015",null,null,null,null,null,null,null,null,null,null,null,null,null,null,null,null,null,"Service Layout - ResidentiaI",null,null,null,null,null,null,null,null,null,null,"Ottawa River Power Corporation","Ottawa River Power Corporation",null,"LARGE USE","kW"]
["LARGE USE - 3TS",null,null,null,null,null,null,null,"Rate Rider for Disposition of Deferral/Variance Accounts (2013) - effective until April 30, 2014",null,null,null,null,null,null,null,null,null,null,null,null,null,null,null,null,null,"Special Billing Service (sub-metering charge per meter)",null,null,null,null,null,null,null,null,null,null,"Parry Sound Power Corporation","Parry Sound Power Corporation",null,"LARGE USE - 3TS","kW"]
["LARGE USE - FORD ANNEX",null,null,null,null,null,null,null,"Rate Rider for Disposition of Deferral/Variance Accounts (2013) - effective until April 30, 2015",null,null,null,null,null,null,null,null,null,null,null,null,null,null,null,null,null,"Special meter reads",null,null,null,null,null,null,null,null,null,null,"Peterborough Distribution Incorporated","Peterborough Distribution Incorporated",null,"LARGE USE - FORD ANNEX","kW"]
["LARGE USE - REGULAR",null,null,null,null,null,null,null,"Rate Rider for Disposition of Deferral/Variance Accounts (2013) - effective until April 30, 2015 \n      - not applicable to Wholesale Market Participants",null,null,null,null,null,null,null,null,null,null,null,null,null,null,null,null,null,"Specific Charge for Access to the Power Poles - $/pole/year",null,null,null,null,null,null,null,null,null,null,"PowerStream Inc.","PowerStream Inc.",null,"LARGE USE - REGULAR","kW"]
["LARGE USE > 5000 KW",null,null,null,null,null,null,null,"Rate Rider for Disposition of Deferral/Variance Accounts (2013) - effective until April 30, 2017",null,null,null,null,null,null,null,null,null,null,null,null,null,null,null,null,null,"Specific Charge for Bell Canada Access to the Power Poles – per pole/year",null,null,null,null,null,null,null,null,null,null,"PUC Distribution Inc.","PUC Distribution Inc.",null,"LARGE USE > 5000 KW","kW"]
["microFIT",null,null,null,null,null,null,null,"Rate Rider for Disposition of Deferral/Variance Accounts (2013) - effective until August 31, 2014",null,null,null,null,null,null,null,null,null,null,null,null,null,null,null,null,null,"Switching for company maintenance – Charge based on Time and Materials",null,null,null,null,null,null,null,null,null,null,"Renfrew Hydro Inc.","Renfrew Hydro Inc.",null,"microFIT","$"]
["RESIDENTIAL",null,null,null,null,null,null,null,"Rate Rider for Disposition of Deferral/Variance Accounts (2013) - effective until December 31, 2014",null,null,null,null,null,null,null,null,null,null,null,null,null,null,null,null,null,"Temporary Service – Install & remove – overhead – no transformer",null,null,null,null,null,null,null,null,null,null,"Rideau St. Lawrence Distribution Inc.","Rideau St. Lawrence Distribution Inc.",null,"RESIDENTIAL","kWh"]
["RESIDENTIAL - HENSALL",null,null,null,null,null,null,null,"Rate Rider for Disposition of Deferral/Variance Accounts (2013) - effective until May 31, 2014",null,null,null,null,null,null,null,null,null,null,null,null,null,null,null,null,null,"Temporary Service – Install & remove – overhead – with transformer",null,null,null,null,null,null,null,null,null,null,"Sioux Lookout Hydro Inc.","Sioux Lookout Hydro Inc.",null,"RESIDENTIAL - HENSALL","kWh"]
["RESIDENTIAL - HIGH DENSITY [R1]",null,null,null,null,null,null,null,"Rate Rider for Disposition of Deferral/Variance Accounts (2014) - effective until December 31, 2015",null,null,null,null,null,null,null,null,null,null,null,null,null,null,null,null,null,"Temporary Service – Install & remove – underground – no transformer",null,null,null,null,null,null,null,null,null,null,"St. Thomas Energy Inc.","St. Thomas Energy Inc.",null,"RESIDENTIAL - HIGH DENSITY [R1]","kWh"]
["RESIDENTIAL - LOW DENSITY [R2]",null,null,null,null,null,null,null,"Rate Rider for Disposition of Deferred PILs Variance Account 1562 - effective until March 31, 2016",null,null,null,null,null,null,null,null,null,null,null,null,null,null,null,null,null,"Temporary service install & remove – overhead – no transformer",null,null,null,null,null,null,null,null,null,null,"Thunder Bay Hydro Electricity Distribution Inc.","Thunder Bay Hydro Electricity Distribution Inc.",null,"RESIDENTIAL - LOW DENSITY [R2]","kWh"]
["RESIDENTIAL - MEDIUM DENSITY [R1]",null,null,null,null,null,null,null,"Rate Rider for Disposition of Deferred PILs Variance Account 1562 (2012) - effective until April 30, 2015",null,null,null,null,null,null,null,null,null,null,null,null,null,null,null,null,null,"Temporary Service Install & Remove – Overhead – With Transformer",null,null,null,null,null,null,null,null,null,null,"Tillsonburg Hydro Inc.","Tillsonburg Hydro Inc.",null,"RESIDENTIAL - MEDIUM DENSITY [R1]","kWh"]
["RESIDENTIAL - NORMAL DENSITY [R2]",null,null,null,null,null,null,null,"Rate Rider for Disposition of Deferred PILs Variance Account 1562 (2012) - effective until April 30, 2016",null,null,null,null,null,null,null,null,null,null,null,null,null,null,null,null,null,"Temporary Service Install & Remove – Underground – No Transformer",null,null,null,null,null,null,null,null,null,null,"Toronto Hydro-Electric System Limited","Toronto Hydro-Electric System Limited",null,"RESIDENTIAL - NORMAL DENSITY [R2]","kWh"]
["RESIDENTIAL - TIME OF USE",null,null,null,null,null,null,null,"Rate Rider for Disposition of Deferred PILs Variance Account 1562 (2nd Installment - 2012) \n      - effective until April 30, 2016",null,null,null,null,null,null,null,null,null,null,null,null,null,null,null,null,null,"Temporary service installation and removal – overhead – no transformer",null,null,null,null,null,null,null,null,null,null,"Veridian Connections Inc.","Veridian Connections Inc.",null,"RESIDENTIAL - TIME OF USE","kWh"]
["RESIDENTIAL - URBAN [UR]",null,null,null,null,null,null,null,"Rate Rider for Disposition of Deferred PILs Variance Account 1562 (per connection) (2012) \n      - effective until April 30, 2015",null,null,null,null,null,null,null,null,null,null,null,null,null,null,null,null,null,"Temporary service installation and removal – overhead – with transformer",null,null,null,null,null,null,null,null,null,null,"Wasaga Distribution Inc.","Wasaga Distribution Inc.",null,"RESIDENTIAL - URBAN [UR]","kWh"]
["RESIDENTIAL REGULAR",null,null,null,null,null,null,null,"Rate Rider for Disposition of Deferred PILs Variance Account 1562 (per connection) (2012) \n      - effective until April 30, 2016",null,null,null,null,null,null,null,null,null,null,null,null,null,null,null,null,null,"Temporary service installation and removal – underground – no transformer",null,null,null,null,null,null,null,null,null,null,"Waterloo North Hydro Inc.","Waterloo North Hydro Inc.",null,"RESIDENTIAL REGULAR","kWh"]
["RESIDENTIAL SUBURBAN",null,null,null,null,null,null,null,"Rate Rider for Disposition of Global Adjustment Sub-Account (2011)  - effective until April 30, 2015 \n      Applicable only for Non-RPP Customers",null,null,null,null,null,null,null,null,null,null,null,null,null,null,null,null,null,null,null,null,null,null,null,null,null,null,null,null,"Welland Hydro-Electric System Corp.","Welland Hydro-Electric System Corp.",null,"RESIDENTIAL SUBURBAN","kWh"]
["RESIDENTIAL SUBURBAN SEASONAL",null,null,null,null,null,null,null,"Rate Rider for Disposition of Global Adjustment Sub-Account (2011) - effective until April 30, 2016 \n      Applicable only for Non-RPP Customers",null,null,null,null,null,null,null,null,null,null,null,null,null,null,null,null,null,null,null,null,null,null,null,null,null,null,null,null,"Wellington North Power Inc.","Wellington North Power Inc.",null,"RESIDENTIAL SUBURBAN SEASONAL","kWh"]
["RESIDENTIAL SUBURBAN YEAR ROUND",null,null,null,null,null,null,null,"Rate Rider for Disposition of Global Adjustment Sub-Account (2012) - effective until April 30, 2014 \n      Applicable only for Non-RPP Customers",null,null,null,null,null,null,null,null,null,null,null,null,null,null,null,null,null,null,null,null,null,null,null,null,null,null,null,null,"West Coast Huron Energy Inc.","West Coast Huron Energy Inc.",null,"RESIDENTIAL SUBURBAN YEAR ROUND","kWh"]
["RESIDENTIAL URBAN",null,null,null,null,null,null,null,"Rate Rider for Disposition of Global Adjustment Sub-Account (2012) - effective until April 30, 2015 \n      Applicable only for Non-RPP Customers",null,null,null,null,null,null,null,null,null,null,null,null,null,null,null,null,null,null,null,null,null,null,null,null,null,null,null,null,"Westario Power Inc.","Westario Power Inc.",null,"RESIDENTIAL URBAN","kWh"]
["RESIDENTIAL URBAN YEAR-ROUND",null,null,null,null,null,null,null,"Rate Rider for Disposition of Global Adjustment Sub-Account (2012) - effective until April 30, 2015 \n      Applicatble only for Non-RPP Customers",null,null,null,null,null,null,null,null,null,null,null,null,null,null,null,null,null,null,null,null,null,null,null,null,null,null,null,null,"Whitby Hydro Electric Corporation","Whitby Hydro Electric Corporation",null,"RESIDENTIAL URBAN YEAR-ROUND","kWh"]
["SEASONAL RESIDENTIAL",null,null,null,null,null,null,null,"Rate Rider for Disposition of Global Adjustment Sub-Account (2012) - effective until April 30, 2016 \n      Applicable only for Non-RPP Customers",null,null,null,null,null,null,null,null,null,null,null,null,null,null,null,null,null,null,null,null,null,null,null,null,null,null,null,null,"Woodstock Hydro Services Inc.","Woodstock Hydro Services Inc.",null,"SEASONAL RESIDENTIAL","kWh"]
["SEASONAL RESIDENTIAL - HIGH DENSITY [R3]",null,null,null,null,null,null,null,"Rate Rider for Disposition of Global Adjustment Sub-Account (2012) - effective until January 31, 2014. \n      Applicable only for Non-RPP Customers",null,null,null,null,null,null,null,null,null,null,null,null,null,null,null,null,null,null,null,null,null,null,null,null,null,null,null,null,null,null,null,"SEASONAL RESIDENTIAL - HIGH DENSITY [R3]","kWh"]
["SEASONAL RESIDENTIAL - NORMAL DENSITY [R4]",null,null,null,null,null,null,null,"Rate Rider for Disposition of Global Adjustment Sub-Account (2012) - effective until June 30, 2014 \n      Applicable only for Non-RPP Customers",null,null,null,null,null,null,null,null,null,null,null,null,null,null,null,null,null,null,null,null,null,null,null,null,null,null,null,null,null,null,null,"SEASONAL RESIDENTIAL - NORMAL DENSITY [R4]","kWh"]
["SENTINEL LIGHTING",null,null,null,null,null,null,null,"Rate Rider for Disposition of Global Adjustment Sub-Account (2012) Applicable only for Non-RPP Customers \n      - effective until August 31, 2014",null,null,null,null,null,null,null,null,null,null,null,null,null,null,null,null,null,null,null,null,null,null,null,null,null,null,null,null,null,null,null,"SENTINEL LIGHTING","kW"]
["SMALL COMMERCIAL AND USL - PER CONNECTION",null,null,null,null,null,null,null,"Rate Rider for Disposition of Global Adjustment Sub-Account (2012) Applicable only to Non-RPP Customers \n      - effective until August 31, 2014",null,null,null,null,null,null,null,null,null,null,null,null,null,null,null,null,null,null,null,null,null,null,null,null,null,null,null,null,null,null,null,"SMALL COMMERCIAL AND USL - PER CONNECTION","kWh"]
["SMALL COMMERCIAL AND USL - PER METER",null,null,null,null,null,null,null,"Rate Rider for Disposition of Global Adjustment Sub-Account (2013) - effective until April 30, 2014 \n      Applicable only for Non-RPP Customers",null,null,null,null,null,null,null,null,null,null,null,null,null,null,null,null,null,null,null,null,null,null,null,null,null,null,null,null,null,null,null,"SMALL COMMERCIAL AND USL - PER METER","kWh"]
["STANDARD A GENERAL SERVICE AIR ACCESS",null,null,null,null,null,null,null,"Rate Rider for Disposition of Global Adjustment Sub-Account (2013) - effective until April 30, 2015 \n      Applicable only for Non-RPP Customers",null,null,null,null,null,null,null,null,null,null,null,null,null,null,null,null,null,null,null,null,null,null,null,null,null,null,null,null,null,null,null,"STANDARD A GENERAL SERVICE AIR ACCESS","kWh"]
["STANDARD A GENERAL SERVICE ROAD/RAIL",null,null,null,null,null,null,null,"Rate Rider for Disposition of Global Adjustment Sub-Account (2013) - effective until April 30, 2015 \n      Applicable only for Non-RPP Customers and excluding Wholesale Market Participants",null,null,null,null,null,null,null,null,null,null,null,null,null,null,null,null,null,null,null,null,null,null,null,null,null,null,null,null,null,null,null,"STANDARD A GENERAL SERVICE ROAD/RAIL","kWh"]
["STANDARD A GRID CONNECTED",null,null,null,null,null,null,null,"Rate Rider for Disposition of Global Adjustment Sub-Account (2013) - effective until April 30, 2017 \n      Applicable only for Non-RPP Customers",null,null,null,null,null,null,null,null,null,null,null,null,null,null,null,null,null,null,null,null,null,null,null,null,null,null,null,null,null,null,null,"STANDARD A GRID CONNECTED","kWh"]
["STANDARD A RESIDENTIAL AIR ACCESS",null,null,null,null,null,null,null,"Rate Rider For Disposition of Global Adjustment Sub-Account (2013) - effective until August 31, 2014 \n      Applicable only for Non-RPP Customers",null,null,null,null,null,null,null,null,null,null,null,null,null,null,null,null,null,null,null,null,null,null,null,null,null,null,null,null,null,null,null,"STANDARD A RESIDENTIAL AIR ACCESS","kWh"]
["STANDARD A RESIDENTIAL ROAD/RAIL",null,null,null,null,null,null,null,"Rate Rider for Disposition of Global Adjustment Sub-Account (2013) - effective until December 31, 2014 \n      Applicable only for Non-RPP Customers",null,null,null,null,null,null,null,null,null,null,null,null,null,null,null,null,null,null,null,null,null,null,null,null,null,null,null,null,null,null,null,"STANDARD A RESIDENTIAL ROAD/RAIL","kWh"]
["STANDBY - GENERAL SERVICE 1,000 - 5,000 KW",null,null,null,null,null,null,null,"Rate Rider for Disposition of Global Adjustment Sub-Account (2013) - effective until May 31, 2014 \n      Applicable only for Non-RPP Customers",null,null,null,null,null,null,null,null,null,null,null,null,null,null,null,null,null,null,null,null,null,null,null,null,null,null,null,null,null,null,null,"STANDBY - GENERAL SERVICE 1,000 - 5,000 KW","kW"]
["STANDBY - GENERAL SERVICE 50 - 1,000 KW",null,null,null,null,null,null,null,"Rate Rider for Disposition of Global Adjustment Sub-Account (2014) - effective until December 31, 2014. \n      Applicable only for Non-RPP - Class B Customers",null,null,null,null,null,null,null,null,null,null,null,null,null,null,null,null,null,null,null,null,null,null,null,null,null,null,null,null,null,null,null,"STANDBY - GENERAL SERVICE 50 - 1,000 KW","kW"]
["STANDBY - LARGE USE",null,null,null,null,null,null,null,"Rate Rider for Disposition of Global Adjustment Sub-Account (2014) - effective until December 31, 2014. \n      Applicable only for Non-RPP Customers",null,null,null,null,null,null,null,null,null,null,null,null,null,null,null,null,null,null,null,null,null,null,null,null,null,null,null,null,null,null,null,"STANDBY - LARGE USE","kW"]
["STANDBY DISTRIBUTION SERVICE",null,null,null,null,null,null,null,"Rate Rider for Disposition of Global Adjustment Sub-Account (2014) - effective until December 31, 2014. \n      Applicable only for Non-RPP Customers - Class A Customers",null,null,null,null,null,null,null,null,null,null,null,null,null,null,null,null,null,null,null,null,null,null,null,null,null,null,null,null,null,null,null,"STANDBY DISTRIBUTION SERVICE","kW"]
["STANDBY POWER",null,null,null,null,null,null,null,"Rate Rider for Disposition of Global Adjustment Sub-Account (2014) - effective until December 31, 2014. \n      Applicable only for Non-RPP Customers - Interval Metered",null,null,null,null,null,null,null,null,null,null,null,null,null,null,null,null,null,null,null,null,null,null,null,null,null,null,null,null,null,null,null,"STANDBY POWER","kW"]
["STANDBY POWER - APPROVED ON AN INTERIM BASIS",null,null,null,null,null,null,null,"Rate Rider for Disposition of Global Adjustment Sub-Account (2014) - effective until December 31, 2014. \n      Applicable only for Non-RPP Customers - Non Interval Metered",null,null,null,null,null,null,null,null,null,null,null,null,null,null,null,null,null,null,null,null,null,null,null,null,null,null,null,null,null,null,null,"STANDBY POWER - APPROVED ON AN INTERIM BASIS","kW"]
["STANDBY POWER GENERAL SERVICE 1,500 TO 4,999 KW",null,null,null,null,null,null,null,"Rate Rider for Disposition of Global Adjustment Sub-Account (2014) \n      - effective until December 31, 2015. Applicable only for Non-RPP Customers.  ",null,null,null,null,null,null,null,null,null,null,null,null,null,null,null,null,null,null,null,null,null,null,null,null,null,null,null,null,null,null,null,"STANDBY POWER GENERAL SERVICE 1,500 TO 4,999 KW","kW"]
["STANDBY POWER GENERAL SERVICE 50 TO 1,499 KW",null,null,null,null,null,null,null,"Rate Rider for Disposition of Post Retirement Actuarial Gain - effective until March 31, 2025",null,null,null,null,null,null,null,null,null,null,null,null,null,null,null,null,null,null,null,null,null,null,null,null,null,null,null,null,null,null,null,"STANDBY POWER GENERAL SERVICE 50 TO 1,499 KW","kW"]
["STANDBY POWER GENERAL SERVICE LARGE USE",null,null,null,null,null,null,null,"Rate Rider for Disposition of Residual Hisotrical Smart Meter Costs - effective until April 30, 2015",null,null,null,null,null,null,null,null,null,null,null,null,null,null,null,null,null,null,null,null,null,null,null,null,null,null,null,null,null,null,null,"STANDBY POWER GENERAL SERVICE LARGE USE","kW"]
["STREET LIGHTING",null,null,null,null,null,null,null,"Rate Rider for Disposition of Residual Hisotrical Smart Meter Costs - effective until April 30, 2017",null,null,null,null,null,null,null,null,null,null,null,null,null,null,null,null,null,null,null,null,null,null,null,null,null,null,null,null,null,null,null,"STREET LIGHTING","kW"]
["SUB TRANSMISSION [ST]",null,null,null,null,null,null,null,"Rate Rider for Disposition of Residual Historical Smart Meter Costs - effective until April 30, 2014",null,null,null,null,null,null,null,null,null,null,null,null,null,null,null,null,null,null,null,null,null,null,null,null,null,null,null,null,null,null,null,"SUB TRANSMISSION [ST]","kW"]
["UNMETERED SCATTERED LOAD",null,null,null,null,null,null,null,"Rate Rider for Disposition of Residual Historical Smart Meter Costs - effective until April 30, 2016",null,null,null,null,null,null,null,null,null,null,null,null,null,null,null,null,null,null,null,null,null,null,null,null,null,null,null,null,null,null,null,"UNMETERED SCATTERED LOAD","kWh"]
["URBAN GENERAL SERVICE DEMAND BILLED (50 KW AND ABOVE) [UGD]",null,null,null,null,null,null,null,"Rate Rider for Disposition of Residual Historical Smart Meter Costs - effective until August 31, 2014",null,null,null,null,null,null,null,null,null,null,null,null,null,null,null,null,null,null,null,null,null,null,null,null,null,null,null,null,null,null,null,"URBAN GENERAL SERVICE DEMAND BILLED (50 KW AND ABOVE) [UGD]","kW"]
["URBAN GENERAL SERVICE ENERGY BILLED (LESS THAN 50 KW) [UGE]",null,null,null,null,null,null,null,"Rate Rider for Disposition of Residual Historical Smart Meter Costs - effective until August 31, 2015",null,null,null,null,null,null,null,null,null,null,null,null,null,null,null,null,null,null,null,null,null,null,null,null,null,null,null,null,null,null,null,"URBAN GENERAL SERVICE ENERGY BILLED (LESS THAN 50 KW) [UGE]","kWh"]
["WESTPORT SEWAGE TREATMENT PLANT",null,null,null,null,null,null,null,"Rate Rider for Disposition of Residual Historical Smart Meter Costs - effective until December 31, 2014",null,null,null,null,null,null,null,null,null,null,null,null,null,null,null,null,null,null,null,null,null,null,null,null,null,null,null,null,null,null,null,"WESTPORT SEWAGE TREATMENT PLANT","kW"]
["YEAR-ROUND RESIDENTIAL - R2",null,null,null,null,null,null,null,"Rate Rider for Disposition of Residual Historical Smart Meter Costs – effective until December 31, 2014",null,null,null,null,null,null,null,null,null,null,null,null,null,null,null,null,null,null,null,null,null,null,null,null,null,null,null,null,null,null,null,"YEAR-ROUND RESIDENTIAL - R2","kWh"]
[null,null,null,null,null,null,null,null,"Rate Rider for Disposition of Residual Historical Smart Meter Costs - effective until December 31, 2015"]
[null,null,null,null,null,null,null,null,"Rate Rider for Disposition of Residual Historical Smart Meter Costs - effective until December 31, 2016"]
[null,null,null,null,null,null,null,null,"Rate Rider for Disposition of Residual Historical Smart Meter Costs - effective until October 31, 2014"]
[null,null,null,null,null,null,null,null,"Rate Rider for Disposition of Residual Historical Smart Meter Costs - effective until September 30, 2014"]
[null,null,null,null,null,null,null,null,"Rate Rider for Disposition of Residual Historical Smart Meter Costs - Non-Interval Metered \n      - effective until April 30, 2014"]
[null,null,null,null,null,null,null,null,"Rate Rider for Disposition of Residual Historical Smart Meter Costs 2 - in effect until the effective date\n      of the next cost of service-based rate order"]
[null,null,null,null,null,null,null,null,"Rate Rider for Disposition of Residual Historical Smart Meter Costs 3 - in effect until the effective date of\n      the next cost of service-based rate order"]
[null,null,null,null,null,null,null,null,"Rate Rider for Disposition of Residual Incremental Historical Smart Meter Costs \n      - effective until August 31, 2015"]
[null,null,null,null,null,null,null,null,"Rate Rider for Disposition of Stranded Meter costs - effective until April 30, 2015"]
[null,null,null,null,null,null,null,null,"Rate Rider for Disposition of Stranded Meter Costs - effective until April 30, 2016"]
[null,null,null,null,null,null,null,null,"Rate Rider for Disposition of Stranded Meter Costs - effective until April 30, 2017"]
[null,null,null,null,null,null,null,null,"Rate Rider for Global Adjustment Sub Account Disposition - effective until April 30, 2016 \n      Applicable only for Non RPP Customers"]
[null,null,null,null,null,null,null,null,"Rate Rider for Global Adjustment Sub-Account Disposition (2014) - effective until April 28, 2016 \n      Applicable only for Non-RPP Customers"]
[null,null,null,null,null,null,null,null,"Rate Rider for Global Adjustment Sub-Account Disposition (2014) - effective until April 30, 2015 \n      Applicable only for Non-RPP Customers"]
[null,null,null,null,null,null,null,null,"Rate Rider for Global Adjustment Sub-Account Disposition (2014) - effective until December 30, 2015 \n      Applicable only for Non-RPP Customers"]
[null,null,null,null,null,null,null,null,"Rate Rider for Global Adjustment Sub-Account Disposition (2014) - effective until December 31, 2014 \n      Applicable only for Non-RPP Customers"]
[null,null,null,null,null,null,null,null,"Rate Rider for Global Adjustment Sub-Account Disposition (2014) - effective until December 31, 2015 \n      Applicable only for Non-RPP Customers"]
[null,null,null,null,null,null,null,null,"Rate Rider for Global Adjustment Sub-Account Disposition Applicable only for Non-RPP Customers \n      - effective until April 30, 2015"]
[null,null,null,null,null,null,null,null,"Rate Rider for Incremental Capital - Distribution Volumetric - effective until April 30, 2016"]
[null,null,null,null,null,null,null,null,"Rate Rider for Incremental Capital - Service Charge - effective until April 30, 2016"]
[null,null,null,null,null,null,null,null,"Rate Rider for Incremental Capital (2012) - effective until April 30, 2015"]
[null,null,null,null,null,null,null,null,"Rate Rider for Lost Revenue Adjustment Mechanism Variance Account (LRAMVA) Recovery (2012 CDM Activities) \n      - effective until April 30, 2015"]
[null,null,null,null,null,null,null,null,"Rate Rider for Recover of Residual Historical Smart meter Costs - effective until June 30, 2014"]
[null,null,null,null,null,null,null,null,"Rate Rider for Recovery of CGAAP/CWIP Differential - in effect until December 31, 2016"]
[null,null,null,null,null,null,null,null,"Rate Rider for Recovery of Foregone Revenue - effective until April 30, 2015"]
[null,null,null,null,null,null,null,null,"Rate Rider for Recovery of Forgone Revenue - effective until April 30, 2015"]
[null,null,null,null,null,null,null,null,"Rate Rider for Recovery of Forgone Revenue - effective until December 31, 2014"]
[null,null,null,null,null,null,null,null,"Rate Rider for Recovery of Green Energy Act related costs - effective until December 31, 2014"]
[null,null,null,null,null,null,null,null,"Rate Rider for Recovery of Incremental Capital (2013) - in effect until the effective date of \n      the next cost of service-based rate order"]
[null,null,null,null,null,null,null,null,"Rate Rider for Recovery of Incremental Capital (2013) - in effect until the effective date of \n      the next cost of service-based rate order"]
[null,null,null,null,null,null,null,null,"Rate Rider for Recovery of Incremental Capital (2013) (per connection) - in effect until the effective date of \n      the next cost of service-based rate order"]
[null,null,null,null,null,null,null,null,"Rate Rider for Recovery of Incremental Capital (2013) (per connection)- in effect until the effective date of \n      the next cost of service-based rate order"]
[null,null,null,null,null,null,null,null,"Rate Rider for Recovery of Incremental Capital Costs"]
[null,null,null,null,null,null,null,null,"Rate Rider for Recovery of Incremental Capital Costs - effective until April 30, 2015"]
[null,null,null,null,null,null,null,null,"Rate Rider for Recovery of Incremental Capital Module Costs (2014) - in effect until the effective date\n      of the next cost of service-based rate order"]
[null,null,null,null,null,null,null,null,"Rate Rider for Recovery of Incremental Capital Module Costs (2014) - in effect until the effective date\n      of the next cost of service-based rate order"]
[null,null,null,null,null,null,null,null,"Rate Rider for Recovery of Lost Revenue Adjustment Mechanism ( LRAM)/Shared Savings Mechanism (SSM) (2012) \n      - effective until August 31, 2014"]
[null,null,null,null,null,null,null,null,"Rate Rider for Recovery of Lost Revenue Adjustment Mechanism (2013) \n      - effective until December 31, 2014"]
[null,null,null,null,null,null,null,null,"Rate Rider for Recovery of Lost Revenue Adjustment Mechanism (LRAM) - effective until April 30, 2016"]
[null,null,null,null,null,null,null,null,"Rate Rider for Recovery of Lost Revenue Adjustment Mechanism (LRAM) (pre-2011 CDM Activities) \n      - effective until April 30, 2015"]
[null,null,null,null,null,null,null,null,"Rate Rider for Recovery of Lost Revenue Adjustment Mechanism (LRAM) (pre-2011 CDM Activities) (2013) \n      - effective until April 30, 2015"]
[null,null,null,null,null,null,null,null,"Rate Rider for Recovery of Lost Revenue Adjustment Mechanism (LRAM)/Shared Savings"]
[null,null,null,null,null,null,null,null,"Rate Rider for Recovery of Lost Revenue Adjustment Mechanism (LRAM)/Shared Savings Mechanism \n      (SSM) - effective until December 31, 2018 and applicable in the service area excluding the former \n      service areas of Clinton Power and West Perth Power"]
[null,null,null,null,null,null,null,null,"Rate Rider for Recovery of Lost Revenue Adjustment Mechanism (LRAM)/Shared Savings Mechanism (SSM) - effective until \n      December 31, 2014 and applicable in the service area excluding the former service areas of Clinton Power and West Perth Power"]
[null,null,null,null,null,null,null,null,"Rate Rider for Recovery of Lost Revenue Adjustment Mechanism (LRAM)/Shared Savings Mechanism (SSM) - effective until \n      December 31, 2014 and applicable only in the former service area of Clinton Power"]
[null,null,null,null,null,null,null,null,"Rate Rider for Recovery of Lost Revenue Adjustment Mechanism (LRAM)/Shared Savings Mechanism (SSM) - effective until \n      December 31, 2014 and applicable only in the former service area of West Perth Power"]
[null,null,null,null,null,null,null,null,"Rate Rider for Recovery of Lost Revenue Adjustment Mechanism (LRAM)/Shared Savings Mechanism (SSM) - effective until December 31, 2014 and applicable in the service area excluding the former service area of Clinton Power"]
[null,null,null,null,null,null,null,null,"Rate Rider for Recovery of Lost Revenue Adjustment Mechanism (LRAM)/Shared Savings Mechanism (SSM) \n      - effective until March 31, 2016"]
[null,null,null,null,null,null,null,null,"Rate Rider for Recovery of Lost Revenue Adjustment Mechanism (LRAM)/Shared Savings Mechanism (SSM) (2012) \n      - effective until August 31, 2014"]
[null,null,null,null,null,null,null,null,"Rate Rider for Recovery of Lost Revenue Adjustment Mechanism (LRAM)/Shared Savings Mechanism (SSM) Recovery \n      - effective until April 30, 2015"]
[null,null,null,null,null,null,null,null,"Rate Rider for Recovery of Lost Revenue Adjustment Mechanism Variance Account (LRAMVA) (2014) \n      - effective until April 30, 2015"]
[null,null,null,null,null,null,null,null,"Rate Rider for Recovery of Residual Historical Smart Meter Costs - effective July 1, 2012 - April 30, 2016"]
[null,null,null,null,null,null,null,null,"Rate Rider for Recovery of Smart Meter Incremental Revenue Requirement - effective until the date of \n      the next cost of service-based rate order"]
[null,null,null,null,null,null,null,null,"Rate Rider for Recovery of Smart Meter Incremental Revenue Requirement - effective until the effective \n      date of the next cost of service-based rate order, or October 31, 2017, whichever occurs earlier"]
[null,null,null,null,null,null,null,null,"Rate Rider for Recovery of Smart Meter Incremental Revenue Requirement - in effect until the effective date of \n      the next cost of service-based rate order"]
[null,null,null,null,null,null,null,null,"Rate Rider for Recovery of Smart Meter Incremental Revenue Requirement - Non-Interval Metered - in effect until \n      the effective date of the next cost of service-based rate order"]
[null,null,null,null,null,null,null,null,"Rate Rider for Recovery of Smart Meter Incremental Revenue Requirements - in effect until the effective date \n      of the next cost of service application"]
[null,null,null,null,null,null,null,null,"Rate Rider for Recovery of Smart Meter Stranded Assets - effective until April 30, 2016"]
[null,null,null,null,null,null,null,null,"Rate Rider for Recovery of Storm Damage Costs - effective until August 31, 2017"]
[null,null,null,null,null,null,null,null,"Rate Rider for Recovery of Stranded Assets - effective until April 30, 2016"]
[null,null,null,null,null,null,null,null,"Rate Rider for Recovery of Stranded Meter Assets - effective July 1, 2012 - April 30, 2016"]
[null,null,null,null,null,null,null,null,"Rate Rider for Recovery of Stranded Meter Assets – effective until April 30, 2015"]
[null,null,null,null,null,null,null,null,"Rate Rider for Recovery of Stranded Meter Assets - effective until April 30, 2016"]
[null,null,null,null,null,null,null,null,"Rate Rider for Recovery of Stranded Meter Assets - effective until April 30, 2017"]
[null,null,null,null,null,null,null,null,"Rate Rider for Recovery of Stranded Meter Assets - effective until August 31, 2015"]
[null,null,null,null,null,null,null,null,"Rate Rider for Recovery of Stranded Meter Assets - effective until August 31, 2017"]
[null,null,null,null,null,null,null,null,"Rate Rider for Recovery of Stranded Meter Assets - effective until December 31, 2014"]
[null,null,null,null,null,null,null,null,"Rate Rider for Recovery of Stranded Meter Assets - effective until December 31, 2015"]
[null,null,null,null,null,null,null,null,"Rate Rider for Recovery of Stranded Meter Assets - effective until June 30, 2016"]
[null,null,null,null,null,null,null,null,"Rate Rider for Recovery of Stranded Meter Assets - effective until March 31, 2016"]
[null,null,null,null,null,null,null,null,"Rate Rider for Recovery of Stranded Meter Assets - effective until May 31, 2014"]
[null,null,null,null,null,null,null,null,"Rate Rider for Reversal of Deferral/Variance Account Disposition (2011) - effective until April 30, 2015"]
[null,null,null,null,null,null,null,null,"Rate Rider for Smart Meter Disposition - effective until April 30, 2016"]
[null,null,null,null,null,null,null,null,"Rate Rider for Smart Meter Incremental Revenue Requirement - in effect until the effective date of \n      the next cost of service-based rate order"]
[null,null,null,null,null,null,null,null,"Rate Rider for Smart Metering Entity Charge - effective until October 31, 2018"]
[null,null,null,null,null,null,null,null,"Rate Rider for Stranded Meter Cost Recovery - effective until April 30, 2017"]
[null,null,null,null,null,null,null,null,"Rate Rider for Tax Change"]
[null,null,null,null,null,null,null,null,"Rate Rider for Tax Change - effective until April 30, 2015"]
[null,null,null,null,null,null,null,null,"Rate Rider for Tax Change (2014) - effective until April 30, 2015"]
[null,null,null,null,null,null,null,null,"Retail Transmission Rate - Line and Transformation Connection Service Rate"]
[null,null,null,null,null,null,null,null,"Retail Transmission Rate - Line and Transformation Connection Service Rate - (less than 1,000 kW)"]
[null,null,null,null,null,null,null,null,"Retail Transmission Rate - Line and Transformation Connection Service Rate - Interval Metered"]
[null,null,null,null,null,null,null,null,"Retail Transmission Rate - Line and Transformation Connection Service Rate \n      - Interval Metered (1,000 to 4,999 kW)"]
[null,null,null,null,null,null,null,null,"Retail Transmission Rate - Line and Transformation Connection Service Rate \n      - Interval Metered (less than 1,000 kW)"]
[null,null,null,null,null,null,null,null,"Retail Transmission Rate - Line and Transformation Connection Service Rate \n      - Interval Metered < 1,000 kW"]
[null,null,null,null,null,null,null,null,"Retail Transmission Rate - Line and Transformation Connection Service Rate \n      FOR ALL SERVICE AREAS EXCEPT HENSALL"]
[null,null,null,null,null,null,null,null,"Retail Transmission Rate - Line and Transformation Connection Service Rate\n      - Interval Metered > 1,000 kW"]
[null,null,null,null,null,null,null,null,"Retail Transmission Rate - Line Connection Service Rate"]
[null,null,null,null,null,null,null,null,"Retail Transmission Rate - Network Service Rate"]
[null,null,null,null,null,null,null,null,"Retail Transmission Rate - Network Service Rate - (less than 1,000 kW)"]
[null,null,null,null,null,null,null,null,"Retail Transmission Rate - Network Service Rate - Interval Metered"]
[null,null,null,null,null,null,null,null,"Retail Transmission Rate - Network Service Rate - Interval Metered (1,000 to 4,999 kW)"]
[null,null,null,null,null,null,null,null,"Retail Transmission Rate - Network Service Rate - Interval Metered (less than 1,000 kW)"]
[null,null,null,null,null,null,null,null,"Retail Transmission Rate - Network Service Rate - Interval Metered > 1,000 kW"]
[null,null,null,null,null,null,null,null,"Retail Transmission Rate - Transformation Connection Service Rate"]
[null,null,null,null,null,null,null,null,"Rider for Global Adjustment Sub-Account Disposition (2012) - effective until April 30, 2016 \n      Applicable only for Non-RPP Customers"]
[null,null,null,null,null,null,null,null,"Rural or Remote Electricity Rate Protection Charge (RRRP)"]
[null,null,null,null,null,null,null,null,"Sentinel lights (dusk-to-dawn) connected to unmetered wires will have a flat rate monthly energy charge \nadded to the regular customer bill. Further servicing details are available in the distributor’s Conditions \nof Service."]
[null,null,null,null,null,null,null,null,"Service Charge"]
[null,null,null,null,null,null,null,null,"Service Charge (per connection)"]
[null,null,null,null,null,null,null,null,"Service Charge (per customer)"]
[null,null,null,null,null,null,null,null,"Service Charge (per light)"]
[null,null,null,null,null,null,null,null,"Smart Grid Funding Adder (2014) - in effect until December 31, 2014"]
[null,null,null,null,null,null,null,null,"Smart Meter Disposition Rider"]
[null,null,null,null,null,null,null,null,"Smart Meter Entity Charge"]
[null,null,null,null,null,null,null,null,"Smart Meter Incremental Revenue Requirement Rate Rider"]
[null,null,null,null,null,null,null,null,"Standard Supply Service - Administrative Charge (if applicable)"]
[null,null,null,null,null,null,null,null,"Standby Charge - for a month where standby power is not provided, the charge is based on the applicable \nGeneral Service 50 to 4,999 kW or Large Use Distribution Volumetric Charge applied to the contracted \namount (e.g. Nameplate rating of generating facility)."]
[null,null,null,null,null,null,null,null,"Standby Charge - for a month where standby power is not provided. The charge is applied to the amount of \nreserved load transfer capacity contracted or the amount of monthly peak load displaced by a generating \nfacility"]
[null,null,null,null,null,null,null,null,"Standby Charge - for a month where standby power is not provided. The charge is applied to the contracted \namount (e.g. nameplate rating of the generation facility)."]
[null,null,null,null,null,null,null,null,"Wholesale Market Service Rate"]